Workbook

Sheet Quick Guide
C3: EWI Merit Order Tool 2022
C5: Quick Guide | E5: =Imprint!F5 -> Version 2022.0_en
D8: To be able to use all functions of the EWI Merit Order Tool 2022, macros must be activated.
D10: Merit Order
D11: A merit order is the order in which power plants operate on the electricity market. This is determined based on the marginal costs of the power plants, which are sorted in ascending order. As such, the merit order is an approximation of the actual supply curves, e.g., the day-ahead auction on the electricity exchange. The annual average merit order of the German power plant fleet gives a good indication of the relationships between the marginal costs of different power plants, relative to current conditions. The merit order is primarily influenced by the types of power plants in the fleet as well as the underlying fuel and emission certificate prices.
D13: The EWI Merit Order Tool 2022
D14: The EWI Merit Order Tool 2022 allows the calculation and graphical representation of the annual average merit order based on the conventional power plant fleet in Germany in the year 2021. Users can vary the assumptions underlying the merit order to investigate the effects of changing fuel prices or other assumptions on the merit order. In addition, power plants can be removed or added to the merit order. Users can also analyze and visualise the impact of power plant decommissioning or additional installations on the merit order. By default, only the merit order of conventional power plants is displayed. In order to adjust the merit order to account for specific feed-in situations of renewable energy sources (RES), an assumption can also be made regarding the available RES capacity.
D16: How to Use:
D18: Start:
D19: In the Start worksheet, the assumptions underlying the merit order can be adjusted. The standard assumptions depict the merit order of conventional power plants in the year 2021. As altering the assumptions may affect the marginal costs of the power plants, a distribution is displayed using a boxplot diagram. In addition, assumptions can be made regarding the amount of renewable energy generation capacities.
D21: Use the Reset Assumptions button to reset the assumptions to the default values.
D23: When the Update Merit Order button is clicked, the merit order in the Merit Order worksheet is updated based on the chosen assumptions.
D25: Merit Order:
D26: In the Merit Order worksheet, the merit order is visualized. The merit order is displayed as a list of the generation units sorted by marginal costs. The respective power plant types are marked by different colors. The merit order is recalculated when the button Update Merit Order is activated.
D28: Power Plant List:
D29: In the Power Plant List worksheet, all generation units and the corresponding assumptions are shown. Individual assumptions can be changed. Additionally, power plants can be removed or added from the merit order.
D31: A detailed documentation is available on our website (only in German):
D32: https://www.ewi.uni-koeln.de/en/publikationen/#misc-publications

Sheet Start
C3: EWI Merit Order Tool 2022
C5: Start | P5: =Imprint!F5 -> Version 2022.0_en
C7: Fuel Prices | H7: Overview Over the Marginal Costs of Power Plants
C8: Fuel Type | D8: Price | E8: Unit | F8: Source | H8: The boxplot diagram gives a first overview of the marginal cost distribution of power plants. In the illustration to the right of this text box, the individual elements of the diagram are explained. Changes in assumptions are reflected in the diagram immediately. In order to transfer the assumptions to the merit order in the Merit Order sheet, the button Update Merit Order must be clicked.
C9: Nuclear | D9: 5.5 | E9: EUR/MWhth | F9: refer to documentation
C10: Lignite | D10: 3.1 | E10: EUR/MWhth | F10: EWI (2019)
C11: Coal | D11: 14.56 | E11: EUR/MWhth | F11: ARA
C12: Gas | D12: 54.06 | E12: EUR/MWhth | F12: Spot TTF
C13: Oil | D13: 35.24 | E13: EUR/MWhth | F13: SDKW (2021)
C14: Waste | D14: 0 | E14: EUR/MWhth | F14: refer to documentation
C15: Other | D15: 38 | E15: EUR/MWhth | F15: refer to documentation
C17: Emission Certificate Price
D18: Price | E18: Unit | F18: Source
C19: Emission certificate price | D19: 52.09 | E19: EUR/tCO2 | F19: Ember (2021)
C21: Transport Costs
C22: Power Plant Type | D22: Price | E22: Unit | F22: Source
C23: Nuclear | D23: 0 | E23: EUR/MWhth | F23: refer to documentation
C24: Lignite | D24: 0 | E24: EUR/MWhth | F24: refer to documentation
C25: Coal | D25: 1.25 | E25: EUR/MWhth | F25: R2B (2019)
C26: Gas | D26: 0.5 | E26: EUR/MWhth | F26: R2B (2019)
C27: Oil | D27: 0.3 | E27: EUR/MWhth | F27: R2B (2019)
C28: Waste | D28: 0 | E28: EUR/MWhth | F28: refer to documentation
C29: Other | D29: 0 | E29: EUR/MWhth | F29: refer to documentation | H29: Available RES generation capacity | I29: 0 | J29: MW
C31: Other Variable Costs | H31: Outages | M31: Emission Levels
C32: Power Plant Type | D32: Price | E32: Unit | F32: Source | H32: Power Plant Type | J32: Unit | K32: Source | M32: Fuel Type | O32: Unit | P32: Source
C33: Nuclear | D33: 1.2 | E33: EUR/Mwhel | F33: refer to documentation | H33: Nuclear | I33: 7 | J33: % | K33: refer to documentation | M33: Nuclear | N33: 0 | O33: tCO2/MWhth | P33: refer to documentation
C34: Lignite | D34: 1.7 | E34: EUR/Mwhel | F34: R2B (2019) | H34: Lignite | I34: 13 | J34: % | K34: refer to documentation | M34: Lignite | N34: 0.404 | O34: tCO2/MWhth | P34: ÜNB (2019)
C35: Coal | D35: 1.3 | E35: EUR/Mwhel | F35: R2B (2019) | H35: Coal | I35: 20 | J35: % | K35: refer to documentation | M35: Coal | N35: 0.337 | O35: tCO2/MWhth | P35: ÜNB (2019)
C36: CCGT | D36: 1.5 | E36: EUR/Mwhel | F36: R2B (2019) | H36: CCGT | I36: 13 | J36: % | K36: refer to documentation | M36: Gas | N36: 0.201 | O36: tCO2/MWhth | P36: ÜNB (2019)
C37: OCGT | D37: 1 | E37: EUR/Mwhel | F37: R2B (2019) | H37: OCGT | I37: 13 | J37: % | K37: refer to documentation | M37: Oil | N37: 0.28 | O37: tCO2/MWhth | P37: ÜNB (2019)
C38: Oil | D38: 1 | E38: EUR/Mwhel | F38: refer to documentation | H38: Oil | I38: 15 | J38: % | K38: refer to documentation | M38: Waste | N38: 0 | O38: tCO2/MWhth | P38: refer to documentation
C39: Waste | D39: 1 | E39: EUR/Mwhel | F39: refer to documentation | H39: Waste | I39: 15 | J39: % | K39: refer to documentation | M39: Other | N39: 0.214 | O39: tCO2/MWhth | P39: ÜNB (2019)
C40: Other | D40: 1 | E40: EUR/Mwhel | F40: refer to documentation | H40: Other | I40: 15 | J40: % | K40: refer to documentation

Sheet Merit Order
C3: EWI Merit Order Tool 2022
C5: Merit Order | K5: =Imprint!F5 -> Version 2022.0_en
C7: Visualization of the Merit Order
C10: Merit Order in Tabular Form
C11: MaStR-Nr. | D11: Power Plant Identification Number of the Bundesnetzagentur | E11: Company | F11: Name of the Unit | G11: Begin of Electricity Generation | H11: Power Plant Type | I11: Mean Available Net Nominal Capacity [MW] | J11: Cumulated Available Net Nominal Capacity [MW] | K11: Marginal Costs [EUR/MWhel]
C12: SEE988848971327 | D12: BNA0084 | E12: Vattenfall Wärme Berlin AG | F12: HKW Reuter, Dampfturbine M | G12: 04.02.1998 | H12: Waste | I12: 30.6 | J12: 30.6 | K12: 1
C13: SEE956268312785 | D13: BNA0088b | E13: Solvay Chemicals GmbH Werk Bernburg | F13: Kondensationsturbine EKT | G13: 17.12.2009 | H13: Waste | I13: 20.4 | J13: 51 | K13: 1
C14: SEE924302504816 | D14: BNA0117a | E14: Energie- und Wasserversorgung Bonn/Rhein-Sieg GmbH | F14: HKW Bonn-Nord, Turbogruppe 4 | G14: 01.04.1991 | H14: Waste | I14: 12.002 | J14: 63.002 | K14: 1
C15: SEE958310939391 | D15: BNA0139 | E15: swb Entsorgung GmbH&Co. KG | F15: MKK | G15: 28.08.2009 | H15: Waste | I15: 27.2 | J15: 90.202 | K15: 1
C16: SEE944111876263 | D16: BNA0237 | E16: Progroup Power 1 GmbH | F16: PPO1 - Eisenhüttenstadt | G16: 19.10.2009 | H16: Waste | I16: 27.2 | J16: 117.402 | K16: 1
C17: SEE999588015110 | D17: BNA0287a | E17: MHKW Müllheizkraftwerk Frankfurt am Main GmbH | F17: Turbine 3 | G17: 12.12.1986 | H17: Waste | I17: 22.1 | J17: 139.502 | K17: 1
C18: SEE912257091857 | D18: BNA0287b | E18: MHKW Müllheizkraftwerk Frankfurt am Main GmbH | F18: Turbine 7 | G18: 21.12.2005 | H18: Waste | I18: 39.525 | J18: 179.027 | K18: 1
C19: SEE928761575349 | D19: BNA0380 | E19: EEW Großräschen GmbH | F19: EEW Großräschen GmbH | G19: 16.01.2008 | H19: Waste | I19: 21.25 | J19: 200.277 | K19: 1
C20: SEE977898966292 | D20: BNA0398 | E20: MVR Müllverwertung Rugenberger Damm GmbH & Co. KG | F20: MVR Rugenberger Damm Müll | G20: 16.02.1999 | H20: Waste | I20: 20.29375 | J20: 220.57075 | K20: 1
C21: SEE927716043575 | D21: BNA0417 | E21: EEW Energy from Waste Hannover GmbH | F21: MVA EEW Hannover | G21: 01.06.2005 | H21: Waste | I21: 25.16 | J21: 245.73075 | K21: 1
C22: SEE906215229154 | D22: BNA0438 | E22: EEW Energy from Waste Helmstedt GmbH | F22: MVA EEW Helmstedt | G22: 01.01.2014 | H22: Waste | I22: 31.875 | J22: 277.60575 | K22: 1
C23: SEE904604163027 | D23: BNA0519 | E23: RWE Generation SE | F23: Karnap B | G23: 14.02.1987 | H23: Waste | I23: 32.3 | J23: 309.90575 | K23: 1
C24: SEE981876305560 | D24: BNA0590 | E24: MVV Umwelt Asset GmbH | F24: TREA Leuna 1 | G24: 26.08.2005 | H24: Waste | I24: 13.80825 | J24: 323.714 | K24: 1
C25: SEE925794342412 | D25: BNA0591 | E25: MVV Umwelt Asset GmbH | F25: TREA Leuna 2 | G25: 19.06.2007 | H25: Waste | I25: 13.80825 | J25: 337.52225 | K25: 1
C26: SEE957830042178 | D26: BNA0599 | E26: AVEA Entsorgungsbetriebe | F26: Turbine 3 | G26: 09.08.2010 | H26: Waste | I26: 15.8525 | J26: 353.37475 | K26: 1
C27: SEE940474859066 | D27: BNA0616a | E27: BASF SE | F27: Z564 VT1 | G27: 30.04.1992 | H27: Waste | I27: 10.2 | J27: 363.57475 | K27: 1
C28: SEE962737235608 | D28: BNA0622 | E28: Müllheizkraftwerk Rothensee GmbH | F28: Block 1 | G28: 17.07.2005 | H28: Waste | I28: 24.82 | J28: 388.39475 | K28: 1
C29: SEE999819576335 | D29: BNA0623 | E29: Müllheizkraftwerk Rothensee GmbH | F29: Block 2 | G29: 08.09.2006 | H29: Waste | I29: 28.56 | J29: 416.95475 | K29: 1
C30: SEE923959807806 | D30: BNA0640 | E30: BASF SE | F30: Turbine 3 | G30: 10.11.2006 | H30: Waste | I30: 10.88 | J30: 427.83475 | K30: 1
C31: SEE904983741502 | D31: BNA0641a | E31: MVV Umwelt Asset GmbH | F31: MHKW Mannheim Generator T60 | G31: 07.01.2010 | H31: Waste | I31: 21.76 | J31: 449.59475 | K31: 1
C32: SEE953730197888 | D32: BNA0641b | E32: MVV Umwelt Asset GmbH | F32: MHKW Mannheim Generator TD0 | G32: 13.08.2012 | H32: Waste | I32: 3.621 | J32: 453.21575 | K32: 1
C33: SEE948093740512 | D33: BNA0641c | E33: MVV Umwelt Asset GmbH | F33: MHKW Mannheim Generator TE0 | G33: 14.06.2012 | H33: Waste | I33: 3.621 | J33: 456.83675 | K33: 1
C34: SEE977770417713 | D34: BNA0693 | E34: SWN Stadtwerke Neumünster GmbH | F34: T3 | G34: 06.07.1979 | H34: Waste | I34: 10.6437 | J34: 467.48045 | K34: 1
C35: SEE981003349412 | D35: BNA0693 | E35: SWN Stadtwerke Neumünster GmbH | F35: T6 | G35: 16.09.2014 | H35: Waste | I35: 18.5827 | J35: 486.06315 | K35: 1
C36: SEE900128586359 | D36: BNA0746 | E36: N-ERGIE Kraftwerke GmbH | F36: HKW-Sandreuth (Müll) | G36: 17.07.1992 | H36: Waste | I36: 15.98 | J36: 502.04315 | K36: 1
C37: SEE993054223955 | D37: BNA0750 | E37: GMVA Gemeinschafts-Müll-Verbrennungsanlage Niederrhein GmbH | F37: „Turbosatz 2“ | G37: 17.10.1991 | H37: Waste | I37: 34.34 | J37: 536.38315 | K37: 1
C38: SEE955937262338 | D38: BNA0751 | E38: GMVA Gemeinschafts-Müll-Verbrennungsanlage Niederrhein GmbH | F38: „Turbosatz 1“ | G38: 06.04.2006 | H38: Waste | I38: 17.935 | J38: 554.31815 | K38: 1
C39: SEE955718847075 | D39: BNA0845 | E39: Stadtwerke Rosenheim GmbH & Co. KG | F39: DT1 | G39: 01.01.1988 | H39: Waste | I39: 5.865 | J39: 560.18315 | K39: 1
C40: SEE955718847075 | D40: BNA0845 | E40: Stadtwerke Rosenheim GmbH & Co. KG | F40: DT1 | G40: 01.01.1988 | H40: Waste | I40: 5.865 | J40: 566.04815 | K40: 1
C41: SEE924286409503 | D41: BNA0855 | E41: IKW Rüdersdorf | F41: IKW Rüdersdorf | G41: 12.12.2007 | H41: Waste | I41: 25.5 | J41: 591.54815 | K41: 1
C42: SEE942366584926 | D42: BNA0969a | E42: SWM Services GmbH | F42: SWM HKW Nord 1 T10 | G42: 29.08.1991 | H42: Waste | I42: 15.3 | J42: 606.84815 | K42: 1
C43: SEE998278854237 | D43: BNA0969c | E43: SWM Services GmbH | F43: SWM HKW Nord 3 T30 | G43: 14.03.1984 | H43: Waste | I43: 18.7 | J43: 625.54815 | K43: 1
C44: SEE927727929912 | D44: BNA1020 | E44: MVA Weisweiler GmbH & Co. KG | F44: MVA-Turbine | G44: 01.10.1996 | H44: Waste | I44: 22.95 | J44: 648.49815 | K44: 1
C45: SEE996047653111 | D45: BNA1108 | E45: PD energy GmbH | F45: KW TRB Bitterfeld, Bitterfeld-Wolfen, Oststr. 1 | G45: 19.11.2009 | H45: Waste | I45: 9.724 | J45: 658.22215 | K45: 1
C46: SEE955548455112 | D46: BNA1110 | E46: Zweckverband Restmüllheizkraftwerk Böblingen | F46: Restmüllheizkraftwerk | G46: 01.05.1999 | H46: Waste | I46: 11.05 | J46: 669.27215 | K46: 1
C47: SEE972694764301 | D47: BNA1114 | E47: swb Entsorgung GmbH&Co. KG | F47: MHKW_Gen1 | G47: 01.01.1984 | H47: Waste | I47: 2.21 | J47: 671.48215 | K47: 1
C48: SEE986413873564 | D48: BNA1114 | E48: swb Entsorgung GmbH&Co. KG | F48: MHKW_Gen2 | G48: 01.01.2004 | H48: Waste | I48: 11.305 | J48: 682.78715 | K48: 1
C49: SEE950201173198 | D49: BNA1114 | E49: swb Entsorgung GmbH&Co. KG | F49: MHKW_Gen4 | G49: 01.01.2013 | H49: Waste | I49: 41.82 | J49: 724.60715 | K49: 1
C50: SEE927032372373 | D50: BNA1116 | E50: Bremerhavener Entsorgungsgesellschaft mbH | F50: MHKW, Generator 1+2 | G50: 17.03.1977 | H50: Waste | I50: 11.9 | J50: 736.50715 | K50: 1
C51: SEE944429192826 | D51: BNA1119 | E51: Zweckverband Abfallverwertung Südostbayern | F51: SEE944429192826 (MHKW Burgkirchen (Müllverbrennung)) | G51: 28.01.1994 | H51: Waste | I51: 10.88 | J51: 747.38715 | K51: 1
C52: SEE988429673565 | D52: BNA1139 | E52: EEW Energy from Waste Saarbrücken GmbH | F52: TREA Breisgau | G52: 17.05.2004 | H52: Waste | I52: 11.56 | J52: 758.94715 | K52: 1
C53: SEE971280976463 | D53: BNA1144 | E53: EEW Energy from Waste Göppingen | F53: MHKW Turbine | G53: 01.07.1975 | H53: Waste | I53: 9.35 | J53: 768.29715 | K53: 1
C54: SEE955453307926 | D54: BNA1148 | E54: MHB Betriebsführungsgesellschaft mbH | F54: MVA Hamm | G54: 01.07.1985 | H54: Waste | I54: 13.005 | J54: 781.30215 | K54: 1
C55: SEE945150729886 | D55: BNA1154 | E55: AGR Abfallentsorgungs-Gesellschaft Ruhrgebiet mbH | F55: RZR I Turbine1 | G55: 01.01.1981 | H55: Waste | I55: 12.648 | J55: 793.95015 | K55: 1
C56: SEE941568392261 | D56: BNA1154 | E56: AGR Abfallentsorgungs-Gesellschaft Ruhrgebiet mbH | F56: RZR I Turbine2 | G56: 01.01.1981 | H56: Waste | I56: 12.648 | J56: 806.59815 | K56: 1
C57: SEE923271533315 | D57: BNA1155 | E57: RZR II Herten GmbH | F57: RZR II Turbine3 | G57: 01.01.2009 | H57: Waste | I57: 19.975 | J57: 826.57315 | K57: 1
C58: SEE947996339434 | D58: BNA1155 | E58: RZR II Herten GmbH | F58: RZR II Turbine4 | G58: 07.02.2019 | H58: Waste | I58: 10.421 | J58: 836.99415 | K58: 1
C59: SEE951966828576 | D59: BNA1161 | E59: Zweckverband Müllverwertungsanlage Ingolstadt | F59: Turbine VE 32 ZV MVA IN | G59: 10.09.1996 | H59: Waste | I59: 6.29 | J59: 843.28415 | K59: 1
C60: SEE925011950635 | D60: BNA1161 | E60: Zweckverband Müllverwertungsanlage Ingolstadt | F60: Turbine VE 40 ZV MVA IN | G60: 10.09.1996 | H60: Waste | I60: 15.419 | J60: 858.70315 | K60: 1
C61: SEE992947793209 | D61: BNA1167 | E61: Kreis Weseler Abfallgesellschaft mbH & Co.KG | F61: Dampfturbine | G61: 01.04.1997 | H61: Waste | I61: 13.6 | J61: 872.30315 | K61: 1
C62: SEE925652456091 | D62: BNA1168 | E62: Müllheizkraftwerk Kassel GmbH | F62: Müllheizkraftwerk Kassel M7 | G62: 17.12.1985 | H62: Waste | I62: 6.8 | J62: 879.10315 | K62: 1
C63: SEE976589352260 | D63: BNA1168 | E63: Müllheizkraftwerk Kassel GmbH | F63: Müllheizkraftwerk Kassel M8 | G63: 12.03.2012 | H63: Waste | I63: 12.495 | J63: 891.59815 | K63: 1
C64: SEE941568476039 | D64: BNA1184 | E64: AVG Köln mbH | F64: Turbosatz 1 | G64: 02.02.1998 | H64: Waste | I64: 39.1 | J64: 930.69815 | K64: 1
C65: SEE996891820448 | D65: BNA1186a | E65: EGK Entsorgungsgesellschaft Krefeld GmbH & Co. KG | F65: Turbine 3 | G65: 01.01.1978 | H65: Waste | I65: 6.8 | J65: 937.49815 | K65: 1
C66: SEE992607731794 | D66: BNA1186b | E66: EGK Entsorgungsgesellschaft Krefeld GmbH & Co. KG | F66: Turbine 4 | G66: 05.04.2001 | H66: Waste | I66: 7.8455 | J66: 945.34365 | K66: 1
C67: SEE993787055366 | D67: BNA1186c | E67: EGK Entsorgungsgesellschaft Krefeld GmbH & Co. KG | F67: Turbine 2 | G67: 27.08.1974 | H67: Waste | I67: 0.7905 | J67: 946.13415 | K67: 1
C68: SEE925411264011 | D68: BNA1186d | E68: EGK Entsorgungsgesellschaft Krefeld GmbH & Co. KG | F68: Turbine 5 | G68: 01.12.1997 | H68: Waste | I68: 2.465 | J68: 948.59915 | K68: 1
C69: SEE979423615132 | D69: BNA1186e | E69: EGK Entsorgungsgesellschaft Krefeld GmbH & Co. KG | F69: Turbine 1 | G69: 27.08.1974 | H69: Waste | I69: 0.7905 | J69: 949.38965 | K69: 1
C70: SEE934298270268 | D70: BNA1190 | E70: Thermische Abfallbehandlung Lauta | F70: T.A. Lauta | G70: 21.07.2004 | H70: Waste | I70: 17.85 | J70: 967.23965 | K70: 1
C71: SEE942253705168 | D71: BNA1197 | E71: Technische Werke Ludwigshafen am Rhein | F71: FHKW DT 2 | G71: 24.02.1989 | H71: Waste | I71: 10.2595 | J71: 977.49915 | K71: 1
C72: SEE966264899036 | D72: BNA1197 | E72: Technische Werke Ludwigshafen am Rhein | F72: FHKW DT5 | G72: 05.07.2005 | H72: Waste | I72: 7.772672 | J72: 985.271822 | K72: 1
C73: SEE969698095906 | D73: BNA1197 | E73: Technische Werke Ludwigshafen am Rhein | F73: FHKW DT6 | G73: 12.04.2018 | H73: Waste | I73: 4.6636015 | J73: 989.9354235 | K73: 1
C74: SEE932127408097 | D74: BNA1198 | E74: PreZero Energy Zorbau GmbH | F74: Generator Zorbau | G74: 06.06.2005 | H74: Waste | I74: 23.12 | J74: 1013.055424 | K74: 1
C75: SEE986030306643 | D75: BNA1199 | E75: Entsorgungsgesellschaft Mainz mbH | F75: MHKW DTS | G75: 01.06.2009 | H75: Waste | I75: 12.75 | J75: 1025.805424 | K75: 1
C76: SEE938782869693 | D76: BNA1222 | E76: Energieversorgung Offenbach AG | F76: Müllheizkraftwerk Offenbach Turbine 1 | G76: 29.07.2016 | H76: Waste | I76: 12.325 | J76: 1038.130424 | K76: 1
C77: SEE965779402670 | D77: BNA1229 | E77: EEW Energy from Waste Saarbrücken GmbH | F77: MHKW Pirmasens Verbrennung | G77: 01.01.1999 | H77: Waste | I77: 12.75 | J77: 1050.880424 | K77: 1
C78: SEE940711490885 | D78: BNA1232 | E78: EEW Energy from Waste Premnitz GmbH | F78: ZWSF Premnitz | G78: 08.01.2004 | H78: Waste | I78: 2.125 | J78: 1053.005424 | K78: 1
C79: SEE997842921603 | D79: BNA1233 | E79: EEW Energy from Waste Premnitz GmbH | F79: EVE Premnitz | G79: 09.06.2009 | H79: Waste | I79: 21.25 | J79: 1074.255424 | K79: 1
C80: SEE946934017984 | D80: BNA1243 | E80: Vattenfall Europe New Energy Ecopower GmbH | F80: EBS-HKW Rostock | G80: 31.03.2010 | H80: Waste | I80: 15.725 | J80: 1089.980424 | K80: 1
C81: SEE918821866890 | D81: BNA1254 | E81: Zweckverband Müllverwertung Schwandorf | F81: Müllkraftwerk Schwandorf Turbinen | G81: 31.08.1982 | H81: Waste | I81: 28.05 | J81: 1118.030424 | K81: 1
C82: SEE973464796218 | D82: BNA1255 | E82: LEIPA Georg Leinfelder GmbH | F82: Dampfturbine FSK Kuhheide 32a | G82: 01.04.2011 | H82: Waste | I82: 24.5684 | J82: 1142.598824 | K82: 1
C83: SEE918623387630 | D83: BNA1261 | E83: EEW Energy from Waste Stapelfeld GmbH | F83: EEW Stapelfeld GmbH | G83: 01.10.1979 | H83: Waste | I83: 13.94 | J83: 1156.538824 | K83: 1
C84: SEE950593842498 | D84: BNA1262 | E84: Remondis Thermische Abfallverwertung GmbH | F84: Remondis Thermische Abfallverwertung GmbH | G84: 06.12.2007 | H84: Waste | I84: 20.4 | J84: 1176.938824 | K84: 1
C85: SEE951648072822 | D85: BNA1286 | E85: Zweckverband für Abfallwirtschaft Südwestthüringen (ZASt) | F85: ZASt | G85: 15.10.2007 | H85: Waste | I85: 10.285 | J85: 1187.223824 | K85: 1
C86: SEE900664653232 | D86: BNA1289 | E86: AMK-Abfallentsorgungsgesellschaft des Märkischen Kreises mbH | F86: Turbine 1 | G86: 01.08.1996 | H86: Waste | I86: 9.095 | J86: 1196.318824 | K86: 1
C87: SEE937978171572 | D87: BNA1289 | E87: AMK-Abfallentsorgungsgesellschaft des Märkischen Kreises mbH | F87: Turbine 2 | G87: 01.04.1981 | H87: Waste | I87: 2.89 | J87: 1199.208824 | K87: 1
C88: SEE958335974377 | D88: BNA1291 | E88: IHKW Industrieheizkraftwerk Andernach GmbH | F88: Dampfturbine | G88: 15.12.2008 | H88: Waste | I88: 10.625 | J88: 1209.833824 | K88: 1
C89: SEE943841929270 | D89: BNA1295 | E89: AVA Abfallverwertung Augsburg Kommunalunternehmen | F89: AHKW HD Turbine | G89: 16.09.1994 | H89: Waste | I89: 6.7745 | J89: 1216.608324 | K89: 1
C90: SEE943548208159 | D90: BNA1295 | E90: AVA Abfallverwertung Augsburg Kommunalunternehmen | F90: AHKW ND Turbine | G90: 16.09.1994 | H90: Waste | I90: 5.712 | J90: 1222.320324 | K90: 1
C91: SEE994551453975 | D91: BNA1316 | E91: EkoCity | F91: Generator A | G91: 01.01.1976 | H91: Waste | I91: 17 | J91: 1239.320324 | K91: 1
C92: SEE945602121718 | D92: BNA1316 | E92: EkoCity | F92: Generator B | G92: 01.01.1976 | H92: Waste | I92: 17 | J92: 1256.320324 | K92: 1
C93: SEE917110358740 | D93: BNA1330 | E93: Steinbeis Energie GmbH | F93: Steinbeis Energie EBS Kessel 6 | G93: 27.09.2010 | H93: Waste | I93: 14.45 | J93: 1270.770324 | K93: 1
C94: SEE957509710094 | D94: BNA1448 | E94: EEW Energy from Waste Saarbrücken GmbH AHKW-Neunkirchen | F94: AHKW-Neunkirchen | G94: 02.06.1977 | H94: Waste | I94: 9.86 | J94: 1280.630324 | K94: 1
C95: SEE990065849372 | D95: BNA1449a | E95: Zweckverband Abfallwirtschaft Raum Würzburg | F95: TS I | G95: 04.06.1984 | H95: Waste | I95: 7.395 | J95: 1288.025324 | K95: 1
C96: SEE971796321603 | D96: BNA1449b | E96: Zweckverband Abfallwirtschaft Raum Würzburg | F96: TS II | G96: 09.11.1998 | H96: Waste | I96: 10.2 | J96: 1298.225324 | K96: 1
C97: SEE988841475051 | D97: BNA1465a | E97: B+T Energie GmbH | F97: HKW Witzenhausen | G97: 24.06.2009 | H97: Waste | I97: 23.8 | J97: 1322.025324 | K97: 1
C98: SEE942777699660 | D98: BNA1490 | E98: EBS Kraftwerk GmbH | F98: EBKW Knapsack | G98: 01.01.2009 | H98: Waste | I98: 25.415 | J98: 1347.440324 | K98: 1
C99: SEE937544161082 | D99: BNA1510 | E99: Hamburger Rieger GmbH GB Kraftwerk | F99: EBS Heizkraftwerk Spremberg | G99: 01.08.2013 | H99: Waste | I99: 14.875 | J99: 1362.315324 | K99: 1
C100: SEE942956157011 | D100: BNA1867 | E100: AVG Köln mbH | F100: Turbosatz 2 | G100: 30.05.2017 | H100: Waste | I100: 15.3 | J100: 1377.615324 | K100: 1
C101: SEE977514334252 | E101: Energieversorgung Offenbach AG | F101: Müllheizkraftwerk Offenbach Turbine 2 | G101: 30.06.2006 | H101: Waste | I101: 1.802 | J101: 1379.417324 | K101: 1
C102: SEE990760688887 | E102: Entsorgungsgesellschaft Mainz mbH | F102: MHKW EBT | G102: 01.01.2003 | H102: Waste | I102: 4.25 | J102: 1383.667324 | K102: 1
C103: SEE929095613516 | E103: GSB Sonderabfall-Entsorgung Bayern GmbH | F103: Turbine VA2 | G103: 06.10.1995 | H103: Waste | I103: 6.00185 | J103: 1389.669174 | K103: 1
C104: SEE906331863386 | E104: GSB Sonderabfall-Entsorgung Bayern GmbH | F104: Turbine VA3 | G104: 20.12.1995 | H104: Waste | I104: 6.00185 | J104: 1395.671024 | K104: 1
C105: SEE958909269267 | E105: Infraserv GmbH & Co. Höchst KG | F105: IPH Ersatzbrennstoffverbrennung Turbine | G105: 28.07.2014 | H105: Waste | I105: 60.35 | J105: 1456.021024 | K105: 1
C106: SEE953182244383 | E106: MVV Umwelt Asset GmbH | F106: MHKW Mannheim Generator X1 | G106: 13.03.2020 | H106: Waste | I106: 3.468 | J106: 1459.489024 | K106: 1
C107: SEE998216550733 | E107: Klingele Papierwerke GmbH & Co. KG Papierfabrik Weener | F107: TWIN 1 | G107: 01.03.2008 | H107: Waste | I107: 3.9865 | J107: 1463.475524 | K107: 1
C108: SEE939382623364 | E108: Klingele Papierwerke GmbH & Co. KG Papierfabrik Weener | F108: TWIN2 | G108: 01.03.2008 | H108: Waste | I108: 3.9865 | J108: 1467.462024 | K108: 1
C109: SEE909031885047 | E109: Müllverwertung Borsigstraße GmbH | F109: MVB Borsigstraße Müll | G109: 16.07.2010 | H109: Waste | I109: 8.5e-06 | J109: 1467.462032 | K109: 1
C110: SEE923791565131 | E110: Zweckverband Müllheizkraftwerk Stadt und Landkreis Bamberg | F110: Rheinstraße | G110: 01.11.2016 | H110: Waste | I110: 9.6271 | J110: 1477.089132 | K110: 1
C111: SEE964170331206 | E111: Zweckverband für Abfallwirtschaft in Nordwest-Oberfranken | F111: MHKW Coburg | G111: 01.01.1988 | H111: Waste | I111: 9.01 | J111: 1486.099132 | K111: 1
C112: SEE957686843929 | E112: Zweckverband Abfallverwertung Südhessen (ZAS) | F112: Turbine 1 | G112: 09.10.1991 | H112: Waste | I112: 8.6887 | J112: 1494.787832 | K112: 1
C113: SEE937822704543 | E113: Zweckverband Abfallverwertung Südhessen (ZAS) | F113: Turbine 2 | G113: 27.01.2020 | H113: Waste | I113: 1.0625 | J113: 1495.850332 | K113: 1
E114: Nicht-EEG-Anlagen < 10 MW | H114: Waste | I114: 135.044855 | J114: 1630.895187 | K114: 1
C115: SEE927528071629 | D115: BNA0382 | E115: Kernkraftwerk Gundremmingen GmbH | F115: Gundremmingen C | G115: 02.11.1984 | H115: Nuclear | I115: 1197.84 | J115: 2828.735187 | K115: 16.91428571
C116: SEE930752846949 | D116: BNA0251 | E116: PreussenElektra | F116: Grohnde | G116: 05.09.1984 | H116: Nuclear | I116: 1264.8 | J116: 4093.535187 | K116: 17.09595376
C117: SEE944567587799 | D117: BNA0607 | E117: Kernkraftwerk Lippe-Ems GmbH | F117: Emsland A | G117: 20.06.1988 | H117: Nuclear | I117: 1242.48 | J117: 5336.015187 | K117: 17.14202899
C118: SEE951462745445 | D118: BNA0157 | E118: PreussenElektra | F118: Brokdorf | G118: 14.10.1986 | H118: Nuclear | I118: 1311.3 | J118: 6647.315187 | K118: 17.86666667
C119: SEE943690268513 | D119: BNA0263 | E119: PreussenElektra | F119: Isar 2 | G119: 22.01.1988 | H119: Nuclear | I119: 1311.3 | J119: 7958.615187 | K119: 17.86666667
C120: SEE985577062814 | D120: BNA0686 | E120: EnBW Energie Baden-Württemberg AG | F120: GKN II | G120: 15.04.1989 | H120: Nuclear | I120: 1218.3 | J120: 9176.915187 | K120: 17.86666667
C121: SEE968582186379 | D121: BNA1404 | E121: Lausitz Energie Kraftwerke AG | F121: Boxberg Block R | G121: 06.11.2012 | H121: Lignite | I121: 548.1 | J121: 9725.015187 | K121: 56.95025172
C122: SEE985453029962 | D122: BNA1185 | E122: Pfeifer & Langen GmbH ＆ Co. KG | F122: Könnern Generator 1 | G122: 01.01.1973 | H122: Lignite | I122: 7.2645 | J122: 9732.279687 | K122: 57.38348708
C123: SEE952937205877 | D123: BNA1185 | E123: Pfeifer & Langen GmbH ＆ Co. KG | F123: Könnern Generator 2 | G123: 28.09.1993 | H123: Lignite | I123: 17.1129 | J123: 9749.392587 | K123: 57.38348708
C124: SEE983252937631 | D124: BNA0709 | E124: RWE Power AG | F124: Niederaußem K | G124: 28.01.2003 | H124: Lignite | I124: 821.28 | J124: 10570.67259 | K124: 57.84967442
C125: SEE925599434282 | D125: BNA1401a | E125: RWE Power AG | F125: Neurath F | G125: 03.08.2012 | H125: Lignite | I125: 922.2 | J125: 11492.87259 | K125: 57.84967442
C126: SEE993592183001 | D126: BNA1401b | E126: RWE Power AG | F126: Neurath G | G126: 08.07.2012 | H126: Lignite | I126: 922.2 | J126: 12415.07259 | K126: 57.84967442
C127: SEE915426748132 | D127: BNA0543 | E127: RheinEnergie AG | F127: Block 6 Merkenich RheinEnergie | G127: 16.12.2010 | H127: Lignite | I127: 65.511 | J127: 12480.58359 | K127: 58.64424528
C128: SEE991324265957 | D128: BNA1097 | E128: Smurfit Kappa Zülpich Papier GmbH | F128: DT06 | G128: 22.10.2010 | H128: Lignite | I128: 12.51321 | J128: 12493.0968 | K128: 58.64424528
C129: SEE907389779292 | D129: BNA0124 | E129: Lausitz Energie Kraftwerke AG | F129: Boxberg Block Q | G129: 01.10.2000 | H129: Lignite | I129: 730.8 | J129: 13223.8968 | K129: 58.77886525
C130: SEE957229968300 | D130: BNA0707 | E130: RWE Power AG | F130: Niederaußem H | G130: 16.09.1974 | H130: Lignite | I130: 563.76 | J130: 13787.6568 | K130: 58.96840607
C131: SEE998199911088 | D131: BNA0116 | E131: EnBW Energie Baden-Württemberg AG | F131: Kraftwerk Lippendorf Block S | G131: 01.12.1999 | H131: Lignite | I131: 775.17 | J131: 14562.8268 | K131: 59.18657143
C132: SEE921905907730 | D132: BNA0708 | E132: RWE Power AG | F132: Niederaußem G | G132: 23.10.1974 | H132: Lignite | I132: 546.36 | J132: 15109.1868 | K132: 59.29627863
C133: SEE966331411864 | D133: BNA0115 | E133: Lausitz Energie Kraftwerke AG | F133: Kraftwerk Lippendorf Block R | G133: 20.06.2000 | H133: Lignite | I133: 775.17 | J133: 15884.3568 | K133: 60.58868293
C134: SEE938337436349 | D134: BNA0914 | E134: Lausitz Energie Kraftwerke AG | F134: Kraftwerk Schwarze Pumpe Block A | G134: 15.12.1997 | H134: Lignite | I134: 656.85 | J134: 16541.2068 | K134: 60.58868293
C135: SEE952672318108 | D135: BNA0915 | E135: Lausitz Energie Kraftwerke AG | F135: Kraftwerk Schwarze Pumpe Block B | G135: 25.05.1998 | H135: Lignite | I135: 656.85 | J135: 17198.0568 | K135: 60.58868293
C136: SEE946537967655 | D136: BNA0183 | E136: Stadtwerke Cottbus GmbH | F136: Hochdruckdampfturbine | G136: 20.02.1999 | H136: Lignite | I136: 13.92 | J136: 17211.9768 | K136: 62.0609
C137: SEE978888539755 | D137: BNA0183 | E137: Stadtwerke Cottbus GmbH | F137: Mittel-Niederdruckdampfturbine | G137: 23.03.1999 | H137: Lignite | I137: 39.15 | J137: 17251.1268 | K137: 62.0609
C138: SEE941974735591 | D138: BNA0183 | E138: Stadtwerke Cottbus GmbH | F138: Rauchgasturbine | G138: 29.08.1998 | H138: Lignite | I138: 11.31 | J138: 17262.4368 | K138: 62.0609
C139: SEE960652233358 | D139: BNA0878 | E139: Saale Energie GmbH | F139: Schkopau A | G139: 01.01.1995 | H139: Lignite | I139: 391.5 | J139: 17653.9368 | K139: 62.0609
C140: SEE947677200282 | D140: BNA0879 | E140: Saale Energie GmbH | F140: Schkopau B | G140: 01.01.1996 | H140: Lignite | I140: 391.5 | J140: 18045.4368 | K140: 62.0609
C141: SEE921449009914 | D141: BNA1461 | E141: CropEnergies Bioethanol GmbH | F141: Dampfturbine IV CropEnergies Zeitz | G141: 01.01.2005 | H141: Lignite | I141: 15.46251 | J141: 18060.89931 | K141: 62.0609
C142: SEE986936308987 | D142: BNA1293a | E142: Martinswerk GmbH | F142: KWK-Anlage: Generator 1 | G142: 01.01.1961 | H142: Lignite | I142: 8.613 | J142: 18069.51231 | K142: 63.92773196
C143: SEE975343602986 | D143: BNA1293b | E143: Martinswerk GmbH | F143: KWK-Anlage: Generator 2 | G143: 01.01.1961 | H143: Lignite | I143: 8.613 | J143: 18078.12531 | K143: 63.92773196
C144: SEE998111672394 | D144: BNA1002 | E144: Mitteldeutsche Braunkohlengesellschaft mbH | F144: IKW Wählitz | G144: 25.08.1994 | H144: Lignite | I144: 26.97 | J144: 18105.09531 | K144: 64.41262338
C145: SEE999145467468 | D145: BNA0490a | E145: RWE Power AG | F145: GoWerk F | G145: 01.12.1992 | H145: Lignite | I145: 34.8 | J145: 18139.89531 | K145: 64.70720251
C146: SEE970305352633 | D146: BNA1400a | E146: Südzucker AG | F146: Dampfturbine III Südzucker Zeitz | G146: 01.08.1993 | H146: Lignite | I146: 14.703 | J146: 18154.59831 | K146: 64.70720251
C147: SEE933960350956 | D147: BNA0179 | E147: eins energie in sachsen GmbH & Co. KG | F147: HKW Chemnitz Nord II, Block C | G147: 07.06.1990 | H147: Lignite | I147: 80.32884 | J147: 18234.92715 | K147: 65.9137234
C148: SEE994335340088 | E148: Stadtwerke Frankfurt (Oder) GmbH | F148: HKW DT | G148: 09.10.1997 | H148: Lignite | I148: 21.75 | J148: 18256.67715 | K148: 65.9137234
E149: Nicht-EEG-Anlagen < 10 MW | H149: Lignite | I149: 31.22082 | J149: 18287.89797 | K149: 65.9137234
C150: SEE991817093418 | D150: BNA0785 | E150: Lausitz Energie Kraftwerke AG | F150: Kraftwerk Jänschwalde Block A | G150: 01.10.1981 | H150: Lignite | I150: 435 | J150: 18722.89797 | K150: 66.08496
C151: SEE938669585906 | D151: BNA0786 | E151: Lausitz Energie Kraftwerke AG | F151: Kraftwerk Jänschwalde Block B | G151: 29.11.1982 | H151: Lignite | I151: 435 | J151: 19157.89797 | K151: 66.08496
C152: SEE989591633753 | D152: BNA0787 | E152: Lausitz Energie Kraftwerke AG | F152: Kraftwerk Jänschwalde Block C | G152: 01.02.1984 | H152: Lignite | I152: 435 | J152: 19592.89797 | K152: 66.08496
C153: SEE923943268279 | D153: BNA0788 | E153: Lausitz Energie Kraftwerke AG | F153: Kraftwerk Jänschwalde Block D | G153: 06.10.1985 | H153: Lignite | I153: 435 | J153: 20027.89797 | K153: 66.08496
C154: SEE928076311489 | D154: BNA0523 | E154: Städtische Werke Energie + Wärme GmbH | F154: Fernwärmekraftwerk Kassel | G154: 21.12.1989 | H154: Lignite | I154: 29.145 | J154: 20057.04297 | K154: 66.32623126
C155: SEE923082939436 | D155: BNA0177 | E155: eins energie in sachsen GmbH & Co. KG | F155: HKW Chemnitz Nord II, Block B | G155: 26.08.1988 | H155: Lignite | I155: 50.60964 | J155: 20107.65261 | K155: 66.74407328
C156: SEE905721866655 | D156: BNA0292 | E156: RWE Power AG | F156: Fab Frechen | G156: 23.12.1962 | H156: Lignite | I156: 153.12 | J156: 20260.77261 | K156: 66.74407328
C157: SEE990438768378 | D157: BNA0270 | E157: Stadtwerke Flensburg | F157: Dampfturbine 8 | G157: 24.05.1985 | H157: Coal | I157: 26.32 | J157: 20287.09261 | K157: 67.49906746
C158: SEE931736847297 | D158: BNA0699 | E158: RWE Power AG | F158: Neurath D | G158: 24.06.1975 | H158: Lignite | I158: 528.09 | J158: 20815.18261 | K158: 67.66819672
C159: SEE976414005279 | D159: BNA0700 | E159: RWE Power AG | F159: Neurath E | G159: 22.02.1976 | H159: Lignite | I159: 525.48 | J159: 21340.66261 | K159: 67.66819672
C160: SEE987007884447 | D160: BNA1027 | E160: RWE Power AG | F160: Weißweiler G | G160: 14.02.1974 | H160: Lignite | I160: 576.81 | J160: 21917.47261 | K160: 68.76766667
C161: SEE955314088254 | D161: BNA1028 | E161: RWE Power AG | F161: Weißweiler H | G161: 18.01.1975 | H161: Lignite | I161: 570.72 | J161: 22488.19261 | K161: 68.76766667
C162: SEE985842749525 | D162: BNA0122 | E162: Lausitz Energie Kraftwerke AG | F162: Boxberg Block N | G162: 01.01.1979 | H162: Lignite | I162: 435 | J162: 22923.19261 | K162: 70.68388571
C163: SEE908125004449 | D163: BNA0123 | E163: Lausitz Energie Kraftwerke AG | F163: Boxberg Block P | G163: 01.07.1980 | H163: Lignite | I163: 435 | J163: 23358.19261 | K163: 70.68388571
C164: SEE927622980674 | D164: BNA1141 | E164: Pfeifer & Langen GmbH ＆ Co. KG | F164: Euskirchen Generator 1 | G164: 30.08.1979 | H164: Lignite | I164: 6.03258 | J164: 23364.22519 | K164: 70.76281465
C165: SEE912440649056 | D165: BNA1141 | E165: Pfeifer & Langen GmbH ＆ Co. KG | F165: Euskirchen Generator 3 | G165: 01.07.1980 | H165: Lignite | I165: 1.00572 | J165: 23365.23091 | K165: 70.76281465
C166: SEE927630371594 | D166: BNA1486 | E166: ROMONTA GmbH | F166: Grubenheizkraftwerk Amsdorf | G166: 01.07.1979 | H166: Lignite | I166: 39.9243 | J166: 23405.15521 | K166: 70.76281465
C167: SEE957285549260 | D167: BNA0272 | E167: Stadtwerke Flensburg | F167: Dampfturbine 9 | G167: 16.08.1988 | H167: Coal | I167: 26.32 | J167: 23431.47521 | K167: 71.91233862
C168: SEE996990805407 | D168: BNA0138 | E168: Braunschweiger Versorgungs-AG & Co. KG | F168: HKW Mitte Kessel 1 | G168: 18.01.1985 | H168: Coal | I168: 35.6 | J168: 23467.07521 | K168: 72.59130342
C169: SEE988477355802 | D169: BNA0646b | E169: Grosskraftwerk Mannheim | F169: GKM Block 9 | G169: 02.05.2015 | H169: Coal | I169: 674.4 | J169: 24141.47521 | K169: 73.20588362
C170: SEE923577153439 | D170: BNA0662a | E170: Evonik Operations GmbH | F170: Kraftwerk I, T15 | G170: 15.10.1983 | H170: Coal | I170: 54.72 | J170: 24196.19521 | K170: 73.283452
C171: SEE970425279599 | D171: BNA1674 | E171: Onyx Kraftwerk Wilhelmshaven GmbH & Co. KG | F171: Kraftwerk Wilhelmshaven Onyx | G171: 30.11.2015 | H171: Coal | I171: 580.8 | J171: 24776.99521 | K171: 73.43909189
C172: SEE980331579218 | D172: BNA0518b | E172: EnBW Energie Baden-Württemberg AG | F172: Rheinhafen-Dampfkraftwerk RDK 8 | G172: 01.07.2014 | H172: Coal | I172: 667.2 | J172: 25444.19521 | K172: 73.83115217
C173: SEE961029163353 | D173: BNA1508 | E173: Trianel Kohlekraftwerk Lünen GmbH & Co KG | F173: Trianel Kohlekraftwerk Lünen | G173: 01.01.2013 | H173: Coal | I173: 596.8 | J173: 26040.99521 | K173: 73.91007617
C174: SEE907150117643 | D174: BNA0696 | E174: RWE Power AG | F174: Neurath A | G174: 14.10.1972 | H174: Lignite | I174: 255.78 | J174: 26296.77521 | K174: 74.86472727
C175: SEE979012663285 | D175: BNA0697 | E175: RWE Power AG | F175: Neurath B | G175: 30.06.1972 | H175: Lignite | I175: 255.78 | J175: 26552.55521 | K175: 74.86472727
C176: SEE904421343152 | D176: BNA1025 | E176: RWE Power AG | F176: Weißweiler E | G176: 02.12.1965 | H176: Lignite | I176: 279.27 | J176: 26831.82521 | K176: 74.86472727
C177: SEE933685962403 | D177: BNA1026 | E177: RWE Power AG | F177: Weißweiler F | G177: 04.09.1967 | H177: Lignite | I177: 279.27 | J177: 27111.09521 | K177: 74.86472727
C178: SEE974018310478 | D178: BNA1864 | E178: KÄMMERER Energie GmbH | F178: Generator 4 | G178: 22.12.1962 | H178: Lignite | I178: 8.004 | J178: 27119.09921 | K178: 74.86472727
C179: SEE920672219015 | D179: BNA1865 | E179: KÄMMERER Energie GmbH | F179: Generator 5 | G179: 10.01.1977 | H179: Lignite | I179: 8.526 | J179: 27127.62521 | K179: 74.86472727
C180: SEE958847865460 | D180: BNA1093 | E180: Onyx Kraftwerk Zolling GmbH &Co. KGaA | F180: Kraftwerk Zolling | G180: 01.01.1985 | H180: Coal | I180: 377.6 | J180: 27505.22521 | K180: 75.03332597
C181: SEE918143230942 | D181: BNA0216b | E181: STEAG-EVN Walsum 10 Kraftwerksgesellschaft | F181: Walsum 10 | G181: 20.12.2013 | H181: Coal | I181: 580 | J181: 28085.22521 | K181: 75.44295556
C182: SEE913516809497 | D182: BNA1949 | E182: Uniper Kraftwerke GmbH | F182: Datteln 4 | G182: 30.05.2020 | H182: Coal | I182: 841.6 | J182: 28926.82521 | K182: 75.44295556
C183: SEE948609940009 | D183: BNA0434 | E183: EnBW Energie Baden-Württemberg AG | F183: Heizkraftwerk Heilbronn HLB 7 | G183: 01.12.1985 | H183: Coal | I183: 622.4 | J183: 29549.22521 | K183: 75.85716201
C184: SEE904968236689 | D184: BNA0147 | E184: Onyx Kraftwerk Farge GmbH & Co. KGaA | F184: Kraftwerk Farge | G184: 01.01.1969 | H184: Coal | I184: 280 | J184: 29829.22521 | K184: 76.69961582
C185: SEE965782597448 | D185: BNA0019 | E185: EnBW Energie Baden-Württemberg AG | F185: Heizkraftwerk Altbach/Deizisau HKW 2 DT (Solobetrieb) | G185: 29.05.1997 | H185: Coal | I185: 258.4 | J185: 30087.62521 | K185: 77.12802273
C186: SEE980016033738 | D186: BNA0518a | E186: EnBW Energie Baden-Württemberg AG | F186: Rheinhafen-Dampfkraftwerk RDK 7 | G186: 21.06.1985 | H186: Coal | I186: 413.6 | J186: 30501.22521 | K186: 77.56132571
C187: SEE909002940690 | D187: BNA0644 | E187: Grosskraftwerk Mannheim | F187: GKM Block 6 | G187: 26.12.2005 | H187: Coal | I187: 204 | J187: 30705.22521 | K187: 77.56132571
C188: SEE967605837250 | D188: BNA0712 | E188: RWE Power AG | F188: Niederaußem C | G188: 27.06.1965 | H188: Lignite | I188: 256.65 | J188: 30961.87521 | K188: 78.10620253
C189: SEE904194792843 | D189: BNA0464 | E189: Kraftwerk Mehrum GmbH | F189: KWM Block 3 | G189: 24.08.1979 | H189: Coal | I189: 552 | J189: 31513.87521 | K189: 78.44295954
C190: SEE943427876363 | D190: BNA0849 | E190: KNG Kraftwerks- und Netzgesellschaft mbH | F190: Kraftwerk Rostock Block A | G190: 01.10.1994 | H190: Coal | I190: 411.2 | J190: 31925.07521 | K190: 78.53224537
C191: SEE900341307519 | D191: BNA1451 | E191: Venator Germany GmbH | F191: HKW Venator Germany | G191: 20.05.1960 | H191: Lignite | I191: 24.68799 | J191: 31949.7632 | K191: 78.69094388
C192: SEE998984420832 | D192: BNA1075a | E192: Volkswagen AG | F192: HKW Nord Generator A | G192: 01.10.1994 | H192: Coal | I192: 48.8 | J192: 31998.5632 | K192: 79.80430588
C193: SEE920837459195 | D193: BNA1075b | E193: Volkswagen AG | F193: HKW Nord Generator B | G193: 18.09.1998 | H193: Coal | I193: 48.8 | J193: 32047.3632 | K193: 79.80430588
C194: SEE979779484642 | D194: BNA0861b | E194: Energie SaarLorLux AG | F194: HKW-Römerbrücke Dampfturbinenanlage DT2 | G194: 27.06.1988 | H194: Coal | I194: 42.4 | J194: 32089.7632 | K194: 80.73888095
C195: SEE938923083674 | D195: BNA0660 | E195: Evonik Operations GmbH | F195: Kraftwerk I, T14 | G195: 01.06.1971 | H195: Coal | I195: 44.448 | J195: 32134.2112 | K195: 82.77577534
C196: SEE987197130805 | D196: BNA0402 | E196: Wärme Hamburg GmbH | F196: HKW Tiefstack | G196: 01.04.1993 | H196: Coal | I196: 155.2 | J196: 32289.4112 | K196: 83.17565644
C197: SEE975507584615 | D197: BNA0646a | E197: Grosskraftwerk Mannheim | F197: GKM Block 8 | G197: 05.04.1993 | H197: Coal | I197: 348 | J197: 32637.4112 | K197: 83.17565644
C198: SEE929161243203 | D198: BNA0377 | E198: Uniper Kraftwerke GmbH | F198: Staudinger 5 | G198: 01.01.1992 | H198: Coal | I198: 408 | J198: 33045.4112 | K198: 83.68106173
C199: SEE906834978235 | D199: BNA1187 | E199: Pfeifer & Langen GmbH ＆ Co. KG | F199: Lage Generator 2 | G199: 27.08.1962 | H199: Coal | I199: 3.2616 | J199: 33048.6728 | K199: 83.9463463
C200: SEE952372080091 | D200: BNA0969b | E200: SWM Services GmbH | F200: SWM HKW Nord 2 T20 | G200: 15.12.1991 | H200: Coal | I200: 266.4 | J200: 33315.0728 | K200: 84.19274534
C201: SEE981109871657 | D201: BNA0085a | E201: Vattenfall Wärme Berlin AG | F201: HKW Moabit Dampfturbine | G201: 27.02.1990 | H201: Coal | I201: 71.2 | J201: 33386.2728 | K201: 84.710825
C202: SEE989328541450 | D202: BNA0086 | E202: Vattenfall Wärme Berlin AG | F202: HKW Reuter West Dampfturbine D | G202: 14.12.1987 | H202: Coal | I202: 225.6 | J202: 33611.8728 | K202: 84.710825
C203: SEE974883809046 | D203: BNA0087 | E203: Vattenfall Wärme Berlin AG | F203: HKW Reuter West Dampfturbine E | G203: 01.08.1988 | H203: Coal | I203: 225.6 | J203: 33837.4728 | K203: 84.710825
C204: SEE945908806647 | D204: BNA0450 | E204: STEAG | F204: Herne 4 | G204: 25.07.1989 | H204: Coal | I204: 368 | J204: 34205.4728 | K204: 84.710825
C205: SEE954169155876 | D205: BNA0758 | E205: Energieversorgung Offenbach AG | F205: Heizkraftwerk-Offenbach-EVO | G205: 18.10.1988 | H205: Coal | I205: 43.2 | J205: 34248.6728 | K205: 84.710825
C206: SEE974753539035 | D206: BNA0801 | E206: SWP Stadtwerke Pforzheim | F206: Turbine 6 | G206: 18.01.1990 | H206: Coal | I206: 21.52 | J206: 34270.1928 | K206: 84.710825
... 982 more rows

Sheet Power Plant List
C3: EWI Merit Order Tool 2022
C5: Power Plant List | Z5: =Imprint!F5 -> Version 2022.0_en
C7: The power plant list is based on the power plant list of the Bundesnetzagentur (BNetzA, 2021). The list includes all conventional power plants that were in operation on 15.11.2021. The dark yellow columns are taken from BNetzA (2021) unaltered. The light yellow columns contain additional information based on own assumptions, calculations and other sources. For example, the assumptions on power plant efficiency are largely taken from OPSD (2020). The fields with white backgrounds can be adjusted by the users. For example, power plants can be removed from the merit order and up to 10 new power plants can be added.
C10: Included in the Merit Order? | D10: MaStR-Nr. | E10: Power Plant Identification Number of the Federal Network Agency | F10: Company | G10: Unit Name | H10: Postal Code of the Plant's Location | I10: City of the Power Plant | J10: Street Name and Number of the Power Plant | K10: State | L10: Begin of Electricity Generation | M10: Energieträger | N10: Hauptbrennstoff | O10: Source of Energy (BNetzA, 2019) | P10: Wärmeauskopplung (KW) ja/nein | Q10: Unit Technology | R10: Assumed Primary Source of Energy | S10: Power Plant Type Assignment | T10: Efficiency | U10: Source Efficiency | V10: Gross Capacity [MW] | W10: Net Nominal Capacity (Active Electrical Power) [MW] | X10: Mean Available Net Nominal Capacity [MW] | Y10: Fuel Price (incl. Transport) [EUR/MWhth] | Z10: Marginal Costs [EUR/MWhel]
C11: No | D11: (optional) | E11: (optional) | F11: (optional) | G11: (optional) | H11: (optional) | I11: (optional) | J11: (optional) | K11: (optional) | L11: (optional) | M11: (optional) | O11: (optional) | Q11: (optional) | R11: (required) | S11: (required) | T11: (required) | U11: (optional) | V11: (optional) | W11: (required) | X11: =IF(ISNUMBER((1-VLOOKUP(S11,Start!$H$33:$I$40,2,FALSE)/100)*W11),(1-VLOOKUP(S11,Start!$H$33:$I$40,2,FALSE)/100)*W11,0) -> 0 | Y11: =IF(ISNUMBER(VLOOKUP(R11,Start!$C$9:$D$15,2,FALSE)+VLOOKUP(R11,Start!$C$23:$D$29,2,FALSE)),VLOOKUP(R11,Start!$C$9:$D$15,2,FALSE)+VLOOKUP(R11,Start!$C$23:$D$29,2,FALSE),0) -> 0 | Z11: =IF(ISNUMBER((Y11/T11)+Start!$D$19*(VLOOKUP(R11,Start!$M$33:$N$39,2,FALSE)/T11)+VLOOKUP(S11,Start!$C$33:$D$40,2,FALSE)),(Y11/T11)+Start!$D$19*(VLOOKUP(R11,Start!$M$33:$N$39,2,FALSE)/T11)+VLOOKUP(S11,Start!$C$33:$D$40,2,FALSE),0) -> 0
C12: No | D12: (optional) | E12: (optional) | F12: (optional) | G12: (optional) | H12: (optional) | I12: (optional) | J12: (optional) | K12: (optional) | L12: (optional) | M12: (optional) | O12: (optional) | Q12: (optional) | R12: (required) | S12: (required) | T12: (required) | U12: (optional) | V12: (optional) | W12: (required) | X12: =IF(ISNUMBER((1-VLOOKUP(S12,Start!$H$33:$I$40,2,FALSE)/100)*W12),(1-VLOOKUP(S12,Start!$H$33:$I$40,2,FALSE)/100)*W12,0) -> 0 | Y12: =IF(ISNUMBER(VLOOKUP(R12,Start!$C$9:$D$15,2,FALSE)+VLOOKUP(R12,Start!$C$23:$D$29,2,FALSE)),VLOOKUP(R12,Start!$C$9:$D$15,2,FALSE)+VLOOKUP(R12,Start!$C$23:$D$29,2,FALSE),0) -> 0 | Z12: =IF(ISNUMBER((Y12/T12)+Start!$D$19*(VLOOKUP(R12,Start!$M$33:$N$39,2,FALSE)/T12)+VLOOKUP(S12,Start!$C$33:$D$40,2,FALSE)),(Y12/T12)+Start!$D$19*(VLOOKUP(R12,Start!$M$33:$N$39,2,FALSE)/T12)+VLOOKUP(S12,Start!$C$33:$D$40,2,FALSE),0) -> 0
C13: No | D13: (optional) | E13: (optional) | F13: (optional) | G13: (optional) | H13: (optional) | I13: (optional) | J13: (optional) | K13: (optional) | L13: (optional) | M13: (optional) | O13: (optional) | Q13: (optional) | R13: (required) | S13: (required) | T13: (required) | U13: (optional) | V13: (optional) | W13: (required) | X13: =IF(ISNUMBER((1-VLOOKUP(S13,Start!$H$33:$I$40,2,FALSE)/100)*W13),(1-VLOOKUP(S13,Start!$H$33:$I$40,2,FALSE)/100)*W13,0) -> 0 | Y13: =IF(ISNUMBER(VLOOKUP(R13,Start!$C$9:$D$15,2,FALSE)+VLOOKUP(R13,Start!$C$23:$D$29,2,FALSE)),VLOOKUP(R13,Start!$C$9:$D$15,2,FALSE)+VLOOKUP(R13,Start!$C$23:$D$29,2,FALSE),0) -> 0 | Z13: =IF(ISNUMBER((Y13/T13)+Start!$D$19*(VLOOKUP(R13,Start!$M$33:$N$39,2,FALSE)/T13)+VLOOKUP(S13,Start!$C$33:$D$40,2,FALSE)),(Y13/T13)+Start!$D$19*(VLOOKUP(R13,Start!$M$33:$N$39,2,FALSE)/T13)+VLOOKUP(S13,Start!$C$33:$D$40,2,FALSE),0) -> 0
C14: No | D14: (optional) | E14: (optional) | F14: (optional) | G14: (optional) | H14: (optional) | I14: (optional) | J14: (optional) | K14: (optional) | L14: (optional) | M14: (optional) | O14: (optional) | Q14: (optional) | R14: (required) | S14: (required) | T14: (required) | U14: (optional) | V14: (optional) | W14: (required) | X14: =IF(ISNUMBER((1-VLOOKUP(S14,Start!$H$33:$I$40,2,FALSE)/100)*W14),(1-VLOOKUP(S14,Start!$H$33:$I$40,2,FALSE)/100)*W14,0) -> 0 | Y14: =IF(ISNUMBER(VLOOKUP(R14,Start!$C$9:$D$15,2,FALSE)+VLOOKUP(R14,Start!$C$23:$D$29,2,FALSE)),VLOOKUP(R14,Start!$C$9:$D$15,2,FALSE)+VLOOKUP(R14,Start!$C$23:$D$29,2,FALSE),0) -> 0 | Z14: =IF(ISNUMBER((Y14/T14)+Start!$D$19*(VLOOKUP(R14,Start!$M$33:$N$39,2,FALSE)/T14)+VLOOKUP(S14,Start!$C$33:$D$40,2,FALSE)),(Y14/T14)+Start!$D$19*(VLOOKUP(R14,Start!$M$33:$N$39,2,FALSE)/T14)+VLOOKUP(S14,Start!$C$33:$D$40,2,FALSE),0) -> 0
C15: No | D15: (optional) | E15: (optional) | F15: (optional) | G15: (optional) | H15: (optional) | I15: (optional) | J15: (optional) | K15: (optional) | L15: (optional) | M15: (optional) | O15: (optional) | Q15: (optional) | R15: (required) | S15: (required) | T15: (required) | U15: (optional) | V15: (optional) | W15: (required) | X15: =IF(ISNUMBER((1-VLOOKUP(S15,Start!$H$33:$I$40,2,FALSE)/100)*W15),(1-VLOOKUP(S15,Start!$H$33:$I$40,2,FALSE)/100)*W15,0) -> 0 | Y15: =IF(ISNUMBER(VLOOKUP(R15,Start!$C$9:$D$15,2,FALSE)+VLOOKUP(R15,Start!$C$23:$D$29,2,FALSE)),VLOOKUP(R15,Start!$C$9:$D$15,2,FALSE)+VLOOKUP(R15,Start!$C$23:$D$29,2,FALSE),0) -> 0 | Z15: =IF(ISNUMBER((Y15/T15)+Start!$D$19*(VLOOKUP(R15,Start!$M$33:$N$39,2,FALSE)/T15)+VLOOKUP(S15,Start!$C$33:$D$40,2,FALSE)),(Y15/T15)+Start!$D$19*(VLOOKUP(R15,Start!$M$33:$N$39,2,FALSE)/T15)+VLOOKUP(S15,Start!$C$33:$D$40,2,FALSE),0) -> 0
C16: No | D16: (optional) | E16: (optional) | F16: (optional) | G16: (optional) | H16: (optional) | I16: (optional) | J16: (optional) | K16: (optional) | L16: (optional) | M16: (optional) | O16: (optional) | Q16: (optional) | R16: (required) | S16: (required) | T16: (required) | U16: (optional) | V16: (optional) | W16: (required) | X16: =IF(ISNUMBER((1-VLOOKUP(S16,Start!$H$33:$I$40,2,FALSE)/100)*W16),(1-VLOOKUP(S16,Start!$H$33:$I$40,2,FALSE)/100)*W16,0) -> 0 | Y16: =IF(ISNUMBER(VLOOKUP(R16,Start!$C$9:$D$15,2,FALSE)+VLOOKUP(R16,Start!$C$23:$D$29,2,FALSE)),VLOOKUP(R16,Start!$C$9:$D$15,2,FALSE)+VLOOKUP(R16,Start!$C$23:$D$29,2,FALSE),0) -> 0 | Z16: =IF(ISNUMBER((Y16/T16)+Start!$D$19*(VLOOKUP(R16,Start!$M$33:$N$39,2,FALSE)/T16)+VLOOKUP(S16,Start!$C$33:$D$40,2,FALSE)),(Y16/T16)+Start!$D$19*(VLOOKUP(R16,Start!$M$33:$N$39,2,FALSE)/T16)+VLOOKUP(S16,Start!$C$33:$D$40,2,FALSE),0) -> 0
C17: No | D17: (optional) | E17: (optional) | F17: (optional) | G17: (optional) | H17: (optional) | I17: (optional) | J17: (optional) | K17: (optional) | L17: (optional) | M17: (optional) | O17: (optional) | Q17: (optional) | R17: (required) | S17: (required) | T17: (required) | U17: (optional) | V17: (optional) | W17: (required) | X17: =IF(ISNUMBER((1-VLOOKUP(S17,Start!$H$33:$I$40,2,FALSE)/100)*W17),(1-VLOOKUP(S17,Start!$H$33:$I$40,2,FALSE)/100)*W17,0) -> 0 | Y17: =IF(ISNUMBER(VLOOKUP(R17,Start!$C$9:$D$15,2,FALSE)+VLOOKUP(R17,Start!$C$23:$D$29,2,FALSE)),VLOOKUP(R17,Start!$C$9:$D$15,2,FALSE)+VLOOKUP(R17,Start!$C$23:$D$29,2,FALSE),0) -> 0 | Z17: =IF(ISNUMBER((Y17/T17)+Start!$D$19*(VLOOKUP(R17,Start!$M$33:$N$39,2,FALSE)/T17)+VLOOKUP(S17,Start!$C$33:$D$40,2,FALSE)),(Y17/T17)+Start!$D$19*(VLOOKUP(R17,Start!$M$33:$N$39,2,FALSE)/T17)+VLOOKUP(S17,Start!$C$33:$D$40,2,FALSE),0) -> 0
C18: No | D18: (optional) | E18: (optional) | F18: (optional) | G18: (optional) | H18: (optional) | I18: (optional) | J18: (optional) | K18: (optional) | L18: (optional) | M18: (optional) | O18: (optional) | Q18: (optional) | R18: (required) | S18: (required) | T18: (required) | U18: (optional) | V18: (optional) | W18: (required) | X18: =IF(ISNUMBER((1-VLOOKUP(S18,Start!$H$33:$I$40,2,FALSE)/100)*W18),(1-VLOOKUP(S18,Start!$H$33:$I$40,2,FALSE)/100)*W18,0) -> 0 | Y18: =IF(ISNUMBER(VLOOKUP(R18,Start!$C$9:$D$15,2,FALSE)+VLOOKUP(R18,Start!$C$23:$D$29,2,FALSE)),VLOOKUP(R18,Start!$C$9:$D$15,2,FALSE)+VLOOKUP(R18,Start!$C$23:$D$29,2,FALSE),0) -> 0 | Z18: =IF(ISNUMBER((Y18/T18)+Start!$D$19*(VLOOKUP(R18,Start!$M$33:$N$39,2,FALSE)/T18)+VLOOKUP(S18,Start!$C$33:$D$40,2,FALSE)),(Y18/T18)+Start!$D$19*(VLOOKUP(R18,Start!$M$33:$N$39,2,FALSE)/T18)+VLOOKUP(S18,Start!$C$33:$D$40,2,FALSE),0) -> 0
C19: No | D19: (optional) | E19: (optional) | F19: (optional) | G19: (optional) | H19: (optional) | I19: (optional) | J19: (optional) | K19: (optional) | L19: (optional) | M19: (optional) | O19: (optional) | Q19: (optional) | R19: (required) | S19: (required) | T19: (required) | U19: (optional) | V19: (optional) | W19: (required) | X19: =IF(ISNUMBER((1-VLOOKUP(S19,Start!$H$33:$I$40,2,FALSE)/100)*W19),(1-VLOOKUP(S19,Start!$H$33:$I$40,2,FALSE)/100)*W19,0) -> 0 | Y19: =IF(ISNUMBER(VLOOKUP(R19,Start!$C$9:$D$15,2,FALSE)+VLOOKUP(R19,Start!$C$23:$D$29,2,FALSE)),VLOOKUP(R19,Start!$C$9:$D$15,2,FALSE)+VLOOKUP(R19,Start!$C$23:$D$29,2,FALSE),0) -> 0 | Z19: =IF(ISNUMBER((Y19/T19)+Start!$D$19*(VLOOKUP(R19,Start!$M$33:$N$39,2,FALSE)/T19)+VLOOKUP(S19,Start!$C$33:$D$40,2,FALSE)),(Y19/T19)+Start!$D$19*(VLOOKUP(R19,Start!$M$33:$N$39,2,FALSE)/T19)+VLOOKUP(S19,Start!$C$33:$D$40,2,FALSE),0) -> 0
C20: No | D20: (optional) | E20: (optional) | F20: (optional) | G20: (optional) | H20: (optional) | I20: (optional) | J20: (optional) | K20: (optional) | L20: (optional) | M20: (optional) | O20: (optional) | Q20: (optional) | R20: (required) | S20: (required) | T20: (required) | U20: (optional) | V20: (optional) | W20: (required) | X20: =IF(ISNUMBER((1-VLOOKUP(S20,Start!$H$33:$I$40,2,FALSE)/100)*W20),(1-VLOOKUP(S20,Start!$H$33:$I$40,2,FALSE)/100)*W20,0) -> 0 | Y20: =IF(ISNUMBER(VLOOKUP(R20,Start!$C$9:$D$15,2,FALSE)+VLOOKUP(R20,Start!$C$23:$D$29,2,FALSE)),VLOOKUP(R20,Start!$C$9:$D$15,2,FALSE)+VLOOKUP(R20,Start!$C$23:$D$29,2,FALSE),0) -> 0 | Z20: =IF(ISNUMBER((Y20/T20)+Start!$D$19*(VLOOKUP(R20,Start!$M$33:$N$39,2,FALSE)/T20)+VLOOKUP(S20,Start!$C$33:$D$40,2,FALSE)),(Y20/T20)+Start!$D$19*(VLOOKUP(R20,Start!$M$33:$N$39,2,FALSE)/T20)+VLOOKUP(S20,Start!$C$33:$D$40,2,FALSE),0) -> 0
C21: Yes | D21: SEE930596800480 | E21: BNA0005 | F21: Lausitz Energie Kraftwerke AG | G21: Gasturbinenkraftwerk Ahrensfelde GT A | H21: 16356 | I21: Ahrensfelde | J21: Lindenberger Straße 12 | K21: Brandenburg | L21: 1990-12-22 | M21: Erdgas | N21: Erdgas, Erdölgas | O21: Gas | P21: Nein | Q21: Gasturbinen mit Abhitzekessel | R21: Gas | S21: CCGT | T21: 0.31 | U21: OPSD (2020) | V21: 38.34 | W21: 37.104 | X21: =(1-VLOOKUP(S21,Start!$H$33:$I$40,2,FALSE)/100)*W21 -> 32.28048 | Y21: =VLOOKUP(R21,Start!$C$9:$D$15,2,FALSE)+VLOOKUP(R21,Start!$C$23:$D$29,2,FALSE) -> 54.56 | Z21: =(Y21/T21)+Start!$D$19*(VLOOKUP(R21,Start!$M$33:$N$39,2,FALSE)/T21)+VLOOKUP(S21,Start!$C$33:$D$40,2,FALSE) -> 211.2744839
C22: Yes | D22: SEE929797382345 | E22: BNA0006 | F22: Lausitz Energie Kraftwerke AG | G22: Gasturbinenkraftwerk Ahrensfelde GT B | H22: 16356 | I22: Ahrensfelde | J22: Lindenberger Straße 12 | K22: Brandenburg | L22: 1990-12-10 | M22: Erdgas | N22: Erdgas, Erdölgas | O22: Gas | P22: Nein | Q22: Gasturbinen mit Abhitzekessel | R22: Gas | S22: CCGT | T22: 0.31 | U22: OPSD (2020) | V22: 38.24 | W22: 37.104 | X22: =(1-VLOOKUP(S22,Start!$H$33:$I$40,2,FALSE)/100)*W22 -> 32.28048 | Y22: =VLOOKUP(R22,Start!$C$9:$D$15,2,FALSE)+VLOOKUP(R22,Start!$C$23:$D$29,2,FALSE) -> 54.56 | Z22: =(Y22/T22)+Start!$D$19*(VLOOKUP(R22,Start!$M$33:$N$39,2,FALSE)/T22)+VLOOKUP(S22,Start!$C$33:$D$40,2,FALSE) -> 211.2744839
C23: Yes | D23: SEE988046628214 | E23: BNA0007 | F23: Lausitz Energie Kraftwerke AG | G23: Gasturbinenkraftwerk Ahrensfelde GT C | H23: 16356 | I23: Ahrensfelde | J23: Lindenberger Straße 12 | K23: Brandenburg | L23: 1991-03-26 | M23: Erdgas | N23: Erdgas, Erdölgas | O23: Gas | P23: Nein | Q23: Gasturbinen mit Abhitzekessel | R23: Gas | S23: CCGT | T23: 0.31 | U23: OPSD (2020) | V23: 38.34 | W23: 37.104 | X23: =(1-VLOOKUP(S23,Start!$H$33:$I$40,2,FALSE)/100)*W23 -> 32.28048 | Y23: =VLOOKUP(R23,Start!$C$9:$D$15,2,FALSE)+VLOOKUP(R23,Start!$C$23:$D$29,2,FALSE) -> 54.56 | Z23: =(Y23/T23)+Start!$D$19*(VLOOKUP(R23,Start!$M$33:$N$39,2,FALSE)/T23)+VLOOKUP(S23,Start!$C$33:$D$40,2,FALSE) -> 211.2744839
C24: Yes | D24: SEE923527691592 | E24: BNA0008 | F24: Lausitz Energie Kraftwerke AG | G24: Gasturbinenkraftwerk Ahrensfelde GT D | H24: 16356 | I24: Ahrensfelde | J24: Lindenberger Straße 12 | K24: Brandenburg | L24: 1992-02-20 | M24: Erdgas | N24: Erdgas, Erdölgas | O24: Gas | P24: Nein | Q24: Gasturbinen mit Abhitzekessel | R24: Gas | S24: CCGT | T24: 0.31 | U24: OPSD (2020) | V24: 38.34 | W24: 37.104 | X24: =(1-VLOOKUP(S24,Start!$H$33:$I$40,2,FALSE)/100)*W24 -> 32.28048 | Y24: =VLOOKUP(R24,Start!$C$9:$D$15,2,FALSE)+VLOOKUP(R24,Start!$C$23:$D$29,2,FALSE) -> 54.56 | Z24: =(Y24/T24)+Start!$D$19*(VLOOKUP(R24,Start!$M$33:$N$39,2,FALSE)/T24)+VLOOKUP(S24,Start!$C$33:$D$40,2,FALSE) -> 211.2744839
C25: Yes | D25: SEE902796244388 | E25: BNA0012b | F25: Sappi Alfeld | G25: Turbine 4 | H25: 31061 | I25: Alfeld | J25: Mühlenmasch 1 | K25: Niedersachsen | L25: 1970-09-21 | M25: Erdgas | N25: Erdgas, Erdölgas | O25: Gas | P25: Ja | Q25: Gegendruckmaschine mit Entnahme | R25: Gas | S25: CCGT | T25: 0.3267 | U25: OPSD (2020) | V25: 14 | W25: 11 | X25: =(1-VLOOKUP(S25,Start!$H$33:$I$40,2,FALSE)/100)*W25 -> 9.57 | Y25: =VLOOKUP(R25,Start!$C$9:$D$15,2,FALSE)+VLOOKUP(R25,Start!$C$23:$D$29,2,FALSE) -> 54.56 | Z25: =(Y25/T25)+Start!$D$19*(VLOOKUP(R25,Start!$M$33:$N$39,2,FALSE)/T25)+VLOOKUP(S25,Start!$C$33:$D$40,2,FALSE) -> 200.5513927
C26: Yes | D26: SEE975556152230 | E26: BNA0015 | F26: EnBW Energie Baden-Württemberg AG | G26: Heizkraftwerk Altbach/Deizisau HKW 2 GT E (Solobetrieb) | H26: 73776 | I26: Altbach | J26: Industriestraße 11 | K26: Baden-Württemberg | L26: 1997-04-30 | M26: Erdgas | N26: Erdgas, Erdölgas | O26: Gas | P26: Ja | Q26: Gasturbinen mit Abhitzekessel | R26: Gas | S26: CCGT | T26: 0.44 | U26: OPSD (2020) | V26: 65 | W26: 65 | X26: =(1-VLOOKUP(S26,Start!$H$33:$I$40,2,FALSE)/100)*W26 -> 56.55 | Y26: =VLOOKUP(R26,Start!$C$9:$D$15,2,FALSE)+VLOOKUP(R26,Start!$C$23:$D$29,2,FALSE) -> 54.56 | Z26: =(Y26/T26)+Start!$D$19*(VLOOKUP(R26,Start!$M$33:$N$39,2,FALSE)/T26)+VLOOKUP(S26,Start!$C$33:$D$40,2,FALSE) -> 149.2956591
C27: Yes | D27: SEE971282697380 | E27: BNA0016 | F27: EnBW Energie Baden-Württemberg AG | G27: Heizkraftwerk Altbach/Deizisau Block 4 GT A (solo) | H27: 73776 | I27: Altbach | J27: Industriestraße 11 | K27: Baden-Württemberg | L27: 1971-09-01 | M27: Erdgas | N27: Erdgas, Erdölgas | O27: Gas | P27: Nein | Q27: Gasturbinen ohne Abhitzekessel | R27: Gas | S27: OCGT | T27: 0.3046 | U27: OPSD (2020) | V27: 50 | W27: 50 | X27: =(1-VLOOKUP(S27,Start!$H$33:$I$40,2,FALSE)/100)*W27 -> 43.5 | Y27: =VLOOKUP(R27,Start!$C$9:$D$15,2,FALSE)+VLOOKUP(R27,Start!$C$23:$D$29,2,FALSE) -> 54.56 | Z27: =(Y27/T27)+Start!$D$19*(VLOOKUP(R27,Start!$M$33:$N$39,2,FALSE)/T27)+VLOOKUP(S27,Start!$C$33:$D$40,2,FALSE) -> 214.4934012
C28: Yes | D28: SEE963975943188 | E28: BNA0017 | F28: EnBW Energie Baden-Württemberg AG | G28: Heizkraftwerk Altbach/Deizisau GT B | H28: 73776 | I28: Altbach | J28: Industriestraße 11 | K28: Baden-Württemberg | L28: 1973-11-01 | M28: Erdgas | N28: Erdgas, Erdölgas | O28: Gas | P28: Nein | Q28: Gasturbinen ohne Abhitzekessel | R28: Gas | S28: OCGT | T28: 0.3098 | U28: OPSD (2020) | V28: 60 | W28: 57 | X28: =(1-VLOOKUP(S28,Start!$H$33:$I$40,2,FALSE)/100)*W28 -> 49.59 | Y28: =VLOOKUP(R28,Start!$C$9:$D$15,2,FALSE)+VLOOKUP(R28,Start!$C$23:$D$29,2,FALSE) -> 54.56 | Z28: =(Y28/T28)+Start!$D$19*(VLOOKUP(R28,Start!$M$33:$N$39,2,FALSE)/T28)+VLOOKUP(S28,Start!$C$33:$D$40,2,FALSE) -> 210.9099096
C29: Yes | D29: SEE904161631090 | E29: BNA0018 | F29: EnBW Energie Baden-Württemberg AG | G29: Heizkraftwerk Altbach/Deizisau GT C | H29: 73776 | I29: Altbach | J29: Industriestraße 11 | K29: Baden-Württemberg | L29: 1975-09-01 | M29: Erdgas | N29: Erdgas, Erdölgas | O29: Gas | P29: Nein | Q29: Gasturbinen ohne Abhitzekessel | R29: Gas | S29: OCGT | T29: 0.315 | U29: OPSD (2020) | V29: 87 | W29: 81 | X29: =(1-VLOOKUP(S29,Start!$H$33:$I$40,2,FALSE)/100)*W29 -> 70.47 | Y29: =VLOOKUP(R29,Start!$C$9:$D$15,2,FALSE)+VLOOKUP(R29,Start!$C$23:$D$29,2,FALSE) -> 54.56 | Z29: =(Y29/T29)+Start!$D$19*(VLOOKUP(R29,Start!$M$33:$N$39,2,FALSE)/T29)+VLOOKUP(S29,Start!$C$33:$D$40,2,FALSE) -> 207.4447302
C30: Yes | D30: SEE965782597448 | E30: BNA0019 | F30: EnBW Energie Baden-Württemberg AG | G30: Heizkraftwerk Altbach/Deizisau HKW 2 DT (Solobetrieb) | H30: 73776 | I30: Altbach | J30: Industriestraße 11 | K30: Baden-Württemberg | L30: 1997-05-29 | M30: Steinkohle | N30: Steinkohlen | O30: Coal | P30: Ja | Q30: Kondensationsmaschine mit Entnahme | R30: Coal | S30: Coal | T30: 0.44 | U30: OPSD (2020) | V30: 354 | W30: 323 | X30: =(1-VLOOKUP(S30,Start!$H$33:$I$40,2,FALSE)/100)*W30 -> 258.4 | Y30: =VLOOKUP(R30,Start!$C$9:$D$15,2,FALSE)+VLOOKUP(R30,Start!$C$23:$D$29,2,FALSE) -> 15.81 | Z30: =(Y30/T30)+Start!$D$19*(VLOOKUP(R30,Start!$M$33:$N$39,2,FALSE)/T30)+VLOOKUP(S30,Start!$C$33:$D$40,2,FALSE) -> 77.12802273
C31: Yes | D31: SEE905257392765 | E31: BNA0025 | F31: Cosun Beet Company GmbH & Co. KG | G31: Kesselhaus | H31: 17389 | I31: Anklam | J31: Bluthsluster Straße 24 | K31: Mecklenburg-Vorpommern | L31: 1993-09-26 | M31: Erdgas | N31: Erdgas, Erdölgas | O31: Gas | P31: Ja | Q31: Gegendruckmaschine mit Entnahme | R31: Gas | S31: CCGT | T31: 0.3773 | U31: OPSD (2020) | V31: 16 | W31: 15 | X31: =(1-VLOOKUP(S31,Start!$H$33:$I$40,2,FALSE)/100)*W31 -> 13.05 | Y31: =VLOOKUP(R31,Start!$C$9:$D$15,2,FALSE)+VLOOKUP(R31,Start!$C$23:$D$29,2,FALSE) -> 54.56 | Z31: =(Y31/T31)+Start!$D$19*(VLOOKUP(R31,Start!$M$33:$N$39,2,FALSE)/T31)+VLOOKUP(S31,Start!$C$33:$D$40,2,FALSE) -> 173.8564538
C32: Yes | D32: SEE918373264410 | E32: BNA0033 | F32: Stadtwerke Augsburg Energie GmbH | G32: BHKW GT-Ost | H32: 86167 | I32: Augsburg | J32: Beim Grenzgraben 10 | K32: Bayern | L32: 2004-01-15 | M32: Erdgas | N32: Erdgas, Erdölgas | O32: Gas | P32: Ja | Q32: Gasturbinen mit Abhitzekessel | R32: Gas | S32: CCGT | T32: 0.3904 | U32: OPSD (2020) | V32: 31 | W32: 30.7 | X32: =(1-VLOOKUP(S32,Start!$H$33:$I$40,2,FALSE)/100)*W32 -> 26.709 | Y32: =VLOOKUP(R32,Start!$C$9:$D$15,2,FALSE)+VLOOKUP(R32,Start!$C$23:$D$29,2,FALSE) -> 54.56 | Z32: =(Y32/T32)+Start!$D$19*(VLOOKUP(R32,Start!$M$33:$N$39,2,FALSE)/T32)+VLOOKUP(S32,Start!$C$33:$D$40,2,FALSE) -> 168.0729764
C33: Yes | D33: SEE941053107073 | E33: BNA0051 | F33: Cargill Deutschland GmbH | G33: Stromerzeugung Barby | H33: 39249 | I33: Barby | J33: Monplaisirstraße 22 | K33: Sachsen-Anhalt | L33: 2013-05-09 | M33: Erdgas | N33: Erdgas, Erdölgas | O33: Gas | P33: Ja | Q33: Gasturbinen mit Abhitzekessel | R33: Gas | S33: CCGT | T33: 0.3784 | U33: OPSD (2020) | V33: 17.951 | W33: 17.951 | X33: =(1-VLOOKUP(S33,Start!$H$33:$I$40,2,FALSE)/100)*W33 -> 15.61737 | Y33: =VLOOKUP(R33,Start!$C$9:$D$15,2,FALSE)+VLOOKUP(R33,Start!$C$23:$D$29,2,FALSE) -> 54.56 | Z33: =(Y33/T33)+Start!$D$19*(VLOOKUP(R33,Start!$M$33:$N$39,2,FALSE)/T33)+VLOOKUP(S33,Start!$C$33:$D$40,2,FALSE) -> 173.3554175
C34: Yes | D34: SEE961847934449 | E34: BNA0059b | F34: Volkswagen AG | G34: VW Baunatal Gasturbine | H34: 34225 | I34: Baunatal | J34: Im Lehnhof | K34: Hessen | L34: 2013-02-18 | M34: Erdgas | N34: Erdgas, Erdölgas | O34: Gas | P34: Ja | Q34: Gasturbinen mit nachgeschalteter Dampfturbine | R34: Gas | S34: CCGT | T34: 0.47 | U34: OPSD (2020) | V34: 45.07 | W34: 45.07 | X34: =(1-VLOOKUP(S34,Start!$H$33:$I$40,2,FALSE)/100)*W34 -> 39.2109 | Y34: =VLOOKUP(R34,Start!$C$9:$D$15,2,FALSE)+VLOOKUP(R34,Start!$C$23:$D$29,2,FALSE) -> 54.56 | Z34: =(Y34/T34)+Start!$D$19*(VLOOKUP(R34,Start!$M$33:$N$39,2,FALSE)/T34)+VLOOKUP(S34,Start!$C$33:$D$40,2,FALSE) -> 139.8618936
C35: Yes | D35: SEE998387657606 | E35: BNA0059b | F35: Volkswagen AG | G35: VW Baunatal Dampfturbine | H35: 34225 | I35: Baunatal | J35: Im Lehnhof | K35: Hessen | L35: 2013-02-18 | M35: Wärme | N35: Prozessdampf | O35: Gas | P35: Ja | Q35: Kondensationsmaschine mit Entnahme | R35: Gas | S35: CCGT | T35: 0.47 | U35: OPSD (2020) | V35: 30.259 | W35: 30.259 | X35: =(1-VLOOKUP(S35,Start!$H$33:$I$40,2,FALSE)/100)*W35 -> 26.32533 | Y35: =VLOOKUP(R35,Start!$C$9:$D$15,2,FALSE)+VLOOKUP(R35,Start!$C$23:$D$29,2,FALSE) -> 54.56 | Z35: =(Y35/T35)+Start!$D$19*(VLOOKUP(R35,Start!$M$33:$N$39,2,FALSE)/T35)+VLOOKUP(S35,Start!$C$33:$D$40,2,FALSE) -> 139.8618936
C36: Yes | D36: SEE930673793902 | E36: BNA0067 | F36: STEAG | G36: Bergkamen A | H36: 59192 | I36: Bergkamen | J36: Westenhellweg 111 | K36: Nordrhein-Westfalen | L36: 1981-10-01 | M36: Steinkohle | N36: Steinkohlen | O36: Coal | P36: Nein | Q36: Kondensationsmaschine mit Entnahme | R36: Coal | S36: Coal | T36: 0.3775 | U36: OPSD (2020) | V36: 780 | W36: 720 | X36: =(1-VLOOKUP(S36,Start!$H$33:$I$40,2,FALSE)/100)*W36 -> 576 | Y36: =VLOOKUP(R36,Start!$C$9:$D$15,2,FALSE)+VLOOKUP(R36,Start!$C$23:$D$29,2,FALSE) -> 15.81 | Z36: =(Y36/T36)+Start!$D$19*(VLOOKUP(R36,Start!$M$33:$N$39,2,FALSE)/T36)+VLOOKUP(S36,Start!$C$33:$D$40,2,FALSE) -> 89.68233113
C37: Yes | D37: SEE904819420762 | E37: BNA0073 | F37: Vattenfall Wärme Berlin AG | G37: HKW Mitte Gasturbine 1 | H37: 10179 | I37: Berlin | J37: Köpenicker Straße 60 | K37: Berlin | L37: 1997-09-08 | M37: Erdgas | N37: Erdgas, Erdölgas | O37: Gas | P37: Ja | Q37: Gasturbinen mit Abhitzekessel | R37: Gas | S37: CCGT | T37: 0.49 | U37: OPSD (2020) | V37: 172 | W37: 164 | X37: =(1-VLOOKUP(S37,Start!$H$33:$I$40,2,FALSE)/100)*W37 -> 142.68 | Y37: =VLOOKUP(R37,Start!$C$9:$D$15,2,FALSE)+VLOOKUP(R37,Start!$C$23:$D$29,2,FALSE) -> 54.56 | Z37: =(Y37/T37)+Start!$D$19*(VLOOKUP(R37,Start!$M$33:$N$39,2,FALSE)/T37)+VLOOKUP(S37,Start!$C$33:$D$40,2,FALSE) -> 134.2144694
C38: Yes | D38: SEE948541471333 | E38: BNA0073 | F38: Vattenfall Wärme Berlin AG | G38: HKW Mitte Gasturbine 2 | H38: 10179 | I38: Berlin | J38: Köpenicker Straße 60 | K38: Berlin | L38: 1997-09-08 | M38: Erdgas | N38: Erdgas, Erdölgas | O38: Gas | P38: Ja | Q38: Gasturbinen mit Abhitzekessel | R38: Gas | S38: CCGT | T38: 0.49 | U38: OPSD (2020) | V38: 172 | W38: 164 | X38: =(1-VLOOKUP(S38,Start!$H$33:$I$40,2,FALSE)/100)*W38 -> 142.68 | Y38: =VLOOKUP(R38,Start!$C$9:$D$15,2,FALSE)+VLOOKUP(R38,Start!$C$23:$D$29,2,FALSE) -> 54.56 | Z38: =(Y38/T38)+Start!$D$19*(VLOOKUP(R38,Start!$M$33:$N$39,2,FALSE)/T38)+VLOOKUP(S38,Start!$C$33:$D$40,2,FALSE) -> 134.2144694
C39: Yes | D39: SEE992187994404 | E39: BNA0073 | F39: Vattenfall Wärme Berlin AG | G39: HKW Mitte Dampfturbine | H39: 10179 | I39: Berlin | J39: Köpenicker Straße 60 | K39: Berlin | L39: 1997-09-08 | M39: Wärme | N39: Prozessdampf | O39: Gas | P39: Ja | Q39: Gegendruckmaschine mit Entnahme | R39: Gas | S39: CCGT | T39: 0.49 | U39: OPSD (2020) | V39: 116 | W39: 116 | X39: =(1-VLOOKUP(S39,Start!$H$33:$I$40,2,FALSE)/100)*W39 -> 100.92 | Y39: =VLOOKUP(R39,Start!$C$9:$D$15,2,FALSE)+VLOOKUP(R39,Start!$C$23:$D$29,2,FALSE) -> 54.56 | Z39: =(Y39/T39)+Start!$D$19*(VLOOKUP(R39,Start!$M$33:$N$39,2,FALSE)/T39)+VLOOKUP(S39,Start!$C$33:$D$40,2,FALSE) -> 134.2144694
C40: Yes | D40: SEE926090463146 | E40: BNA0074 | F40: Vattenfall Wärme Berlin AG | G40: HKW Charlottenburg Gasturbine 4 | H40: 10589 | I40: Berlin | J40: Am Spreebord 5 | K40: Berlin | L40: 1976-02-03 | M40: Erdgas | N40: Erdgas, Erdölgas | O40: Gas | P40: Ja | Q40: Gasturbinen mit Abhitzekessel | R40: Gas | S40: CCGT | T40: 0.3575 | U40: OPSD (2020) | V40: 73 | W40: 72 | X40: =(1-VLOOKUP(S40,Start!$H$33:$I$40,2,FALSE)/100)*W40 -> 62.64 | Y40: =VLOOKUP(R40,Start!$C$9:$D$15,2,FALSE)+VLOOKUP(R40,Start!$C$23:$D$29,2,FALSE) -> 54.56 | Z40: =(Y40/T40)+Start!$D$19*(VLOOKUP(R40,Start!$M$33:$N$39,2,FALSE)/T40)+VLOOKUP(S40,Start!$C$33:$D$40,2,FALSE) -> 183.4023497
C41: Yes | D41: SEE962934119541 | E41: BNA0074 | F41: Vattenfall Wärme Berlin AG | G41: HKW Charlottenburg Gasturbine 5 | H41: 10589 | I41: Berlin | J41: Am Spreebord 5 | K41: Berlin | L41: 1976-08-20 | M41: Erdgas | N41: Erdgas, Erdölgas | O41: Gas | P41: Ja | Q41: Gasturbinen mit Abhitzekessel | R41: Gas | S41: CCGT | T41: 0.3575 | U41: OPSD (2020) | V41: 73 | W41: 72 | X41: =(1-VLOOKUP(S41,Start!$H$33:$I$40,2,FALSE)/100)*W41 -> 62.64 | Y41: =VLOOKUP(R41,Start!$C$9:$D$15,2,FALSE)+VLOOKUP(R41,Start!$C$23:$D$29,2,FALSE) -> 54.56 | Z41: =(Y41/T41)+Start!$D$19*(VLOOKUP(R41,Start!$M$33:$N$39,2,FALSE)/T41)+VLOOKUP(S41,Start!$C$33:$D$40,2,FALSE) -> 183.4023497
C42: Yes | D42: SEE997719859992 | E42: BNA0081 | F42: Vattenfall Wärme Berlin AG | G42: HKW Klingenberg Dampfturbine 1 | H42: 10317 | I42: Berlin | J42: Köpenicker Chaussee 42-45 | K42: Berlin | L42: 1981-08-13 | M42: Erdgas | N42: Erdgas, Erdölgas | O42: Gas | P42: Ja | Q42: Gegendruckmaschine mit Entnahme | R42: Gas | S42: CCGT | T42: 0.4037 | U42: OPSD (2020) | V42: 60 | W42: 52 | X42: =(1-VLOOKUP(S42,Start!$H$33:$I$40,2,FALSE)/100)*W42 -> 45.24 | Y42: =VLOOKUP(R42,Start!$C$9:$D$15,2,FALSE)+VLOOKUP(R42,Start!$C$23:$D$29,2,FALSE) -> 54.56 | Z42: =(Y42/T42)+Start!$D$19*(VLOOKUP(R42,Start!$M$33:$N$39,2,FALSE)/T42)+VLOOKUP(S42,Start!$C$33:$D$40,2,FALSE) -> 162.585187
C43: Yes | D43: SEE988684097793 | E43: BNA0081 | F43: Vattenfall Wärme Berlin AG | G43: HKW Klingenberg Dampfturbine 2 | H43: 10317 | I43: Berlin | J43: Köpenicker Chaussee 42-45 | K43: Berlin | L43: 1981-11-24 | M43: Erdgas | N43: Erdgas, Erdölgas | O43: Gas | P43: Ja | Q43: Gegendruckmaschine mit Entnahme | R43: Gas | S43: CCGT | T43: 0.4037 | U43: OPSD (2020) | V43: 64 | W43: 56 | X43: =(1-VLOOKUP(S43,Start!$H$33:$I$40,2,FALSE)/100)*W43 -> 48.72 | Y43: =VLOOKUP(R43,Start!$C$9:$D$15,2,FALSE)+VLOOKUP(R43,Start!$C$23:$D$29,2,FALSE) -> 54.56 | Z43: =(Y43/T43)+Start!$D$19*(VLOOKUP(R43,Start!$M$33:$N$39,2,FALSE)/T43)+VLOOKUP(S43,Start!$C$33:$D$40,2,FALSE) -> 162.585187
C44: Yes | D44: SEE965333653821 | E44: BNA0081 | F44: Vattenfall Wärme Berlin AG | G44: HKW Klingenberg Dampfturbine 3 | H44: 10317 | I44: Berlin | J44: Köpenicker Chaussee 42-45 | K44: Berlin | L44: 1982-08-19 | M44: Erdgas | N44: Erdgas, Erdölgas | O44: Gas | P44: Ja | Q44: Gegendruckmaschine mit Entnahme | R44: Gas | S44: CCGT | T44: 0.4037 | U44: OPSD (2020) | V44: 64 | W44: 56 | X44: =(1-VLOOKUP(S44,Start!$H$33:$I$40,2,FALSE)/100)*W44 -> 48.72 | Y44: =VLOOKUP(R44,Start!$C$9:$D$15,2,FALSE)+VLOOKUP(R44,Start!$C$23:$D$29,2,FALSE) -> 54.56 | Z44: =(Y44/T44)+Start!$D$19*(VLOOKUP(R44,Start!$M$33:$N$39,2,FALSE)/T44)+VLOOKUP(S44,Start!$C$33:$D$40,2,FALSE) -> 162.585187
C45: Yes | D45: SEE988848971327 | E45: BNA0084 | F45: Vattenfall Wärme Berlin AG | G45: HKW Reuter, Dampfturbine M | H45: 13599 | I45: Berlin | J45: Otternbuchtstraße 11 | K45: Berlin | L45: 1998-02-04 | M45: Wärme | N45: Dampf (fremdbezogen) | O45: Waste | P45: Ja | Q45: Gegendruckmaschine mit Entnahme | R45: Waste | S45: Waste | T45: 0.33 | U45: OPSD (2020) | V45: 36 | W45: 36 | X45: =(1-VLOOKUP(S45,Start!$H$33:$I$40,2,FALSE)/100)*W45 -> 30.6 | Y45: =VLOOKUP(R45,Start!$C$9:$D$15,2,FALSE)+VLOOKUP(R45,Start!$C$23:$D$29,2,FALSE) -> 0 | Z45: =(Y45/T45)+Start!$D$19*(VLOOKUP(R45,Start!$M$33:$N$39,2,FALSE)/T45)+VLOOKUP(S45,Start!$C$33:$D$40,2,FALSE) -> 1
C46: Yes | D46: SEE981109871657 | E46: BNA0085a | F46: Vattenfall Wärme Berlin AG | G46: HKW Moabit Dampfturbine | H46: 13353 | I46: Berlin | J46: Friedrich-Krause-Ufer 42278 | K46: Berlin | L46: 1990-02-27 | M46: Steinkohle | N46: Steinkohlen | O46: Coal | P46: Ja | Q46: Kondensationsmaschine mit Entnahme | R46: Coal | S46: Coal | T46: 0.4 | U46: OPSD (2020) | V46: 100 | W46: 89 | X46: =(1-VLOOKUP(S46,Start!$H$33:$I$40,2,FALSE)/100)*W46 -> 71.2 | Y46: =VLOOKUP(R46,Start!$C$9:$D$15,2,FALSE)+VLOOKUP(R46,Start!$C$23:$D$29,2,FALSE) -> 15.81 | Z46: =(Y46/T46)+Start!$D$19*(VLOOKUP(R46,Start!$M$33:$N$39,2,FALSE)/T46)+VLOOKUP(S46,Start!$C$33:$D$40,2,FALSE) -> 84.710825
C47: Yes | D47: SEE963909310185 | E47: BNA0085b | F47: Vattenfall Wärme Berlin AG | G47: HKW Moabit Gasturbine 5 | H47: 13353 | I47: Berlin | J47: Friedrich-Krause-Ufer 42278 | K47: Berlin | L47: 1971-10-30 | M47: Mineralölprodukte | N47: Heizöl, leicht | O47: Oil | P47: Nein | Q47: Gasturbinen ohne Abhitzekessel | R47: Oil | S47: Oil | T47: 0.3046 | U47: OPSD (2020) | V47: 17 | W47: 17 | X47: =(1-VLOOKUP(S47,Start!$H$33:$I$40,2,FALSE)/100)*W47 -> 14.45 | Y47: =VLOOKUP(R47,Start!$C$9:$D$15,2,FALSE)+VLOOKUP(R47,Start!$C$23:$D$29,2,FALSE) -> 35.54 | Z47: =(Y47/T47)+Start!$D$19*(VLOOKUP(R47,Start!$M$33:$N$39,2,FALSE)/T47)+VLOOKUP(S47,Start!$C$33:$D$40,2,FALSE) -> 165.5607354
C48: Yes | D48: SEE992645841813 | E48: BNA0085b | F48: Vattenfall Wärme Berlin AG | G48: HKW Moabit Gasturbine 6 | H48: 13353 | I48: Berlin | J48: Friedrich-Krause-Ufer 42278 | K48: Berlin | L48: 1971-11-27 | M48: Mineralölprodukte | N48: Heizöl, leicht | O48: Oil | P48: Nein | Q48: Gasturbinen ohne Abhitzekessel | R48: Oil | S48: Oil | T48: 0.3046 | U48: OPSD (2020) | V48: 17 | W48: 17 | X48: =(1-VLOOKUP(S48,Start!$H$33:$I$40,2,FALSE)/100)*W48 -> 14.45 | Y48: =VLOOKUP(R48,Start!$C$9:$D$15,2,FALSE)+VLOOKUP(R48,Start!$C$23:$D$29,2,FALSE) -> 35.54 | Z48: =(Y48/T48)+Start!$D$19*(VLOOKUP(R48,Start!$M$33:$N$39,2,FALSE)/T48)+VLOOKUP(S48,Start!$C$33:$D$40,2,FALSE) -> 165.5607354
C49: Yes | D49: SEE989328541450 | E49: BNA0086 | F49: Vattenfall Wärme Berlin AG | G49: HKW Reuter West Dampfturbine D | H49: 13599 | I49: Berlin | J49: Großer Spreering 5 | K49: Berlin | L49: 1987-12-14 | M49: Steinkohle | N49: Steinkohlen | O49: Coal | P49: Ja | Q49: Kondensationsmaschine mit Entnahme | R49: Coal | S49: Coal | T49: 0.4 | U49: OPSD (2020) | V49: 300 | W49: 282 | X49: =(1-VLOOKUP(S49,Start!$H$33:$I$40,2,FALSE)/100)*W49 -> 225.6 | Y49: =VLOOKUP(R49,Start!$C$9:$D$15,2,FALSE)+VLOOKUP(R49,Start!$C$23:$D$29,2,FALSE) -> 15.81 | Z49: =(Y49/T49)+Start!$D$19*(VLOOKUP(R49,Start!$M$33:$N$39,2,FALSE)/T49)+VLOOKUP(S49,Start!$C$33:$D$40,2,FALSE) -> 84.710825
C50: Yes | D50: SEE974883809046 | E50: BNA0087 | F50: Vattenfall Wärme Berlin AG | G50: HKW Reuter West Dampfturbine E | H50: 13599 | I50: Berlin | J50: Großer Spreering 5 | K50: Berlin | L50: 1988-08-01 | M50: Steinkohle | N50: Steinkohlen | O50: Coal | P50: Ja | Q50: Kondensationsmaschine mit Entnahme | R50: Coal | S50: Coal | T50: 0.4 | U50: OPSD (2020) | V50: 300 | W50: 282 | X50: =(1-VLOOKUP(S50,Start!$H$33:$I$40,2,FALSE)/100)*W50 -> 225.6 | Y50: =VLOOKUP(R50,Start!$C$9:$D$15,2,FALSE)+VLOOKUP(R50,Start!$C$23:$D$29,2,FALSE) -> 15.81 | Z50: =(Y50/T50)+Start!$D$19*(VLOOKUP(R50,Start!$M$33:$N$39,2,FALSE)/T50)+VLOOKUP(S50,Start!$C$33:$D$40,2,FALSE) -> 84.710825
C51: Yes | D51: SEE921877855527 | E51: BNA0088a | F51: Solvay Chemicals GmbH Werk Bernburg | G51: Gasturbine 01 Industriekraftwerk | H51: 6406 | I51: Bernburg | J51: Köthensche Straße 44256 | K51: Sachsen-Anhalt | L51: 2020-09-26 | M51: Erdgas | N51: Erdgas, Erdölgas | O51: Gas | P51: Ja | Q51: Gasturbinen mit nachgeschalteter Dampfturbine | R51: Gas | S51: CCGT | T51: 0.63 | U51: OPSD (2020) | V51: 63.5 | W51: 63.5 | X51: =(1-VLOOKUP(S51,Start!$H$33:$I$40,2,FALSE)/100)*W51 -> 55.245 | Y51: =VLOOKUP(R51,Start!$C$9:$D$15,2,FALSE)+VLOOKUP(R51,Start!$C$23:$D$29,2,FALSE) -> 54.56 | Z51: =(Y51/T51)+Start!$D$19*(VLOOKUP(R51,Start!$M$33:$N$39,2,FALSE)/T51)+VLOOKUP(S51,Start!$C$33:$D$40,2,FALSE) -> 104.7223651
C52: Yes | D52: SEE988178455061 | E52: BNA0088a | F52: Solvay Chemicals GmbH Werk Bernburg | G52: Gasturbine 02 Industriekraftwerk | H52: 6406 | I52: Bernburg | J52: Köthensche Straße 1A | K52: Sachsen-Anhalt | L52: 1994-12-30 | M52: Erdgas | N52: Erdgas, Erdölgas | O52: Gas | P52: Ja | Q52: Gasturbinen mit nachgeschalteter Dampfturbine | R52: Gas | S52: CCGT | T52: 0.63 | U52: OPSD (2020) | V52: 63.5 | W52: 63.5 | X52: =(1-VLOOKUP(S52,Start!$H$33:$I$40,2,FALSE)/100)*W52 -> 55.245 | Y52: =VLOOKUP(R52,Start!$C$9:$D$15,2,FALSE)+VLOOKUP(R52,Start!$C$23:$D$29,2,FALSE) -> 54.56 | Z52: =(Y52/T52)+Start!$D$19*(VLOOKUP(R52,Start!$M$33:$N$39,2,FALSE)/T52)+VLOOKUP(S52,Start!$C$33:$D$40,2,FALSE) -> 104.7223651
C53: Yes | D53: SEE966530598731 | E53: BNA0088a | F53: Solvay Chemicals GmbH Werk Bernburg | G53: Gegendruckdampfturbine Industriekraftwerk | H53: 6406 | I53: Bernburg | J53: Köthensche Straße 44256 | K53: Sachsen-Anhalt | L53: 1994-12-30 | M53: Wärme | N53: Prozessdampf | O53: Gas | P53: Ja | Q53: Gegendruckmaschine mit Entnahme | R53: Gas | S53: CCGT | T53: 0.63 | U53: OPSD (2020) | V53: 21.7 | W53: 21.7 | X53: =(1-VLOOKUP(S53,Start!$H$33:$I$40,2,FALSE)/100)*W53 -> 18.879 | Y53: =VLOOKUP(R53,Start!$C$9:$D$15,2,FALSE)+VLOOKUP(R53,Start!$C$23:$D$29,2,FALSE) -> 54.56 | Z53: =(Y53/T53)+Start!$D$19*(VLOOKUP(R53,Start!$M$33:$N$39,2,FALSE)/T53)+VLOOKUP(S53,Start!$C$33:$D$40,2,FALSE) -> 104.7223651
C54: Yes | D54: SEE956268312785 | E54: BNA0088b | F54: Solvay Chemicals GmbH Werk Bernburg | G54: Kondensationsturbine EKT | H54: 6406 | I54: Bernburg | J54: Köthensche Straße 1 | K54: Sachsen-Anhalt | L54: 2009-12-17 | M54: Wärme | N54: Dampf (fremdbezogen) | O54: Waste | P54: Nein | Q54: Kondensationsmaschine mit Entnahme | R54: Waste | S54: Waste | T54: 0.33 | U54: OPSD (2020) | V54: 40.49 | W54: 24 | X54: =(1-VLOOKUP(S54,Start!$H$33:$I$40,2,FALSE)/100)*W54 -> 20.4 | Y54: =VLOOKUP(R54,Start!$C$9:$D$15,2,FALSE)+VLOOKUP(R54,Start!$C$23:$D$29,2,FALSE) -> 0 | Z54: =(Y54/T54)+Start!$D$19*(VLOOKUP(R54,Start!$M$33:$N$39,2,FALSE)/T54)+VLOOKUP(S54,Start!$C$33:$D$40,2,FALSE) -> 1
C55: Yes | D55: SEE985796237000 | E55: BNA0098 | F55: Stadtwerke Bielefeld | G55: HKW Schildescher Str GT | H55: 33611 | I55: Bielefeld | J55: Schildescher Straße 16 | K55: Nordrhein-Westfalen | L55: 1977-05-20 | M55: Erdgas | N55: Erdgas, Erdölgas | O55: Gas | P55: Ja | Q55: Gasturbinen mit Abhitzekessel | R55: Gas | S55: CCGT | T55: 0.3597 | U55: OPSD (2020) | V55: 24 | W55: 23.5 | X55: =(1-VLOOKUP(S55,Start!$H$33:$I$40,2,FALSE)/100)*W55 -> 20.445 | Y55: =VLOOKUP(R55,Start!$C$9:$D$15,2,FALSE)+VLOOKUP(R55,Start!$C$23:$D$29,2,FALSE) -> 54.56 | Z55: =(Y55/T55)+Start!$D$19*(VLOOKUP(R55,Start!$M$33:$N$39,2,FALSE)/T55)+VLOOKUP(S55,Start!$C$33:$D$40,2,FALSE) -> 182.2897971
C56: Yes | D56: SEE972466462527 | E56: BNA0100 | F56: Stadtwerke Bielefeld | G56: Dampfturbine - GuD MPE | H56: 33699 | I56: Bielefeld | J56: Niedernholz 23 | K56: Nordrhein-Westfalen | L56: 2005-01-03 | M56: Erdgas | N56: Erdgas, Erdölgas | O56: Gas | P56: Ja | Q56: Gasturbinen mit nachgeschalteter Dampfturbine | R56: Gas | S56: CCGT | T56: 0.5625 | U56: OPSD (2020) | V56: 9.45 | W56: 9.35 | X56: =(1-VLOOKUP(S56,Start!$H$33:$I$40,2,FALSE)/100)*W56 -> 8.1345 | Y56: =VLOOKUP(R56,Start!$C$9:$D$15,2,FALSE)+VLOOKUP(R56,Start!$C$23:$D$29,2,FALSE) -> 54.56 | Z56: =(Y56/T56)+Start!$D$19*(VLOOKUP(R56,Start!$M$33:$N$39,2,FALSE)/T56)+VLOOKUP(S56,Start!$C$33:$D$40,2,FALSE) -> 117.1090489
C57: Yes | D57: SEE972475289894 | E57: BNA0100 | F57: Stadtwerke Bielefeld | G57: Gasturbine 1 - GuD MPE | H57: 33699 | I57: Bielefeld | J57: Niedernholz 23 | K57: Nordrhein-Westfalen | L57: 2016-11-23 | M57: Erdgas | N57: Erdgas, Erdölgas | O57: Gas | P57: Ja | Q57: Gasturbinen mit nachgeschalteter Dampfturbine | R57: Gas | S57: CCGT | T57: 0.5625 | U57: OPSD (2020) | V57: 14.25 | W57: 14.05 | X57: =(1-VLOOKUP(S57,Start!$H$33:$I$40,2,FALSE)/100)*W57 -> 12.2235 | Y57: =VLOOKUP(R57,Start!$C$9:$D$15,2,FALSE)+VLOOKUP(R57,Start!$C$23:$D$29,2,FALSE) -> 54.56 | Z57: =(Y57/T57)+Start!$D$19*(VLOOKUP(R57,Start!$M$33:$N$39,2,FALSE)/T57)+VLOOKUP(S57,Start!$C$33:$D$40,2,FALSE) -> 117.1090489
C58: Yes | D58: SEE958518628752 | E58: BNA0101 | F58: Stadtwerke Bielefeld | G58: HKW Schildescher Straße DT 3 | H58: 33611 | I58: Bielefeld | J58: Schildescher Straße 16 | K58: Nordrhein-Westfalen | L58: 1966-12-01 | M58: Erdgas | N58: Erdgas, Erdölgas | O58: Gas | P58: Ja | Q58: Kondensationsmaschine mit Entnahme | R58: Gas | S58: CCGT | T58: 0.3476 | U58: OPSD (2020) | V58: 20.5 | W58: 20 | X58: =(1-VLOOKUP(S58,Start!$H$33:$I$40,2,FALSE)/100)*W58 -> 17.4 | Y58: =VLOOKUP(R58,Start!$C$9:$D$15,2,FALSE)+VLOOKUP(R58,Start!$C$23:$D$29,2,FALSE) -> 54.56 | Z58: =(Y58/T58)+Start!$D$19*(VLOOKUP(R58,Start!$M$33:$N$39,2,FALSE)/T58)+VLOOKUP(S58,Start!$C$33:$D$40,2,FALSE) -> 188.5831128
C59: Yes | D59: SEE995462815548 | E59: BNA0101 | F59: Stadtwerke Bielefeld | G59: HKW Schildescher Straße DT 4 | H59: 33611 | I59: Bielefeld | J59: Schildescher Straße 16 | K59: Nordrhein-Westfalen | L59: 1980-12-07 | M59: Erdgas | N59: Erdgas, Erdölgas | O59: Gas | P59: Ja | Q59: Gegendruckmaschine mit Entnahme | R59: Gas | S59: CCGT | T59: 0.3476 | U59: OPSD (2020) | V59: 28.5 | W59: 28 | X59: =(1-VLOOKUP(S59,Start!$H$33:$I$40,2,FALSE)/100)*W59 -> 24.36 | Y59: =VLOOKUP(R59,Start!$C$9:$D$15,2,FALSE)+VLOOKUP(R59,Start!$C$23:$D$29,2,FALSE) -> 54.56 | Z59: =(Y59/T59)+Start!$D$19*(VLOOKUP(R59,Start!$M$33:$N$39,2,FALSE)/T59)+VLOOKUP(S59,Start!$C$33:$D$40,2,FALSE) -> 188.5831128
C60: Yes | D60: SEE934669010578 | E60: BNA0105 | F60: envia THERM GmbH | G60: Bitterfeld GuD | H60: 6749 | I60: Bitterfeld-Wolfen | J60: Parsevalstraße 3 B | K60: Sachsen-Anhalt | L60: 2000-08-08 | M60: Erdgas | N60: Erdgas, Erdölgas | O60: Gas | P60: Ja | Q60: Gasturbinen mit nachgeschalteter Dampfturbine | R60: Gas | S60: CCGT | T60: 0.54 | U60: OPSD (2020) | V60: 110 | W60: 108 | X60: =(1-VLOOKUP(S60,Start!$H$33:$I$40,2,FALSE)/100)*W60 -> 93.96 | Y60: =VLOOKUP(R60,Start!$C$9:$D$15,2,FALSE)+VLOOKUP(R60,Start!$C$23:$D$29,2,FALSE) -> 54.56 | Z60: =(Y60/T60)+Start!$D$19*(VLOOKUP(R60,Start!$M$33:$N$39,2,FALSE)/T60)+VLOOKUP(S60,Start!$C$33:$D$40,2,FALSE) -> 121.9260926
C61: Yes | D61: SEE942845579245 | E61: BNA0111 | F61: Stadtwerke Bochum Holding GmbH | G61: KWK Hiltrop | H61: 44805 | I61: Bochum | J61: In der Grume 5 | K61: Nordrhein-Westfalen | L61: 1975-08-20 | M61: Erdgas | N61: Erdgas, Erdölgas | O61: Gas | P61: Ja | Q61: Gasturbinen mit nachgeschalteter Dampfturbine | R61: Gas | S61: CCGT | T61: 0.3993 | U61: OPSD (2020) | V61: 45 | W61: 43.412 | X61: =(1-VLOOKUP(S61,Start!$H$33:$I$40,2,FALSE)/100)*W61 -> 37.76844 | Y61: =VLOOKUP(R61,Start!$C$9:$D$15,2,FALSE)+VLOOKUP(R61,Start!$C$23:$D$29,2,FALSE) -> 54.56 | Z61: =(Y61/T61)+Start!$D$19*(VLOOKUP(R61,Start!$M$33:$N$39,2,FALSE)/T61)+VLOOKUP(S61,Start!$C$33:$D$40,2,FALSE) -> 164.3602304
C62: Yes | D62: SEE966331411864 | E62: BNA0115 | F62: Lausitz Energie Kraftwerke AG | G62: Kraftwerk Lippendorf Block R | H62: 4575 | I62: Neukieritzsch | J62: Hauptstraße 200 | K62: Sachsen | L62: 2000-06-20 | M62: Braunkohle | N62: Rohbraunkohlen | O62: Lignite | P62: Ja | Q62: Kondensationsmaschine mit Entnahme | R62: Lignite | S62: Lignite | T62: 0.41 | U62: OPSD (2020) | V62: 942 | W62: 891 | X62: =(1-VLOOKUP(S62,Start!$H$33:$I$40,2,FALSE)/100)*W62 -> 775.17 | Y62: =VLOOKUP(R62,Start!$C$9:$D$15,2,FALSE)+VLOOKUP(R62,Start!$C$23:$D$29,2,FALSE) -> 3.1 | Z62: =(Y62/T62)+Start!$D$19*(VLOOKUP(R62,Start!$M$33:$N$39,2,FALSE)/T62)+VLOOKUP(S62,Start!$C$33:$D$40,2,FALSE) -> 60.58868293
C63: Yes | D63: SEE998199911088 | E63: BNA0116 | F63: EnBW Energie Baden-Württemberg AG | G63: Kraftwerk Lippendorf Block S | H63: 4575 | I63: Neukieritzsch | J63: Hauptstraße 200 | K63: Sachsen | L63: 1999-12-01 | M63: Braunkohle | N63: Rohbraunkohlen | O63: Lignite | P63: Ja | Q63: Kondensationsmaschine mit Entnahme | R63: Lignite | S63: Lignite | T63: 0.42 | U63: OPSD (2020) | V63: 942 | W63: 891 | X63: =(1-VLOOKUP(S63,Start!$H$33:$I$40,2,FALSE)/100)*W63 -> 775.17 | Y63: =VLOOKUP(R63,Start!$C$9:$D$15,2,FALSE)+VLOOKUP(R63,Start!$C$23:$D$29,2,FALSE) -> 3.1 | Z63: =(Y63/T63)+Start!$D$19*(VLOOKUP(R63,Start!$M$33:$N$39,2,FALSE)/T63)+VLOOKUP(S63,Start!$C$33:$D$40,2,FALSE) -> 59.18657143
C64: Yes | D64: SEE924302504816 | E64: BNA0117a | F64: Energie- und Wasserversorgung Bonn/Rhein-Sieg GmbH | G64: HKW Bonn-Nord, Turbogruppe 4 | H64: 53115 | I64: Bonn | J64: Karlstr. 2 | K64: Nordrhein-Westfalen | L64: 1991-04-01 | M64: Wärme | N64: Dampf (fremdbezogen) | O64: Waste | P64: Nein | Q64: Kondensationsmaschine mit Entnahme | R64: Waste | S64: Waste | T64: 0.33 | U64: OPSD (2020) | V64: 14.12 | W64: 14.12 | X64: =(1-VLOOKUP(S64,Start!$H$33:$I$40,2,FALSE)/100)*W64 -> 12.002 | Y64: =VLOOKUP(R64,Start!$C$9:$D$15,2,FALSE)+VLOOKUP(R64,Start!$C$23:$D$29,2,FALSE) -> 0 | Z64: =(Y64/T64)+Start!$D$19*(VLOOKUP(R64,Start!$M$33:$N$39,2,FALSE)/T64)+VLOOKUP(S64,Start!$C$33:$D$40,2,FALSE) -> 1
C65: Yes | D65: SEE997867646000 | E65: BNA0117b | F65: Energie- und Wasserversorgung Bonn/Rhein-Sieg GmbH | G65: Heizkraftwerk Bonn-Nord, Dampfturbine GuD-Anlage | H65: 53115 | I65: Bonn | J65: Karlstr. 2 | K65: Nordrhein-Westfalen | L65: 2013-11-01 | M65: Erdgas | N65: Erdgas, Erdölgas | O65: Gas | P65: Ja | Q65: Kondensationsmaschine mit Entnahme | R65: Gas | S65: CCGT | T65: 0.3993 | U65: OPSD (2020) | V65: 73.5 | W65: 73.5 | X65: =(1-VLOOKUP(S65,Start!$H$33:$I$40,2,FALSE)/100)*W65 -> 63.945 | Y65: =VLOOKUP(R65,Start!$C$9:$D$15,2,FALSE)+VLOOKUP(R65,Start!$C$23:$D$29,2,FALSE) -> 54.56 | Z65: =(Y65/T65)+Start!$D$19*(VLOOKUP(R65,Start!$M$33:$N$39,2,FALSE)/T65)+VLOOKUP(S65,Start!$C$33:$D$40,2,FALSE) -> 164.3602304
C66: Yes | D66: SEE990603147649 | E66: BNA0117b | F66: Energie- und Wasserversorgung Bonn/Rhein-Sieg GmbH | G66: Heizkraftwerk Bonn-Nord, Gasturbine 1 der GuD-Anlage | H66: 53115 | I66: Bonn | J66: Karlstraße 2 | K66: Nordrhein-Westfalen | L66: 1998-08-19 | M66: Erdgas | N66: Erdgas, Erdölgas | O66: Gas | P66: Ja | Q66: Gasturbinen mit nachgeschalteter Dampfturbine | R66: Gas | S66: CCGT | T66: 0.3993 | U66: OPSD (2020) | V66: 24.7 | W66: 20.5 | X66: =(1-VLOOKUP(S66,Start!$H$33:$I$40,2,FALSE)/100)*W66 -> 17.835 | Y66: =VLOOKUP(R66,Start!$C$9:$D$15,2,FALSE)+VLOOKUP(R66,Start!$C$23:$D$29,2,FALSE) -> 54.56 | Z66: =(Y66/T66)+Start!$D$19*(VLOOKUP(R66,Start!$M$33:$N$39,2,FALSE)/T66)+VLOOKUP(S66,Start!$C$33:$D$40,2,FALSE) -> 164.3602304
C67: Yes | D67: SEE985842749525 | E67: BNA0122 | F67: Lausitz Energie Kraftwerke AG | G67: Boxberg Block N | H67: 2943 | I67: Boxberg | J67: Am Kraftwerk 1 | K67: Sachsen | L67: 1979-01-01 | M67: Braunkohle | N67: Rohbraunkohlen | O67: Lignite | P67: Ja | Q67: Kondensationsmaschine mit Entnahme | R67: Lignite | S67: Lignite | T67: 0.35 | U67: OPSD (2020) | V67: 540 | W67: 500 | X67: =(1-VLOOKUP(S67,Start!$H$33:$I$40,2,FALSE)/100)*W67 -> 435 | Y67: =VLOOKUP(R67,Start!$C$9:$D$15,2,FALSE)+VLOOKUP(R67,Start!$C$23:$D$29,2,FALSE) -> 3.1 | Z67: =(Y67/T67)+Start!$D$19*(VLOOKUP(R67,Start!$M$33:$N$39,2,FALSE)/T67)+VLOOKUP(S67,Start!$C$33:$D$40,2,FALSE) -> 70.68388571
C68: Yes | D68: SEE908125004449 | E68: BNA0123 | F68: Lausitz Energie Kraftwerke AG | G68: Boxberg Block P | H68: 2943 | I68: Boxberg | J68: Am Kraftwerk 1 | K68: Sachsen | L68: 1980-07-01 | M68: Braunkohle | N68: Rohbraunkohlen | O68: Lignite | P68: Ja | Q68: Kondensationsmaschine mit Entnahme | R68: Lignite | S68: Lignite | T68: 0.35 | U68: OPSD (2020) | V68: 540 | W68: 500 | X68: =(1-VLOOKUP(S68,Start!$H$33:$I$40,2,FALSE)/100)*W68 -> 435 | Y68: =VLOOKUP(R68,Start!$C$9:$D$15,2,FALSE)+VLOOKUP(R68,Start!$C$23:$D$29,2,FALSE) -> 3.1 | Z68: =(Y68/T68)+Start!$D$19*(VLOOKUP(R68,Start!$M$33:$N$39,2,FALSE)/T68)+VLOOKUP(S68,Start!$C$33:$D$40,2,FALSE) -> 70.68388571
C69: Yes | D69: SEE907389779292 | E69: BNA0124 | F69: Lausitz Energie Kraftwerke AG | G69: Boxberg Block Q | H69: 2943 | I69: Boxberg | J69: Am Kraftwerk 1 | K69: Sachsen | L69: 2000-10-01 | M69: Braunkohle | N69: Rohbraunkohlen | O69: Lignite | P69: Ja | Q69: Kondensationsmaschine mit Entnahme | R69: Lignite | S69: Lignite | T69: 0.423 | U69: OPSD (2020) | V69: 893 | W69: 840 | X69: =(1-VLOOKUP(S69,Start!$H$33:$I$40,2,FALSE)/100)*W69 -> 730.8 | Y69: =VLOOKUP(R69,Start!$C$9:$D$15,2,FALSE)+VLOOKUP(R69,Start!$C$23:$D$29,2,FALSE) -> 3.1 | Z69: =(Y69/T69)+Start!$D$19*(VLOOKUP(R69,Start!$M$33:$N$39,2,FALSE)/T69)+VLOOKUP(S69,Start!$C$33:$D$40,2,FALSE) -> 58.77886525
C70: Yes | D70: SEE987361570932 | E70: BNA0129 | F70: StWB Stadtwerke Brandenburg an der Havel | G70: HKW BRB | H70: 14772 | I70: Brandenburg | J70: Upstallstraße 9 | K70: Brandenburg | L70: 1997-08-25 | M70: Erdgas | N70: Erdgas, Erdölgas | O70: Gas | P70: Ja | Q70: Gasturbinen mit Abhitzekessel | R70: Gas | S70: CCGT | T70: 0.3817 | U70: OPSD (2020) | V70: 36.96 | W70: 36.8 | X70: =(1-VLOOKUP(S70,Start!$H$33:$I$40,2,FALSE)/100)*W70 -> 32.016 | Y70: =VLOOKUP(R70,Start!$C$9:$D$15,2,FALSE)+VLOOKUP(R70,Start!$C$23:$D$29,2,FALSE) -> 54.56 | Z70: =(Y70/T70)+Start!$D$19*(VLOOKUP(R70,Start!$M$33:$N$39,2,FALSE)/T70)+VLOOKUP(S70,Start!$C$33:$D$40,2,FALSE) -> 171.8696358
C71: Yes | D71: SEE963827374382 | E71: BNA0130 | F71: Uniper Kraftwerke GmbH | G71: Kirchmöser DT | H71: 14774 | I71: Brandenburg | J71: Bahntechnikerring 17 | K71: Brandenburg | L71: 1994-01-01 | M71: Erdgas | N71: Erdgas, Erdölgas | O71: Gas | P71: Nein | Q71: Kondensationsmaschine ohne Entnahme | R71: Gas | S71: CCGT | T71: 0.513 | U71: OPSD (2020) | V71: 58 | W71: 58 | X71: =(1-VLOOKUP(S71,Start!$H$33:$I$40,2,FALSE)/100)*W71 -> 50.46 | Y71: =VLOOKUP(R71,Start!$C$9:$D$15,2,FALSE)+VLOOKUP(R71,Start!$C$23:$D$29,2,FALSE) -> 54.56 | Z71: =(Y71/T71)+Start!$D$19*(VLOOKUP(R71,Start!$M$33:$N$39,2,FALSE)/T71)+VLOOKUP(S71,Start!$C$33:$D$40,2,FALSE) -> 128.264308
C72: Yes | D72: SEE905035807238 | E72: BNA0130 | F72: Uniper Kraftwerke GmbH | G72: Kirchmöser GT 1 | H72: 14774 | I72: Brandenburg | J72: Bahntechnikerring 17 | K72: Brandenburg | L72: 1994-01-01 | M72: Erdgas | N72: Erdgas, Erdölgas | O72: Gas | P72: Nein | Q72: Gasturbinen mit nachgeschalteter Dampfturbine | R72: Gas | S72: CCGT | T72: 0.513 | U72: OPSD (2020) | V72: 63 | W72: 60 | X72: =(1-VLOOKUP(S72,Start!$H$33:$I$40,2,FALSE)/100)*W72 -> 52.2 | Y72: =VLOOKUP(R72,Start!$C$9:$D$15,2,FALSE)+VLOOKUP(R72,Start!$C$23:$D$29,2,FALSE) -> 54.56 | Z72: =(Y72/T72)+Start!$D$19*(VLOOKUP(R72,Start!$M$33:$N$39,2,FALSE)/T72)+VLOOKUP(S72,Start!$C$33:$D$40,2,FALSE) -> 128.264308
C73: Yes | D73: SEE902267138956 | E73: BNA0130 | F73: Uniper Kraftwerke GmbH | G73: Kirchmöser GT 2 | H73: 14774 | I73: Brandenburg | J73: Bahntechnikerring 17 | K73: Brandenburg | L73: 1994-01-01 | M73: Erdgas | N73: Erdgas, Erdölgas | O73: Gas | P73: Nein | Q73: Gasturbinen mit nachgeschalteter Dampfturbine | R73: Gas | S73: CCGT | T73: 0.513 | U73: OPSD (2020) | V73: 63 | W73: 60 | X73: =(1-VLOOKUP(S73,Start!$H$33:$I$40,2,FALSE)/100)*W73 -> 52.2 | Y73: =VLOOKUP(R73,Start!$C$9:$D$15,2,FALSE)+VLOOKUP(R73,Start!$C$23:$D$29,2,FALSE) -> 54.56 | Z73: =(Y73/T73)+Start!$D$19*(VLOOKUP(R73,Start!$M$33:$N$39,2,FALSE)/T73)+VLOOKUP(S73,Start!$C$33:$D$40,2,FALSE) -> 128.264308
C74: Yes | D74: SEE975094128629 | E74: BNA0135 | F74: Braunschweiger Versorgungs-AG & Co. KG | G74: HKW Mitte Kessel 12 | H74: 38114 | I74: Braunschweig | J74: Reiherstraße 3 | K74: Niedersachsen | L74: 1971-07-15 | M74: Erdgas | N74: Erdgas, Erdölgas | O74: Gas | P74: Ja | Q74: Gegendruckmaschine mit Entnahme | R74: Gas | S74: CCGT | T74: 0.4095 | U74: OPSD (2020) | V74: 22.4 | W74: 20 | X74: =(1-VLOOKUP(S74,Start!$H$33:$I$40,2,FALSE)/100)*W74 -> 17.4 | Y74: =VLOOKUP(R74,Start!$C$9:$D$15,2,FALSE)+VLOOKUP(R74,Start!$C$23:$D$29,2,FALSE) -> 54.56 | Z74: =(Y74/T74)+Start!$D$19*(VLOOKUP(R74,Start!$M$33:$N$39,2,FALSE)/T74)+VLOOKUP(S74,Start!$C$33:$D$40,2,FALSE) -> 160.3036386
C75: Yes | D75: SEE920992144554 | E75: BNA0136 | F75: Braunschweiger Versorgungs-AG & Co. KG | G75: HKW Mitte GuD | H75: 38114 | I75: Braunschweig | J75: Reiherstraße 3 | K75: Niedersachsen | L75: 2010-12-30 | M75: Erdgas | N75: Erdgas, Erdölgas | O75: Gas | P75: Ja | Q75: Gasturbinen mit nachgeschalteter Dampfturbine | R75: Gas | S75: CCGT | T75: 0.585 | U75: OPSD (2020) | V75: 76.4 | W75: 74 | X75: =(1-VLOOKUP(S75,Start!$H$33:$I$40,2,FALSE)/100)*W75 -> 64.38 | Y75: =VLOOKUP(R75,Start!$C$9:$D$15,2,FALSE)+VLOOKUP(R75,Start!$C$23:$D$29,2,FALSE) -> 54.56 | Z75: =(Y75/T75)+Start!$D$19*(VLOOKUP(R75,Start!$M$33:$N$39,2,FALSE)/T75)+VLOOKUP(S75,Start!$C$33:$D$40,2,FALSE) -> 112.662547
C76: Yes | D76: SEE963817764100 | E76: BNA0137 | F76: Braunschweiger Versorgungs-AG & Co. KG | G76: HKW Nord GT | H76: 38112 | I76: Braunschweig | J76: Sandanger 1 | K76: Niedersachsen | L76: 1990-12-18 | M76: Erdgas | N76: Erdgas, Erdölgas | O76: Gas | P76: Ja | Q76: Gasturbinen mit Abhitzekessel | R76: Gas | S76: CCGT | T76: 0.289 | U76: OPSD (2020) | V76: 29 | W76: 25 | X76: =(1-VLOOKUP(S76,Start!$H$33:$I$40,2,FALSE)/100)*W76 -> 21.75 | Y76: =VLOOKUP(R76,Start!$C$9:$D$15,2,FALSE)+VLOOKUP(R76,Start!$C$23:$D$29,2,FALSE) -> 54.56 | Z76: =(Y76/T76)+Start!$D$19*(VLOOKUP(R76,Start!$M$33:$N$39,2,FALSE)/T76)+VLOOKUP(S76,Start!$C$33:$D$40,2,FALSE) -> 226.5176125
C77: Yes | D77: SEE996990805407 | E77: BNA0138 | F77: Braunschweiger Versorgungs-AG & Co. KG | G77: HKW Mitte Kessel 1 | H77: 38114 | I77: Braunschweig | J77: Reiherstraße 3 | K77: Niedersachsen | L77: 1985-01-18 | M77: Steinkohle | N77: Steinkohlen | O77: Coal | P77: Ja | Q77: Gegendruckmaschine mit Entnahme | R77: Coal | S77: Coal | T77: 0.468 | U77: OPSD (2020) | V77: 49.4 | W77: 44.5 | X77: =(1-VLOOKUP(S77,Start!$H$33:$I$40,2,FALSE)/100)*W77 -> 35.6 | Y77: =VLOOKUP(R77,Start!$C$9:$D$15,2,FALSE)+VLOOKUP(R77,Start!$C$23:$D$29,2,FALSE) -> 15.81 | Z77: =(Y77/T77)+Start!$D$19*(VLOOKUP(R77,Start!$M$33:$N$39,2,FALSE)/T77)+VLOOKUP(S77,Start!$C$33:$D$40,2,FALSE) -> 72.59130342
C78: Yes | D78: SEE958310939391 | E78: BNA0139 | F78: swb Entsorgung GmbH&Co. KG | G78: MKK | H78: 28237 | I78: Bremen | J78: Otavistraße 9 | K78: Bremen | L78: 2009-08-28 | M78: nicht biogener Abfall | N78: nicht biogener Industrieabfall | O78: Waste | P78: Ja | Q78: Gegendruckmaschine mit Entnahme | R78: Waste | S78: Waste | T78: 0.33 | U78: OPSD (2020) | V78: 35 | W78: 32 | X78: =(1-VLOOKUP(S78,Start!$H$33:$I$40,2,FALSE)/100)*W78 -> 27.2 | Y78: =VLOOKUP(R78,Start!$C$9:$D$15,2,FALSE)+VLOOKUP(R78,Start!$C$23:$D$29,2,FALSE) -> 0 | Z78: =(Y78/T78)+Start!$D$19*(VLOOKUP(R78,Start!$M$33:$N$39,2,FALSE)/T78)+VLOOKUP(S78,Start!$C$33:$D$40,2,FALSE) -> 1
C79: Yes | D79: SEE924172977710 | E79: BNA0141 | F79: swb Erzeugung AG & Co. KG | G79: Mittelsbüren GT3 | H79: 28237 | I79: Bremen | J79: Auf den Delben 35 | K79: Bremen | L79: 1975-01-01 | M79: Mineralölprodukte | N79: Heizöl, leicht | O79: Oil | P79: Nein | Q79: Gasturbinen ohne Abhitzekessel | R79: Oil | S79: Oil | T79: 0.315 | U79: OPSD (2020) | V79: 87 | W79: 86 | X79: =(1-VLOOKUP(S79,Start!$H$33:$I$40,2,FALSE)/100)*W79 -> 73.1 | Y79: =VLOOKUP(R79,Start!$C$9:$D$15,2,FALSE)+VLOOKUP(R79,Start!$C$23:$D$29,2,FALSE) -> 35.54 | Z79: =(Y79/T79)+Start!$D$19*(VLOOKUP(R79,Start!$M$33:$N$39,2,FALSE)/T79)+VLOOKUP(S79,Start!$C$33:$D$40,2,FALSE) -> 160.127619
C80: Yes | D80: SEE968950464368 | E80: BNA0144 | F80: swb Erzeugung AG & Co. KG | G80: KW Hastedt Block 15 | H80: 28207 | I80: Bremen | J80: Hastedter Osterdeich 255 | K80: Bremen | L80: 1989-12-16 | M80: Steinkohle | N80: Steinkohlen | O80: Coal | P80: Ja | Q80: Kondensationsmaschine mit Entnahme | R80: Coal | S80: Coal | T80: 0.3975 | U80: OPSD (2020) | V80: 130 | W80: 119 | X80: =(1-VLOOKUP(S80,Start!$H$33:$I$40,2,FALSE)/100)*W80 -> 95.2 | Y80: =VLOOKUP(R80,Start!$C$9:$D$15,2,FALSE)+VLOOKUP(R80,Start!$C$23:$D$29,2,FALSE) -> 15.81 | Z80: =(Y80/T80)+Start!$D$19*(VLOOKUP(R80,Start!$M$33:$N$39,2,FALSE)/T80)+VLOOKUP(S80,Start!$C$33:$D$40,2,FALSE) -> 85.23542138
C81: Yes | D81: SEE904968236689 | E81: BNA0147 | F81: Onyx Kraftwerk Farge GmbH & Co. KGaA | G81: Kraftwerk Farge | H81: 28777 | I81: Bremen | J81: Wilhelmshavener Straße 6 | K81: Bremen | L81: 1969-01-01 | M81: Steinkohle | N81: Steinkohlen | O81: Coal | P81: Nein | Q81: Kondensationsmaschine ohne Entnahme | R81: Coal | S81: Coal | T81: 0.4425 | U81: OPSD (2020) | V81: 380 | W81: 350 | X81: =(1-VLOOKUP(S81,Start!$H$33:$I$40,2,FALSE)/100)*W81 -> 280 | Y81: =VLOOKUP(R81,Start!$C$9:$D$15,2,FALSE)+VLOOKUP(R81,Start!$C$23:$D$29,2,FALSE) -> 15.81 | Z81: =(Y81/T81)+Start!$D$19*(VLOOKUP(R81,Start!$M$33:$N$39,2,FALSE)/T81)+VLOOKUP(S81,Start!$C$33:$D$40,2,FALSE) -> 76.69961582
C82: Yes | D82: SEE974045584156 | E82: BNA0156b | F82: EGGER Holzwerkstoffe Brilon GmbH & Co. KG | G82: GT6 | H82: 59929 | I82: Brilon | J82: Im Kissen 19 | K82: Nordrhein-Westfalen | L82: 1998-06-01 | M82: Erdgas | N82: Erdgas, Erdölgas | O82: Gas | P82: Ja | Q82: Gasturbinen ohne Abhitzekessel | R82: Gas | S82: OCGT | T82: 0.3696 | U82: OPSD (2020) | V82: 5 | W82: 5 | X82: =(1-VLOOKUP(S82,Start!$H$33:$I$40,2,FALSE)/100)*W82 -> 4.35 | Y82: =VLOOKUP(R82,Start!$C$9:$D$15,2,FALSE)+VLOOKUP(R82,Start!$C$23:$D$29,2,FALSE) -> 54.56 | Z82: =(Y82/T82)+Start!$D$19*(VLOOKUP(R82,Start!$M$33:$N$39,2,FALSE)/T82)+VLOOKUP(S82,Start!$C$33:$D$40,2,FALSE) -> 176.9472132
C83: Yes | D83: SEE905229048430 | E83: BNA0156b | F83: EGGER Holzwerkstoffe Brilon GmbH & Co. KG | G83: GT8 | H83: 59929 | I83: Brilon | J83: Im Kissen 19 | K83: Nordrhein-Westfalen | L83: 1998-06-01 | M83: Erdgas | N83: Erdgas, Erdölgas | O83: Gas | P83: Ja | Q83: Gasturbinen mit Abhitzekessel | R83: Gas | S83: CCGT | T83: 0.3696 | U83: OPSD (2020) | V83: 5 | W83: 5 | X83: =(1-VLOOKUP(S83,Start!$H$33:$I$40,2,FALSE)/100)*W83 -> 4.35 | Y83: =VLOOKUP(R83,Start!$C$9:$D$15,2,FALSE)+VLOOKUP(R83,Start!$C$23:$D$29,2,FALSE) -> 54.56 | Z83: =(Y83/T83)+Start!$D$19*(VLOOKUP(R83,Start!$M$33:$N$39,2,FALSE)/T83)+VLOOKUP(S83,Start!$C$33:$D$40,2,FALSE) -> 177.4472132
C84: Yes | D84: SEE951462745445 | E84: BNA0157 | F84: PreussenElektra | G84: Brokdorf | H84: 25576 | I84: Brokdorf | J84: Osterende | K84: Schleswig-Holstein | L84: 1986-10-14 | M84: Kernenergie | O84: Nuclear | P84: Nein | Q84: Druckwasserreaktor | R84: Nuclear | S84: Nuclear | T84: 0.33 | U84: OPSD (2020) | V84: 1480 | W84: 1410 | X84: =(1-VLOOKUP(S84,Start!$H$33:$I$40,2,FALSE)/100)*W84 -> 1311.3 | Y84: =VLOOKUP(R84,Start!$C$9:$D$15,2,FALSE)+VLOOKUP(R84,Start!$C$23:$D$29,2,FALSE) -> 5.5 | Z84: =(Y84/T84)+Start!$D$19*(VLOOKUP(R84,Start!$M$33:$N$39,2,FALSE)/T84)+VLOOKUP(S84,Start!$C$33:$D$40,2,FALSE) -> 17.86666667
C85: Yes | D85: SEE947816911833 | E85: BNA0172a | F85: Wacker Chemie AG | G85: Gasturbinenanlage 12 | H85: 84489 | I85: Burghausen | J85: Johannes-Hess-Straße 24 | K85: Bayern | L85: 2001-07-27 | M85: Erdgas | N85: Erdgas, Erdölgas | O85: Gas | P85: Ja | Q85: Gasturbinen mit Abhitzekessel | R85: Gas | S85: CCGT | T85: 0.5445 | U85: OPSD (2020) | V85: 141 | W85: 137 | X85: =(1-VLOOKUP(S85,Start!$H$33:$I$40,2,FALSE)/100)*W85 -> 119.19 | Y85: =VLOOKUP(R85,Start!$C$9:$D$15,2,FALSE)+VLOOKUP(R85,Start!$C$23:$D$29,2,FALSE) -> 54.56 | Z85: =(Y85/T85)+Start!$D$19*(VLOOKUP(R85,Start!$M$33:$N$39,2,FALSE)/T85)+VLOOKUP(S85,Start!$C$33:$D$40,2,FALSE) -> 120.9308356
C86: Yes | D86: SEE921503407342 | E86: BNA0172b | F86: Wacker Chemie AG | G86: Turbine/Generator 10 | H86: 84489 | I86: Burghausen | J86: Johannes-Hess-Straße 24 | K86: Bayern | L86: 2014-07-17 | M86: Erdgas | N86: Erdgas, Erdölgas | O86: Gas | P86: Ja | Q86: Gegendruckmaschine mit Entnahme | R86: Gas | S86: CCGT | T86: 0.3619 | U86: OPSD (2020) | V86: 37.8 | W86: 37.8 | X86: =(1-VLOOKUP(S86,Start!$H$33:$I$40,2,FALSE)/100)*W86 -> 32.886 | Y86: =VLOOKUP(R86,Start!$C$9:$D$15,2,FALSE)+VLOOKUP(R86,Start!$C$23:$D$29,2,FALSE) -> 54.56 | Z86: =(Y86/T86)+Start!$D$19*(VLOOKUP(R86,Start!$M$33:$N$39,2,FALSE)/T86)+VLOOKUP(S86,Start!$C$33:$D$40,2,FALSE) -> 181.1907709
C87: Yes | D87: SEE956085205437 | E87: BNA0172b | F87: Wacker Chemie AG | G87: Turbine/Generator 8 | H87: 84489 | I87: Burghausen | J87: Johannes-Hess-Straße 24 | K87: Bayern | L87: 1979-05-14 | M87: Erdgas | N87: Erdgas, Erdölgas | O87: Gas | P87: Ja | Q87: Gegendruckmaschine mit Entnahme | R87: Gas | S87: CCGT | T87: 0.3619 | U87: OPSD (2020) | V87: 46 | W87: 46 | X87: =(1-VLOOKUP(S87,Start!$H$33:$I$40,2,FALSE)/100)*W87 -> 40.02 | Y87: =VLOOKUP(R87,Start!$C$9:$D$15,2,FALSE)+VLOOKUP(R87,Start!$C$23:$D$29,2,FALSE) -> 54.56 | Z87: =(Y87/T87)+Start!$D$19*(VLOOKUP(R87,Start!$M$33:$N$39,2,FALSE)/T87)+VLOOKUP(S87,Start!$C$33:$D$40,2,FALSE) -> 181.1907709
C88: Yes | D88: SEE903050601572 | E88: BNA0172b | F88: Wacker Chemie AG | G88: Turbine/Generator 9 | H88: 84489 | I88: Burghausen | J88: Johannes-Hess-Straße 24 | K88: Bayern | L88: 1987-01-01 | M88: Erdgas | N88: Erdgas, Erdölgas | O88: Gas | P88: Ja | Q88: Gegendruckmaschine mit Entnahme | R88: Gas | S88: CCGT | T88: 0.3619 | U88: OPSD (2020) | V88: 13.6 | W88: 13.6 | X88: =(1-VLOOKUP(S88,Start!$H$33:$I$40,2,FALSE)/100)*W88 -> 11.832 | Y88: =VLOOKUP(R88,Start!$C$9:$D$15,2,FALSE)+VLOOKUP(R88,Start!$C$23:$D$29,2,FALSE) -> 54.56 | Z88: =(Y88/T88)+Start!$D$19*(VLOOKUP(R88,Start!$M$33:$N$39,2,FALSE)/T88)+VLOOKUP(S88,Start!$C$33:$D$40,2,FALSE) -> 181.1907709
C89: Yes | D89: SEE927473609168 | E89: BNA0174 | F89: InfraServ GmbH & Co. Gendorf KG | G89: BNA0174 | H89: 84508 | I89: Burgkirchen | J89: Industrieparkstraße 1 | K89: Bayern | L89: 1967-07-01 | M89: Erdgas | N89: Erdgas, Erdölgas | O89: Gas | P89: Ja | Q89: Sonstige | R89: Gas | S89: CCGT | T89: 0.3872 | U89: OPSD (2020) | V89: 73.563 | W89: 72.46 | X89: =(1-VLOOKUP(S89,Start!$H$33:$I$40,2,FALSE)/100)*W89 -> 63.0402 | Y89: =VLOOKUP(R89,Start!$C$9:$D$15,2,FALSE)+VLOOKUP(R89,Start!$C$23:$D$29,2,FALSE) -> 54.56 | Z89: =(Y89/T89)+Start!$D$19*(VLOOKUP(R89,Start!$M$33:$N$39,2,FALSE)/T89)+VLOOKUP(S89,Start!$C$33:$D$40,2,FALSE) -> 169.4496126
C90: Yes | D90: SEE923082939436 | E90: BNA0177 | F90: eins energie in sachsen GmbH & Co. KG | G90: HKW Chemnitz Nord II, Block B | H90: 9114 | I90: Chemnitz | J90: Dammweg 10 | K90: Sachsen | L90: 1988-08-26 | M90: Braunkohle | N90: Rohbraunkohlen | O90: Lignite | P90: Ja | Q90: Gegendruckmaschine mit Entnahme | R90: Lignite | S90: Lignite | T90: 0.3712 | U90: OPSD (2020) | V90: 67 | W90: 58.172 | X90: =(1-VLOOKUP(S90,Start!$H$33:$I$40,2,FALSE)/100)*W90 -> 50.60964 | Y90: =VLOOKUP(R90,Start!$C$9:$D$15,2,FALSE)+VLOOKUP(R90,Start!$C$23:$D$29,2,FALSE) -> 3.1 | Z90: =(Y90/T90)+Start!$D$19*(VLOOKUP(R90,Start!$M$33:$N$39,2,FALSE)/T90)+VLOOKUP(S90,Start!$C$33:$D$40,2,FALSE) -> 66.74407328
C91: Yes | D91: SEE933960350956 | E91: BNA0179 | F91: eins energie in sachsen GmbH & Co. KG | G91: HKW Chemnitz Nord II, Block C | H91: 9114 | I91: Chemnitz | J91: Dammweg 10 | K91: Sachsen | L91: 1990-06-07 | M91: Braunkohle | N91: Rohbraunkohlen | O91: Lignite | P91: Ja | Q91: Kondensationsmaschine mit Entnahme | R91: Lignite | S91: Lignite | T91: 0.376 | U91: OPSD (2020) | V91: 100 | W91: 92.332 | X91: =(1-VLOOKUP(S91,Start!$H$33:$I$40,2,FALSE)/100)*W91 -> 80.32884 | Y91: =VLOOKUP(R91,Start!$C$9:$D$15,2,FALSE)+VLOOKUP(R91,Start!$C$23:$D$29,2,FALSE) -> 3.1 | Z91: =(Y91/T91)+Start!$D$19*(VLOOKUP(R91,Start!$M$33:$N$39,2,FALSE)/T91)+VLOOKUP(S91,Start!$C$33:$D$40,2,FALSE) -> 65.9137234
C92: Yes | D92: SEE946537967655 | E92: BNA0183 | F92: Stadtwerke Cottbus GmbH | G92: Hochdruckdampfturbine | H92: 3052 | I92: Cottbus | J92: Werner-von-Siemens-Straße 16 | K92: Brandenburg | L92: 1999-02-20 | M92: Braunkohle | N92: Wirbelschichtkohle | O92: Lignite | P92: Ja | Q92: Gegendruckmaschine ohne Entnahme | R92: Lignite | S92: Lignite | T92: 0.4 | U92: OPSD (2020) | V92: 17.8 | W92: 16 | X92: =(1-VLOOKUP(S92,Start!$H$33:$I$40,2,FALSE)/100)*W92 -> 13.92 | Y92: =VLOOKUP(R92,Start!$C$9:$D$15,2,FALSE)+VLOOKUP(R92,Start!$C$23:$D$29,2,FALSE) -> 3.1 | Z92: =(Y92/T92)+Start!$D$19*(VLOOKUP(R92,Start!$M$33:$N$39,2,FALSE)/T92)+VLOOKUP(S92,Start!$C$33:$D$40,2,FALSE) -> 62.0609
C93: Yes | D93: SEE978888539755 | E93: BNA0183 | F93: Stadtwerke Cottbus GmbH | G93: Mittel-Niederdruckdampfturbine | H93: 3052 | I93: Cottbus | J93: Werner-von-Siemens-Straße 16 | K93: Brandenburg | L93: 1999-03-23 | M93: Braunkohle | N93: Wirbelschichtkohle | O93: Lignite | P93: Ja | Q93: Kondensationsmaschine mit Entnahme | R93: Lignite | S93: Lignite | T93: 0.4 | U93: OPSD (2020) | V93: 48.9 | W93: 45 | X93: =(1-VLOOKUP(S93,Start!$H$33:$I$40,2,FALSE)/100)*W93 -> 39.15 | Y93: =VLOOKUP(R93,Start!$C$9:$D$15,2,FALSE)+VLOOKUP(R93,Start!$C$23:$D$29,2,FALSE) -> 3.1 | Z93: =(Y93/T93)+Start!$D$19*(VLOOKUP(R93,Start!$M$33:$N$39,2,FALSE)/T93)+VLOOKUP(S93,Start!$C$33:$D$40,2,FALSE) -> 62.0609
C94: Yes | D94: SEE941974735591 | E94: BNA0183 | F94: Stadtwerke Cottbus GmbH | G94: Rauchgasturbine | H94: 3052 | I94: Cottbus | J94: Werner-von-Siemens-Straße 16 | K94: Brandenburg | L94: 1998-08-29 | M94: Braunkohle | N94: Wirbelschichtkohle | O94: Lignite | P94: Ja | Q94: Gasturbinen ohne Abhitzekessel | R94: Lignite | S94: Lignite | T94: 0.4 | U94: OPSD (2020) | V94: 15 | W94: 13 | X94: =(1-VLOOKUP(S94,Start!$H$33:$I$40,2,FALSE)/100)*W94 -> 11.31 | Y94: =VLOOKUP(R94,Start!$C$9:$D$15,2,FALSE)+VLOOKUP(R94,Start!$C$23:$D$29,2,FALSE) -> 3.1 | Z94: =(Y94/T94)+Start!$D$19*(VLOOKUP(R94,Start!$M$33:$N$39,2,FALSE)/T94)+VLOOKUP(S94,Start!$C$33:$D$40,2,FALSE) -> 62.0609
C95: Yes | D95: SEE976907281142 | E95: BNA0194 | F95: Fernwärmeversorgungs- GmbH Dessau | G95: HKW Dessau | H95: 6842 | I95: Dessau-Roßlau | J95: An der Fine 4 | K95: Sachsen-Anhalt | L95: 1996-01-01 | M95: Erdgas | N95: Erdgas, Erdölgas | O95: Gas | P95: Ja | Q95: Gasturbinen mit nachgeschalteter Dampfturbine | R95: Gas | S95: CCGT | T95: 0.3806 | U95: OPSD (2018) | V95: 39.836 | W95: 39.12 | X95: =(1-VLOOKUP(S95,Start!$H$33:$I$40,2,FALSE)/100)*W95 -> 34.0344 | Y95: =VLOOKUP(R95,Start!$C$9:$D$15,2,FALSE)+VLOOKUP(R95,Start!$C$23:$D$29,2,FALSE) -> 54.56 | Z95: =(Y95/T95)+Start!$D$19*(VLOOKUP(R95,Start!$M$33:$N$39,2,FALSE)/T95)+VLOOKUP(S95,Start!$C$33:$D$40,2,FALSE) -> 172.3620336
C96: Yes | D96: SEE999977738880 | E96: BNA0196 | F96: Mitteldeutsche Braunkohlengesellschaft mbH | G96: IKW Deuben | H96: 6682 | I96: Teuchern | J96: Industriestraße 1 | K96: Sachsen-Anhalt | L96: 1936-10-04 | M96: Braunkohle | N96: Rohbraunkohlen | O96: Lignite | P96: Ja | Q96: Gegendruckmaschine mit Entnahme | R96: Lignite | S96: Lignite | T96: 0.2464 | U96: OPSD (2020) | V96: 78 | W96: 67 | X96: =(1-VLOOKUP(S96,Start!$H$33:$I$40,2,FALSE)/100)*W96 -> 58.29 | Y96: =VLOOKUP(R96,Start!$C$9:$D$15,2,FALSE)+VLOOKUP(R96,Start!$C$23:$D$29,2,FALSE) -> 3.1 | Z96: =(Y96/T96)+Start!$D$19*(VLOOKUP(R96,Start!$M$33:$N$39,2,FALSE)/T96)+VLOOKUP(S96,Start!$C$33:$D$40,2,FALSE) -> 99.68847403
C97: Yes | D97: SEE991220769276 | E97: BNA0199 | F97: RWE Generation SE | G97: Dormagen DT | H97: 41540 | I97: Dormagen | J97: Paralellweg 1 | K97: Nordrhein-Westfalen | L97: 2000-07-23 | M97: Erdgas | O97: Gas | P97: Ja | Q97: Kondensationsmaschine mit Entnahme | R97: Gas | S97: CCGT | T97: 0.54 | U97: OPSD (2020) | V97: 194 | W97: 194 | X97: =(1-VLOOKUP(S97,Start!$H$33:$I$40,2,FALSE)/100)*W97 -> 168.78 | Y97: =VLOOKUP(R97,Start!$C$9:$D$15,2,FALSE)+VLOOKUP(R97,Start!$C$23:$D$29,2,FALSE) -> 54.56 | Z97: =(Y97/T97)+Start!$D$19*(VLOOKUP(R97,Start!$M$33:$N$39,2,FALSE)/T97)+VLOOKUP(S97,Start!$C$33:$D$40,2,FALSE) -> 121.9260926
C98: Yes | D98: SEE914857304191 | E98: BNA0199 | F98: RWE Generation SE | G98: Dormagen GT1 | H98: 41540 | I98: Dormagen | J98: Alte Heerstraße 1 | K98: Nordrhein-Westfalen | L98: 2000-07-23 | M98: Erdgas | N98: Erdgas, Erdölgas | O98: Gas | P98: Ja | Q98: Gasturbinen mit Abhitzekessel | R98: Gas | S98: CCGT | T98: 0.54 | U98: OPSD (2020) | V98: 189 | W98: 184 | X98: =(1-VLOOKUP(S98,Start!$H$33:$I$40,2,FALSE)/100)*W98 -> 160.08 | Y98: =VLOOKUP(R98,Start!$C$9:$D$15,2,FALSE)+VLOOKUP(R98,Start!$C$23:$D$29,2,FALSE) -> 54.56 | Z98: =(Y98/T98)+Start!$D$19*(VLOOKUP(R98,Start!$M$33:$N$39,2,FALSE)/T98)+VLOOKUP(S98,Start!$C$33:$D$40,2,FALSE) -> 121.9260926
C99: Yes | D99: SEE908089235248 | E99: BNA0199 | F99: RWE Generation SE | G99: Dormagen GT2 | H99: 41540 | I99: Dormagen | J99: Alte Heerstraße 1 | K99: Nordrhein-Westfalen | L99: 2000-07-23 | M99: Erdgas | N99: Erdgas, Erdölgas | O99: Gas | P99: Ja | Q99: Gasturbinen mit Abhitzekessel | R99: Gas | S99: CCGT | T99: 0.54 | U99: OPSD (2020) | V99: 189 | W99: 184 | X99: =(1-VLOOKUP(S99,Start!$H$33:$I$40,2,FALSE)/100)*W99 -> 160.08 | Y99: =VLOOKUP(R99,Start!$C$9:$D$15,2,FALSE)+VLOOKUP(R99,Start!$C$23:$D$29,2,FALSE) -> 54.56 | Z99: =(Y99/T99)+Start!$D$19*(VLOOKUP(R99,Start!$M$33:$N$39,2,FALSE)/T99)+VLOOKUP(S99,Start!$C$33:$D$40,2,FALSE) -> 121.9260926
C100: Yes | D100: SEE924647197780 | E100: BNA0202 | F100: RWE Generation SE | G100: Dortmund DT | H100: 44143 | I100: Dortmund | J100: Weißenburger Straße 70 | K100: Nordrhein-Westfalen | L100: 2004-03-22 | M100: Erdgas | N100: Erdgas, Erdölgas | O100: Gas | P100: Ja | Q100: Gegendruckmaschine mit Entnahme | R100: Gas | S100: CCGT | T100: 0.3894 | U100: OPSD (2020) | V100: 12.4 | W100: 11.9 | X100: =(1-VLOOKUP(S100,Start!$H$33:$I$40,2,FALSE)/100)*W100 -> 10.353 | Y100: =VLOOKUP(R100,Start!$C$9:$D$15,2,FALSE)+VLOOKUP(R100,Start!$C$23:$D$29,2,FALSE) -> 54.56 | Z100: =(Y100/T100)+Start!$D$19*(VLOOKUP(R100,Start!$M$33:$N$39,2,FALSE)/T100)+VLOOKUP(S100,Start!$C$33:$D$40,2,FALSE) -> 168.5007447
C101: Yes | D101: SEE994761683902 | E101: BNA0202 | F101: RWE Generation SE | G101: Dortmund GT | H101: 44143 | I101: Dortmund | J101: Weißenburger Straße 70 | K101: Nordrhein-Westfalen | L101: 2013-11-01 | M101: Erdgas | N101: Erdgas, Erdölgas | O101: Gas | P101: Ja | Q101: Gasturbinen mit Abhitzekessel | R101: Gas | S101: CCGT | T101: 0.3894 | U101: OPSD (2020) | V101: 14.5 | W101: 14 | X101: =(1-VLOOKUP(S101,Start!$H$33:$I$40,2,FALSE)/100)*W101 -> 12.18 | Y101: =VLOOKUP(R101,Start!$C$9:$D$15,2,FALSE)+VLOOKUP(R101,Start!$C$23:$D$29,2,FALSE) -> 54.56 | Z101: =(Y101/T101)+Start!$D$19*(VLOOKUP(R101,Start!$M$33:$N$39,2,FALSE)/T101)+VLOOKUP(S101,Start!$C$33:$D$40,2,FALSE) -> 168.5007447
C102: Yes | D102: SEE967194778880 | E102: BNA0207 | F102: DREWAG - Stadtwerke Dresden GmbH | G102: GT1 | H102: 1159 | I102: Dresden | J102: Oederaner Straße 21 | K102: Sachsen | L102: 1995-04-14 | M102: Erdgas | N102: Erdgas, Erdölgas | O102: Gas | P102: Ja | Q102: Gasturbinen mit nachgeschalteter Dampfturbine | R102: Gas | S102: CCGT | T102: 0.5175 | U102: OPSD (2020) | V102: 65 | W102: 62 | X102: =(1-VLOOKUP(S102,Start!$H$33:$I$40,2,FALSE)/100)*W102 -> 53.94 | Y102: =VLOOKUP(R102,Start!$C$9:$D$15,2,FALSE)+VLOOKUP(R102,Start!$C$23:$D$29,2,FALSE) -> 54.56 | Z102: =(Y102/T102)+Start!$D$19*(VLOOKUP(R102,Start!$M$33:$N$39,2,FALSE)/T102)+VLOOKUP(S102,Start!$C$33:$D$40,2,FALSE) -> 127.1620097
C103: Yes | D103: SEE968254365774 | E103: BNA0207 | F103: DREWAG - Stadtwerke Dresden GmbH | G103: GT2 | H103: 1159 | I103: Dresden | J103: Oederaner Straße 21 | K103: Sachsen | L103: 1995-03-14 | M103: Erdgas | N103: Erdgas, Erdölgas | O103: Gas | P103: Ja | Q103: Gasturbinen mit nachgeschalteter Dampfturbine | R103: Gas | S103: CCGT | T103: 0.5175 | U103: OPSD (2020) | V103: 65 | W103: 62 | X103: =(1-VLOOKUP(S103,Start!$H$33:$I$40,2,FALSE)/100)*W103 -> 53.94 | Y103: =VLOOKUP(R103,Start!$C$9:$D$15,2,FALSE)+VLOOKUP(R103,Start!$C$23:$D$29,2,FALSE) -> 54.56 | Z103: =(Y103/T103)+Start!$D$19*(VLOOKUP(R103,Start!$M$33:$N$39,2,FALSE)/T103)+VLOOKUP(S103,Start!$C$33:$D$40,2,FALSE) -> 127.1620097
C104: Yes | D104: SEE901410470721 | E104: BNA0207 | F104: DREWAG - Stadtwerke Dresden GmbH | G104: GT3 | H104: 1159 | I104: Dresden | J104: Oederaner Straße 21 | K104: Sachsen | L104: 1995-03-29 | M104: Erdgas | N104: Erdgas, Erdölgas | O104: Gas | P104: Ja | Q104: Gasturbinen mit nachgeschalteter Dampfturbine | R104: Gas | S104: CCGT | T104: 0.5175 | U104: OPSD (2020) | V104: 65 | W104: 62 | X104: =(1-VLOOKUP(S104,Start!$H$33:$I$40,2,FALSE)/100)*W104 -> 53.94 | Y104: =VLOOKUP(R104,Start!$C$9:$D$15,2,FALSE)+VLOOKUP(R104,Start!$C$23:$D$29,2,FALSE) -> 54.56 | Z104: =(Y104/T104)+Start!$D$19*(VLOOKUP(R104,Start!$M$33:$N$39,2,FALSE)/T104)+VLOOKUP(S104,Start!$C$33:$D$40,2,FALSE) -> 127.1620097
C105: Yes | D105: SEE950477241393 | E105: BNA0207 | F105: DREWAG - Stadtwerke Dresden GmbH | G105: DT | H105: 1159 | I105: Dresden | J105: Oederaner Straße 21 | K105: Sachsen | L105: 1995-04-21 | M105: Wärme | N105: Prozessdampf | O105: Gas | P105: Ja | Q105: Gegendruckmaschine mit Entnahme | R105: Gas | S105: CCGT | T105: 0.5175 | U105: OPSD (2020) | V105: 75 | W105: 74 | X105: =(1-VLOOKUP(S105,Start!$H$33:$I$40,2,FALSE)/100)*W105 -> 64.38 | Y105: =VLOOKUP(R105,Start!$C$9:$D$15,2,FALSE)+VLOOKUP(R105,Start!$C$23:$D$29,2,FALSE) -> 54.56 | Z105: =(Y105/T105)+Start!$D$19*(VLOOKUP(R105,Start!$M$33:$N$39,2,FALSE)/T105)+VLOOKUP(S105,Start!$C$33:$D$40,2,FALSE) -> 127.1620097
C106: Yes | D106: SEE964745752825 | E106: BNA0213 | F106: Stadtwerke Duisburg AG | G106: HKW III Block A | H106: 47249 | I106: Duisburg | J106: Wanheimer Str. 439 | K106: Nordrhein-Westfalen | L106: 1974-12-01 | M106: Erdgas | N106: Erdgas, Erdölgas | O106: Gas | P106: Ja | Q106: Gasturbinen mit Abhitzekessel | R106: Gas | S106: CCGT | T106: 0.3872 | U106: OPSD (2020) | V106: 40.8 | W106: 40.2 | X106: =(1-VLOOKUP(S106,Start!$H$33:$I$40,2,FALSE)/100)*W106 -> 34.974 | Y106: =VLOOKUP(R106,Start!$C$9:$D$15,2,FALSE)+VLOOKUP(R106,Start!$C$23:$D$29,2,FALSE) -> 54.56 | Z106: =(Y106/T106)+Start!$D$19*(VLOOKUP(R106,Start!$M$33:$N$39,2,FALSE)/T106)+VLOOKUP(S106,Start!$C$33:$D$40,2,FALSE) -> 169.4496126
C107: Yes | D107: SEE915885358156 | E107: BNA0214 | F107: Stadtwerke Duisburg AG | G107: HKW III Block B | H107: 47249 | I107: Duisburg | J107: Wanheimer Str. 439 | K107: Nordrhein-Westfalen | L107: 2004-09-13 | M107: Erdgas | N107: Erdgas, Erdölgas | O107: Gas | P107: Ja | Q107: Gasturbinen mit Abhitzekessel | R107: Gas | S107: CCGT | T107: 0.5625 | U107: OPSD (2020) | V107: 75.3 | W107: 75.2 | X107: =(1-VLOOKUP(S107,Start!$H$33:$I$40,2,FALSE)/100)*W107 -> 65.424 | Y107: =VLOOKUP(R107,Start!$C$9:$D$15,2,FALSE)+VLOOKUP(R107,Start!$C$23:$D$29,2,FALSE) -> 54.56 | Z107: =(Y107/T107)+Start!$D$19*(VLOOKUP(R107,Start!$M$33:$N$39,2,FALSE)/T107)+VLOOKUP(S107,Start!$C$33:$D$40,2,FALSE) -> 117.1090489
C108: Yes | D108: SEE922855765289 | E108: BNA0214 | F108: Stadtwerke Duisburg AG | G108: HKW III Block B | H108: 47249 | I108: Duisburg | J108: Wanheimer Str. 439 | K108: Nordrhein-Westfalen | L108: 2004-09-23 | M108: Erdgas | N108: Erdgas, Erdölgas | O108: Gas | P108: Ja | Q108: Gasturbinen mit Abhitzekessel | R108: Gas | S108: CCGT | T108: 0.5625 | U108: OPSD (2020) | V108: 75.3 | W108: 75.2 | X108: =(1-VLOOKUP(S108,Start!$H$33:$I$40,2,FALSE)/100)*W108 -> 65.424 | Y108: =VLOOKUP(R108,Start!$C$9:$D$15,2,FALSE)+VLOOKUP(R108,Start!$C$23:$D$29,2,FALSE) -> 54.56 | Z108: =(Y108/T108)+Start!$D$19*(VLOOKUP(R108,Start!$M$33:$N$39,2,FALSE)/T108)+VLOOKUP(S108,Start!$C$33:$D$40,2,FALSE) -> 117.1090489
C109: Yes | D109: SEE916495905242 | E109: BNA0214 | F109: Stadtwerke Duisburg AG | G109: HKW III Block B | H109: 47249 | I109: Duisburg | J109: Wanheimer Str. 439 | K109: Nordrhein-Westfalen | L109: 2005-02-25 | M109: Wärme | N109: Prozessdampf | O109: Gas | P109: Ja | Q109: Kondensationsmaschine mit Entnahme | R109: Gas | S109: CCGT | T109: 0.5625 | U109: OPSD (2020) | V109: 88.3 | W109: 84 | X109: =(1-VLOOKUP(S109,Start!$H$33:$I$40,2,FALSE)/100)*W109 -> 73.08 | Y109: =VLOOKUP(R109,Start!$C$9:$D$15,2,FALSE)+VLOOKUP(R109,Start!$C$23:$D$29,2,FALSE) -> 54.56 | Z109: =(Y109/T109)+Start!$D$19*(VLOOKUP(R109,Start!$M$33:$N$39,2,FALSE)/T109)+VLOOKUP(S109,Start!$C$33:$D$40,2,FALSE) -> 117.1090489
C110: Yes | D110: SEE918143230942 | E110: BNA0216b | F110: STEAG-EVN Walsum 10 Kraftwerksgesellschaft | G110: Walsum 10 | H110: 47179 | I110: Duisburg | J110: Dr.-Wilhelm-Roelen-Str. 129 | K110: Nordrhein-Westfalen | L110: 2013-12-20 | M110: Steinkohle | N110: Steinkohlen | O110: Coal | P110: Nein | Q110: Kondensationsmaschine mit Entnahme | R110: Coal | S110: Coal | T110: 0.45 | U110: OPSD (2020) | V110: 790 | W110: 725 | X110: =(1-VLOOKUP(S110,Start!$H$33:$I$40,2,FALSE)/100)*W110 -> 580 | Y110: =VLOOKUP(R110,Start!$C$9:$D$15,2,FALSE)+VLOOKUP(R110,Start!$C$23:$D$29,2,FALSE) -> 15.81 | Z110: =(Y110/T110)+Start!$D$19*(VLOOKUP(R110,Start!$M$33:$N$39,2,FALSE)/T110)+VLOOKUP(S110,Start!$C$33:$D$40,2,FALSE) -> 75.44295556
C111: Yes | D111: SEE912020488365 | E111: BNA0217 | F111: thyssenkrupp Steel Europe AG | G111: Ruhrort 2 | H111: 47166 | I111: Duisburg | J111: Kaiser-Wilhelm-Str. 100 | K111: Nordrhein-Westfalen | L111: 1955-01-01 | M111: andere Gase | N111: Hochofengas, Konvertergas | O111: Other (nicht erneuerbar) | P111: Ja | Q111: Kondensationsmaschine mit Entnahme | R111: Gas | S111: CCGT | T111: 0.33 | U111: Assumption based on DIW (2014) | V111: 64 | W111: 59.6 | X111: =(1-VLOOKUP(S111,Start!$H$33:$I$40,2,FALSE)/100)*W111 -> 51.852 | Y111: =VLOOKUP(R111,Start!$C$9:$D$15,2,FALSE)+VLOOKUP(R111,Start!$C$23:$D$29,2,FALSE) -> 54.56 | Z111: =(Y111/T111)+Start!$D$19*(VLOOKUP(R111,Start!$M$33:$N$39,2,FALSE)/T111)+VLOOKUP(S111,Start!$C$33:$D$40,2,FALSE) -> 198.5608788
C112: Yes | D112: SEE949799257847 | E112: BNA0218 | F112: thyssenkrupp Steel Europe AG | G112: Ruhrort 3 | H112: 47166 | I112: Duisburg | J112: Kaiser-Wilhelm-Str. 100 | K112: Nordrhein-Westfalen | L112: 1963-01-01 | M112: andere Gase | N112: Hochofengas, Konvertergas | O112: Other (nicht erneuerbar) | P112: Ja | Q112: Kondensationsmaschine mit Entnahme | R112: Gas | S112: CCGT | T112: 0.341 | U112: Assumption based on DIW (2014) | V112: 101 | W112: 94 | X112: =(1-VLOOKUP(S112,Start!$H$33:$I$40,2,FALSE)/100)*W112 -> 81.78 | Y112: =VLOOKUP(R112,Start!$C$9:$D$15,2,FALSE)+VLOOKUP(R112,Start!$C$23:$D$29,2,FALSE) -> 54.56 | Z112: =(Y112/T112)+Start!$D$19*(VLOOKUP(R112,Start!$M$33:$N$39,2,FALSE)/T112)+VLOOKUP(S112,Start!$C$33:$D$40,2,FALSE) -> 192.2040762
C113: Yes | D113: SEE936262825863 | E113: BNA0219 | F113: thyssenkrupp Steel Europe AG | G113: Ruhrort 4 | H113: 47166 | I113: Duisburg | J113: Kaiser-Wilhelm-Str. 100 | K113: Nordrhein-Westfalen | L113: 1969-01-01 | M113: andere Gase | N113: Hochofengas, Konvertergas | O113: Other (nicht erneuerbar) | P113: Ja | Q113: Kondensationsmaschine mit Entnahme | R113: Gas | S113: CCGT | T113: 0.341 | U113: Assumption based on DIW (2014) | V113: 177 | W113: 164.7 | X113: =(1-VLOOKUP(S113,Start!$H$33:$I$40,2,FALSE)/100)*W113 -> 143.289 | Y113: =VLOOKUP(R113,Start!$C$9:$D$15,2,FALSE)+VLOOKUP(R113,Start!$C$23:$D$29,2,FALSE) -> 54.56 | Z113: =(Y113/T113)+Start!$D$19*(VLOOKUP(R113,Start!$M$33:$N$39,2,FALSE)/T113)+VLOOKUP(S113,Start!$C$33:$D$40,2,FALSE) -> 192.2040762
C114: Yes | D114: SEE957083466325 | E114: BNA0220 | F114: Stadtwerke Düsseldorf AG | G114: SWD KWL AGuD | H114: 40221 | I114: Düsseldorf | J114: Auf der Lausward 75 | K114: Nordrhein-Westfalen | L114: 2000-07-28 | M114: Erdgas | N114: Erdgas, Erdölgas | O114: Gas | P114: Ja | Q114: Gasturbinen mit nachgeschalteter Dampfturbine | R114: Gas | S114: CCGT | T114: 0.54 | U114: OPSD (2020) | V114: 102 | W114: 100 | X114: =(1-VLOOKUP(S114,Start!$H$33:$I$40,2,FALSE)/100)*W114 -> 87 | Y114: =VLOOKUP(R114,Start!$C$9:$D$15,2,FALSE)+VLOOKUP(R114,Start!$C$23:$D$29,2,FALSE) -> 54.56 | Z114: =(Y114/T114)+Start!$D$19*(VLOOKUP(R114,Start!$M$33:$N$39,2,FALSE)/T114)+VLOOKUP(S114,Start!$C$33:$D$40,2,FALSE) -> 121.9260926
C115: Yes | D115: SEE972458947407 | E115: BNA0221a | F115: Stadtwerke Düsseldorf AG | G115: SWD KWL GTE2 | H115: 40221 | I115: Düsseldorf | J115: Auf der Lausward 75 | K115: Nordrhein-Westfalen | L115: 1975-02-21 | M115: Erdgas | N115: Erdgas, Erdölgas | O115: Gas | P115: Nein | Q115: Gasturbinen ohne Abhitzekessel | R115: Gas | S115: OCGT | T115: 0.315 | U115: OPSD (2020) | V115: 65.5 | W115: 64.7 | X115: =(1-VLOOKUP(S115,Start!$H$33:$I$40,2,FALSE)/100)*W115 -> 56.289 | Y115: =VLOOKUP(R115,Start!$C$9:$D$15,2,FALSE)+VLOOKUP(R115,Start!$C$23:$D$29,2,FALSE) -> 54.56 | Z115: =(Y115/T115)+Start!$D$19*(VLOOKUP(R115,Start!$M$33:$N$39,2,FALSE)/T115)+VLOOKUP(S115,Start!$C$33:$D$40,2,FALSE) -> 207.4447302
C116: Yes | D116: SEE989503748513 | E116: BNA0221b | F116: Stadtwerke Düsseldorf AG | G116: SWD KWL GTE1 | H116: 40221 | I116: Düsseldorf | J116: Auf der Lausward 75 | K116: Nordrhein-Westfalen | L116: 1974-11-19 | M116: Erdgas | N116: Erdgas, Erdölgas | O116: Gas | P116: Nein | Q116: Gasturbinen ohne Abhitzekessel | R116: Gas | S116: OCGT | T116: 0.3124 | U116: OPSD (2020) | V116: 67.5 | W116: 66.7 | X116: =(1-VLOOKUP(S116,Start!$H$33:$I$40,2,FALSE)/100)*W116 -> 58.029 | Y116: =VLOOKUP(R116,Start!$C$9:$D$15,2,FALSE)+VLOOKUP(R116,Start!$C$23:$D$29,2,FALSE) -> 54.56 | Z116: =(Y116/T116)+Start!$D$19*(VLOOKUP(R116,Start!$M$33:$N$39,2,FALSE)/T116)+VLOOKUP(S116,Start!$C$33:$D$40,2,FALSE) -> 209.1629001
C117: Yes | D117: SEE976549634931 | E117: BNA0222 | F117: Stadtwerke Düsseldorf AG | G117: SWD KWF GTKW | H117: 40233 | I117: Düsseldorf | J117: Behrenstraße 85 | K117: Nordrhein-Westfalen | L117: 1972-08-03 | M117: Mineralölprodukte | N117: Heizöl, leicht | O117: Oil | P117: Nein | Q117: Gasturbinen ohne Abhitzekessel | R117: Oil | S117: Oil | T117: 0.3072 | U117: OPSD (2020) | V117: 87.6 | W117: 86.2 | X117: =(1-VLOOKUP(S117,Start!$H$33:$I$40,2,FALSE)/100)*W117 -> 73.27 | Y117: =VLOOKUP(R117,Start!$C$9:$D$15,2,FALSE)+VLOOKUP(R117,Start!$C$23:$D$29,2,FALSE) -> 35.54 | Z117: =(Y117/T117)+Start!$D$19*(VLOOKUP(R117,Start!$M$33:$N$39,2,FALSE)/T117)+VLOOKUP(S117,Start!$C$33:$D$40,2,FALSE) -> 164.1679688
C118: Yes | D118: SEE918111432224 | E118: BNA0232b | F118: Sappi Ehingen GmbH | G118: Turbinengenerator3-SiemensT1915 | H118: 89584 | I118: Ehingen | J118: Biberacher Straße 73 | K118: Baden-Württemberg | L118: 1961-08-07 | M118: Erdgas | N118: Erdgas, Erdölgas | O118: Gas | P118: Ja | Q118: Gegendruckmaschine ohne Entnahme | R118: Gas | S118: CCGT | T118: 0.38 | U118: OPSD (2020) | V118: 7.185 | W118: 7.185 | X118: =(1-VLOOKUP(S118,Start!$H$33:$I$40,2,FALSE)/100)*W118 -> 6.25095 | Y118: =VLOOKUP(R118,Start!$C$9:$D$15,2,FALSE)+VLOOKUP(R118,Start!$C$23:$D$29,2,FALSE) -> 54.56 | Z118: =(Y118/T118)+Start!$D$19*(VLOOKUP(R118,Start!$M$33:$N$39,2,FALSE)/T118)+VLOOKUP(S118,Start!$C$33:$D$40,2,FALSE) -> 172.6318158
C119: Yes | D119: SEE945038569870 | E119: BNA0232c | F119: Sappi Ehingen GmbH | G119: Turbinengenerator4-SiemensT5471 | H119: 89584 | I119: Ehingen | J119: Biberacher Straße 73 | K119: Baden-Württemberg | L119: 1977-07-01 | M119: Erdgas | N119: Erdgas, Erdölgas | O119: Gas | P119: Ja | Q119: Gegendruckmaschine ohne Entnahme | R119: Gas | S119: CCGT | T119: 0.3597 | U119: OPSD (2020) | V119: 4.725 | W119: 4.725 | X119: =(1-VLOOKUP(S119,Start!$H$33:$I$40,2,FALSE)/100)*W119 -> 4.11075 | Y119: =VLOOKUP(R119,Start!$C$9:$D$15,2,FALSE)+VLOOKUP(R119,Start!$C$23:$D$29,2,FALSE) -> 54.56 | Z119: =(Y119/T119)+Start!$D$19*(VLOOKUP(R119,Start!$M$33:$N$39,2,FALSE)/T119)+VLOOKUP(S119,Start!$C$33:$D$40,2,FALSE) -> 182.2897971
C120: Yes | D120: SEE911097916719 | E120: BNA0233 | F120: Model Sachsen Papier GmbH | G120: Gasturbine Stora Enso Sachsen | H120: 4838 | I120: Eilenburg | J120: Am Schanzberg 1 | K120: Sachsen | L120: 2009-12-15 | M120: Erdgas | N120: Erdgas, Erdölgas | O120: Gas | P120: Ja | Q120: Gasturbinen mit nachgeschalteter Dampfturbine | R120: Gas | S120: CCGT | T120: 0.3773 | U120: OPSD (2020) | V120: 30.64926 | W120: 29.472 | X120: =(1-VLOOKUP(S120,Start!$H$33:$I$40,2,FALSE)/100)*W120 -> 25.64064 | Y120: =VLOOKUP(R120,Start!$C$9:$D$15,2,FALSE)+VLOOKUP(R120,Start!$C$23:$D$29,2,FALSE) -> 54.56 | Z120: =(Y120/T120)+Start!$D$19*(VLOOKUP(R120,Start!$M$33:$N$39,2,FALSE)/T120)+VLOOKUP(S120,Start!$C$33:$D$40,2,FALSE) -> 173.8564538
C121: Yes | D121: SEE945682618689 | E121: BNA0233 | F121: Model Sachsen Papier GmbH | G121: Dampfturbine Stora Enso Sachsen | H121: 4838 | I121: Eilenburg | J121: Am Schanzberg 1 | K121: Sachsen | L121: 1994-08-31 | M121: Erdgas | N121: Erdgas, Erdölgas | O121: Gas | P121: Ja | Q121: Gasturbinen mit nachgeschalteter Dampfturbine | R121: Gas | S121: CCGT | T121: 0.3773 | U121: OPSD (2020) | V121: 16.62 | W121: 16.62 | X121: =(1-VLOOKUP(S121,Start!$H$33:$I$40,2,FALSE)/100)*W121 -> 14.4594 | Y121: =VLOOKUP(R121,Start!$C$9:$D$15,2,FALSE)+VLOOKUP(R121,Start!$C$23:$D$29,2,FALSE) -> 54.56 | Z121: =(Y121/T121)+Start!$D$19*(VLOOKUP(R121,Start!$M$33:$N$39,2,FALSE)/T121)+VLOOKUP(S121,Start!$C$33:$D$40,2,FALSE) -> 173.8564538
C122: Yes | D122: SEE944111876263 | E122: BNA0237 | F122: Progroup Power 1 GmbH | G122: PPO1 - Eisenhüttenstadt | H122: 15890 | I122: Eisenhüttenstadt | J122: Oderlandstraße 109 | K122: Brandenburg | L122: 2009-10-19 | M122: nicht biogener Abfall | N122: nicht biogener Industrieabfall | O122: Waste | P122: Ja | Q122: Sonstige | R122: Waste | S122: Waste | T122: 0.33 | U122: own Assumption | V122: 32 | W122: 32 | X122: =(1-VLOOKUP(S122,Start!$H$33:$I$40,2,FALSE)/100)*W122 -> 27.2 | Y122: =VLOOKUP(R122,Start!$C$9:$D$15,2,FALSE)+VLOOKUP(R122,Start!$C$23:$D$29,2,FALSE) -> 0 | Z122: =(Y122/T122)+Start!$D$19*(VLOOKUP(R122,Start!$M$33:$N$39,2,FALSE)/T122)+VLOOKUP(S122,Start!$C$33:$D$40,2,FALSE) -> 1
C123: Yes | D123: SEE996548424685 | E123: BNA0238a | F123: ArcelorMittal Eisenhüttenstadt GmbH | G123: IKW Block 4 | H123: 15890 | I123: Eisenhüttenstadt | J123: Jugendstraße 1 | K123: Brandenburg | L123: 1998-10-14 | M123: andere Gase | N123: Hochofengas, Konvertergas | O123: Other (nicht erneuerbar) | P123: Ja | Q123: Kondensationsmaschine mit Entnahme | R123: Gas | S123: CCGT | T123: 0.33 | U123: Assumption based on DIW (2014) | V123: 36 | W123: 34.7 | X123: =(1-VLOOKUP(S123,Start!$H$33:$I$40,2,FALSE)/100)*W123 -> 30.189 | Y123: =VLOOKUP(R123,Start!$C$9:$D$15,2,FALSE)+VLOOKUP(R123,Start!$C$23:$D$29,2,FALSE) -> 54.56 | Z123: =(Y123/T123)+Start!$D$19*(VLOOKUP(R123,Start!$M$33:$N$39,2,FALSE)/T123)+VLOOKUP(S123,Start!$C$33:$D$40,2,FALSE) -> 198.5608788
C124: Yes | D124: SEE987512757786 | E124: BNA0238a | F124: ArcelorMittal Eisenhüttenstadt GmbH | G124: IKW GuD Block | H124: 15890 | I124: Eisenhüttenstadt | J124: Jugendstraße 1 | K124: Brandenburg | L124: 1954-01-01 | M124: Erdgas | N124: Erdgas, Erdölgas | O124: Gas | P124: Nein | Q124: Gasturbinen mit nachgeschalteter Dampfturbine | R124: Gas | S124: CCGT | T124: 0.33 | U124: Assumption based on DIW (2014) | V124: 64 | W124: 61.6 | X124: =(1-VLOOKUP(S124,Start!$H$33:$I$40,2,FALSE)/100)*W124 -> 53.592 | Y124: =VLOOKUP(R124,Start!$C$9:$D$15,2,FALSE)+VLOOKUP(R124,Start!$C$23:$D$29,2,FALSE) -> 54.56 | Z124: =(Y124/T124)+Start!$D$19*(VLOOKUP(R124,Start!$M$33:$N$39,2,FALSE)/T124)+VLOOKUP(S124,Start!$C$33:$D$40,2,FALSE) -> 198.5608788
C125: Yes | D125: SEE983138549866 | E125: BNA0238b | F125: ArcelorMittal Eisenhüttenstadt GmbH | G125: IKW Block 7 | H125: 15890 | I125: Eisenhüttenstadt | J125: Jugendstraße 1 | K125: Brandenburg | L125: 2013-05-08 | M125: andere Gase | N125: Hochofengas, Konvertergas | O125: Other (nicht erneuerbar) | P125: Ja | Q125: Kondensationsmaschine mit Entnahme | R125: Gas | S125: CCGT | T125: 0.396 | U125: Assumption based on DIW (2014) | V125: 56 | W125: 53.9 | X125: =(1-VLOOKUP(S125,Start!$H$33:$I$40,2,FALSE)/100)*W125 -> 46.893 | Y125: =VLOOKUP(R125,Start!$C$9:$D$15,2,FALSE)+VLOOKUP(R125,Start!$C$23:$D$29,2,FALSE) -> 54.56 | Z125: =(Y125/T125)+Start!$D$19*(VLOOKUP(R125,Start!$M$33:$N$39,2,FALSE)/T125)+VLOOKUP(S125,Start!$C$33:$D$40,2,FALSE) -> 165.717399
C126: Yes | D126: SEE974201537415 | E126: BNA0239 | F126: Uniper Kraftwerke GmbH | G126: Huntorf GT | H126: 26931 | I126: Elsfleth | J126: Große Hellmer 4 | K126: Niedersachsen | L126: 1978-01-01 | M126: Erdgas | N126: Erdgas, Erdölgas | O126: Gas | P126: Nein | Q126: Gasturbinen ohne Abhitzekessel | R126: Gas | S126: OCGT | T126: 0.42 | U126: OPSD (2020) | V126: 323 | W126: 321 | X126: =(1-VLOOKUP(S126,Start!$H$33:$I$40,2,FALSE)/100)*W126 -> 279.27 | Y126: =VLOOKUP(R126,Start!$C$9:$D$15,2,FALSE)+VLOOKUP(R126,Start!$C$23:$D$29,2,FALSE) -> 54.56 | Z126: =(Y126/T126)+Start!$D$19*(VLOOKUP(R126,Start!$M$33:$N$39,2,FALSE)/T126)+VLOOKUP(S126,Start!$C$33:$D$40,2,FALSE) -> 155.8335476
C127: Yes | D127: SEE912906399075 | E127: BNA0243 | F127: Palm Power GmbH & Co. KG | G127: HKW Eltmann | H127: 97483 | I127: Eltmann | J127: Industriestraße 23 | K127: Bayern | L127: 2017-02-07 | M127: Erdgas | N127: Erdgas, Erdölgas | O127: Gas | P127: Ja | Q127: Gasturbinen mit nachgeschalteter Dampfturbine | R127: Gas | S127: CCGT | T127: 0.3927 | U127: OPSD (2020) | V127: 64.505 | W127: 64.505 | X127: =(1-VLOOKUP(S127,Start!$H$33:$I$40,2,FALSE)/100)*W127 -> 56.11935 | Y127: =VLOOKUP(R127,Start!$C$9:$D$15,2,FALSE)+VLOOKUP(R127,Start!$C$23:$D$29,2,FALSE) -> 54.56 | Z127: =(Y127/T127)+Start!$D$19*(VLOOKUP(R127,Start!$M$33:$N$39,2,FALSE)/T127)+VLOOKUP(S127,Start!$C$33:$D$40,2,FALSE) -> 167.0973771
C128: Yes | D128: SEE950589701143 | E128: BNA0245a | F128: Statkraft Markets GmbH | G128: Gaskraftwerk Emden - Gasturbine | H128: 26725 | I128: Emden | J128: Zum Kraftwerk | K128: Niedersachsen | L128: 1973-01-01 | M128: Erdgas | N128: Erdgas, Erdölgas | O128: Gas | P128: Nein | Q128: Gasturbinen mit nachgeschalteter Dampfturbine | R128: Gas | S128: CCGT | T128: 0.42 | U128: OPSD (2020) | V128: 54 | W128: 52 | X128: =(1-VLOOKUP(S128,Start!$H$33:$I$40,2,FALSE)/100)*W128 -> 45.24 | Y128: =VLOOKUP(R128,Start!$C$9:$D$15,2,FALSE)+VLOOKUP(R128,Start!$C$23:$D$29,2,FALSE) -> 54.56 | Z128: =(Y128/T128)+Start!$D$19*(VLOOKUP(R128,Start!$M$33:$N$39,2,FALSE)/T128)+VLOOKUP(S128,Start!$C$33:$D$40,2,FALSE) -> 156.3335476
C129: Yes | D129: SEE930752846949 | E129: BNA0251 | F129: PreussenElektra | G129: Grohnde | H129: 31860 | I129: Emmerthal | J129: Kraftwerksgelände | K129: Niedersachsen | L129: 1984-09-05 | M129: Kernenergie | O129: Nuclear | P129: Nein | Q129: Druckwasserreaktor | R129: Nuclear | S129: Nuclear | T129: 0.346 | U129: OPSD (2020) | V129: 1430 | W129: 1360 | X129: =(1-VLOOKUP(S129,Start!$H$33:$I$40,2,FALSE)/100)*W129 -> 1264.8 | Y129: =VLOOKUP(R129,Start!$C$9:$D$15,2,FALSE)+VLOOKUP(R129,Start!$C$23:$D$29,2,FALSE) -> 5.5 | Z129: =(Y129/T129)+Start!$D$19*(VLOOKUP(R129,Start!$M$33:$N$39,2,FALSE)/T129)+VLOOKUP(S129,Start!$C$33:$D$40,2,FALSE) -> 17.09595376
C130: Yes | D130: SEE915645322953 | E130: BNA0256 | F130: SWE Energie GmbH | G130: GT 1 | H130: 99087 | I130: Erfurt | J130: Stotternheimer Straße 40 | K130: Thüringen | L130: 1999-12-17 | M130: Erdgas | N130: Erdgas, Erdölgas | O130: Gas | P130: Ja | Q130: Gasturbinen mit nachgeschalteter Dampfturbine | R130: Gas | S130: CCGT | T130: 0.54 | U130: Assumption based on DIW (2014) | V130: 23 | W130: 23 | X130: =(1-VLOOKUP(S130,Start!$H$33:$I$40,2,FALSE)/100)*W130 -> 20.01 | Y130: =VLOOKUP(R130,Start!$C$9:$D$15,2,FALSE)+VLOOKUP(R130,Start!$C$23:$D$29,2,FALSE) -> 54.56 | Z130: =(Y130/T130)+Start!$D$19*(VLOOKUP(R130,Start!$M$33:$N$39,2,FALSE)/T130)+VLOOKUP(S130,Start!$C$33:$D$40,2,FALSE) -> 121.9260926
C131: Yes | D131: SEE924373150776 | E131: BNA0256 | F131: SWE Energie GmbH | G131: GT 2 | H131: 99087 | I131: Erfurt | J131: Stotternheimer Straße 40 | K131: Thüringen | L131: 1999-12-17 | M131: Erdgas | N131: Erdgas, Erdölgas | O131: Gas | P131: Ja | Q131: Gasturbinen mit nachgeschalteter Dampfturbine | R131: Gas | S131: CCGT | T131: 0.54 | U131: Assumption based on DIW (2014) | V131: 23 | W131: 23 | X131: =(1-VLOOKUP(S131,Start!$H$33:$I$40,2,FALSE)/100)*W131 -> 20.01 | Y131: =VLOOKUP(R131,Start!$C$9:$D$15,2,FALSE)+VLOOKUP(R131,Start!$C$23:$D$29,2,FALSE) -> 54.56 | Z131: =(Y131/T131)+Start!$D$19*(VLOOKUP(R131,Start!$M$33:$N$39,2,FALSE)/T131)+VLOOKUP(S131,Start!$C$33:$D$40,2,FALSE) -> 121.9260926
C132: Yes | D132: SEE959229794460 | E132: BNA0256 | F132: SWE Energie GmbH | G132: DT | H132: 99087 | I132: Erfurt | J132: Stotternheimer Straße 40 | K132: Thüringen | L132: 1999-12-17 | M132: Wärme | N132: Prozessdampf | O132: Wärme | P132: Ja | Q132: Gegendruckmaschine mit Entnahme | R132: Gas | S132: CCGT | T132: 0.4 | U132: own Assumption | V132: 32 | W132: 30 | X132: =(1-VLOOKUP(S132,Start!$H$33:$I$40,2,FALSE)/100)*W132 -> 26.1 | Y132: =VLOOKUP(R132,Start!$C$9:$D$15,2,FALSE)+VLOOKUP(R132,Start!$C$23:$D$29,2,FALSE) -> 54.56 | Z132: =(Y132/T132)+Start!$D$19*(VLOOKUP(R132,Start!$M$33:$N$39,2,FALSE)/T132)+VLOOKUP(S132,Start!$C$33:$D$40,2,FALSE) -> 164.075225
C133: Yes | D133: SEE997242656822 | E133: BNA0256a | F133: SWE Energie GmbH | G133: GT 3 | H133: 99087 | I133: Erfurt | J133: Stotternheimer Straße 40 | K133: Thüringen | L133: 2014-09-26 | M133: Erdgas | N133: Erdgas, Erdölgas | O133: Gas | P133: Ja | Q133: Gasturbinen mit nachgeschalteter Dampfturbine | R133: Gas | S133: CCGT | T133: 0.364 | U133: OPSD (2020) | V133: 33.11 | W133: 32.61 | X133: =(1-VLOOKUP(S133,Start!$H$33:$I$40,2,FALSE)/100)*W133 -> 28.3707 | Y133: =VLOOKUP(R133,Start!$C$9:$D$15,2,FALSE)+VLOOKUP(R133,Start!$C$23:$D$29,2,FALSE) -> 54.56 | Z133: =(Y133/T133)+Start!$D$19*(VLOOKUP(R133,Start!$M$33:$N$39,2,FALSE)/T133)+VLOOKUP(S133,Start!$C$33:$D$40,2,FALSE) -> 180.1540934
C134: Yes | D134: SEE912764206645 | E134: BNA0261a | F134: Erlanger Stadtwerke AG | G134: HKW - GuD1 | H134: 91052 | I134: Erlangen | J134: Äußere Brucker Straße 33 | K134: Bayern | L134: 2005-09-14 | M134: Erdgas | N134: Erdgas, Erdölgas | O134: Gas | P134: Ja | Q134: Gasturbinen mit nachgeschalteter Dampfturbine | R134: Gas | S134: CCGT | T134: 0.5625 | U134: OPSD (2020) | V134: 22.5 | W134: 21.6 | X134: =(1-VLOOKUP(S134,Start!$H$33:$I$40,2,FALSE)/100)*W134 -> 18.792 | Y134: =VLOOKUP(R134,Start!$C$9:$D$15,2,FALSE)+VLOOKUP(R134,Start!$C$23:$D$29,2,FALSE) -> 54.56 | Z134: =(Y134/T134)+Start!$D$19*(VLOOKUP(R134,Start!$M$33:$N$39,2,FALSE)/T134)+VLOOKUP(S134,Start!$C$33:$D$40,2,FALSE) -> 117.1090489
C135: Yes | D135: SEE982350358232 | E135: BNA0261c | F135: Erlanger Stadtwerke AG | G135: HKW - GuD2 | H135: 91052 | I135: Erlangen | J135: Äußere Brucker Straße 33 | K135: Bayern | L135: 2014-02-10 | M135: Erdgas | N135: Erdgas, Erdölgas | O135: Gas | P135: Ja | Q135: Gasturbinen mit nachgeschalteter Dampfturbine | R135: Gas | S135: CCGT | T135: 0.603 | U135: OPSD (2020) | V135: 7 | W135: 6.7 | X135: =(1-VLOOKUP(S135,Start!$H$33:$I$40,2,FALSE)/100)*W135 -> 5.829 | Y135: =VLOOKUP(R135,Start!$C$9:$D$15,2,FALSE)+VLOOKUP(R135,Start!$C$23:$D$29,2,FALSE) -> 54.56 | Z135: =(Y135/T135)+Start!$D$19*(VLOOKUP(R135,Start!$M$33:$N$39,2,FALSE)/T135)+VLOOKUP(S135,Start!$C$33:$D$40,2,FALSE) -> 109.344262
C136: Yes | D136: SEE943690268513 | E136: BNA0263 | F136: PreussenElektra | G136: Isar 2 | H136: 84051 | I136: Essenbach | J136: Dammstraße | K136: Bayern | L136: 1988-01-22 | M136: Kernenergie | O136: Nuclear | P136: Nein | Q136: Druckwasserreaktor | R136: Nuclear | S136: Nuclear | T136: 0.33 | U136: OPSD (2020) | V136: 1485 | W136: 1410 | X136: =(1-VLOOKUP(S136,Start!$H$33:$I$40,2,FALSE)/100)*W136 -> 1311.3 | Y136: =VLOOKUP(R136,Start!$C$9:$D$15,2,FALSE)+VLOOKUP(R136,Start!$C$23:$D$29,2,FALSE) -> 5.5 | Z136: =(Y136/T136)+Start!$D$19*(VLOOKUP(R136,Start!$M$33:$N$39,2,FALSE)/T136)+VLOOKUP(S136,Start!$C$33:$D$40,2,FALSE) -> 17.86666667
C137: Yes | D137: SEE990438768378 | E137: BNA0270 | F137: Stadtwerke Flensburg | G137: Dampfturbine 8 | H137: 24939 | I137: Flensburg | J137: Batteriestraße 48 | K137: Schleswig-Holstein | L137: 1985-05-24 | M137: Steinkohle | N137: Steinkohlen | O137: Coal | P137: Ja | Q137: Gegendruckmaschine ohne Entnahme | R137: Coal | S137: Coal | T137: 0.504 | U137: OPSD (2020) | V137: 35.9 | W137: 32.9 | X137: =(1-VLOOKUP(S137,Start!$H$33:$I$40,2,FALSE)/100)*W137 -> 26.32 | Y137: =VLOOKUP(R137,Start!$C$9:$D$15,2,FALSE)+VLOOKUP(R137,Start!$C$23:$D$29,2,FALSE) -> 15.81 | Z137: =(Y137/T137)+Start!$D$19*(VLOOKUP(R137,Start!$M$33:$N$39,2,FALSE)/T137)+VLOOKUP(S137,Start!$C$33:$D$40,2,FALSE) -> 67.49906746
C138: Yes | D138: SEE957285549260 | E138: BNA0272 | F138: Stadtwerke Flensburg | G138: Dampfturbine 9 | H138: 24939 | I138: Flensburg | J138: Batteriestraße 48 | K138: Schleswig-Holstein | L138: 1988-08-16 | M138: Steinkohle | N138: Steinkohlen | O138: Coal | P138: Ja | Q138: Gegendruckmaschine ohne Entnahme | R138: Coal | S138: Coal | T138: 0.4725 | U138: OPSD (2020) | V138: 35.9 | W138: 32.9 | X138: =(1-VLOOKUP(S138,Start!$H$33:$I$40,2,FALSE)/100)*W138 -> 26.32 | Y138: =VLOOKUP(R138,Start!$C$9:$D$15,2,FALSE)+VLOOKUP(R138,Start!$C$23:$D$29,2,FALSE) -> 15.81 | Z138: =(Y138/T138)+Start!$D$19*(VLOOKUP(R138,Start!$M$33:$N$39,2,FALSE)/T138)+VLOOKUP(S138,Start!$C$33:$D$40,2,FALSE) -> 71.91233862
C139: Yes | D139: SEE971867565370 | E139: BNA0285 | F139: Mainova AG | G139: HKW Niederrad Block 1 | H139: 60528 | I139: Frankfurt | J139: Lyoner Straße 8 | K139: Hessen | L139: 2005-09-20 | M139: Erdgas | N139: Erdgas, Erdölgas | O139: Gas | P139: Ja | Q139: Gasturbinen mit nachgeschalteter Dampfturbine | R139: Gas | S139: CCGT | T139: 0.3894 | U139: OPSD (2020) | V139: 71 | W139: 70 | X139: =(1-VLOOKUP(S139,Start!$H$33:$I$40,2,FALSE)/100)*W139 -> 60.9 | Y139: =VLOOKUP(R139,Start!$C$9:$D$15,2,FALSE)+VLOOKUP(R139,Start!$C$23:$D$29,2,FALSE) -> 54.56 | Z139: =(Y139/T139)+Start!$D$19*(VLOOKUP(R139,Start!$M$33:$N$39,2,FALSE)/T139)+VLOOKUP(S139,Start!$C$33:$D$40,2,FALSE) -> 168.5007447
C140: Yes | D140: SEE994429144455 | E140: BNA0286 | F140: Mainova AG | G140: HKW West Block 4 | H140: 60327 | I140: Frankfurt | J140: Gutleutstraße 231 | K140: Hessen | L140: 1994-02-28 | M140: Erdgas | N140: Erdgas, Erdölgas | O140: Gas | P140: Ja | Q140: Gasturbinen mit Abhitzekessel | R140: Gas | S140: CCGT | T140: 0.3784 | U140: OPSD (2020) | V140: 112 | W140: 110.755 | X140: =(1-VLOOKUP(S140,Start!$H$33:$I$40,2,FALSE)/100)*W140 -> 96.35685 | Y140: =VLOOKUP(R140,Start!$C$9:$D$15,2,FALSE)+VLOOKUP(R140,Start!$C$23:$D$29,2,FALSE) -> 54.56 | Z140: =(Y140/T140)+Start!$D$19*(VLOOKUP(R140,Start!$M$33:$N$39,2,FALSE)/T140)+VLOOKUP(S140,Start!$C$33:$D$40,2,FALSE) -> 173.3554175
C141: Yes | D141: SEE999588015110 | E141: BNA0287a | F141: MHKW Müllheizkraftwerk Frankfurt am Main GmbH | G141: Turbine 3 | H141: 60439 | I141: Frankfurt | J141: Heddernheimer Landstraße 157 | K141: Hessen | L141: 1986-12-12 | M141: nicht biogener Abfall | N141: nicht biogener Abfall (Hausmüll, Siedlungsabfälle) | O141: Waste | P141: Ja | Q141: Kondensationsmaschine mit Entnahme | R141: Waste | S141: Waste | T141: 0.33 | U141: OPSD (2020) | V141: 27.5 | W141: 26 | X141: =(1-VLOOKUP(S141,Start!$H$33:$I$40,2,FALSE)/100)*W141 -> 22.1 | Y141: =VLOOKUP(R141,Start!$C$9:$D$15,2,FALSE)+VLOOKUP(R141,Start!$C$23:$D$29,2,FALSE) -> 0 | Z141: =(Y141/T141)+Start!$D$19*(VLOOKUP(R141,Start!$M$33:$N$39,2,FALSE)/T141)+VLOOKUP(S141,Start!$C$33:$D$40,2,FALSE) -> 1
C142: Yes | D142: SEE912257091857 | E142: BNA0287b | F142: MHKW Müllheizkraftwerk Frankfurt am Main GmbH | G142: Turbine 7 | H142: 60439 | I142: Frankfurt | J142: Heddernheimer Landstraße 157 | K142: Hessen | L142: 2005-12-21 | M142: nicht biogener Abfall | N142: nicht biogener Abfall (Hausmüll, Siedlungsabfälle) | O142: Waste | P142: Ja | Q142: Kondensationsmaschine mit Entnahme | R142: Waste | S142: Waste | T142: 0.33 | U142: OPSD (2020) | V142: 47.5 | W142: 46.5 | X142: =(1-VLOOKUP(S142,Start!$H$33:$I$40,2,FALSE)/100)*W142 -> 39.525 | Y142: =VLOOKUP(R142,Start!$C$9:$D$15,2,FALSE)+VLOOKUP(R142,Start!$C$23:$D$29,2,FALSE) -> 0 | Z142: =(Y142/T142)+Start!$D$19*(VLOOKUP(R142,Start!$M$33:$N$39,2,FALSE)/T142)+VLOOKUP(S142,Start!$C$33:$D$40,2,FALSE) -> 1
C143: Yes | D143: SEE917943562765 | E143: BNA0289b | F143: Mainova AG | G143: HKW West Block 2 | H143: 60327 | I143: Frankfurt | J143: Gutleutstraße 231 | K143: Hessen | L143: 1990-02-01 | M143: Steinkohle | N143: Steinkohlen | O143: Coal | P143: Ja | Q143: Kondensationsmaschine mit Entnahme | R143: Coal | S143: Coal | T143: 0.395 | U143: OPSD (2020) | V143: 69.5 | W143: 61.5 | X143: =(1-VLOOKUP(S143,Start!$H$33:$I$40,2,FALSE)/100)*W143 -> 49.2 | Y143: =VLOOKUP(R143,Start!$C$9:$D$15,2,FALSE)+VLOOKUP(R143,Start!$C$23:$D$29,2,FALSE) -> 15.81 | Z143: =(Y143/T143)+Start!$D$19*(VLOOKUP(R143,Start!$M$33:$N$39,2,FALSE)/T143)+VLOOKUP(S143,Start!$C$33:$D$40,2,FALSE) -> 85.76665823
C144: Yes | D144: SEE915289541482 | E144: BNA0290 | F144: Mainova AG | G144: HKW West Block 3 | H144: 60327 | I144: Frankfurt | J144: Gutleutstraße 231 | K144: Hessen | L144: 1990-02-15 | M144: Steinkohle | N144: Steinkohlen | O144: Coal | P144: Ja | Q144: Kondensationsmaschine mit Entnahme | R144: Coal | S144: Coal | T144: 0.3975 | U144: OPSD (2020) | V144: 69.5 | W144: 61.5 | X144: =(1-VLOOKUP(S144,Start!$H$33:$I$40,2,FALSE)/100)*W144 -> 49.2 | Y144: =VLOOKUP(R144,Start!$C$9:$D$15,2,FALSE)+VLOOKUP(R144,Start!$C$23:$D$29,2,FALSE) -> 15.81 | Z144: =(Y144/T144)+Start!$D$19*(VLOOKUP(R144,Start!$M$33:$N$39,2,FALSE)/T144)+VLOOKUP(S144,Start!$C$33:$D$40,2,FALSE) -> 85.23542138
C145: Yes | D145: SEE905721866655 | E145: BNA0292 | F145: RWE Power AG | G145: Fab Frechen | H145: 50226 | I145: Frechen | J145: Ludwigstraße | K145: Nordrhein-Westfalen | L145: 1962-12-23 | M145: Braunkohle | N145: Rohbraunkohlen | O145: Lignite | P145: Ja | Q145: Kondensationsmaschine mit Entnahme | R145: Lignite | S145: Lignite | T145: 0.3712 | U145: OPSD (2020) | V145: 202 | W145: 176 | X145: =(1-VLOOKUP(S145,Start!$H$33:$I$40,2,FALSE)/100)*W145 -> 153.12 | Y145: =VLOOKUP(R145,Start!$C$9:$D$15,2,FALSE)+VLOOKUP(R145,Start!$C$23:$D$29,2,FALSE) -> 3.1 | Z145: =(Y145/T145)+Start!$D$19*(VLOOKUP(R145,Start!$M$33:$N$39,2,FALSE)/T145)+VLOOKUP(S145,Start!$C$33:$D$40,2,FALSE) -> 66.74407328
C146: Yes | D146: SEE903153060207 | E146: BNA0293 | F146: Cerdia Produktions GmbH | G146: Dampfturbine9 | H146: 79108 | I146: Freiburg | J146: Engesserstraße 8 | K146: Baden-Württemberg | L146: 2020-04-18 | M146: Erdgas | N146: Erdgas, Erdölgas | O146: Gas | P146: Ja | Q146: Gegendruckmaschine mit Entnahme | R146: Gas | S146: CCGT | T146: 0.531 | U146: OPSD (2020) | V146: 19.017 | W146: 18.339 | X146: =(1-VLOOKUP(S146,Start!$H$33:$I$40,2,FALSE)/100)*W146 -> 15.95493 | Y146: =VLOOKUP(R146,Start!$C$9:$D$15,2,FALSE)+VLOOKUP(R146,Start!$C$23:$D$29,2,FALSE) -> 54.56 | Z146: =(Y146/T146)+Start!$D$19*(VLOOKUP(R146,Start!$M$33:$N$39,2,FALSE)/T146)+VLOOKUP(S146,Start!$C$33:$D$40,2,FALSE) -> 123.9672128
C147: Yes | D147: SEE972356296461 | E147: BNA0293 | F147: Cerdia Produktions GmbH | G147: Gasturbine | H147: 79108 | I147: Freiburg | J147: Engesserstraße 8 | K147: Baden-Württemberg | L147: 1998-10-01 | M147: Erdgas | N147: Erdgas, Erdölgas | O147: Gas | P147: Ja | Q147: Gasturbinen mit nachgeschalteter Dampfturbine | R147: Gas | S147: CCGT | T147: 0.531 | U147: OPSD (2020) | V147: 39.92 | W147: 38.498 | X147: =(1-VLOOKUP(S147,Start!$H$33:$I$40,2,FALSE)/100)*W147 -> 33.49326 | Y147: =VLOOKUP(R147,Start!$C$9:$D$15,2,FALSE)+VLOOKUP(R147,Start!$C$23:$D$29,2,FALSE) -> 54.56 | Z147: =(Y147/T147)+Start!$D$19*(VLOOKUP(R147,Start!$M$33:$N$39,2,FALSE)/T147)+VLOOKUP(S147,Start!$C$33:$D$40,2,FALSE) -> 123.9672128
C148: Yes | D148: SEE918548652318 | E148: BNA0318 | F148: RhönEnergie Fulda GmbH | G148: Kraftwerk Fulda Aggregat 1 | H148: 36043 | I148: Fulda | J148: Frankfurter Straße | K148: Hessen | L148: 2010-01-01 | M148: Mineralölprodukte | N148: Dieselkraftstoff | O148: Oil | P148: Nein | Q148: Verbrennungsmotor | R148: Oil | S148: Oil | T148: 0.3971 | U148: OPSD (2020) | V148: 3.75 | W148: 3.6 | X148: =(1-VLOOKUP(S148,Start!$H$33:$I$40,2,FALSE)/100)*W148 -> 3.06 | Y148: =VLOOKUP(R148,Start!$C$9:$D$15,2,FALSE)+VLOOKUP(R148,Start!$C$23:$D$29,2,FALSE) -> 35.54 | Z148: =(Y148/T148)+Start!$D$19*(VLOOKUP(R148,Start!$M$33:$N$39,2,FALSE)/T148)+VLOOKUP(S148,Start!$C$33:$D$40,2,FALSE) -> 127.2281541
C149: Yes | D149: SEE978426302629 | E149: BNA0318 | F149: RhönEnergie Fulda GmbH | G149: Kraftwerk Fulda Aggregat 2 | H149: 36043 | I149: Fulda | J149: Frankfurter Straße 4 | K149: Hessen | L149: 2010-01-01 | M149: Mineralölprodukte | N149: Dieselkraftstoff | O149: Oil | P149: Nein | Q149: Verbrennungsmotor | R149: Oil | S149: Oil | T149: 0.3971 | U149: OPSD (2020) | V149: 6.47 | W149: 6.29 | X149: =(1-VLOOKUP(S149,Start!$H$33:$I$40,2,FALSE)/100)*W149 -> 5.3465 | Y149: =VLOOKUP(R149,Start!$C$9:$D$15,2,FALSE)+VLOOKUP(R149,Start!$C$23:$D$29,2,FALSE) -> 35.54 | Z149: =(Y149/T149)+Start!$D$19*(VLOOKUP(R149,Start!$M$33:$N$39,2,FALSE)/T149)+VLOOKUP(S149,Start!$C$33:$D$40,2,FALSE) -> 127.2281541
C150: Yes | D150: SEE976995281321 | E150: BNA0318 | F150: RhönEnergie Fulda GmbH | G150: Kraftwerk Fulda Aggregat 3A | H150: 36043 | I150: Fulda | J150: Frankfurter Straße 4 | K150: Hessen | L150: 2010-01-01 | M150: Mineralölprodukte | N150: Dieselkraftstoff | O150: Oil | P150: Nein | Q150: Verbrennungsmotor | R150: Oil | S150: Oil | T150: 0.3971 | U150: OPSD (2020) | V150: 2.76 | W150: 2.76 | X150: =(1-VLOOKUP(S150,Start!$H$33:$I$40,2,FALSE)/100)*W150 -> 2.346 | Y150: =VLOOKUP(R150,Start!$C$9:$D$15,2,FALSE)+VLOOKUP(R150,Start!$C$23:$D$29,2,FALSE) -> 35.54 | Z150: =(Y150/T150)+Start!$D$19*(VLOOKUP(R150,Start!$M$33:$N$39,2,FALSE)/T150)+VLOOKUP(S150,Start!$C$33:$D$40,2,FALSE) -> 127.2281541
C151: Yes | D151: SEE970444408703 | E151: BNA0318 | F151: RhönEnergie Fulda GmbH | G151: Kraftwerk Fulda Aggregat 3B | H151: 36043 | I151: Fulda | J151: Frankfurter Straße 4 | K151: Hessen | L151: 2010-01-01 | M151: Mineralölprodukte | N151: Dieselkraftstoff | O151: Oil | P151: Nein | Q151: Verbrennungsmotor | R151: Oil | S151: Oil | T151: 0.3971 | U151: OPSD (2020) | V151: 2.76 | W151: 2.76 | X151: =(1-VLOOKUP(S151,Start!$H$33:$I$40,2,FALSE)/100)*W151 -> 2.346 | Y151: =VLOOKUP(R151,Start!$C$9:$D$15,2,FALSE)+VLOOKUP(R151,Start!$C$23:$D$29,2,FALSE) -> 35.54 | Z151: =(Y151/T151)+Start!$D$19*(VLOOKUP(R151,Start!$M$33:$N$39,2,FALSE)/T151)+VLOOKUP(S151,Start!$C$33:$D$40,2,FALSE) -> 127.2281541
C152: Yes | D152: SEE918541277334 | E152: BNA0318 | F152: RhönEnergie Fulda GmbH | G152: Kraftwerk Fulda Aggregat 3C | H152: 36043 | I152: Fulda | J152: Frankfurter Straße 4 | K152: Hessen | L152: 2010-01-01 | M152: Mineralölprodukte | N152: Dieselkraftstoff | O152: Oil | P152: Nein | Q152: Verbrennungsmotor | R152: Oil | S152: Oil | T152: 0.3971 | U152: OPSD (2020) | V152: 2.76 | W152: 2.76 | X152: =(1-VLOOKUP(S152,Start!$H$33:$I$40,2,FALSE)/100)*W152 -> 2.346 | Y152: =VLOOKUP(R152,Start!$C$9:$D$15,2,FALSE)+VLOOKUP(R152,Start!$C$23:$D$29,2,FALSE) -> 35.54 | Z152: =(Y152/T152)+Start!$D$19*(VLOOKUP(R152,Start!$M$33:$N$39,2,FALSE)/T152)+VLOOKUP(S152,Start!$C$33:$D$40,2,FALSE) -> 127.2281541
C153: Yes | D153: SEE967464788519 | E153: BNA0318 | F153: RhönEnergie Fulda GmbH | G153: Kraftwerk Fulda Aggregat 4A | H153: 36043 | I153: Fulda | J153: Frankfurter Straße 4 | K153: Hessen | L153: 2020-01-01 | M153: Mineralölprodukte | N153: Dieselkraftstoff | O153: Oil | P153: Nein | Q153: Verbrennungsmotor | R153: Oil | S153: Oil | T153: 0.3971 | U153: OPSD (2020) | V153: 2.76 | W153: 2.76 | X153: =(1-VLOOKUP(S153,Start!$H$33:$I$40,2,FALSE)/100)*W153 -> 2.346 | Y153: =VLOOKUP(R153,Start!$C$9:$D$15,2,FALSE)+VLOOKUP(R153,Start!$C$23:$D$29,2,FALSE) -> 35.54 | Z153: =(Y153/T153)+Start!$D$19*(VLOOKUP(R153,Start!$M$33:$N$39,2,FALSE)/T153)+VLOOKUP(S153,Start!$C$33:$D$40,2,FALSE) -> 127.2281541
C154: Yes | D154: SEE959614237596 | E154: BNA0318 | F154: RhönEnergie Fulda GmbH | G154: Kraftwerk Fulda Aggregat 4B | H154: 36043 | I154: Fulda | J154: Frankfurter Straße 4 | K154: Hessen | L154: 2020-01-01 | M154: Mineralölprodukte | N154: Dieselkraftstoff | O154: Oil | P154: Nein | Q154: Verbrennungsmotor | R154: Oil | S154: Oil | T154: 0.3971 | U154: OPSD (2020) | V154: 2.76 | W154: 2.76 | X154: =(1-VLOOKUP(S154,Start!$H$33:$I$40,2,FALSE)/100)*W154 -> 2.346 | Y154: =VLOOKUP(R154,Start!$C$9:$D$15,2,FALSE)+VLOOKUP(R154,Start!$C$23:$D$29,2,FALSE) -> 35.54 | Z154: =(Y154/T154)+Start!$D$19*(VLOOKUP(R154,Start!$M$33:$N$39,2,FALSE)/T154)+VLOOKUP(S154,Start!$C$33:$D$40,2,FALSE) -> 127.2281541
C155: Yes | D155: SEE982248430859 | E155: BNA0318 | F155: RhönEnergie Fulda GmbH | G155: Kraftwerk Fulda Aggregat 5 | H155: 36043 | I155: Fulda | J155: Frankfurter Straße 4 | K155: Hessen | L155: 2010-01-01 | M155: Mineralölprodukte | N155: Dieselkraftstoff | O155: Oil | P155: Nein | Q155: Verbrennungsmotor | R155: Oil | S155: Oil | T155: 0.3971 | U155: OPSD (2020) | V155: 1.2 | W155: 1.12 | X155: =(1-VLOOKUP(S155,Start!$H$33:$I$40,2,FALSE)/100)*W155 -> 0.952 | Y155: =VLOOKUP(R155,Start!$C$9:$D$15,2,FALSE)+VLOOKUP(R155,Start!$C$23:$D$29,2,FALSE) -> 35.54 | Z155: =(Y155/T155)+Start!$D$19*(VLOOKUP(R155,Start!$M$33:$N$39,2,FALSE)/T155)+VLOOKUP(S155,Start!$C$33:$D$40,2,FALSE) -> 127.2281541
C156: Yes | D156: SEE933236950972 | E156: BNA0331 | F156: Uniper Kraftwerke GmbH | G156: Scholven C | H156: 45896 | I156: Gelsenkirchen | J156: Glückaufstraße 56 | K156: Nordrhein-Westfalen | L156: 1969-01-01 | M156: Steinkohle | N156: Steinkohlen | O156: Coal | P156: Ja | Q156: Kondensationsmaschine mit Entnahme | R156: Coal | S156: Coal | T156: 0.3475 | U156: OPSD (2020) | V156: 370 | W156: 345 | X156: =(1-VLOOKUP(S156,Start!$H$33:$I$40,2,FALSE)/100)*W156 -> 276 | Y156: =VLOOKUP(R156,Start!$C$9:$D$15,2,FALSE)+VLOOKUP(R156,Start!$C$23:$D$29,2,FALSE) -> 15.81 | Z156: =(Y156/T156)+Start!$D$19*(VLOOKUP(R156,Start!$M$33:$N$39,2,FALSE)/T156)+VLOOKUP(S156,Start!$C$33:$D$40,2,FALSE) -> 97.31246043
C157: Yes | D157: SEE952352206145 | E157: BNA0332 | F157: Uniper Kraftwerke GmbH | G157: Scholven B | H157: 45896 | I157: Gelsenkirchen | J157: Glückaufstraße 56 | K157: Nordrhein-Westfalen | L157: 1968-01-01 | M157: Steinkohle | N157: Steinkohlen | O157: Coal | P157: Ja | Q157: Kondensationsmaschine mit Entnahme | R157: Coal | S157: Coal | T157: 0.345 | U157: OPSD (2020) | V157: 370 | W157: 345 | X157: =(1-VLOOKUP(S157,Start!$H$33:$I$40,2,FALSE)/100)*W157 -> 276 | Y157: =VLOOKUP(R157,Start!$C$9:$D$15,2,FALSE)+VLOOKUP(R157,Start!$C$23:$D$29,2,FALSE) -> 15.81 | Z157: =(Y157/T157)+Start!$D$19*(VLOOKUP(R157,Start!$M$33:$N$39,2,FALSE)/T157)+VLOOKUP(S157,Start!$C$33:$D$40,2,FALSE) -> 98.0082029
C158: Yes | D158: SEE989054024678 | E158: BNA0336 | F158: Uniper Kraftwerke GmbH | G158: Scholven FWK | H158: 45896 | I158: Gelsenkirchen | J158: Glückaufstraße 56 | K158: Nordrhein-Westfalen | L158: 1985-01-01 | M158: Steinkohle | N158: Steinkohlen | O158: Coal | P158: Ja | Q158: Gegendruckmaschine mit Entnahme | R158: Coal | S158: Coal | T158: 0.3875 | U158: OPSD (2020) | V158: 70 | W158: 70 | X158: =(1-VLOOKUP(S158,Start!$H$33:$I$40,2,FALSE)/100)*W158 -> 56 | Y158: =VLOOKUP(R158,Start!$C$9:$D$15,2,FALSE)+VLOOKUP(R158,Start!$C$23:$D$29,2,FALSE) -> 15.81 | Z158: =(Y158/T158)+Start!$D$19*(VLOOKUP(R158,Start!$M$33:$N$39,2,FALSE)/T158)+VLOOKUP(S158,Start!$C$33:$D$40,2,FALSE) -> 87.40149677
C159: Yes | D159: SEE973250051972 | E159: BNA0354 | F159: Georg-August-Universität Göttingen | G159: Gasturbine HKW | H159: 37075 | I159: Göttingen | J159: Rudolf-Diesel-Straße 10 | K159: Niedersachsen | L159: 1998-01-01 | M159: Erdgas | N159: Erdgas, Erdölgas | O159: Gas | P159: Ja | Q159: Gasturbinen mit Abhitzekessel | R159: Gas | S159: CCGT | T159: 0.3828 | U159: OPSD (2020) | V159: 19.5 | W159: 18.8 | X159: =(1-VLOOKUP(S159,Start!$H$33:$I$40,2,FALSE)/100)*W159 -> 16.356 | Y159: =VLOOKUP(R159,Start!$C$9:$D$15,2,FALSE)+VLOOKUP(R159,Start!$C$23:$D$29,2,FALSE) -> 54.56 | Z159: =(Y159/T159)+Start!$D$19*(VLOOKUP(R159,Start!$M$33:$N$39,2,FALSE)/T159)+VLOOKUP(S159,Start!$C$33:$D$40,2,FALSE) -> 171.3800679
C160: Yes | D160: SEE915945252462 | E160: BNA0360 | F160: Stadtwerke Greifswald GmbH | G160: HKW Gasturbine 1 | H160: 17489 | I160: Greifswald | J160: An der Jungfernwiese 8 | K160: Mecklenburg-Vorpommern | L160: 1996-01-01 | M160: Erdgas | N160: Erdgas, Erdölgas | O160: Gas | P160: Ja | Q160: Gasturbinen mit Abhitzekessel | R160: Gas | S160: CCGT | T160: 0.3696 | U160: OPSD (2020) | V160: 4.949 | W160: 4.894 | X160: =(1-VLOOKUP(S160,Start!$H$33:$I$40,2,FALSE)/100)*W160 -> 4.25778 | Y160: =VLOOKUP(R160,Start!$C$9:$D$15,2,FALSE)+VLOOKUP(R160,Start!$C$23:$D$29,2,FALSE) -> 54.56 | Z160: =(Y160/T160)+Start!$D$19*(VLOOKUP(R160,Start!$M$33:$N$39,2,FALSE)/T160)+VLOOKUP(S160,Start!$C$33:$D$40,2,FALSE) -> 177.4472132
C161: Yes | D161: SEE964447287038 | E161: BNA0360 | F161: Stadtwerke Greifswald GmbH | G161: HKW Gasturbine 2 | H161: 17489 | I161: Greifswald | J161: An der Jungfernwiese 8 | K161: Mecklenburg-Vorpommern | L161: 1996-01-01 | M161: Erdgas | N161: Erdgas, Erdölgas | O161: Gas | P161: Ja | Q161: Gasturbinen mit Abhitzekessel | R161: Gas | S161: CCGT | T161: 0.3696 | U161: OPSD (2020) | V161: 4.949 | W161: 4.894 | X161: =(1-VLOOKUP(S161,Start!$H$33:$I$40,2,FALSE)/100)*W161 -> 4.25778 | Y161: =VLOOKUP(R161,Start!$C$9:$D$15,2,FALSE)+VLOOKUP(R161,Start!$C$23:$D$29,2,FALSE) -> 54.56 | Z161: =(Y161/T161)+Start!$D$19*(VLOOKUP(R161,Start!$M$33:$N$39,2,FALSE)/T161)+VLOOKUP(S161,Start!$C$33:$D$40,2,FALSE) -> 177.4472132
C162: Yes | D162: SEE976858964187 | E162: BNA0360 | F162: Stadtwerke Greifswald GmbH | G162: HKW Gasturbine 3 | H162: 17489 | I162: Greifswald | J162: An der Jungfernwiese 8 | K162: Mecklenburg-Vorpommern | L162: 1996-01-01 | M162: Erdgas | N162: Erdgas, Erdölgas | O162: Gas | P162: Ja | Q162: Gasturbinen mit Abhitzekessel | R162: Gas | S162: CCGT | T162: 0.3696 | U162: OPSD (2020) | V162: 4.949 | W162: 4.894 | X162: =(1-VLOOKUP(S162,Start!$H$33:$I$40,2,FALSE)/100)*W162 -> 4.25778 | Y162: =VLOOKUP(R162,Start!$C$9:$D$15,2,FALSE)+VLOOKUP(R162,Start!$C$23:$D$29,2,FALSE) -> 54.56 | Z162: =(Y162/T162)+Start!$D$19*(VLOOKUP(R162,Start!$M$33:$N$39,2,FALSE)/T162)+VLOOKUP(S162,Start!$C$33:$D$40,2,FALSE) -> 177.4472132
C163: Yes | D163: SEE975166535577 | E163: BNA0361 | F163: DSM Nutritional Products GmbH | G163: Dampfturbine DT4 | H163: 79639 | I163: Grenzach-Wyhlen | J163: Emil-Barell-Straße 3 | K163: Baden-Württemberg | L163: 1979-01-01 | M163: Erdgas | N163: Erdgas, Erdölgas | O163: Gas | P163: Ja | Q163: Kondensationsmaschine mit Entnahme | R163: Gas | S163: CCGT | T163: 0.4037 | U163: OPSD (2020) | V163: 8.2 | W163: 8 | X163: =(1-VLOOKUP(S163,Start!$H$33:$I$40,2,FALSE)/100)*W163 -> 6.96 | Y163: =VLOOKUP(R163,Start!$C$9:$D$15,2,FALSE)+VLOOKUP(R163,Start!$C$23:$D$29,2,FALSE) -> 54.56 | Z163: =(Y163/T163)+Start!$D$19*(VLOOKUP(R163,Start!$M$33:$N$39,2,FALSE)/T163)+VLOOKUP(S163,Start!$C$33:$D$40,2,FALSE) -> 162.585187
C164: Yes | D164: SEE955111508221 | E164: BNA0361 | F164: DSM Nutritional Products GmbH | G164: Dampfturbine DT5 | H164: 79639 | I164: Grenzach-Wyhlen | J164: Emil-Barell-Straße 3 | K164: Baden-Württemberg | L164: 2018-03-21 | M164: Erdgas | N164: Erdgas, Erdölgas | O164: Gas | P164: Ja | Q164: Gegendruckmaschine mit Entnahme | R164: Gas | S164: CCGT | T164: 0.4037 | U164: OPSD (2020) | V164: 8.65 | W164: 8.426 | X164: =(1-VLOOKUP(S164,Start!$H$33:$I$40,2,FALSE)/100)*W164 -> 7.33062 | Y164: =VLOOKUP(R164,Start!$C$9:$D$15,2,FALSE)+VLOOKUP(R164,Start!$C$23:$D$29,2,FALSE) -> 54.56 | Z164: =(Y164/T164)+Start!$D$19*(VLOOKUP(R164,Start!$M$33:$N$39,2,FALSE)/T164)+VLOOKUP(S164,Start!$C$33:$D$40,2,FALSE) -> 162.585187
C165: Yes | D165: SEE934531299087 | E165: BNA0361 | F165: DSM Nutritional Products GmbH | G165: Gasturbine GT | H165: 79639 | I165: Grenzach-Wyhlen | J165: Emil-Barell-Straße 3 | K165: Baden-Württemberg | L165: 2017-11-07 | M165: Erdgas | N165: Erdgas, Erdölgas | O165: Gas | P165: Ja | Q165: Gasturbinen mit Abhitzekessel | R165: Gas | S165: CCGT | T165: 0.4037 | U165: OPSD (2020) | V165: 22.2 | W165: 22 | X165: =(1-VLOOKUP(S165,Start!$H$33:$I$40,2,FALSE)/100)*W165 -> 19.14 | Y165: =VLOOKUP(R165,Start!$C$9:$D$15,2,FALSE)+VLOOKUP(R165,Start!$C$23:$D$29,2,FALSE) -> 54.56 | Z165: =(Y165/T165)+Start!$D$19*(VLOOKUP(R165,Start!$M$33:$N$39,2,FALSE)/T165)+VLOOKUP(S165,Start!$C$33:$D$40,2,FALSE) -> 162.585187
C166: Yes | D166: SEE926900618322 | E166: BNA0369 | F166: envia THERM GmbH | G166: Sermuth BHKW 1 | H166: 4680 | I166: Colditz | J166: Am Umspannwerk 2 | K166: Sachsen | L166: 1995-10-01 | M166: Mineralölprodukte | N166: Heizöl, leicht | O166: Oil | P166: Nein | Q166: Verbrennungsmotor | R166: Oil | S166: Oil | T166: 0.3795 | U166: OPSD (2020) | V166: 7.2 | W166: 5.7 | X166: =(1-VLOOKUP(S166,Start!$H$33:$I$40,2,FALSE)/100)*W166 -> 4.845 | Y166: =VLOOKUP(R166,Start!$C$9:$D$15,2,FALSE)+VLOOKUP(R166,Start!$C$23:$D$29,2,FALSE) -> 35.54 | Z166: =(Y166/T166)+Start!$D$19*(VLOOKUP(R166,Start!$M$33:$N$39,2,FALSE)/T166)+VLOOKUP(S166,Start!$C$33:$D$40,2,FALSE) -> 133.0822134
C167: Yes | D167: SEE929776487108 | E167: BNA0369 | F167: envia THERM GmbH | G167: Sermuth BHKW 2 | H167: 4680 | I167: Colditz | J167: Am Umspannwerk 2 | K167: Sachsen | L167: 1995-10-01 | M167: Mineralölprodukte | N167: Heizöl, leicht | O167: Oil | P167: Nein | Q167: Verbrennungsmotor | R167: Oil | S167: Oil | T167: 0.3795 | U167: OPSD (2020) | V167: 7.2 | W167: 5.7 | X167: =(1-VLOOKUP(S167,Start!$H$33:$I$40,2,FALSE)/100)*W167 -> 4.845 | Y167: =VLOOKUP(R167,Start!$C$9:$D$15,2,FALSE)+VLOOKUP(R167,Start!$C$23:$D$29,2,FALSE) -> 35.54 | Z167: =(Y167/T167)+Start!$D$19*(VLOOKUP(R167,Start!$M$33:$N$39,2,FALSE)/T167)+VLOOKUP(S167,Start!$C$33:$D$40,2,FALSE) -> 133.0822134
C168: Yes | D168: SEE907222955227 | E168: BNA0369 | F168: envia THERM GmbH | G168: Sermuth BHKW 3 | H168: 4680 | I168: Colditz | J168: Am Umspannwerk 2 | K168: Sachsen | L168: 1995-10-01 | M168: Mineralölprodukte | N168: Heizöl, leicht | O168: Oil | P168: Nein | Q168: Verbrennungsmotor | R168: Oil | S168: Oil | T168: 0.3795 | U168: OPSD (2020) | V168: 7.2 | W168: 5.7 | X168: =(1-VLOOKUP(S168,Start!$H$33:$I$40,2,FALSE)/100)*W168 -> 4.845 | Y168: =VLOOKUP(R168,Start!$C$9:$D$15,2,FALSE)+VLOOKUP(R168,Start!$C$23:$D$29,2,FALSE) -> 35.54 | Z168: =(Y168/T168)+Start!$D$19*(VLOOKUP(R168,Start!$M$33:$N$39,2,FALSE)/T168)+VLOOKUP(S168,Start!$C$33:$D$40,2,FALSE) -> 133.0822134
C169: Yes | D169: SEE966844914388 | E169: BNA0373 | F169: envia THERM GmbH | G169: Großkayna GT1 | H169: 6242 | I169: Großkayna | J169: Werkstraße 1 | K169: Sachsen-Anhalt | L169: 1994-01-17 | M169: Mineralölprodukte | N169: Heizöl, leicht | O169: Oil | P169: Nein | Q169: Gasturbinen ohne Abhitzekessel | R169: Oil | S169: Oil | T169: 0.3644 | U169: OPSD (2020) | V169: 45.625 | W169: 45.625 | X169: =(1-VLOOKUP(S169,Start!$H$33:$I$40,2,FALSE)/100)*W169 -> 38.78125 | Y169: =VLOOKUP(R169,Start!$C$9:$D$15,2,FALSE)+VLOOKUP(R169,Start!$C$23:$D$29,2,FALSE) -> 35.54 | Z169: =(Y169/T169)+Start!$D$19*(VLOOKUP(R169,Start!$M$33:$N$39,2,FALSE)/T169)+VLOOKUP(S169,Start!$C$33:$D$40,2,FALSE) -> 138.5554336
C170: Yes | D170: SEE941844408532 | E170: BNA0373 | F170: envia THERM GmbH | G170: Großkayna GT2 | H170: 6242 | I170: Großkayna | J170: Werkstraße 1 | K170: Sachsen-Anhalt | L170: 1994-01-17 | M170: Mineralölprodukte | N170: Heizöl, leicht | O170: Oil | P170: Nein | Q170: Gasturbinen ohne Abhitzekessel | R170: Oil | S170: Oil | T170: 0.3644 | U170: OPSD (2020) | V170: 45.625 | W170: 45.625 | X170: =(1-VLOOKUP(S170,Start!$H$33:$I$40,2,FALSE)/100)*W170 -> 38.78125 | Y170: =VLOOKUP(R170,Start!$C$9:$D$15,2,FALSE)+VLOOKUP(R170,Start!$C$23:$D$29,2,FALSE) -> 35.54 | Z170: =(Y170/T170)+Start!$D$19*(VLOOKUP(R170,Start!$M$33:$N$39,2,FALSE)/T170)+VLOOKUP(S170,Start!$C$33:$D$40,2,FALSE) -> 138.5554336
C171: Yes | D171: SEE905270326723 | E171: BNA0373 | F171: envia THERM GmbH | G171: Großkayna GT3 | H171: 6242 | I171: Großkayna | J171: Werkstraße 1 | K171: Sachsen-Anhalt | L171: 1994-01-17 | M171: Mineralölprodukte | N171: Heizöl, leicht | O171: Oil | P171: Nein | Q171: Gasturbinen ohne Abhitzekessel | R171: Oil | S171: Oil | T171: 0.3644 | U171: OPSD (2020) | V171: 45.625 | W171: 45.625 | X171: =(1-VLOOKUP(S171,Start!$H$33:$I$40,2,FALSE)/100)*W171 -> 38.78125 | Y171: =VLOOKUP(R171,Start!$C$9:$D$15,2,FALSE)+VLOOKUP(R171,Start!$C$23:$D$29,2,FALSE) -> 35.54 | Z171: =(Y171/T171)+Start!$D$19*(VLOOKUP(R171,Start!$M$33:$N$39,2,FALSE)/T171)+VLOOKUP(S171,Start!$C$33:$D$40,2,FALSE) -> 138.5554336
C172: Yes | D172: SEE929161243203 | E172: BNA0377 | F172: Uniper Kraftwerke GmbH | G172: Staudinger 5 | H172: 63538 | I172: Großkrotzenburg | J172: Hanauer Landstraße 150 | K172: Hessen | L172: 1992-01-01 | M172: Steinkohle | N172: Steinkohlen | O172: Coal | P172: Ja | Q172: Kondensationsmaschine mit Entnahme | R172: Coal | S172: Coal | T172: 0.405 | U172: OPSD (2020) | V172: 550 | W172: 510 | X172: =(1-VLOOKUP(S172,Start!$H$33:$I$40,2,FALSE)/100)*W172 -> 408 | Y172: =VLOOKUP(R172,Start!$C$9:$D$15,2,FALSE)+VLOOKUP(R172,Start!$C$23:$D$29,2,FALSE) -> 15.81 | Z172: =(Y172/T172)+Start!$D$19*(VLOOKUP(R172,Start!$M$33:$N$39,2,FALSE)/T172)+VLOOKUP(S172,Start!$C$33:$D$40,2,FALSE) -> 83.68106173
C173: Yes | D173: SEE928761575349 | E173: BNA0380 | F173: EEW Großräschen GmbH | G173: EEW Großräschen GmbH | H173: 1983 | I173: Großräschen | J173: Bergmannstraße 900 r | K173: Brandenburg | L173: 2008-01-16 | M173: nicht biogener Abfall | N173: nicht biogener Abfall (Hausmüll, Siedlungsabfälle) | O173: Waste | P173: Ja | Q173: Kondensationsmaschine mit Entnahme | R173: Waste | S173: Waste | T173: 0.33 | U173: OPSD (2020) | V173: 25 | W173: 25 | X173: =(1-VLOOKUP(S173,Start!$H$33:$I$40,2,FALSE)/100)*W173 -> 21.25 | Y173: =VLOOKUP(R173,Start!$C$9:$D$15,2,FALSE)+VLOOKUP(R173,Start!$C$23:$D$29,2,FALSE) -> 0 | Z173: =(Y173/T173)+Start!$D$19*(VLOOKUP(R173,Start!$M$33:$N$39,2,FALSE)/T173)+VLOOKUP(S173,Start!$C$33:$D$40,2,FALSE) -> 1
C174: Yes | D174: SEE927528071629 | E174: BNA0382 | F174: Kernkraftwerk Gundremmingen GmbH | G174: Gundremmingen C | H174: 89355 | I174: Gundremmingen | J174: Dr.-August-Weckesser-Straße 1 | K174: Bayern | L174: 1984-11-02 | M174: Kernenergie | O174: Nuclear | P174: Nein | R174: Nuclear | S174: Nuclear | T174: 0.35 | U174: OPSD (2020) | V174: 1344 | W174: 1288 | X174: =(1-VLOOKUP(S174,Start!$H$33:$I$40,2,FALSE)/100)*W174 -> 1197.84 | Y174: =VLOOKUP(R174,Start!$C$9:$D$15,2,FALSE)+VLOOKUP(R174,Start!$C$23:$D$29,2,FALSE) -> 5.5 | Z174: =(Y174/T174)+Start!$D$19*(VLOOKUP(R174,Start!$M$33:$N$39,2,FALSE)/T174)+VLOOKUP(S174,Start!$C$33:$D$40,2,FALSE) -> 16.91428571
C175: Yes | D175: SEE966835021620 | E175: BNA0386 | F175: Mohn Media Mohndruck GmbH | G175: GM 1 | H175: 33332 | I175: Gütersloh | K175: Nordrhein-Westfalen | L175: 2017-11-24 | M175: Erdgas | N175: Erdgas, Erdölgas | O175: Gas | P175: Ja | Q175: Verbrennungsmotor | R175: Gas | S175: CCGT | T175: 0.3784 | U175: OPSD (2020) | V175: 1.56 | W175: 1.532 | X175: =(1-VLOOKUP(S175,Start!$H$33:$I$40,2,FALSE)/100)*W175 -> 1.33284 | Y175: =VLOOKUP(R175,Start!$C$9:$D$15,2,FALSE)+VLOOKUP(R175,Start!$C$23:$D$29,2,FALSE) -> 54.56 | Z175: =(Y175/T175)+Start!$D$19*(VLOOKUP(R175,Start!$M$33:$N$39,2,FALSE)/T175)+VLOOKUP(S175,Start!$C$33:$D$40,2,FALSE) -> 173.3554175
C176: Yes | D176: SEE985288285472 | E176: BNA0386 | F176: Mohn Media Mohndruck GmbH | G176: GM 2 | H176: 33332 | I176: Gütersloh | K176: Nordrhein-Westfalen | L176: 2017-11-24 | M176: Erdgas | N176: Erdgas, Erdölgas | O176: Gas | P176: Ja | Q176: Verbrennungsmotor | R176: Gas | S176: CCGT | T176: 0.3784 | U176: OPSD (2020) | V176: 1.56 | W176: 1.532 | X176: =(1-VLOOKUP(S176,Start!$H$33:$I$40,2,FALSE)/100)*W176 -> 1.33284 | Y176: =VLOOKUP(R176,Start!$C$9:$D$15,2,FALSE)+VLOOKUP(R176,Start!$C$23:$D$29,2,FALSE) -> 54.56 | Z176: =(Y176/T176)+Start!$D$19*(VLOOKUP(R176,Start!$M$33:$N$39,2,FALSE)/T176)+VLOOKUP(S176,Start!$C$33:$D$40,2,FALSE) -> 173.3554175
C177: Yes | D177: SEE908154984538 | E177: BNA0386 | F177: Mohn Media Mohndruck GmbH | G177: GT 1 | H177: 33332 | I177: Gütersloh | J177: Carl-Bertelsmann-Straße 161 | K177: Nordrhein-Westfalen | L177: 1994-03-28 | M177: Erdgas | N177: Erdgas, Erdölgas | O177: Gas | P177: Ja | Q177: Gasturbinen mit nachgeschalteter Dampfturbine | R177: Gas | S177: CCGT | T177: 0.3784 | U177: OPSD (2020) | V177: 5.25 | W177: 5.167 | X177: =(1-VLOOKUP(S177,Start!$H$33:$I$40,2,FALSE)/100)*W177 -> 4.49529 | Y177: =VLOOKUP(R177,Start!$C$9:$D$15,2,FALSE)+VLOOKUP(R177,Start!$C$23:$D$29,2,FALSE) -> 54.56 | Z177: =(Y177/T177)+Start!$D$19*(VLOOKUP(R177,Start!$M$33:$N$39,2,FALSE)/T177)+VLOOKUP(S177,Start!$C$33:$D$40,2,FALSE) -> 173.3554175
C178: Yes | D178: SEE960916622249 | E178: BNA0386 | F178: Mohn Media Mohndruck GmbH | G178: GT 2 | H178: 33332 | I178: Gütersloh | J178: Carl-Bertelsmann-Straße 161 | K178: Nordrhein-Westfalen | L178: 1994-03-28 | M178: Erdgas | N178: Erdgas, Erdölgas | O178: Gas | P178: Ja | Q178: Gasturbinen mit nachgeschalteter Dampfturbine | R178: Gas | S178: CCGT | T178: 0.3784 | U178: OPSD (2020) | V178: 5.25 | W178: 5.167 | X178: =(1-VLOOKUP(S178,Start!$H$33:$I$40,2,FALSE)/100)*W178 -> 4.49529 | Y178: =VLOOKUP(R178,Start!$C$9:$D$15,2,FALSE)+VLOOKUP(R178,Start!$C$23:$D$29,2,FALSE) -> 54.56 | Z178: =(Y178/T178)+Start!$D$19*(VLOOKUP(R178,Start!$M$33:$N$39,2,FALSE)/T178)+VLOOKUP(S178,Start!$C$33:$D$40,2,FALSE) -> 173.3554175
C179: Yes | D179: SEE968058469012 | E179: BNA0386 | F179: Mohn Media Mohndruck GmbH | G179: GT 3 | H179: 33332 | I179: Gütersloh | J179: Carl-Bertelsmann-Straße 161 | K179: Nordrhein-Westfalen | L179: 1994-03-28 | M179: Erdgas | N179: Erdgas, Erdölgas | O179: Gas | P179: Ja | Q179: Gasturbinen mit nachgeschalteter Dampfturbine | R179: Gas | S179: CCGT | T179: 0.3784 | U179: OPSD (2020) | V179: 5.25 | W179: 5.167 | X179: =(1-VLOOKUP(S179,Start!$H$33:$I$40,2,FALSE)/100)*W179 -> 4.49529 | Y179: =VLOOKUP(R179,Start!$C$9:$D$15,2,FALSE)+VLOOKUP(R179,Start!$C$23:$D$29,2,FALSE) -> 54.56 | Z179: =(Y179/T179)+Start!$D$19*(VLOOKUP(R179,Start!$M$33:$N$39,2,FALSE)/T179)+VLOOKUP(S179,Start!$C$33:$D$40,2,FALSE) -> 173.3554175
C180: Yes | D180: SEE901925227438 | E180: BNA0386 | F180: Mohn Media Mohndruck GmbH | G180: DT | H180: 33332 | I180: Gütersloh | J180: Carl-Bertelsmann-Straße 161 | K180: Nordrhein-Westfalen | L180: 1994-03-28 | M180: Wärme | O180: Gas | P180: Ja | Q180: Gegendruckmaschine ohne Entnahme | R180: Gas | S180: CCGT | T180: 0.3784 | U180: OPSD (2020) | V180: 6.46 | W180: 6.358 | X180: =(1-VLOOKUP(S180,Start!$H$33:$I$40,2,FALSE)/100)*W180 -> 5.53146 | Y180: =VLOOKUP(R180,Start!$C$9:$D$15,2,FALSE)+VLOOKUP(R180,Start!$C$23:$D$29,2,FALSE) -> 54.56 | Z180: =(Y180/T180)+Start!$D$19*(VLOOKUP(R180,Start!$M$33:$N$39,2,FALSE)/T180)+VLOOKUP(S180,Start!$C$33:$D$40,2,FALSE) -> 173.3554175
C181: Yes | D181: SEE914438115895 | E181: BNA0392a | F181: EVH GmbH | G181: Heizkraftwerk Dieselstraße Block A | H181: 6130 | I181: Halle | J181: Dieselstraße 141 | K181: Sachsen-Anhalt | L181: 2020-04-01 | M181: Erdgas | N181: Erdgas, Erdölgas | O181: Gas | P181: Ja | Q181: Gasturbinen mit nachgeschalteter Dampfturbine | R181: Gas | S181: CCGT | T181: 0.3905 | U181: OPSD (2020) | V181: 57.646 | W181: 56.845 | X181: =(1-VLOOKUP(S181,Start!$H$33:$I$40,2,FALSE)/100)*W181 -> 49.45515 | Y181: =VLOOKUP(R181,Start!$C$9:$D$15,2,FALSE)+VLOOKUP(R181,Start!$C$23:$D$29,2,FALSE) -> 54.56 | Z181: =(Y181/T181)+Start!$D$19*(VLOOKUP(R181,Start!$M$33:$N$39,2,FALSE)/T181)+VLOOKUP(S181,Start!$C$33:$D$40,2,FALSE) -> 168.0303201
C182: Yes | D182: SEE946568262484 | E182: BNA0392a | F182: EVH GmbH | G182: Heizkraftwerk Dieselstraße Block B | H182: 6130 | I182: Halle | J182: Dieselstraße 141 | K182: Sachsen-Anhalt | L182: 2020-12-01 | M182: Erdgas | N182: Erdgas, Erdölgas | O182: Gas | P182: Ja | Q182: Gasturbinen mit nachgeschalteter Dampfturbine | R182: Gas | S182: CCGT | T182: 0.3905 | U182: OPSD (2020) | V182: 57.95 | W182: 57.144 | X182: =(1-VLOOKUP(S182,Start!$H$33:$I$40,2,FALSE)/100)*W182 -> 49.71528 | Y182: =VLOOKUP(R182,Start!$C$9:$D$15,2,FALSE)+VLOOKUP(R182,Start!$C$23:$D$29,2,FALSE) -> 54.56 | Z182: =(Y182/T182)+Start!$D$19*(VLOOKUP(R182,Start!$M$33:$N$39,2,FALSE)/T182)+VLOOKUP(S182,Start!$C$33:$D$40,2,FALSE) -> 168.0303201
C183: Yes | D183: SEE965768299069 | E183: BNA0392b | F183: Heizkraftwerk Halle-Trotha GmbH | G183: Heizkraftwerk Halle-Trotha | H183: 6118 | I183: Halle | J183: Brachwitzer Straße 23 | K183: Sachsen-Anhalt | L183: 1994-04-01 | M183: Erdgas | N183: Erdgas, Erdölgas | O183: Gas | P183: Ja | Q183: Gasturbinen mit nachgeschalteter Dampfturbine | R183: Gas | S183: CCGT | T183: 0.525 | U183: OPSD (2020) | V183: 65 | W183: 60.125 | X183: =(1-VLOOKUP(S183,Start!$H$33:$I$40,2,FALSE)/100)*W183 -> 52.30875 | Y183: =VLOOKUP(R183,Start!$C$9:$D$15,2,FALSE)+VLOOKUP(R183,Start!$C$23:$D$29,2,FALSE) -> 54.56 | Z183: =(Y183/T183)+Start!$D$19*(VLOOKUP(R183,Start!$M$33:$N$39,2,FALSE)/T183)+VLOOKUP(S183,Start!$C$33:$D$40,2,FALSE) -> 125.3668381
C184: Yes | D184: SEE912994271871 | E184: BNA0395 | F184: thyssenkrupp Steel Europe AG | G184: Hamborn 3 | H184: 47166 | I184: Duisburg | J184: Kaiser-Wilhelm-Str. 100 | K184: Nordrhein-Westfalen | L184: 1958-01-01 | M184: andere Gase | N184: Hochofengas, Konvertergas | O184: Other (nicht erneuerbar) | P184: Ja | Q184: Kondensationsmaschine mit Entnahme | R184: Gas | S184: CCGT | T184: 0.33 | U184: Assumption based on DIW (2014) | V184: 64 | W184: 59.6 | X184: =(1-VLOOKUP(S184,Start!$H$33:$I$40,2,FALSE)/100)*W184 -> 51.852 | Y184: =VLOOKUP(R184,Start!$C$9:$D$15,2,FALSE)+VLOOKUP(R184,Start!$C$23:$D$29,2,FALSE) -> 54.56 | Z184: =(Y184/T184)+Start!$D$19*(VLOOKUP(R184,Start!$M$33:$N$39,2,FALSE)/T184)+VLOOKUP(S184,Start!$C$33:$D$40,2,FALSE) -> 198.5608788
C185: Yes | D185: SEE916877868585 | E185: BNA0396 | F185: thyssenkrupp Steel Europe AG | G185: Hamborn 4 | H185: 47166 | I185: Duisburg | J185: Kaiser-Wilhelm-Str. 100 | K185: Nordrhein-Westfalen | L185: 1976-01-01 | M185: andere Gase | N185: Hochofengas, Konvertergas | O185: Other (nicht erneuerbar) | P185: Ja | Q185: Kondensationsmaschine mit Entnahme | R185: Gas | S185: CCGT | T185: 0.352 | U185: Assumption based on DIW (2014) | V185: 108 | W185: 101.3 | X185: =(1-VLOOKUP(S185,Start!$H$33:$I$40,2,FALSE)/100)*W185 -> 88.131 | Y185: =VLOOKUP(R185,Start!$C$9:$D$15,2,FALSE)+VLOOKUP(R185,Start!$C$23:$D$29,2,FALSE) -> 54.56 | Z185: =(Y185/T185)+Start!$D$19*(VLOOKUP(R185,Start!$M$33:$N$39,2,FALSE)/T185)+VLOOKUP(S185,Start!$C$33:$D$40,2,FALSE) -> 186.2445739
C186: Yes | D186: SEE915966254872 | E186: BNA0397 | F186: thyssenkrupp Steel Europe AG | G186: Hamborn 5 | H186: 47166 | I186: Duisburg | J186: Kaiser-Wilhelm-Str. 100 | K186: Nordrhein-Westfalen | L186: 2003-01-01 | M186: andere Gase | N186: Hochofengas, Konvertergas | O186: Other (nicht erneuerbar) | P186: Ja | Q186: Kondensationsmaschine mit Entnahme | R186: Gas | S186: CCGT | T186: 0.396 | U186: Assumption based on DIW (2014) | V186: 241 | W186: 225 | X186: =(1-VLOOKUP(S186,Start!$H$33:$I$40,2,FALSE)/100)*W186 -> 195.75 | Y186: =VLOOKUP(R186,Start!$C$9:$D$15,2,FALSE)+VLOOKUP(R186,Start!$C$23:$D$29,2,FALSE) -> 54.56 | Z186: =(Y186/T186)+Start!$D$19*(VLOOKUP(R186,Start!$M$33:$N$39,2,FALSE)/T186)+VLOOKUP(S186,Start!$C$33:$D$40,2,FALSE) -> 165.717399
C187: Yes | D187: SEE977898966292 | E187: BNA0398 | F187: MVR Müllverwertung Rugenberger Damm GmbH & Co. KG | G187: MVR Rugenberger Damm Müll | H187: 21129 | I187: Hamburg | J187: Rugenberger Damm 1 | K187: Hamburg | L187: 1999-02-16 | M187: nicht biogener Abfall | N187: nicht biogener Abfall (Hausmüll, Siedlungsabfälle) | O187: Waste | P187: Ja | Q187: Kondensationsmaschine mit Entnahme | R187: Waste | S187: Waste | T187: 0.33 | U187: OPSD (2020) | V187: 28.875 | W187: 23.875 | X187: =(1-VLOOKUP(S187,Start!$H$33:$I$40,2,FALSE)/100)*W187 -> 20.29375 | Y187: =VLOOKUP(R187,Start!$C$9:$D$15,2,FALSE)+VLOOKUP(R187,Start!$C$23:$D$29,2,FALSE) -> 0 | Z187: =(Y187/T187)+Start!$D$19*(VLOOKUP(R187,Start!$M$33:$N$39,2,FALSE)/T187)+VLOOKUP(S187,Start!$C$33:$D$40,2,FALSE) -> 1
C188: Yes | D188: SEE913896693631 | E188: BNA0400 | F188: Wärme Hamburg GmbH | G188: GuD Tiefstack | H188: 22113 | I188: Hamburg | J188: Andreas-Meyer-Straße 8 | K188: Hamburg | L188: 2009-05-01 | M188: Erdgas | N188: Erdgas, Erdölgas | O188: Gas | P188: Ja | Q188: Gasturbinen mit nachgeschalteter Dampfturbine | R188: Gas | S188: CCGT | T188: 0.5805 | U188: OPSD (2020) | V188: 129.4 | W188: 127 | X188: =(1-VLOOKUP(S188,Start!$H$33:$I$40,2,FALSE)/100)*W188 -> 110.49 | Y188: =VLOOKUP(R188,Start!$C$9:$D$15,2,FALSE)+VLOOKUP(R188,Start!$C$23:$D$29,2,FALSE) -> 54.56 | Z188: =(Y188/T188)+Start!$D$19*(VLOOKUP(R188,Start!$M$33:$N$39,2,FALSE)/T188)+VLOOKUP(S188,Start!$C$33:$D$40,2,FALSE) -> 113.5242722
C189: Yes | D189: SEE972598164399 | E189: BNA0401 | F189: ADM Hamburg Aktiengesellschaft | G189: Dampfturbine | H189: 21107 | I189: Hamburg | J189: Nippoldstraße 117 | K189: Hamburg | L189: 2009-04-02 | M189: Erdgas | N189: Erdgas, Erdölgas | O189: Gas | P189: Ja | Q189: Gegendruckmaschine ohne Entnahme | R189: Gas | S189: CCGT | T189: 0.3773 | U189: OPSD (2020) | V189: 2.06 | W189: 2.06 | X189: =(1-VLOOKUP(S189,Start!$H$33:$I$40,2,FALSE)/100)*W189 -> 1.7922 | Y189: =VLOOKUP(R189,Start!$C$9:$D$15,2,FALSE)+VLOOKUP(R189,Start!$C$23:$D$29,2,FALSE) -> 54.56 | Z189: =(Y189/T189)+Start!$D$19*(VLOOKUP(R189,Start!$M$33:$N$39,2,FALSE)/T189)+VLOOKUP(S189,Start!$C$33:$D$40,2,FALSE) -> 173.8564538
C190: Yes | D190: SEE906231810480 | E190: BNA0401 | F190: ADM Hamburg Aktiengesellschaft | G190: GT1 | H190: 21107 | I190: Hamburg | J190: Nippoldstraße 117 | K190: Hamburg | L190: 2013-11-25 | M190: Erdgas | N190: Erdgas, Erdölgas | O190: Gas | P190: Ja | Q190: Gasturbinen mit Abhitzekessel | R190: Gas | S190: CCGT | T190: 0.3773 | U190: OPSD (2020) | V190: 5.688 | W190: 5.688 | X190: =(1-VLOOKUP(S190,Start!$H$33:$I$40,2,FALSE)/100)*W190 -> 4.94856 | Y190: =VLOOKUP(R190,Start!$C$9:$D$15,2,FALSE)+VLOOKUP(R190,Start!$C$23:$D$29,2,FALSE) -> 54.56 | Z190: =(Y190/T190)+Start!$D$19*(VLOOKUP(R190,Start!$M$33:$N$39,2,FALSE)/T190)+VLOOKUP(S190,Start!$C$33:$D$40,2,FALSE) -> 173.8564538
C191: Yes | D191: SEE991299080678 | E191: BNA0401 | F191: ADM Hamburg Aktiengesellschaft | G191: GT2 | H191: 21107 | I191: Hamburg | J191: Nippoldstraße 117 | K191: Hamburg | L191: 2013-07-10 | M191: Erdgas | N191: Erdgas, Erdölgas | O191: Gas | P191: Ja | Q191: Gasturbinen mit Abhitzekessel | R191: Gas | S191: CCGT | T191: 0.3773 | U191: OPSD (2020) | V191: 5.688 | W191: 5.688 | X191: =(1-VLOOKUP(S191,Start!$H$33:$I$40,2,FALSE)/100)*W191 -> 4.94856 | Y191: =VLOOKUP(R191,Start!$C$9:$D$15,2,FALSE)+VLOOKUP(R191,Start!$C$23:$D$29,2,FALSE) -> 54.56 | Z191: =(Y191/T191)+Start!$D$19*(VLOOKUP(R191,Start!$M$33:$N$39,2,FALSE)/T191)+VLOOKUP(S191,Start!$C$33:$D$40,2,FALSE) -> 173.8564538
C192: Yes | D192: SEE954367504490 | E192: BNA0401 | F192: ADM Hamburg Aktiengesellschaft | G192: GT3 | H192: 21107 | I192: Hamburg | J192: Nippoldstraße 117 | K192: Hamburg | L192: 2008-10-15 | M192: Erdgas | N192: Erdgas, Erdölgas | O192: Gas | P192: Ja | Q192: Gasturbinen mit Abhitzekessel | R192: Gas | S192: CCGT | T192: 0.3773 | U192: OPSD (2020) | V192: 5.22 | W192: 5.22 | X192: =(1-VLOOKUP(S192,Start!$H$33:$I$40,2,FALSE)/100)*W192 -> 4.5414 | Y192: =VLOOKUP(R192,Start!$C$9:$D$15,2,FALSE)+VLOOKUP(R192,Start!$C$23:$D$29,2,FALSE) -> 54.56 | Z192: =(Y192/T192)+Start!$D$19*(VLOOKUP(R192,Start!$M$33:$N$39,2,FALSE)/T192)+VLOOKUP(S192,Start!$C$33:$D$40,2,FALSE) -> 173.8564538
C193: Yes | D193: SEE975217906967 | E193: BNA0401 | F193: ADM Hamburg Aktiengesellschaft | G193: GT4 | H193: 21107 | I193: Hamburg | J193: Nippoldstraße 117 | K193: Hamburg | L193: 2013-02-05 | M193: Erdgas | N193: Erdgas, Erdölgas | O193: Gas | P193: Ja | Q193: Gasturbinen mit Abhitzekessel | R193: Gas | S193: CCGT | T193: 0.3773 | U193: OPSD (2020) | V193: 5.688 | W193: 5.688 | X193: =(1-VLOOKUP(S193,Start!$H$33:$I$40,2,FALSE)/100)*W193 -> 4.94856 | Y193: =VLOOKUP(R193,Start!$C$9:$D$15,2,FALSE)+VLOOKUP(R193,Start!$C$23:$D$29,2,FALSE) -> 54.56 | Z193: =(Y193/T193)+Start!$D$19*(VLOOKUP(R193,Start!$M$33:$N$39,2,FALSE)/T193)+VLOOKUP(S193,Start!$C$33:$D$40,2,FALSE) -> 173.8564538
C194: Yes | D194: SEE987197130805 | E194: BNA0402 | F194: Wärme Hamburg GmbH | G194: HKW Tiefstack | H194: 22113 | I194: Hamburg | J194: Andreas-Meyer-Straße 8 | K194: Hamburg | L194: 1993-04-01 | M194: Steinkohle | N194: Steinkohlen | O194: Coal | P194: Ja | Q194: Kondensationsmaschine mit Entnahme | R194: Coal | S194: Coal | T194: 0.4075 | U194: OPSD (2020) | V194: 210 | W194: 194 | X194: =(1-VLOOKUP(S194,Start!$H$33:$I$40,2,FALSE)/100)*W194 -> 155.2 | Y194: =VLOOKUP(R194,Start!$C$9:$D$15,2,FALSE)+VLOOKUP(R194,Start!$C$23:$D$29,2,FALSE) -> 15.81 | Z194: =(Y194/T194)+Start!$D$19*(VLOOKUP(R194,Start!$M$33:$N$39,2,FALSE)/T194)+VLOOKUP(S194,Start!$C$33:$D$40,2,FALSE) -> 83.17565644
C195: Yes | D195: SEE934530018092 | E195: BNA0403 | F195: Wärme Hamburg GmbH | G195: HKW Wedel Block 2 | H195: 22880 | I195: Wedel | J195: Tinsdaler Weg 146 | K195: Schleswig-Holstein | L195: 1993-11-25 | M195: Steinkohle | N195: Steinkohlen | O195: Coal | P195: Ja | Q195: Kondensationsmaschine mit Entnahme | R195: Coal | S195: Coal | T195: 0.36 | U195: OPSD (2020) | V195: 133.6 | W195: 116 | X195: =(1-VLOOKUP(S195,Start!$H$33:$I$40,2,FALSE)/100)*W195 -> 92.8 | Y195: =VLOOKUP(R195,Start!$C$9:$D$15,2,FALSE)+VLOOKUP(R195,Start!$C$23:$D$29,2,FALSE) -> 15.81 | Z195: =(Y195/T195)+Start!$D$19*(VLOOKUP(R195,Start!$M$33:$N$39,2,FALSE)/T195)+VLOOKUP(S195,Start!$C$33:$D$40,2,FALSE) -> 93.97869444
C196: Yes | D196: SEE960100973492 | E196: BNA0404 | F196: Wärme Hamburg GmbH | G196: HKW Wedel Block 1 | H196: 22880 | I196: Wedel | J196: Tinsdaler Weg 146 | K196: Schleswig-Holstein | L196: 1993-11-25 | M196: Steinkohle | N196: Steinkohlen | O196: Coal | P196: Ja | Q196: Kondensationsmaschine mit Entnahme | R196: Coal | S196: Coal | T196: 0.36 | U196: OPSD (2020) | V196: 152.8 | W196: 137 | X196: =(1-VLOOKUP(S196,Start!$H$33:$I$40,2,FALSE)/100)*W196 -> 109.6 | Y196: =VLOOKUP(R196,Start!$C$9:$D$15,2,FALSE)+VLOOKUP(R196,Start!$C$23:$D$29,2,FALSE) -> 15.81 | Z196: =(Y196/T196)+Start!$D$19*(VLOOKUP(R196,Start!$M$33:$N$39,2,FALSE)/T196)+VLOOKUP(S196,Start!$C$33:$D$40,2,FALSE) -> 93.97869444
C197: Yes | D197: SEE987970110314 | E197: BNA0410 | F197: Trianel Gaskraftwerk Hamm | G197: Trianel Gaskraftwerk Hamm Block 10 | H197: 59071 | I197: Hamm | J197: Trianelstraße 1 | K197: Nordrhein-Westfalen | L197: 2007-11-23 | M197: Erdgas | N197: Erdgas, Erdölgas | O197: Gas | P197: Nein | Q197: Gasturbinen mit nachgeschalteter Dampfturbine | R197: Gas | S197: CCGT | T197: 0.577 | U197: OPSD (2020) | V197: 415 | W197: 407 | X197: =(1-VLOOKUP(S197,Start!$H$33:$I$40,2,FALSE)/100)*W197 -> 354.09 | Y197: =VLOOKUP(R197,Start!$C$9:$D$15,2,FALSE)+VLOOKUP(R197,Start!$C$23:$D$29,2,FALSE) -> 54.56 | Z197: =(Y197/T197)+Start!$D$19*(VLOOKUP(R197,Start!$M$33:$N$39,2,FALSE)/T197)+VLOOKUP(S197,Start!$C$33:$D$40,2,FALSE) -> 114.2037955
C198: Yes | D198: SEE900628853036 | E198: BNA0411 | F198: Trianel Gaskraftwerk Hamm | G198: Trianel Gaskraftwerk Hamm Block 20 | H198: 59071 | I198: Hamm | J198: Trianelstraße 1 | K198: Nordrhein-Westfalen | L198: 2007-12-23 | M198: Erdgas | N198: Erdgas, Erdölgas | O198: Gas | P198: Nein | Q198: Gasturbinen mit nachgeschalteter Dampfturbine | R198: Gas | S198: CCGT | T198: 0.577 | U198: OPSD (2020) | V198: 418 | W198: 410 | X198: =(1-VLOOKUP(S198,Start!$H$33:$I$40,2,FALSE)/100)*W198 -> 356.7 | Y198: =VLOOKUP(R198,Start!$C$9:$D$15,2,FALSE)+VLOOKUP(R198,Start!$C$23:$D$29,2,FALSE) -> 54.56 | Z198: =(Y198/T198)+Start!$D$19*(VLOOKUP(R198,Start!$M$33:$N$39,2,FALSE)/T198)+VLOOKUP(S198,Start!$C$33:$D$40,2,FALSE) -> 114.2037955
C199: Yes | D199: SEE927716043575 | E199: BNA0417 | F199: EEW Energy from Waste Hannover GmbH | G199: MVA EEW Hannover | H199: 30659 | I199: Hannover | J199: Moorwaldweg 310 | K199: Niedersachsen | L199: 2005-06-01 | M199: nicht biogener Abfall | N199: nicht biogener Abfall (Hausmüll, Siedlungsabfälle) | O199: Waste | P199: Ja | Q199: Kondensationsmaschine mit Entnahme | R199: Waste | S199: Waste | T199: 0.33 | U199: OPSD (2020) | V199: 29.6 | W199: 29.6 | X199: =(1-VLOOKUP(S199,Start!$H$33:$I$40,2,FALSE)/100)*W199 -> 25.16 | Y199: =VLOOKUP(R199,Start!$C$9:$D$15,2,FALSE)+VLOOKUP(R199,Start!$C$23:$D$29,2,FALSE) -> 0 | Z199: =(Y199/T199)+Start!$D$19*(VLOOKUP(R199,Start!$M$33:$N$39,2,FALSE)/T199)+VLOOKUP(S199,Start!$C$33:$D$40,2,FALSE) -> 1
C200: Yes | D200: SEE983959934148 | E200: BNA0418 | F200: enercity AG | G200: HKW Linden DT | H200: 30449 | I200: Hannover | J200: Spinnereistraße 9 | K200: Niedersachsen | L200: 1996-06-20 | M200: Erdgas | N200: Erdgas, Erdölgas | O200: Gas | P200: Nein | Q200: Gasturbinen mit Abhitzekessel | R200: Gas | S200: CCGT | T200: 0.55 | U200: OPSD (2020) | V200: 79.4 | W200: 78 | X200: =(1-VLOOKUP(S200,Start!$H$33:$I$40,2,FALSE)/100)*W200 -> 67.86 | Y200: =VLOOKUP(R200,Start!$C$9:$D$15,2,FALSE)+VLOOKUP(R200,Start!$C$23:$D$29,2,FALSE) -> 54.56 | Z200: =(Y200/T200)+Start!$D$19*(VLOOKUP(R200,Start!$M$33:$N$39,2,FALSE)/T200)+VLOOKUP(S200,Start!$C$33:$D$40,2,FALSE) -> 119.7365273
C201: Yes | D201: SEE999585452499 | E201: BNA0418 | F201: enercity AG | G201: HKW Linden GT1 | H201: 30449 | I201: Hannover | J201: Spinnereistraße 9 | K201: Niedersachsen | L201: 2011-11-02 | M201: Erdgas | N201: Erdgas, Erdölgas | O201: Gas | P201: Nein | Q201: Gasturbinen mit nachgeschalteter Dampfturbine | R201: Gas | S201: CCGT | T201: 0.55 | U201: OPSD (2020) | V201: 82.35 | W201: 82 | X201: =(1-VLOOKUP(S201,Start!$H$33:$I$40,2,FALSE)/100)*W201 -> 71.34 | Y201: =VLOOKUP(R201,Start!$C$9:$D$15,2,FALSE)+VLOOKUP(R201,Start!$C$23:$D$29,2,FALSE) -> 54.56 | Z201: =(Y201/T201)+Start!$D$19*(VLOOKUP(R201,Start!$M$33:$N$39,2,FALSE)/T201)+VLOOKUP(S201,Start!$C$33:$D$40,2,FALSE) -> 119.7365273
C202: Yes | D202: SEE965551192713 | E202: BNA0418 | F202: enercity AG | G202: HKW Linden GT3 | H202: 30449 | I202: Hannover | J202: Spinnereistraße 9 | K202: Niedersachsen | L202: 2009-11-02 | M202: Erdgas | N202: Erdgas, Erdölgas | O202: Gas | P202: Ja | Q202: Gasturbinen mit nachgeschalteter Dampfturbine | R202: Gas | S202: CCGT | T202: 0.55 | U202: OPSD (2020) | V202: 70.25 | W202: 70 | X202: =(1-VLOOKUP(S202,Start!$H$33:$I$40,2,FALSE)/100)*W202 -> 60.9 | Y202: =VLOOKUP(R202,Start!$C$9:$D$15,2,FALSE)+VLOOKUP(R202,Start!$C$23:$D$29,2,FALSE) -> 54.56 | Z202: =(Y202/T202)+Start!$D$19*(VLOOKUP(R202,Start!$M$33:$N$39,2,FALSE)/T202)+VLOOKUP(S202,Start!$C$33:$D$40,2,FALSE) -> 119.7365273
C203: Yes | D203: SEE987633796220 | E203: BNA0420 | F203: enercity AG | G203: GKH 1 | H203: 30419 | I203: Hannover | J203: Stelinger Straße 18 | K203: Niedersachsen | L203: 1989-01-26 | M203: Steinkohle | N203: Steinkohlen | O203: Coal | P203: Ja | Q203: Gegendruckmaschine mit Entnahme | R203: Coal | S203: Coal | T203: 0.3975 | U203: OPSD (2020) | V203: 150 | W203: 136 | X203: =(1-VLOOKUP(S203,Start!$H$33:$I$40,2,FALSE)/100)*W203 -> 108.8 | Y203: =VLOOKUP(R203,Start!$C$9:$D$15,2,FALSE)+VLOOKUP(R203,Start!$C$23:$D$29,2,FALSE) -> 15.81 | Z203: =(Y203/T203)+Start!$D$19*(VLOOKUP(R203,Start!$M$33:$N$39,2,FALSE)/T203)+VLOOKUP(S203,Start!$C$33:$D$40,2,FALSE) -> 85.23542138
C204: Yes | D204: SEE932928232242 | E204: BNA0421 | F204: enercity AG | G204: GKH 2 | H204: 30419 | I204: Hannover | J204: Stelinger Straße 18 | K204: Niedersachsen | L204: 1989-06-21 | M204: Steinkohle | N204: Steinkohlen | O204: Coal | P204: Ja | Q204: Gegendruckmaschine mit Entnahme | R204: Coal | S204: Coal | T204: 0.3975 | U204: OPSD (2020) | V204: 150 | W204: 136 | X204: =(1-VLOOKUP(S204,Start!$H$33:$I$40,2,FALSE)/100)*W204 -> 108.8 | Y204: =VLOOKUP(R204,Start!$C$9:$D$15,2,FALSE)+VLOOKUP(R204,Start!$C$23:$D$29,2,FALSE) -> 15.81 | Z204: =(Y204/T204)+Start!$D$19*(VLOOKUP(R204,Start!$M$33:$N$39,2,FALSE)/T204)+VLOOKUP(S204,Start!$C$33:$D$40,2,FALSE) -> 85.23542138
C205: Yes | D205: SEE960317505882 | E205: BNA0427 | F205: Peissenberger Kraftwerksgesellschaft | G205: GT 1 | H205: 83734 | I205: Hausham | J205: Brentenstr. 3 | K205: Bayern | L205: 1982-11-01 | M205: Mineralölprodukte | N205: Heizöl, leicht | O205: Oil | P205: Nein | Q205: Gasturbinen ohne Abhitzekessel | R205: Oil | S205: Oil | T205: 0.3332 | U205: OPSD (2020) | V205: 23.2 | W205: 23.2 | X205: =(1-VLOOKUP(S205,Start!$H$33:$I$40,2,FALSE)/100)*W205 -> 19.72 | Y205: =VLOOKUP(R205,Start!$C$9:$D$15,2,FALSE)+VLOOKUP(R205,Start!$C$23:$D$29,2,FALSE) -> 35.54 | Z205: =(Y205/T205)+Start!$D$19*(VLOOKUP(R205,Start!$M$33:$N$39,2,FALSE)/T205)+VLOOKUP(S205,Start!$C$33:$D$40,2,FALSE) -> 151.4357743
C206: Yes | D206: SEE925076352665 | E206: BNA0428 | F206: Peissenberger Kraftwerksgesellschaft | G206: GT 2 | H206: 83734 | I206: Hausham | J206: Brentenstraße 3 | K206: Bayern | L206: 1982-11-01 | M206: Mineralölprodukte | N206: Heizöl, leicht | O206: Oil | P206: Nein | Q206: Gasturbinen ohne Abhitzekessel | R206: Oil | S206: Oil | T206: 0.3332 | U206: OPSD (2020) | V206: 23.2 | W206: 23.2 | X206: =(1-VLOOKUP(S206,Start!$H$33:$I$40,2,FALSE)/100)*W206 -> 19.72 | Y206: =VLOOKUP(R206,Start!$C$9:$D$15,2,FALSE)+VLOOKUP(R206,Start!$C$23:$D$29,2,FALSE) -> 35.54 | Z206: =(Y206/T206)+Start!$D$19*(VLOOKUP(R206,Start!$M$33:$N$39,2,FALSE)/T206)+VLOOKUP(S206,Start!$C$33:$D$40,2,FALSE) -> 151.4357743
... 991 more rows

Sheet Sources
C3: EWI Merit Order Tool 2022
C5: Sources | D5: =Imprint!F5 -> Version 2022.0_en
C7: Abbrevation | D7: Sources
C8: BNetzA (2021) | D8: Bundesnetzagentur; Kraftwerksliste der Bundesnetzagentur as of 15.11.2021. Licensed under "dl-en/by-2-0": www.govdata.de/dl-de/by-2-0; URL: https://www.bundesnetzagentur.de/DE/Sachgebiete/ElektrizitaetundGas/Unternehmen_Institutionen/Versorgungssicherheit/ Erzeugungskapazitaeten/Kraftwerksliste/kraftwerksliste-node.html (accessed on 14.12.2021)
C9: DIW (2014) | D9: Jonas Egerer & Clemens Gerbaulet & Richard Ihlenburg & Friedrich Kunz & Benjamin Reinhard & Christian von Hirschhausen & Alexander Weber & Jens Weibezahn, 2014. "Electricity Sector Data for Policy-Relevant Modeling: Data Documentation and Applications to the German and European Electricity Markets," Data Documentation 72, DIW Berlin, German Institute for Economic Research.
C10: EWI (2019) | D10: Energiewirtschaftliches Institut an der Universität zu Köln gGmbH; Auswirkungen einer Beendigung der Kohleverstromung bis 2038 auf den Strommarkt, CO2-Emissionen und ausgewählte Industrien - Eine Analyse des Abschlussberichts der WSB-Kommission, August 2019.
C11: OPSD (2018) | D11: Open Power System Data. 2018. Data Package Conventional power plants. Version 2018-12-20.
C12: OPSD (2020) | D12: Open Power System Data. 2020. Data Package Conventional power plants. Version 2020-10-01.
C13: R2B (2019) | D13: R2b energy consulting GmbH, Consentec GmbH, Fraunhofer ISI, TEP Energy GmbH; Definition und Monitoring der Versorgungssicherheit an den europäischen Strommärkten, Projekt Nr. 047/16, Januar 2019.
C14: Ember (2021) | D14: Ember; Daily Carbon Prices, URL: https://sandbag.org.uk/carbon-price-viewer/ (accessed on 03.01.2022)
C15: SDKW (2021) | D15: Statistik der Kohlewirtschaft e.V.; Entwicklung ausgewählter Energiepreise, Stand 29.12.2021. (Assumed value of October 2021 for November and December 2021)
C16: ÜNB (2019) | D16: 50Hertz Transmission GmbH, Amprio GmbH, TenneT TSO GmbH und TransnetBW GmbH; Netzentwicklungsplan Strom 2030, Version 2019, 2. Entwurf. April 2019.

Sheet Imprint
C3: EWI Merit Order Tool 2022
C5: Imprint | F5: =CONCATENATE("Version ",F11," ") -> Version 2022.0_en
D8: EWI Merit Order Tool 2022
D10: Institute of Energy Economics at the University of Cologne (EWI) | E10: Last updated: | F10: 03.01.2022
D11: Alte Wagenfabrik | E11: Model version: | F11: 2022.0_en
D12: Vogelsanger Straße 321a
D13: 50827 Köln
D14: Tel.: +49 (0)221 277 29-100
D15: Fax: +49 (0)221 277 29-400
D16: www.ewi.uni-koeln.de
D18: Authors:
D19: Fabian Arnold
D20: David Schlund
D21: Dr. Eren Çam
D22: Konstantin Gruber
D24: For questions, remarks and criticism contact: | E24: © Institute of Energy Economics at the University of Cologne (EWI).
D25: Fabian Arnold | E25: All rights reserved. Use of the tool and results only permitted with
D26: Tel.: +49 (0)221 277 29-232 | E26: reference to the authors and the Institute of Energy Economics at
D27: fabian.arnold@ewi.uni-koeln.de | E27: the University of Cologne gGmbH (EWI). Liability for consequential
E28: damages is excluded. This also and in particular applies to damages
E29: or lost profits arising as a result of using the information provided in
E30: this document.

Sheet Start Reset (hidden)
C3: EWI Merit Order Tool 2022
C5: Start | P5: =Imprint!F5 -> Version 2022.0_en
C7: Fuel Prices
C8: Fuel Type | D8: Price | E8: Unit | F8: Source
C9: Nuclear | D9: 5.5 | E9: EUR/MWhth | F9: refer to documentation
C10: Lignite | D10: 3.1 | E10: EUR/MWhth | F10: EWI (2019)
C11: Coal | D11: 14.56 | E11: EUR/MWhth | F11: ARA
C12: Gas | D12: 54.06 | E12: EUR/MWhth | F12: Spot TTF
C13: Oil | D13: 35.24 | E13: EUR/MWhth | F13: SDKW (2021)
C14: Waste | D14: 0 | E14: EUR/MWhth | F14: refer to documentation
C15: Other | D15: 38 | E15: EUR/MWhth | F15: refer to documentation
C17: Emission Certificate Price
D18: Price | E18: Unit | F18: Source
C19: Emission certificate price | D19: 52.09 | E19: EUR/tCO2 | F19: Ember (2021)
C21: Transport Costs
C22: Power Plant Type | D22: Price | E22: Unit | F22: Source
C23: Nuclear | D23: 0 | E23: EUR/MWhth | F23: refer to documentation
C24: Lignite | D24: 0 | E24: EUR/MWhth | F24: refer to documentation
C25: Coal | D25: 1.25 | E25: EUR/MWhth | F25: R2B (2019)
C26: Gas | D26: 0.5 | E26: EUR/MWhth | F26: R2B (2019)
C27: Oil | D27: 0.3 | E27: EUR/MWhth | F27: R2B (2019)
C28: Waste | D28: 0 | E28: EUR/MWhth | F28: refer to documentation
C29: Other | D29: 0 | E29: EUR/MWhth | F29: refer to documentation | H29: Available RES generation capacity | I29: 0 | J29: MW
C31: Other Variable Costs | H31: Outages | M31: Emission Levels
C32: Power Plant Type | D32: Price | E32: Unit | F32: Source | H32: Power Plant Type | J32: Unit | K32: Source | M32: Fuel Type | O32: Unit | P32: Source
C33: Nuclear | D33: 1.2 | E33: EUR/Mwhel | F33: refer to documentation | H33: Nuclear | I33: 7 | J33: % | K33: refer to documentation | M33: Nuclear | N33: 0 | O33: tCO2/MWhth | P33: refer to documentation
C34: Lignite | D34: 1.7 | E34: EUR/Mwhel | F34: R2B (2019) | H34: Lignite | I34: 13 | J34: % | K34: refer to documentation | M34: Lignite | N34: 0.404 | O34: tCO2/MWhth | P34: ÜNB (2019)
C35: Coal | D35: 1.3 | E35: EUR/Mwhel | F35: R2B (2019) | H35: Coal | I35: 20 | J35: % | K35: refer to documentation | M35: Coal | N35: 0.337 | O35: tCO2/MWhth | P35: ÜNB (2019)
C36: CCGT | D36: 1.5 | E36: EUR/Mwhel | F36: R2B (2019) | H36: CCGT | I36: 13 | J36: % | K36: refer to documentation | M36: Gas | N36: 0.201 | O36: tCO2/MWhth | P36: ÜNB (2019)
C37: OCGT | D37: 1 | E37: EUR/Mwhel | F37: R2B (2019) | H37: OCGT | I37: 13 | J37: % | K37: refer to documentation | M37: Oil | N37: 0.28 | O37: tCO2/MWhth | P37: ÜNB (2019)
C38: Oil | D38: 1 | E38: EUR/Mwhel | F38: refer to documentation | H38: Oil | I38: 15 | J38: % | K38: refer to documentation | M38: Waste | N38: 0 | O38: tCO2/MWhth | P38: refer to documentation
C39: Waste | D39: 1 | E39: EUR/Mwhel | F39: refer to documentation | H39: Waste | I39: 15 | J39: % | K39: refer to documentation | M39: Other | N39: 0.214 | O39: tCO2/MWhth | P39: ÜNB (2019)
C40: Other | D40: 1 | E40: EUR/Mwhel | F40: refer to documentation | H40: Other | I40: 15 | J40: % | K40: refer to documentation

Sheet Backend I (hidden)
A1: Index | B1: Power Plant Type | C1: Performance | D1: cumulated performance | E1: marginal costs
A2: SEE988848971327 | B2: Waste | C2: 30.6 | D2: 30.6 | E2: 1
A3: SEE956268312785 | B3: Waste | C3: 20.4 | D3: 51 | E3: 1
A4: SEE924302504816 | B4: Waste | C4: 12.002 | D4: 63.002 | E4: 1
A5: SEE958310939391 | B5: Waste | C5: 27.2 | D5: 90.202 | E5: 1
A6: SEE944111876263 | B6: Waste | C6: 27.2 | D6: 117.402 | E6: 1
A7: SEE999588015110 | B7: Waste | C7: 22.1 | D7: 139.502 | E7: 1
A8: SEE912257091857 | B8: Waste | C8: 39.525 | D8: 179.027 | E8: 1
A9: SEE928761575349 | B9: Waste | C9: 21.25 | D9: 200.277 | E9: 1
A10: SEE977898966292 | B10: Waste | C10: 20.29375 | D10: 220.57075 | E10: 1
A11: SEE927716043575 | B11: Waste | C11: 25.16 | D11: 245.73075 | E11: 1
A12: SEE906215229154 | B12: Waste | C12: 31.875 | D12: 277.60575 | E12: 1
A13: SEE904604163027 | B13: Waste | C13: 32.3 | D13: 309.90575 | E13: 1
A14: SEE981876305560 | B14: Waste | C14: 13.80825 | D14: 323.714 | E14: 1
A15: SEE925794342412 | B15: Waste | C15: 13.80825 | D15: 337.52225 | E15: 1
A16: SEE957830042178 | B16: Waste | C16: 15.8525 | D16: 353.37475 | E16: 1
A17: SEE940474859066 | B17: Waste | C17: 10.2 | D17: 363.57475 | E17: 1
A18: SEE962737235608 | B18: Waste | C18: 24.82 | D18: 388.39475 | E18: 1
A19: SEE999819576335 | B19: Waste | C19: 28.56 | D19: 416.95475 | E19: 1
A20: SEE923959807806 | B20: Waste | C20: 10.88 | D20: 427.83475 | E20: 1
A21: SEE904983741502 | B21: Waste | C21: 21.76 | D21: 449.59475 | E21: 1
A22: SEE953730197888 | B22: Waste | C22: 3.621 | D22: 453.21575 | E22: 1
A23: SEE948093740512 | B23: Waste | C23: 3.621 | D23: 456.83675 | E23: 1
A24: SEE977770417713 | B24: Waste | C24: 10.6437 | D24: 467.48045 | E24: 1
A25: SEE981003349412 | B25: Waste | C25: 18.5827 | D25: 486.06315 | E25: 1
A26: SEE900128586359 | B26: Waste | C26: 15.98 | D26: 502.04315 | E26: 1
A27: SEE993054223955 | B27: Waste | C27: 34.34 | D27: 536.38315 | E27: 1
A28: SEE955937262338 | B28: Waste | C28: 17.935 | D28: 554.31815 | E28: 1
A29: SEE955718847075 | B29: Waste | C29: 5.865 | D29: 560.18315 | E29: 1
A30: SEE955718847075 | B30: Waste | C30: 5.865 | D30: 566.04815 | E30: 1
A31: SEE924286409503 | B31: Waste | C31: 25.5 | D31: 591.54815 | E31: 1
A32: SEE942366584926 | B32: Waste | C32: 15.3 | D32: 606.84815 | E32: 1
A33: SEE998278854237 | B33: Waste | C33: 18.7 | D33: 625.54815 | E33: 1
A34: SEE927727929912 | B34: Waste | C34: 22.95 | D34: 648.49815 | E34: 1
A35: SEE996047653111 | B35: Waste | C35: 9.724 | D35: 658.22215 | E35: 1
A36: SEE955548455112 | B36: Waste | C36: 11.05 | D36: 669.27215 | E36: 1
A37: SEE972694764301 | B37: Waste | C37: 2.21 | D37: 671.48215 | E37: 1
A38: SEE986413873564 | B38: Waste | C38: 11.305 | D38: 682.78715 | E38: 1
A39: SEE950201173198 | B39: Waste | C39: 41.82 | D39: 724.60715 | E39: 1
A40: SEE927032372373 | B40: Waste | C40: 11.9 | D40: 736.50715 | E40: 1
A41: SEE944429192826 | B41: Waste | C41: 10.88 | D41: 747.38715 | E41: 1
A42: SEE988429673565 | B42: Waste | C42: 11.56 | D42: 758.94715 | E42: 1
A43: SEE971280976463 | B43: Waste | C43: 9.35 | D43: 768.29715 | E43: 1
A44: SEE955453307926 | B44: Waste | C44: 13.005 | D44: 781.30215 | E44: 1
A45: SEE945150729886 | B45: Waste | C45: 12.648 | D45: 793.95015 | E45: 1
A46: SEE941568392261 | B46: Waste | C46: 12.648 | D46: 806.59815 | E46: 1
A47: SEE923271533315 | B47: Waste | C47: 19.975 | D47: 826.57315 | E47: 1
A48: SEE947996339434 | B48: Waste | C48: 10.421 | D48: 836.99415 | E48: 1
A49: SEE951966828576 | B49: Waste | C49: 6.29 | D49: 843.28415 | E49: 1
A50: SEE925011950635 | B50: Waste | C50: 15.419 | D50: 858.70315 | E50: 1
A51: SEE992947793209 | B51: Waste | C51: 13.6 | D51: 872.30315 | E51: 1
A52: SEE925652456091 | B52: Waste | C52: 6.8 | D52: 879.10315 | E52: 1
A53: SEE976589352260 | B53: Waste | C53: 12.495 | D53: 891.59815 | E53: 1
A54: SEE941568476039 | B54: Waste | C54: 39.1 | D54: 930.69815 | E54: 1
A55: SEE996891820448 | B55: Waste | C55: 6.8 | D55: 937.49815 | E55: 1
A56: SEE992607731794 | B56: Waste | C56: 7.8455 | D56: 945.34365 | E56: 1
A57: SEE993787055366 | B57: Waste | C57: 0.7905 | D57: 946.13415 | E57: 1
A58: SEE925411264011 | B58: Waste | C58: 2.465 | D58: 948.59915 | E58: 1
A59: SEE979423615132 | B59: Waste | C59: 0.7905 | D59: 949.38965 | E59: 1
A60: SEE934298270268 | B60: Waste | C60: 17.85 | D60: 967.23965 | E60: 1
A61: SEE942253705168 | B61: Waste | C61: 10.2595 | D61: 977.49915 | E61: 1
A62: SEE966264899036 | B62: Waste | C62: 7.772672 | D62: 985.271822 | E62: 1
A63: SEE969698095906 | B63: Waste | C63: 4.6636015 | D63: 989.9354235 | E63: 1
A64: SEE932127408097 | B64: Waste | C64: 23.12 | D64: 1013.055424 | E64: 1
A65: SEE986030306643 | B65: Waste | C65: 12.75 | D65: 1025.805424 | E65: 1
A66: SEE938782869693 | B66: Waste | C66: 12.325 | D66: 1038.130424 | E66: 1
A67: SEE965779402670 | B67: Waste | C67: 12.75 | D67: 1050.880424 | E67: 1
A68: SEE940711490885 | B68: Waste | C68: 2.125 | D68: 1053.005424 | E68: 1
A69: SEE997842921603 | B69: Waste | C69: 21.25 | D69: 1074.255424 | E69: 1
A70: SEE946934017984 | B70: Waste | C70: 15.725 | D70: 1089.980424 | E70: 1
A71: SEE918821866890 | B71: Waste | C71: 28.05 | D71: 1118.030424 | E71: 1
A72: SEE973464796218 | B72: Waste | C72: 24.5684 | D72: 1142.598824 | E72: 1
A73: SEE918623387630 | B73: Waste | C73: 13.94 | D73: 1156.538824 | E73: 1
A74: SEE950593842498 | B74: Waste | C74: 20.4 | D74: 1176.938824 | E74: 1
A75: SEE951648072822 | B75: Waste | C75: 10.285 | D75: 1187.223824 | E75: 1
A76: SEE900664653232 | B76: Waste | C76: 9.095 | D76: 1196.318824 | E76: 1
A77: SEE937978171572 | B77: Waste | C77: 2.89 | D77: 1199.208824 | E77: 1
A78: SEE958335974377 | B78: Waste | C78: 10.625 | D78: 1209.833824 | E78: 1
A79: SEE943841929270 | B79: Waste | C79: 6.7745 | D79: 1216.608324 | E79: 1
A80: SEE943548208159 | B80: Waste | C80: 5.712 | D80: 1222.320324 | E80: 1
A81: SEE994551453975 | B81: Waste | C81: 17 | D81: 1239.320324 | E81: 1
A82: SEE945602121718 | B82: Waste | C82: 17 | D82: 1256.320324 | E82: 1
A83: SEE917110358740 | B83: Waste | C83: 14.45 | D83: 1270.770324 | E83: 1
A84: SEE957509710094 | B84: Waste | C84: 9.86 | D84: 1280.630324 | E84: 1
A85: SEE990065849372 | B85: Waste | C85: 7.395 | D85: 1288.025324 | E85: 1
A86: SEE971796321603 | B86: Waste | C86: 10.2 | D86: 1298.225324 | E86: 1
A87: SEE988841475051 | B87: Waste | C87: 23.8 | D87: 1322.025324 | E87: 1
A88: SEE942777699660 | B88: Waste | C88: 25.415 | D88: 1347.440324 | E88: 1
A89: SEE937544161082 | B89: Waste | C89: 14.875 | D89: 1362.315324 | E89: 1
A90: SEE942956157011 | B90: Waste | C90: 15.3 | D90: 1377.615324 | E90: 1
A91: SEE977514334252 | B91: Waste | C91: 1.802 | D91: 1379.417324 | E91: 1
A92: SEE990760688887 | B92: Waste | C92: 4.25 | D92: 1383.667324 | E92: 1
A93: SEE929095613516 | B93: Waste | C93: 6.00185 | D93: 1389.669174 | E93: 1
A94: SEE906331863386 | B94: Waste | C94: 6.00185 | D94: 1395.671024 | E94: 1
A95: SEE958909269267 | B95: Waste | C95: 60.35 | D95: 1456.021024 | E95: 1
A96: SEE953182244383 | B96: Waste | C96: 3.468 | D96: 1459.489024 | E96: 1
A97: SEE998216550733 | B97: Waste | C97: 3.9865 | D97: 1463.475524 | E97: 1
A98: SEE939382623364 | B98: Waste | C98: 3.9865 | D98: 1467.462024 | E98: 1
A99: SEE909031885047 | B99: Waste | C99: 8.5e-06 | D99: 1467.462032 | E99: 1
A100: SEE923791565131 | B100: Waste | C100: 9.6271 | D100: 1477.089132 | E100: 1
A101: SEE964170331206 | B101: Waste | C101: 9.01 | D101: 1486.099132 | E101: 1
A102: SEE957686843929 | B102: Waste | C102: 8.6887 | D102: 1494.787832 | E102: 1
A103: SEE937822704543 | B103: Waste | C103: 1.0625 | D103: 1495.850332 | E103: 1
B104: Waste | C104: 135.044855 | D104: 1630.895187 | E104: 1
A105: SEE927528071629 | B105: Nuclear | C105: 1197.84 | D105: 2828.735187 | E105: 16.91428571
A106: SEE930752846949 | B106: Nuclear | C106: 1264.8 | D106: 4093.535187 | E106: 17.09595376
A107: SEE944567587799 | B107: Nuclear | C107: 1242.48 | D107: 5336.015187 | E107: 17.14202899
A108: SEE951462745445 | B108: Nuclear | C108: 1311.3 | D108: 6647.315187 | E108: 17.86666667
A109: SEE943690268513 | B109: Nuclear | C109: 1311.3 | D109: 7958.615187 | E109: 17.86666667
A110: SEE985577062814 | B110: Nuclear | C110: 1218.3 | D110: 9176.915187 | E110: 17.86666667
A111: SEE968582186379 | B111: Lignite | C111: 548.1 | D111: 9725.015187 | E111: 56.95025172
A112: SEE985453029962 | B112: Lignite | C112: 7.2645 | D112: 9732.279687 | E112: 57.38348708
A113: SEE952937205877 | B113: Lignite | C113: 17.1129 | D113: 9749.392587 | E113: 57.38348708
A114: SEE983252937631 | B114: Lignite | C114: 821.28 | D114: 10570.67259 | E114: 57.84967442
A115: SEE925599434282 | B115: Lignite | C115: 922.2 | D115: 11492.87259 | E115: 57.84967442
A116: SEE993592183001 | B116: Lignite | C116: 922.2 | D116: 12415.07259 | E116: 57.84967442
A117: SEE915426748132 | B117: Lignite | C117: 65.511 | D117: 12480.58359 | E117: 58.64424528
A118: SEE991324265957 | B118: Lignite | C118: 12.51321 | D118: 12493.0968 | E118: 58.64424528
A119: SEE907389779292 | B119: Lignite | C119: 730.8 | D119: 13223.8968 | E119: 58.77886525
A120: SEE957229968300 | B120: Lignite | C120: 563.76 | D120: 13787.6568 | E120: 58.96840607
A121: SEE998199911088 | B121: Lignite | C121: 775.17 | D121: 14562.8268 | E121: 59.18657143
A122: SEE921905907730 | B122: Lignite | C122: 546.36 | D122: 15109.1868 | E122: 59.29627863
A123: SEE966331411864 | B123: Lignite | C123: 775.17 | D123: 15884.3568 | E123: 60.58868293
A124: SEE938337436349 | B124: Lignite | C124: 656.85 | D124: 16541.2068 | E124: 60.58868293
A125: SEE952672318108 | B125: Lignite | C125: 656.85 | D125: 17198.0568 | E125: 60.58868293
A126: SEE946537967655 | B126: Lignite | C126: 13.92 | D126: 17211.9768 | E126: 62.0609
A127: SEE978888539755 | B127: Lignite | C127: 39.15 | D127: 17251.1268 | E127: 62.0609
A128: SEE941974735591 | B128: Lignite | C128: 11.31 | D128: 17262.4368 | E128: 62.0609
A129: SEE960652233358 | B129: Lignite | C129: 391.5 | D129: 17653.9368 | E129: 62.0609
A130: SEE947677200282 | B130: Lignite | C130: 391.5 | D130: 18045.4368 | E130: 62.0609
A131: SEE921449009914 | B131: Lignite | C131: 15.46251 | D131: 18060.89931 | E131: 62.0609
A132: SEE986936308987 | B132: Lignite | C132: 8.613 | D132: 18069.51231 | E132: 63.92773196
A133: SEE975343602986 | B133: Lignite | C133: 8.613 | D133: 18078.12531 | E133: 63.92773196
A134: SEE998111672394 | B134: Lignite | C134: 26.97 | D134: 18105.09531 | E134: 64.41262338
A135: SEE999145467468 | B135: Lignite | C135: 34.8 | D135: 18139.89531 | E135: 64.70720251
A136: SEE970305352633 | B136: Lignite | C136: 14.703 | D136: 18154.59831 | E136: 64.70720251
A137: SEE933960350956 | B137: Lignite | C137: 80.32884 | D137: 18234.92715 | E137: 65.9137234
A138: SEE994335340088 | B138: Lignite | C138: 21.75 | D138: 18256.67715 | E138: 65.9137234
B139: Lignite | C139: 31.22082 | D139: 18287.89797 | E139: 65.9137234
A140: SEE991817093418 | B140: Lignite | C140: 435 | D140: 18722.89797 | E140: 66.08496
A141: SEE938669585906 | B141: Lignite | C141: 435 | D141: 19157.89797 | E141: 66.08496
A142: SEE989591633753 | B142: Lignite | C142: 435 | D142: 19592.89797 | E142: 66.08496
A143: SEE923943268279 | B143: Lignite | C143: 435 | D143: 20027.89797 | E143: 66.08496
A144: SEE928076311489 | B144: Lignite | C144: 29.145 | D144: 20057.04297 | E144: 66.32623126
A145: SEE923082939436 | B145: Lignite | C145: 50.60964 | D145: 20107.65261 | E145: 66.74407328
A146: SEE905721866655 | B146: Lignite | C146: 153.12 | D146: 20260.77261 | E146: 66.74407328
A147: SEE990438768378 | B147: Coal | C147: 26.32 | D147: 20287.09261 | E147: 67.49906746
A148: SEE931736847297 | B148: Lignite | C148: 528.09 | D148: 20815.18261 | E148: 67.66819672
A149: SEE976414005279 | B149: Lignite | C149: 525.48 | D149: 21340.66261 | E149: 67.66819672
A150: SEE987007884447 | B150: Lignite | C150: 576.81 | D150: 21917.47261 | E150: 68.76766667
A151: SEE955314088254 | B151: Lignite | C151: 570.72 | D151: 22488.19261 | E151: 68.76766667
A152: SEE985842749525 | B152: Lignite | C152: 435 | D152: 22923.19261 | E152: 70.68388571
A153: SEE908125004449 | B153: Lignite | C153: 435 | D153: 23358.19261 | E153: 70.68388571
A154: SEE927622980674 | B154: Lignite | C154: 6.03258 | D154: 23364.22519 | E154: 70.76281465
A155: SEE912440649056 | B155: Lignite | C155: 1.00572 | D155: 23365.23091 | E155: 70.76281465
A156: SEE927630371594 | B156: Lignite | C156: 39.9243 | D156: 23405.15521 | E156: 70.76281465
A157: SEE957285549260 | B157: Coal | C157: 26.32 | D157: 23431.47521 | E157: 71.91233862
A158: SEE996990805407 | B158: Coal | C158: 35.6 | D158: 23467.07521 | E158: 72.59130342
A159: SEE988477355802 | B159: Coal | C159: 674.4 | D159: 24141.47521 | E159: 73.20588362
A160: SEE923577153439 | B160: Coal | C160: 54.72 | D160: 24196.19521 | E160: 73.283452
A161: SEE970425279599 | B161: Coal | C161: 580.8 | D161: 24776.99521 | E161: 73.43909189
A162: SEE980331579218 | B162: Coal | C162: 667.2 | D162: 25444.19521 | E162: 73.83115217
A163: SEE961029163353 | B163: Coal | C163: 596.8 | D163: 26040.99521 | E163: 73.91007617
A164: SEE907150117643 | B164: Lignite | C164: 255.78 | D164: 26296.77521 | E164: 74.86472727
A165: SEE979012663285 | B165: Lignite | C165: 255.78 | D165: 26552.55521 | E165: 74.86472727
A166: SEE904421343152 | B166: Lignite | C166: 279.27 | D166: 26831.82521 | E166: 74.86472727
A167: SEE933685962403 | B167: Lignite | C167: 279.27 | D167: 27111.09521 | E167: 74.86472727
A168: SEE974018310478 | B168: Lignite | C168: 8.004 | D168: 27119.09921 | E168: 74.86472727
A169: SEE920672219015 | B169: Lignite | C169: 8.526 | D169: 27127.62521 | E169: 74.86472727
A170: SEE958847865460 | B170: Coal | C170: 377.6 | D170: 27505.22521 | E170: 75.03332597
A171: SEE918143230942 | B171: Coal | C171: 580 | D171: 28085.22521 | E171: 75.44295556
A172: SEE913516809497 | B172: Coal | C172: 841.6 | D172: 28926.82521 | E172: 75.44295556
A173: SEE948609940009 | B173: Coal | C173: 622.4 | D173: 29549.22521 | E173: 75.85716201
A174: SEE904968236689 | B174: Coal | C174: 280 | D174: 29829.22521 | E174: 76.69961582
A175: SEE965782597448 | B175: Coal | C175: 258.4 | D175: 30087.62521 | E175: 77.12802273
A176: SEE980016033738 | B176: Coal | C176: 413.6 | D176: 30501.22521 | E176: 77.56132571
A177: SEE909002940690 | B177: Coal | C177: 204 | D177: 30705.22521 | E177: 77.56132571
A178: SEE967605837250 | B178: Lignite | C178: 256.65 | D178: 30961.87521 | E178: 78.10620253
A179: SEE904194792843 | B179: Coal | C179: 552 | D179: 31513.87521 | E179: 78.44295954
A180: SEE943427876363 | B180: Coal | C180: 411.2 | D180: 31925.07521 | E180: 78.53224537
A181: SEE900341307519 | B181: Lignite | C181: 24.68799 | D181: 31949.7632 | E181: 78.69094388
A182: SEE998984420832 | B182: Coal | C182: 48.8 | D182: 31998.5632 | E182: 79.80430588
A183: SEE920837459195 | B183: Coal | C183: 48.8 | D183: 32047.3632 | E183: 79.80430588
A184: SEE979779484642 | B184: Coal | C184: 42.4 | D184: 32089.7632 | E184: 80.73888095
A185: SEE938923083674 | B185: Coal | C185: 44.448 | D185: 32134.2112 | E185: 82.77577534
A186: SEE987197130805 | B186: Coal | C186: 155.2 | D186: 32289.4112 | E186: 83.17565644
A187: SEE975507584615 | B187: Coal | C187: 348 | D187: 32637.4112 | E187: 83.17565644
A188: SEE929161243203 | B188: Coal | C188: 408 | D188: 33045.4112 | E188: 83.68106173
A189: SEE906834978235 | B189: Coal | C189: 3.2616 | D189: 33048.6728 | E189: 83.9463463
A190: SEE952372080091 | B190: Coal | C190: 266.4 | D190: 33315.0728 | E190: 84.19274534
A191: SEE981109871657 | B191: Coal | C191: 71.2 | D191: 33386.2728 | E191: 84.710825
A192: SEE989328541450 | B192: Coal | C192: 225.6 | D192: 33611.8728 | E192: 84.710825
A193: SEE974883809046 | B193: Coal | C193: 225.6 | D193: 33837.4728 | E193: 84.710825
A194: SEE945908806647 | B194: Coal | C194: 368 | D194: 34205.4728 | E194: 84.710825
A195: SEE954169155876 | B195: Coal | C195: 43.2 | D195: 34248.6728 | E195: 84.710825
A196: SEE974753539035 | B196: Coal | C196: 21.52 | D196: 34270.1928 | E196: 84.710825
A197: SEE919393178787 | B197: Coal | C197: 143.2 | D197: 34413.3928 | E197: 84.710825
A198: SEE907162822238 | B198: Coal | C198: 572 | D198: 34985.3928 | E198: 84.710825
A199: SEE977258693776 | B199: Coal | C199: 112 | D199: 35097.3928 | E199: 84.710825
A200: SEE968950464368 | B200: Coal | C200: 95.2 | D200: 35192.5928 | E200: 85.23542138
... 978 more rows

Sheet Backend II (hidden)
A1: Power | B1: Renewables | C1: Waste | D1: Nuclear | E1: Lignite | F1: Coal | G1: CCGT | H1: OCGT | I1: Oil | J1: Other
A2: 0 | B2: 0 | C2: 1 | D2: 0 | E2: 0 | F2: 0 | G2: 0 | H2: 0 | I2: 0 | J2: 0
A3: 1630.895187 | B3: 0 | C3: 1 | D3: 0 | E3: 0 | F3: 0 | G3: 0 | H3: 0 | I3: 0 | J3: 0
A4: 1630.895187 | B4: 0 | C4: 0 | D4: 16.9143 | E4: 0 | F4: 0 | G4: 0 | H4: 0 | I4: 0 | J4: 0
A5: 2828.735187 | B5: 0 | C5: 0 | D5: 16.9143 | E5: 0 | F5: 0 | G5: 0 | H5: 0 | I5: 0 | J5: 0
A6: 2828.735187 | B6: 0 | C6: 0 | D6: 17.096 | E6: 0 | F6: 0 | G6: 0 | H6: 0 | I6: 0 | J6: 0
A7: 4093.535187 | B7: 0 | C7: 0 | D7: 17.096 | E7: 0 | F7: 0 | G7: 0 | H7: 0 | I7: 0 | J7: 0
A8: 4093.535187 | B8: 0 | C8: 0 | D8: 17.142 | E8: 0 | F8: 0 | G8: 0 | H8: 0 | I8: 0 | J8: 0
A9: 5336.015187 | B9: 0 | C9: 0 | D9: 17.142 | E9: 0 | F9: 0 | G9: 0 | H9: 0 | I9: 0 | J9: 0
A10: 5336.015187 | B10: 0 | C10: 0 | D10: 17.8667 | E10: 0 | F10: 0 | G10: 0 | H10: 0 | I10: 0 | J10: 0
A11: 9176.915187 | B11: 0 | C11: 0 | D11: 17.8667 | E11: 0 | F11: 0 | G11: 0 | H11: 0 | I11: 0 | J11: 0
A12: 9176.915187 | B12: 0 | C12: 0 | D12: 0 | E12: 56.9503 | F12: 0 | G12: 0 | H12: 0 | I12: 0 | J12: 0
A13: 9725.015187 | B13: 0 | C13: 0 | D13: 0 | E13: 56.9503 | F13: 0 | G13: 0 | H13: 0 | I13: 0 | J13: 0
A14: 9725.015187 | B14: 0 | C14: 0 | D14: 0 | E14: 57.3835 | F14: 0 | G14: 0 | H14: 0 | I14: 0 | J14: 0
A15: 9749.392587 | B15: 0 | C15: 0 | D15: 0 | E15: 57.3835 | F15: 0 | G15: 0 | H15: 0 | I15: 0 | J15: 0
A16: 9749.392587 | B16: 0 | C16: 0 | D16: 0 | E16: 57.8497 | F16: 0 | G16: 0 | H16: 0 | I16: 0 | J16: 0
A17: 12415.07259 | B17: 0 | C17: 0 | D17: 0 | E17: 57.8497 | F17: 0 | G17: 0 | H17: 0 | I17: 0 | J17: 0
A18: 12415.07259 | B18: 0 | C18: 0 | D18: 0 | E18: 58.6442 | F18: 0 | G18: 0 | H18: 0 | I18: 0 | J18: 0
A19: 12493.0968 | B19: 0 | C19: 0 | D19: 0 | E19: 58.6442 | F19: 0 | G19: 0 | H19: 0 | I19: 0 | J19: 0
A20: 12493.0968 | B20: 0 | C20: 0 | D20: 0 | E20: 58.7789 | F20: 0 | G20: 0 | H20: 0 | I20: 0 | J20: 0
A21: 13223.8968 | B21: 0 | C21: 0 | D21: 0 | E21: 58.7789 | F21: 0 | G21: 0 | H21: 0 | I21: 0 | J21: 0
A22: 13223.8968 | B22: 0 | C22: 0 | D22: 0 | E22: 58.9684 | F22: 0 | G22: 0 | H22: 0 | I22: 0 | J22: 0
A23: 13787.6568 | B23: 0 | C23: 0 | D23: 0 | E23: 58.9684 | F23: 0 | G23: 0 | H23: 0 | I23: 0 | J23: 0
A24: 13787.6568 | B24: 0 | C24: 0 | D24: 0 | E24: 59.1866 | F24: 0 | G24: 0 | H24: 0 | I24: 0 | J24: 0
A25: 14562.8268 | B25: 0 | C25: 0 | D25: 0 | E25: 59.1866 | F25: 0 | G25: 0 | H25: 0 | I25: 0 | J25: 0
A26: 14562.8268 | B26: 0 | C26: 0 | D26: 0 | E26: 59.2963 | F26: 0 | G26: 0 | H26: 0 | I26: 0 | J26: 0
A27: 15109.1868 | B27: 0 | C27: 0 | D27: 0 | E27: 59.2963 | F27: 0 | G27: 0 | H27: 0 | I27: 0 | J27: 0
A28: 15109.1868 | B28: 0 | C28: 0 | D28: 0 | E28: 60.5887 | F28: 0 | G28: 0 | H28: 0 | I28: 0 | J28: 0
A29: 17198.0568 | B29: 0 | C29: 0 | D29: 0 | E29: 60.5887 | F29: 0 | G29: 0 | H29: 0 | I29: 0 | J29: 0
A30: 17198.0568 | B30: 0 | C30: 0 | D30: 0 | E30: 62.0609 | F30: 0 | G30: 0 | H30: 0 | I30: 0 | J30: 0
A31: 18060.89931 | B31: 0 | C31: 0 | D31: 0 | E31: 62.0609 | F31: 0 | G31: 0 | H31: 0 | I31: 0 | J31: 0
A32: 18060.89931 | B32: 0 | C32: 0 | D32: 0 | E32: 63.9277 | F32: 0 | G32: 0 | H32: 0 | I32: 0 | J32: 0
A33: 18078.12531 | B33: 0 | C33: 0 | D33: 0 | E33: 63.9277 | F33: 0 | G33: 0 | H33: 0 | I33: 0 | J33: 0
A34: 18078.12531 | B34: 0 | C34: 0 | D34: 0 | E34: 64.4126 | F34: 0 | G34: 0 | H34: 0 | I34: 0 | J34: 0
A35: 18105.09531 | B35: 0 | C35: 0 | D35: 0 | E35: 64.4126 | F35: 0 | G35: 0 | H35: 0 | I35: 0 | J35: 0
A36: 18105.09531 | B36: 0 | C36: 0 | D36: 0 | E36: 64.7072 | F36: 0 | G36: 0 | H36: 0 | I36: 0 | J36: 0
A37: 18154.59831 | B37: 0 | C37: 0 | D37: 0 | E37: 64.7072 | F37: 0 | G37: 0 | H37: 0 | I37: 0 | J37: 0
A38: 18154.59831 | B38: 0 | C38: 0 | D38: 0 | E38: 65.9137 | F38: 0 | G38: 0 | H38: 0 | I38: 0 | J38: 0
A39: 18287.89797 | B39: 0 | C39: 0 | D39: 0 | E39: 65.9137 | F39: 0 | G39: 0 | H39: 0 | I39: 0 | J39: 0
A40: 18287.89797 | B40: 0 | C40: 0 | D40: 0 | E40: 66.085 | F40: 0 | G40: 0 | H40: 0 | I40: 0 | J40: 0
A41: 20027.89797 | B41: 0 | C41: 0 | D41: 0 | E41: 66.085 | F41: 0 | G41: 0 | H41: 0 | I41: 0 | J41: 0
A42: 20027.89797 | B42: 0 | C42: 0 | D42: 0 | E42: 66.3262 | F42: 0 | G42: 0 | H42: 0 | I42: 0 | J42: 0
A43: 20057.04297 | B43: 0 | C43: 0 | D43: 0 | E43: 66.3262 | F43: 0 | G43: 0 | H43: 0 | I43: 0 | J43: 0
A44: 20057.04297 | B44: 0 | C44: 0 | D44: 0 | E44: 66.7441 | F44: 0 | G44: 0 | H44: 0 | I44: 0 | J44: 0
A45: 20260.77261 | B45: 0 | C45: 0 | D45: 0 | E45: 66.7441 | F45: 0 | G45: 0 | H45: 0 | I45: 0 | J45: 0
A46: 20260.77261 | B46: 0 | C46: 0 | D46: 0 | E46: 0 | F46: 67.4991 | G46: 0 | H46: 0 | I46: 0 | J46: 0
A47: 20287.09261 | B47: 0 | C47: 0 | D47: 0 | E47: 0 | F47: 67.4991 | G47: 0 | H47: 0 | I47: 0 | J47: 0
A48: 20287.09261 | B48: 0 | C48: 0 | D48: 0 | E48: 67.6682 | F48: 0 | G48: 0 | H48: 0 | I48: 0 | J48: 0
A49: 21340.66261 | B49: 0 | C49: 0 | D49: 0 | E49: 67.6682 | F49: 0 | G49: 0 | H49: 0 | I49: 0 | J49: 0
A50: 21340.66261 | B50: 0 | C50: 0 | D50: 0 | E50: 68.7677 | F50: 0 | G50: 0 | H50: 0 | I50: 0 | J50: 0
A51: 22488.19261 | B51: 0 | C51: 0 | D51: 0 | E51: 68.7677 | F51: 0 | G51: 0 | H51: 0 | I51: 0 | J51: 0
A52: 22488.19261 | B52: 0 | C52: 0 | D52: 0 | E52: 70.6839 | F52: 0 | G52: 0 | H52: 0 | I52: 0 | J52: 0
A53: 23358.19261 | B53: 0 | C53: 0 | D53: 0 | E53: 70.6839 | F53: 0 | G53: 0 | H53: 0 | I53: 0 | J53: 0
A54: 23358.19261 | B54: 0 | C54: 0 | D54: 0 | E54: 70.7628 | F54: 0 | G54: 0 | H54: 0 | I54: 0 | J54: 0
A55: 23405.15521 | B55: 0 | C55: 0 | D55: 0 | E55: 70.7628 | F55: 0 | G55: 0 | H55: 0 | I55: 0 | J55: 0
A56: 23405.15521 | B56: 0 | C56: 0 | D56: 0 | E56: 0 | F56: 71.9123 | G56: 0 | H56: 0 | I56: 0 | J56: 0
A57: 23431.47521 | B57: 0 | C57: 0 | D57: 0 | E57: 0 | F57: 71.9123 | G57: 0 | H57: 0 | I57: 0 | J57: 0
A58: 23431.47521 | B58: 0 | C58: 0 | D58: 0 | E58: 0 | F58: 72.5913 | G58: 0 | H58: 0 | I58: 0 | J58: 0
A59: 23467.07521 | B59: 0 | C59: 0 | D59: 0 | E59: 0 | F59: 72.5913 | G59: 0 | H59: 0 | I59: 0 | J59: 0
A60: 23467.07521 | B60: 0 | C60: 0 | D60: 0 | E60: 0 | F60: 73.2059 | G60: 0 | H60: 0 | I60: 0 | J60: 0
A61: 24141.47521 | B61: 0 | C61: 0 | D61: 0 | E61: 0 | F61: 73.2059 | G61: 0 | H61: 0 | I61: 0 | J61: 0
A62: 24141.47521 | B62: 0 | C62: 0 | D62: 0 | E62: 0 | F62: 73.2835 | G62: 0 | H62: 0 | I62: 0 | J62: 0
A63: 24196.19521 | B63: 0 | C63: 0 | D63: 0 | E63: 0 | F63: 73.2835 | G63: 0 | H63: 0 | I63: 0 | J63: 0
A64: 24196.19521 | B64: 0 | C64: 0 | D64: 0 | E64: 0 | F64: 73.4391 | G64: 0 | H64: 0 | I64: 0 | J64: 0
A65: 24776.99521 | B65: 0 | C65: 0 | D65: 0 | E65: 0 | F65: 73.4391 | G65: 0 | H65: 0 | I65: 0 | J65: 0
A66: 24776.99521 | B66: 0 | C66: 0 | D66: 0 | E66: 0 | F66: 73.8312 | G66: 0 | H66: 0 | I66: 0 | J66: 0
A67: 25444.19521 | B67: 0 | C67: 0 | D67: 0 | E67: 0 | F67: 73.8312 | G67: 0 | H67: 0 | I67: 0 | J67: 0
A68: 25444.19521 | B68: 0 | C68: 0 | D68: 0 | E68: 0 | F68: 73.9101 | G68: 0 | H68: 0 | I68: 0 | J68: 0
A69: 26040.99521 | B69: 0 | C69: 0 | D69: 0 | E69: 0 | F69: 73.9101 | G69: 0 | H69: 0 | I69: 0 | J69: 0
A70: 26040.99521 | B70: 0 | C70: 0 | D70: 0 | E70: 74.8647 | F70: 0 | G70: 0 | H70: 0 | I70: 0 | J70: 0
A71: 27127.62521 | B71: 0 | C71: 0 | D71: 0 | E71: 74.8647 | F71: 0 | G71: 0 | H71: 0 | I71: 0 | J71: 0
A72: 27127.62521 | B72: 0 | C72: 0 | D72: 0 | E72: 0 | F72: 75.0333 | G72: 0 | H72: 0 | I72: 0 | J72: 0
A73: 27505.22521 | B73: 0 | C73: 0 | D73: 0 | E73: 0 | F73: 75.0333 | G73: 0 | H73: 0 | I73: 0 | J73: 0
A74: 27505.22521 | B74: 0 | C74: 0 | D74: 0 | E74: 0 | F74: 75.443 | G74: 0 | H74: 0 | I74: 0 | J74: 0
A75: 28926.82521 | B75: 0 | C75: 0 | D75: 0 | E75: 0 | F75: 75.443 | G75: 0 | H75: 0 | I75: 0 | J75: 0
A76: 28926.82521 | B76: 0 | C76: 0 | D76: 0 | E76: 0 | F76: 75.8572 | G76: 0 | H76: 0 | I76: 0 | J76: 0
A77: 29549.22521 | B77: 0 | C77: 0 | D77: 0 | E77: 0 | F77: 75.8572 | G77: 0 | H77: 0 | I77: 0 | J77: 0
A78: 29549.22521 | B78: 0 | C78: 0 | D78: 0 | E78: 0 | F78: 76.6996 | G78: 0 | H78: 0 | I78: 0 | J78: 0
A79: 29829.22521 | B79: 0 | C79: 0 | D79: 0 | E79: 0 | F79: 76.6996 | G79: 0 | H79: 0 | I79: 0 | J79: 0
A80: 29829.22521 | B80: 0 | C80: 0 | D80: 0 | E80: 0 | F80: 77.128 | G80: 0 | H80: 0 | I80: 0 | J80: 0
A81: 30087.62521 | B81: 0 | C81: 0 | D81: 0 | E81: 0 | F81: 77.128 | G81: 0 | H81: 0 | I81: 0 | J81: 0
A82: 30087.62521 | B82: 0 | C82: 0 | D82: 0 | E82: 0 | F82: 77.5613 | G82: 0 | H82: 0 | I82: 0 | J82: 0
A83: 30705.22521 | B83: 0 | C83: 0 | D83: 0 | E83: 0 | F83: 77.5613 | G83: 0 | H83: 0 | I83: 0 | J83: 0
A84: 30705.22521 | B84: 0 | C84: 0 | D84: 0 | E84: 78.1062 | F84: 0 | G84: 0 | H84: 0 | I84: 0 | J84: 0
A85: 30961.87521 | B85: 0 | C85: 0 | D85: 0 | E85: 78.1062 | F85: 0 | G85: 0 | H85: 0 | I85: 0 | J85: 0
A86: 30961.87521 | B86: 0 | C86: 0 | D86: 0 | E86: 0 | F86: 78.443 | G86: 0 | H86: 0 | I86: 0 | J86: 0
A87: 31513.87521 | B87: 0 | C87: 0 | D87: 0 | E87: 0 | F87: 78.443 | G87: 0 | H87: 0 | I87: 0 | J87: 0
A88: 31513.87521 | B88: 0 | C88: 0 | D88: 0 | E88: 0 | F88: 78.5322 | G88: 0 | H88: 0 | I88: 0 | J88: 0
A89: 31925.07521 | B89: 0 | C89: 0 | D89: 0 | E89: 0 | F89: 78.5322 | G89: 0 | H89: 0 | I89: 0 | J89: 0
A90: 31925.07521 | B90: 0 | C90: 0 | D90: 0 | E90: 78.6909 | F90: 0 | G90: 0 | H90: 0 | I90: 0 | J90: 0
A91: 31949.7632 | B91: 0 | C91: 0 | D91: 0 | E91: 78.6909 | F91: 0 | G91: 0 | H91: 0 | I91: 0 | J91: 0
A92: 31949.7632 | B92: 0 | C92: 0 | D92: 0 | E92: 0 | F92: 79.8043 | G92: 0 | H92: 0 | I92: 0 | J92: 0
A93: 32047.3632 | B93: 0 | C93: 0 | D93: 0 | E93: 0 | F93: 79.8043 | G93: 0 | H93: 0 | I93: 0 | J93: 0
A94: 32047.3632 | B94: 0 | C94: 0 | D94: 0 | E94: 0 | F94: 80.7389 | G94: 0 | H94: 0 | I94: 0 | J94: 0
A95: 32089.7632 | B95: 0 | C95: 0 | D95: 0 | E95: 0 | F95: 80.7389 | G95: 0 | H95: 0 | I95: 0 | J95: 0
A96: 32089.7632 | B96: 0 | C96: 0 | D96: 0 | E96: 0 | F96: 82.7758 | G96: 0 | H96: 0 | I96: 0 | J96: 0
A97: 32134.2112 | B97: 0 | C97: 0 | D97: 0 | E97: 0 | F97: 82.7758 | G97: 0 | H97: 0 | I97: 0 | J97: 0
A98: 32134.2112 | B98: 0 | C98: 0 | D98: 0 | E98: 0 | F98: 83.1757 | G98: 0 | H98: 0 | I98: 0 | J98: 0
A99: 32637.4112 | B99: 0 | C99: 0 | D99: 0 | E99: 0 | F99: 83.1757 | G99: 0 | H99: 0 | I99: 0 | J99: 0
A100: 32637.4112 | B100: 0 | C100: 0 | D100: 0 | E100: 0 | F100: 83.6811 | G100: 0 | H100: 0 | I100: 0 | J100: 0
A101: 33045.4112 | B101: 0 | C101: 0 | D101: 0 | E101: 0 | F101: 83.6811 | G101: 0 | H101: 0 | I101: 0 | J101: 0
A102: 33045.4112 | B102: 0 | C102: 0 | D102: 0 | E102: 0 | F102: 83.9463 | G102: 0 | H102: 0 | I102: 0 | J102: 0
A103: 33048.6728 | B103: 0 | C103: 0 | D103: 0 | E103: 0 | F103: 83.9463 | G103: 0 | H103: 0 | I103: 0 | J103: 0
A104: 33048.6728 | B104: 0 | C104: 0 | D104: 0 | E104: 0 | F104: 84.1927 | G104: 0 | H104: 0 | I104: 0 | J104: 0
A105: 33315.0728 | B105: 0 | C105: 0 | D105: 0 | E105: 0 | F105: 84.1927 | G105: 0 | H105: 0 | I105: 0 | J105: 0
A106: 33315.0728 | B106: 0 | C106: 0 | D106: 0 | E106: 0 | F106: 84.7108 | G106: 0 | H106: 0 | I106: 0 | J106: 0
A107: 35097.3928 | B107: 0 | C107: 0 | D107: 0 | E107: 0 | F107: 84.7108 | G107: 0 | H107: 0 | I107: 0 | J107: 0
A108: 35097.3928 | B108: 0 | C108: 0 | D108: 0 | E108: 0 | F108: 85.2354 | G108: 0 | H108: 0 | I108: 0 | J108: 0
A109: 35459.3928 | B109: 0 | C109: 0 | D109: 0 | E109: 0 | F109: 85.2354 | G109: 0 | H109: 0 | I109: 0 | J109: 0
A110: 35459.3928 | B110: 0 | C110: 0 | D110: 0 | E110: 0 | F110: 85.7667 | G110: 0 | H110: 0 | I110: 0 | J110: 0
A111: 35508.5928 | B111: 0 | C111: 0 | D111: 0 | E111: 0 | F111: 85.7667 | G111: 0 | H111: 0 | I111: 0 | J111: 0
A112: 35508.5928 | B112: 0 | C112: 0 | D112: 0 | E112: 0 | F112: 87.4015 | G112: 0 | H112: 0 | I112: 0 | J112: 0
A113: 35786.1928 | B113: 0 | C113: 0 | D113: 0 | E113: 0 | F113: 87.4015 | G113: 0 | H113: 0 | I113: 0 | J113: 0
A114: 35786.1928 | B114: 0 | C114: 0 | D114: 0 | E114: 0 | F114: 87.9606 | G114: 0 | H114: 0 | I114: 0 | J114: 0
A115: 35822.1928 | B115: 0 | C115: 0 | D115: 0 | E115: 0 | F115: 87.9606 | G115: 0 | H115: 0 | I115: 0 | J115: 0
A116: 35822.1928 | B116: 0 | C116: 0 | D116: 0 | E116: 0 | F116: 89.1009 | G116: 0 | H116: 0 | I116: 0 | J116: 0
A117: 35858.1928 | B117: 0 | C117: 0 | D117: 0 | E117: 0 | F117: 89.1009 | G117: 0 | H117: 0 | I117: 0 | J117: 0
A118: 35858.1928 | B118: 0 | C118: 0 | D118: 0 | E118: 0 | F118: 89.6823 | G118: 0 | H118: 0 | I118: 0 | J118: 0
A119: 36434.1928 | B119: 0 | C119: 0 | D119: 0 | E119: 0 | F119: 89.6823 | G119: 0 | H119: 0 | I119: 0 | J119: 0
A120: 36434.1928 | B120: 0 | C120: 0 | D120: 0 | E120: 0 | F120: 90.2715 | G120: 0 | H120: 0 | I120: 0 | J120: 0
A121: 36461.6328 | B121: 0 | C121: 0 | D121: 0 | E121: 0 | F121: 90.2715 | G121: 0 | H121: 0 | I121: 0 | J121: 0
A122: 36461.6328 | B122: 0 | C122: 0 | D122: 0 | E122: 0 | F122: 91.4739 | G122: 0 | H122: 0 | I122: 0 | J122: 0
A123: 36630.4328 | B123: 0 | C123: 0 | D123: 0 | E123: 0 | F123: 91.4739 | G123: 0 | H123: 0 | I123: 0 | J123: 0
A124: 36630.4328 | B124: 0 | C124: 0 | D124: 0 | E124: 0 | F124: 0 | G124: 0 | H124: 0 | I124: 92.1367 | J124: 0
A125: 36717.1328 | B125: 0 | C125: 0 | D125: 0 | E125: 0 | F125: 0 | G125: 0 | H125: 0 | I125: 92.1367 | J125: 0
A126: 36717.1328 | B126: 0 | C126: 0 | D126: 0 | E126: 0 | F126: 93.9787 | G126: 0 | H126: 0 | I126: 0 | J126: 0
A127: 36919.5328 | B127: 0 | C127: 0 | D127: 0 | E127: 0 | F127: 93.9787 | G127: 0 | H127: 0 | I127: 0 | J127: 0
A128: 36919.5328 | B128: 0 | C128: 0 | D128: 0 | E128: 0 | F128: 95.9506 | G128: 0 | H128: 0 | I128: 0 | J128: 0
A129: 36943.4528 | B129: 0 | C129: 0 | D129: 0 | E129: 0 | F129: 95.9506 | G129: 0 | H129: 0 | I129: 0 | J129: 0
A130: 36943.4528 | B130: 0 | C130: 0 | D130: 0 | E130: 0 | F130: 96.6267 | G130: 0 | H130: 0 | I130: 0 | J130: 0
A131: 36965.3768 | B131: 0 | C131: 0 | D131: 0 | E131: 0 | F131: 96.6267 | G131: 0 | H131: 0 | I131: 0 | J131: 0
A132: 36965.3768 | B132: 0 | C132: 0 | D132: 0 | E132: 96.9065 | F132: 0 | G132: 0 | H132: 0 | I132: 0 | J132: 0
A133: 36978.4268 | B133: 0 | C133: 0 | D133: 0 | E133: 96.9065 | F133: 0 | G133: 0 | H133: 0 | I133: 0 | J133: 0
A134: 36978.4268 | B134: 0 | C134: 0 | D134: 0 | E134: 0 | F134: 97.3125 | G134: 0 | H134: 0 | I134: 0 | J134: 0
A135: 37254.4268 | B135: 0 | C135: 0 | D135: 0 | E135: 0 | F135: 97.3125 | G135: 0 | H135: 0 | I135: 0 | J135: 0
A136: 37254.4268 | B136: 0 | C136: 0 | D136: 0 | E136: 0 | F136: 98.0082 | G136: 0 | H136: 0 | I136: 0 | J136: 0
A137: 37530.4268 | B137: 0 | C137: 0 | D137: 0 | E137: 0 | F137: 98.0082 | G137: 0 | H137: 0 | I137: 0 | J137: 0
A138: 37530.4268 | B138: 0 | C138: 0 | D138: 0 | E138: 0 | F138: 98.828 | G138: 0 | H138: 0 | I138: 0 | J138: 0
A139: 37584.1868 | B139: 0 | C139: 0 | D139: 0 | E139: 0 | F139: 98.828 | G139: 0 | H139: 0 | I139: 0 | J139: 0
A140: 37584.1868 | B140: 0 | C140: 0 | D140: 0 | E140: 99.6885 | F140: 0 | G140: 0 | H140: 0 | I140: 0 | J140: 0
A141: 37642.4768 | B141: 0 | C141: 0 | D141: 0 | E141: 99.6885 | F141: 0 | G141: 0 | H141: 0 | I141: 0 | J141: 0
A142: 37642.4768 | B142: 0 | C142: 0 | D142: 0 | E142: 0 | F142: 100.1573 | G142: 0 | H142: 0 | I142: 0 | J142: 0
A143: 37670.3968 | B143: 0 | C143: 0 | D143: 0 | E143: 0 | F143: 100.1573 | G143: 0 | H143: 0 | I143: 0 | J143: 0
A144: 37670.3968 | B144: 0 | C144: 0 | D144: 0 | E144: 0 | F144: 102.404 | G144: 0 | H144: 0 | I144: 0 | J144: 0
A145: 37784.8608 | B145: 0 | C145: 0 | D145: 0 | E145: 0 | F145: 102.404 | G145: 0 | H145: 0 | I145: 0 | J145: 0
A146: 37784.8608 | B146: 0 | C146: 0 | D146: 0 | E146: 0 | F146: 0 | G146: 104.7224 | H146: 0 | I146: 0 | J146: 0
A147: 37914.2298 | B147: 0 | C147: 0 | D147: 0 | E147: 0 | F147: 0 | G147: 104.7224 | H147: 0 | I147: 0 | J147: 0
A148: 37914.2298 | B148: 0 | C148: 0 | D148: 0 | E148: 0 | F148: 106.3845 | G148: 0 | H148: 0 | I148: 0 | J148: 0
A149: 37933.6874 | B149: 0 | C149: 0 | D149: 0 | E149: 0 | F149: 106.3845 | G149: 0 | H149: 0 | I149: 0 | J149: 0
A150: 37933.6874 | B150: 0 | C150: 0 | D150: 0 | E150: 0 | F150: 0 | G150: 107.7583 | H150: 0 | I150: 0 | J150: 0
A151: 38905.3034 | B151: 0 | C151: 0 | D151: 0 | E151: 0 | F151: 0 | G151: 107.7583 | H151: 0 | I151: 0 | J151: 0
A152: 38905.3034 | B152: 0 | C152: 0 | D152: 0 | E152: 0 | F152: 0 | G152: 108.5454 | H152: 0 | I152: 0 | J152: 0
A153: 39133.17815 | B153: 0 | C153: 0 | D153: 0 | E153: 0 | F153: 0 | G153: 108.5454 | H153: 0 | I153: 0 | J153: 0
A154: 39133.17815 | B154: 0 | C154: 0 | D154: 0 | E154: 0 | F154: 0 | G154: 109.1657 | H154: 0 | I154: 0 | J154: 0
A155: 39621.24815 | B155: 0 | C155: 0 | D155: 0 | E155: 0 | F155: 0 | G155: 109.1657 | H155: 0 | I155: 0 | J155: 0
A156: 39621.24815 | B156: 0 | C156: 0 | D156: 0 | E156: 0 | F156: 0 | G156: 109.3443 | H156: 0 | I156: 0 | J156: 0
A157: 39627.07715 | B157: 0 | C157: 0 | D157: 0 | E157: 0 | F157: 0 | G157: 109.3443 | H157: 0 | I157: 0 | J157: 0
A158: 39627.07715 | B158: 0 | C158: 0 | D158: 0 | E158: 0 | F158: 0 | G158: 109.8835 | H158: 0 | I158: 0 | J158: 0
A159: 39791.94215 | B159: 0 | C159: 0 | D159: 0 | E159: 0 | F159: 0 | G159: 109.8835 | H159: 0 | I159: 0 | J159: 0
A160: 39791.94215 | B160: 0 | C160: 0 | D160: 0 | E160: 0 | F160: 0 | G160: 110.1551 | H160: 0 | I160: 0 | J160: 0
A161: 39847.24805 | B161: 0 | C161: 0 | D161: 0 | E161: 0 | F161: 0 | G161: 110.1551 | H161: 0 | I161: 0 | J161: 0
A162: 39847.24805 | B162: 0 | C162: 0 | D162: 0 | E162: 0 | F162: 0 | G162: 110.4281 | H162: 0 | I162: 0 | J162: 0
A163: 40583.26805 | B163: 0 | C163: 0 | D163: 0 | E163: 0 | F163: 0 | G163: 110.4281 | H163: 0 | I163: 0 | J163: 0
A164: 40583.26805 | B164: 0 | C164: 0 | D164: 0 | E164: 0 | F164: 0 | G164: 0 | H164: 0 | I164: 111.2865 | J164: 0
A165: 40599.41805 | B165: 0 | C165: 0 | D165: 0 | E165: 0 | F165: 0 | G165: 0 | H165: 0 | I165: 111.2865 | J165: 0
A166: 40599.41805 | B166: 0 | C166: 0 | D166: 0 | E166: 0 | F166: 0 | G166: 111.3481 | H166: 0 | I166: 0 | J166: 0
A167: 41780.00805 | B167: 0 | C167: 0 | D167: 0 | E167: 0 | F167: 0 | G167: 111.3481 | H167: 0 | I167: 0 | J167: 0
A168: 41780.00805 | B168: 0 | C168: 0 | D168: 0 | E168: 0 | F168: 0 | G168: 111.7205 | H168: 0 | I168: 0 | J168: 0
A169: 42142.79805 | B169: 0 | C169: 0 | D169: 0 | E169: 0 | F169: 0 | G169: 111.7205 | H169: 0 | I169: 0 | J169: 0
A170: 42142.79805 | B170: 0 | C170: 0 | D170: 0 | E170: 0 | F170: 0 | G170: 112.6625 | H170: 0 | I170: 0 | J170: 0
A171: 42422.76579 | B171: 0 | C171: 0 | D171: 0 | E171: 0 | F171: 0 | G171: 112.6625 | H171: 0 | I171: 0 | J171: 0
A172: 42422.76579 | B172: 0 | C172: 0 | D172: 0 | E172: 0 | F172: 0 | G172: 113.5243 | H172: 0 | I172: 0 | J172: 0
A173: 42629.19069 | B173: 0 | C173: 0 | D173: 0 | E173: 0 | F173: 0 | G173: 113.5243 | H173: 0 | I173: 0 | J173: 0
A174: 42629.19069 | B174: 0 | C174: 0 | D174: 0 | E174: 0 | F174: 0 | G174: 113.6208 | H174: 0 | I174: 0 | J174: 0
A175: 43363.47069 | B175: 0 | C175: 0 | D175: 0 | E175: 0 | F175: 0 | G175: 113.6208 | H175: 0 | I175: 0 | J175: 0
A176: 43363.47069 | B176: 0 | C176: 0 | D176: 0 | E176: 0 | F176: 0 | G176: 114.2038 | H176: 0 | I176: 0 | J176: 0
A177: 44074.26069 | B177: 0 | C177: 0 | D177: 0 | E177: 0 | F177: 0 | G177: 114.2038 | H177: 0 | I177: 0 | J177: 0
A178: 44074.26069 | B178: 0 | C178: 0 | D178: 0 | E178: 0 | F178: 0 | G178: 115.2884 | H178: 0 | I178: 0 | J178: 0
A179: 44770.26069 | B179: 0 | C179: 0 | D179: 0 | E179: 0 | F179: 0 | G179: 115.2884 | H179: 0 | I179: 0 | J179: 0
A180: 44770.26069 | B180: 0 | C180: 0 | D180: 0 | E180: 0 | F180: 0 | G180: 117.109 | H180: 0 | I180: 0 | J180: 0
A181: 45356.3736 | B181: 0 | C181: 0 | D181: 0 | E181: 0 | F181: 0 | G181: 117.109 | H181: 0 | I181: 0 | J181: 0
A182: 45356.3736 | B182: 0 | C182: 0 | D182: 0 | E182: 0 | F182: 0 | G182: 118.0414 | H182: 0 | I182: 0 | J182: 0
A183: 45683.8416 | B183: 0 | C183: 0 | D183: 0 | E183: 0 | F183: 0 | G183: 118.0414 | H183: 0 | I183: 0 | J183: 0
A184: 45683.8416 | B184: 0 | C184: 0 | D184: 0 | E184: 0 | F184: 0 | G184: 118.9889 | H184: 0 | I184: 0 | J184: 0
A185: 45808.20288 | B185: 0 | C185: 0 | D185: 0 | E185: 0 | F185: 0 | G185: 118.9889 | H185: 0 | I185: 0 | J185: 0
A186: 45808.20288 | B186: 0 | C186: 0 | D186: 0 | E186: 0 | F186: 0 | G186: 119.7365 | H186: 0 | I186: 0 | J186: 0
A187: 46090.54746 | B187: 0 | C187: 0 | D187: 0 | E187: 0 | F187: 0 | G187: 119.7365 | H187: 0 | I187: 0 | J187: 0
A188: 46090.54746 | B188: 0 | C188: 0 | D188: 0 | E188: 0 | F188: 0 | G188: 119.9519 | H188: 0 | I188: 0 | J188: 0
A189: 46103.44086 | B189: 0 | C189: 0 | D189: 0 | E189: 0 | F189: 0 | G189: 119.9519 | H189: 0 | I189: 0 | J189: 0
A190: 46103.44086 | B190: 0 | C190: 0 | D190: 0 | E190: 0 | F190: 0 | G190: 120.9308 | H190: 0 | I190: 0 | J190: 0
A191: 46222.63086 | B191: 0 | C191: 0 | D191: 0 | E191: 0 | F191: 0 | G191: 120.9308 | H191: 0 | I191: 0 | J191: 0
A192: 46222.63086 | B192: 0 | C192: 0 | D192: 0 | E192: 0 | F192: 0 | G192: 121.9261 | H192: 0 | I192: 0 | J192: 0
A193: 46946.47086 | B193: 0 | C193: 0 | D193: 0 | E193: 0 | F193: 0 | G193: 121.9261 | H193: 0 | I193: 0 | J193: 0
A194: 46946.47086 | B194: 0 | C194: 0 | D194: 0 | E194: 121.9408 | F194: 0 | G194: 0 | H194: 0 | I194: 0 | J194: 0
A195: 47031.73086 | B195: 0 | C195: 0 | D195: 0 | E195: 121.9408 | F195: 0 | G195: 0 | H195: 0 | I195: 0 | J195: 0
A196: 47031.73086 | B196: 0 | C196: 0 | D196: 0 | E196: 0 | F196: 0 | G196: 122.9381 | H196: 0 | I196: 0 | J196: 0
A197: 47129.60586 | B197: 0 | C197: 0 | D197: 0 | E197: 0 | F197: 0 | G197: 122.9381 | H197: 0 | I197: 0 | J197: 0
A198: 47129.60586 | B198: 0 | C198: 0 | D198: 0 | E198: 0 | F198: 0 | G198: 0 | H198: 123.4672 | I198: 0 | J198: 0
A199: 47163.01386 | B199: 0 | C199: 0 | D199: 0 | E199: 0 | F199: 0 | G199: 0 | H199: 123.4672 | I199: 0 | J199: 0
A200: 47163.01386 | B200: 0 | C200: 0 | D200: 0 | E200: 0 | F200: 0 | G200: 0 | H200: 0 | I200: 0 | J200: 123.8681
... 315 more rows

Sheet Kraftwerksliste Backend (hidden)
C3: EWI Merit Order Tool 2022
C5: Power-Plant List | L5: =Imprint!F5 -> Version 2022.0_en
C7: Brief explanation of the list and basic data sources
C10: Included in the Merit Order? | D10: MaStR-Nr. | E10: Power Plant Identification Number of the Federal Network Agency | F10: Company | G10: Unit Name | H10: Begin of Commercial Electricity Generation | I10: Assigned Power Plant Type | J10: Efficiency | K10: Mean Available Net Nominal Capacity [MW] | L10: Marginal Costs [EUR/MWhel]
C11: No | D11: (optional) | E11: (optional) | F11: (optional) | G11: (optional) | H11: (optional) | I11: (required) | J11: (required) | K11: 0 | L11: 0
C12: No | D12: (optional) | E12: (optional) | F12: (optional) | G12: (optional) | H12: (optional) | I12: (required) | J12: (required) | K12: 0 | L12: 0
C13: No | D13: (optional) | E13: (optional) | F13: (optional) | G13: (optional) | H13: (optional) | I13: (required) | J13: (required) | K13: 0 | L13: 0
C14: No | D14: (optional) | E14: (optional) | F14: (optional) | G14: (optional) | H14: (optional) | I14: (required) | J14: (required) | K14: 0 | L14: 0
C15: No | D15: (optional) | E15: (optional) | F15: (optional) | G15: (optional) | H15: (optional) | I15: (required) | J15: (required) | K15: 0 | L15: 0
C16: No | D16: (optional) | E16: (optional) | F16: (optional) | G16: (optional) | H16: (optional) | I16: (required) | J16: (required) | K16: 0 | L16: 0
C17: No | D17: (optional) | E17: (optional) | F17: (optional) | G17: (optional) | H17: (optional) | I17: (required) | J17: (required) | K17: 0 | L17: 0
C18: No | D18: (optional) | E18: (optional) | F18: (optional) | G18: (optional) | H18: (optional) | I18: (required) | J18: (required) | K18: 0 | L18: 0
C19: No | D19: (optional) | E19: (optional) | F19: (optional) | G19: (optional) | H19: (optional) | I19: (required) | J19: (required) | K19: 0 | L19: 0
C20: No | D20: (optional) | E20: (optional) | F20: (optional) | G20: (optional) | H20: (optional) | I20: (required) | J20: (required) | K20: 0 | L20: 0
C21: Yes | D21: SEE988848971327 | E21: BNA0084 | F21: Vattenfall Wärme Berlin AG | G21: HKW Reuter, Dampfturbine M | H21: 1998-02-04 | I21: Waste | J21: 0.33 | K21: 30.6 | L21: 1
C22: Yes | D22: SEE956268312785 | E22: BNA0088b | F22: Solvay Chemicals GmbH Werk Bernburg | G22: Kondensationsturbine EKT | H22: 2009-12-17 | I22: Waste | J22: 0.33 | K22: 20.4 | L22: 1
C23: Yes | D23: SEE924302504816 | E23: BNA0117a | F23: Energie- und Wasserversorgung Bonn/Rhein-Sieg GmbH | G23: HKW Bonn-Nord, Turbogruppe 4 | H23: 1991-04-01 | I23: Waste | J23: 0.33 | K23: 12.002 | L23: 1
C24: Yes | D24: SEE958310939391 | E24: BNA0139 | F24: swb Entsorgung GmbH&Co. KG | G24: MKK | H24: 2009-08-28 | I24: Waste | J24: 0.33 | K24: 27.2 | L24: 1
C25: Yes | D25: SEE944111876263 | E25: BNA0237 | F25: Progroup Power 1 GmbH | G25: PPO1 - Eisenhüttenstadt | H25: 2009-10-19 | I25: Waste | J25: 0.33 | K25: 27.2 | L25: 1
C26: Yes | D26: SEE999588015110 | E26: BNA0287a | F26: MHKW Müllheizkraftwerk Frankfurt am Main GmbH | G26: Turbine 3 | H26: 1986-12-12 | I26: Waste | J26: 0.33 | K26: 22.1 | L26: 1
C27: Yes | D27: SEE912257091857 | E27: BNA0287b | F27: MHKW Müllheizkraftwerk Frankfurt am Main GmbH | G27: Turbine 7 | H27: 2005-12-21 | I27: Waste | J27: 0.33 | K27: 39.525 | L27: 1
C28: Yes | D28: SEE928761575349 | E28: BNA0380 | F28: EEW Großräschen GmbH | G28: EEW Großräschen GmbH | H28: 2008-01-16 | I28: Waste | J28: 0.33 | K28: 21.25 | L28: 1
C29: Yes | D29: SEE977898966292 | E29: BNA0398 | F29: MVR Müllverwertung Rugenberger Damm GmbH & Co. KG | G29: MVR Rugenberger Damm Müll | H29: 1999-02-16 | I29: Waste | J29: 0.33 | K29: 20.29375 | L29: 1
C30: Yes | D30: SEE927716043575 | E30: BNA0417 | F30: EEW Energy from Waste Hannover GmbH | G30: MVA EEW Hannover | H30: 2005-06-01 | I30: Waste | J30: 0.33 | K30: 25.16 | L30: 1
C31: Yes | D31: SEE906215229154 | E31: BNA0438 | F31: EEW Energy from Waste Helmstedt GmbH | G31: MVA EEW Helmstedt | H31: 2014-01-01 | I31: Waste | J31: 0.33 | K31: 31.875 | L31: 1
C32: Yes | D32: SEE904604163027 | E32: BNA0519 | F32: RWE Generation SE | G32: Karnap B | H32: 1987-02-14 | I32: Waste | J32: 0.33 | K32: 32.3 | L32: 1
C33: Yes | D33: SEE981876305560 | E33: BNA0590 | F33: MVV Umwelt Asset GmbH | G33: TREA Leuna 1 | H33: 2005-08-26 | I33: Waste | J33: 0.33 | K33: 13.80825 | L33: 1
C34: Yes | D34: SEE925794342412 | E34: BNA0591 | F34: MVV Umwelt Asset GmbH | G34: TREA Leuna 2 | H34: 2007-06-19 | I34: Waste | J34: 0.33 | K34: 13.80825 | L34: 1
C35: Yes | D35: SEE957830042178 | E35: BNA0599 | F35: AVEA Entsorgungsbetriebe | G35: Turbine 3 | H35: 2010-08-09 | I35: Waste | J35: 0.33 | K35: 15.8525 | L35: 1
C36: Yes | D36: SEE940474859066 | E36: BNA0616a | F36: BASF SE | G36: Z564 VT1 | H36: 1992-04-30 | I36: Waste | J36: 0.33 | K36: 10.2 | L36: 1
C37: Yes | D37: SEE962737235608 | E37: BNA0622 | F37: Müllheizkraftwerk Rothensee GmbH | G37: Block 1 | H37: 2005-07-17 | I37: Waste | J37: 0.33 | K37: 24.82 | L37: 1
C38: Yes | D38: SEE999819576335 | E38: BNA0623 | F38: Müllheizkraftwerk Rothensee GmbH | G38: Block 2 | H38: 2006-09-08 | I38: Waste | J38: 0.33 | K38: 28.56 | L38: 1
C39: Yes | D39: SEE923959807806 | E39: BNA0640 | F39: BASF SE | G39: Turbine 3 | H39: 2006-11-10 | I39: Waste | J39: 0.33 | K39: 10.88 | L39: 1
C40: Yes | D40: SEE904983741502 | E40: BNA0641a | F40: MVV Umwelt Asset GmbH | G40: MHKW Mannheim Generator T60 | H40: 2010-01-07 | I40: Waste | J40: 0.33 | K40: 21.76 | L40: 1
C41: Yes | D41: SEE953730197888 | E41: BNA0641b | F41: MVV Umwelt Asset GmbH | G41: MHKW Mannheim Generator TD0 | H41: 2012-08-13 | I41: Waste | J41: 0.33 | K41: 3.621 | L41: 1
C42: Yes | D42: SEE948093740512 | E42: BNA0641c | F42: MVV Umwelt Asset GmbH | G42: MHKW Mannheim Generator TE0 | H42: 2012-06-14 | I42: Waste | J42: 0.33 | K42: 3.621 | L42: 1
C43: Yes | D43: SEE977770417713 | E43: BNA0693 | F43: SWN Stadtwerke Neumünster GmbH | G43: T3 | H43: 1979-07-06 | I43: Waste | J43: 0.33 | K43: 10.6437 | L43: 1
C44: Yes | D44: SEE981003349412 | E44: BNA0693 | F44: SWN Stadtwerke Neumünster GmbH | G44: T6 | H44: 2014-09-16 | I44: Waste | J44: 0.33 | K44: 18.5827 | L44: 1
C45: Yes | D45: SEE900128586359 | E45: BNA0746 | F45: N-ERGIE Kraftwerke GmbH | G45: HKW-Sandreuth (Müll) | H45: 1992-07-17 | I45: Waste | J45: 0.33 | K45: 15.98 | L45: 1
C46: Yes | D46: SEE993054223955 | E46: BNA0750 | F46: GMVA Gemeinschafts-Müll-Verbrennungsanlage Niederrhein GmbH | G46: „Turbosatz 2“ | H46: 1991-10-17 | I46: Waste | J46: 0.33 | K46: 34.34 | L46: 1
C47: Yes | D47: SEE955937262338 | E47: BNA0751 | F47: GMVA Gemeinschafts-Müll-Verbrennungsanlage Niederrhein GmbH | G47: „Turbosatz 1“ | H47: 2006-04-06 | I47: Waste | J47: 0.33 | K47: 17.935 | L47: 1
C48: Yes | D48: SEE955718847075 | E48: BNA0845 | F48: Stadtwerke Rosenheim GmbH & Co. KG | G48: DT1 | H48: 1988-01-01 | I48: Waste | J48: 0.33 | K48: 5.865 | L48: 1
C49: Yes | D49: SEE955718847075 | E49: BNA0845 | F49: Stadtwerke Rosenheim GmbH & Co. KG | G49: DT1 | H49: 1988-01-01 | I49: Waste | J49: 0.33 | K49: 5.865 | L49: 1
C50: Yes | D50: SEE924286409503 | E50: BNA0855 | F50: IKW Rüdersdorf | G50: IKW Rüdersdorf | H50: 2007-12-12 | I50: Waste | J50: 0.33 | K50: 25.5 | L50: 1
C51: Yes | D51: SEE942366584926 | E51: BNA0969a | F51: SWM Services GmbH | G51: SWM HKW Nord 1 T10 | H51: 1991-08-29 | I51: Waste | J51: 0.33 | K51: 15.3 | L51: 1
C52: Yes | D52: SEE998278854237 | E52: BNA0969c | F52: SWM Services GmbH | G52: SWM HKW Nord 3 T30 | H52: 1984-03-14 | I52: Waste | J52: 0.33 | K52: 18.7 | L52: 1
C53: Yes | D53: SEE927727929912 | E53: BNA1020 | F53: MVA Weisweiler GmbH & Co. KG | G53: MVA-Turbine | H53: 1996-10-01 | I53: Waste | J53: 0.33 | K53: 22.95 | L53: 1
C54: Yes | D54: SEE996047653111 | E54: BNA1108 | F54: PD energy GmbH | G54: KW TRB Bitterfeld, Bitterfeld-Wolfen, Oststr. 1 | H54: 2009-11-19 | I54: Waste | J54: 0.33 | K54: 9.724 | L54: 1
C55: Yes | D55: SEE955548455112 | E55: BNA1110 | F55: Zweckverband Restmüllheizkraftwerk Böblingen | G55: Restmüllheizkraftwerk | H55: 1999-05-01 | I55: Waste | J55: 0.33 | K55: 11.05 | L55: 1
C56: Yes | D56: SEE972694764301 | E56: BNA1114 | F56: swb Entsorgung GmbH&Co. KG | G56: MHKW_Gen1 | H56: 1984-01-01 | I56: Waste | J56: 0.33 | K56: 2.21 | L56: 1
C57: Yes | D57: SEE986413873564 | E57: BNA1114 | F57: swb Entsorgung GmbH&Co. KG | G57: MHKW_Gen2 | H57: 2004-01-01 | I57: Waste | J57: 0.33 | K57: 11.305 | L57: 1
C58: Yes | D58: SEE950201173198 | E58: BNA1114 | F58: swb Entsorgung GmbH&Co. KG | G58: MHKW_Gen4 | H58: 2013-01-01 | I58: Waste | J58: 0.33 | K58: 41.82 | L58: 1
C59: Yes | D59: SEE927032372373 | E59: BNA1116 | F59: Bremerhavener Entsorgungsgesellschaft mbH | G59: MHKW, Generator 1+2 | H59: 1977-03-17 | I59: Waste | J59: 0.33 | K59: 11.9 | L59: 1
C60: Yes | D60: SEE944429192826 | E60: BNA1119 | F60: Zweckverband Abfallverwertung Südostbayern | G60: SEE944429192826 (MHKW Burgkirchen (Müllverbrennung)) | H60: 1994-01-28 | I60: Waste | J60: 0.33 | K60: 10.88 | L60: 1
C61: Yes | D61: SEE988429673565 | E61: BNA1139 | F61: EEW Energy from Waste Saarbrücken GmbH | G61: TREA Breisgau | H61: 2004-05-17 | I61: Waste | J61: 0.33 | K61: 11.56 | L61: 1
C62: Yes | D62: SEE971280976463 | E62: BNA1144 | F62: EEW Energy from Waste Göppingen | G62: MHKW Turbine | H62: 1975-07-01 | I62: Waste | J62: 0.33 | K62: 9.35 | L62: 1
C63: Yes | D63: SEE955453307926 | E63: BNA1148 | F63: MHB Betriebsführungsgesellschaft mbH | G63: MVA Hamm | H63: 1985-07-01 | I63: Waste | J63: 0.33 | K63: 13.005 | L63: 1
C64: Yes | D64: SEE945150729886 | E64: BNA1154 | F64: AGR Abfallentsorgungs-Gesellschaft Ruhrgebiet mbH | G64: RZR I Turbine1 | H64: 1981-01-01 | I64: Waste | J64: 0.33 | K64: 12.648 | L64: 1
C65: Yes | D65: SEE941568392261 | E65: BNA1154 | F65: AGR Abfallentsorgungs-Gesellschaft Ruhrgebiet mbH | G65: RZR I Turbine2 | H65: 1981-01-01 | I65: Waste | J65: 0.33 | K65: 12.648 | L65: 1
C66: Yes | D66: SEE923271533315 | E66: BNA1155 | F66: RZR II Herten GmbH | G66: RZR II Turbine3 | H66: 2009-01-01 | I66: Waste | J66: 0.33 | K66: 19.975 | L66: 1
C67: Yes | D67: SEE947996339434 | E67: BNA1155 | F67: RZR II Herten GmbH | G67: RZR II Turbine4 | H67: 2019-02-07 | I67: Waste | J67: 0.33 | K67: 10.421 | L67: 1
C68: Yes | D68: SEE951966828576 | E68: BNA1161 | F68: Zweckverband Müllverwertungsanlage Ingolstadt | G68: Turbine VE 32 ZV MVA IN | H68: 1996-09-10 | I68: Waste | J68: 0.33 | K68: 6.29 | L68: 1
C69: Yes | D69: SEE925011950635 | E69: BNA1161 | F69: Zweckverband Müllverwertungsanlage Ingolstadt | G69: Turbine VE 40 ZV MVA IN | H69: 1996-09-10 | I69: Waste | J69: 0.33 | K69: 15.419 | L69: 1
C70: Yes | D70: SEE992947793209 | E70: BNA1167 | F70: Kreis Weseler Abfallgesellschaft mbH & Co.KG | G70: Dampfturbine | H70: 1997-04-01 | I70: Waste | J70: 0.33 | K70: 13.6 | L70: 1
C71: Yes | D71: SEE925652456091 | E71: BNA1168 | F71: Müllheizkraftwerk Kassel GmbH | G71: Müllheizkraftwerk Kassel M7 | H71: 1985-12-17 | I71: Waste | J71: 0.33 | K71: 6.8 | L71: 1
C72: Yes | D72: SEE976589352260 | E72: BNA1168 | F72: Müllheizkraftwerk Kassel GmbH | G72: Müllheizkraftwerk Kassel M8 | H72: 2012-03-12 | I72: Waste | J72: 0.33 | K72: 12.495 | L72: 1
C73: Yes | D73: SEE941568476039 | E73: BNA1184 | F73: AVG Köln mbH | G73: Turbosatz 1 | H73: 1998-02-02 | I73: Waste | J73: 0.33 | K73: 39.1 | L73: 1
C74: Yes | D74: SEE996891820448 | E74: BNA1186a | F74: EGK Entsorgungsgesellschaft Krefeld GmbH & Co. KG | G74: Turbine 3 | H74: 1978-01-01 | I74: Waste | J74: 0.33 | K74: 6.8 | L74: 1
C75: Yes | D75: SEE992607731794 | E75: BNA1186b | F75: EGK Entsorgungsgesellschaft Krefeld GmbH & Co. KG | G75: Turbine 4 | H75: 2001-04-05 | I75: Waste | J75: 0.33 | K75: 7.8455 | L75: 1
C76: Yes | D76: SEE993787055366 | E76: BNA1186c | F76: EGK Entsorgungsgesellschaft Krefeld GmbH & Co. KG | G76: Turbine 2 | H76: 1974-08-27 | I76: Waste | J76: 0.33 | K76: 0.7905 | L76: 1
C77: Yes | D77: SEE925411264011 | E77: BNA1186d | F77: EGK Entsorgungsgesellschaft Krefeld GmbH & Co. KG | G77: Turbine 5 | H77: 1997-12-01 | I77: Waste | J77: 0.33 | K77: 2.465 | L77: 1
C78: Yes | D78: SEE979423615132 | E78: BNA1186e | F78: EGK Entsorgungsgesellschaft Krefeld GmbH & Co. KG | G78: Turbine 1 | H78: 1974-08-27 | I78: Waste | J78: 0.33 | K78: 0.7905 | L78: 1
C79: Yes | D79: SEE934298270268 | E79: BNA1190 | F79: Thermische Abfallbehandlung Lauta | G79: T.A. Lauta | H79: 2004-07-21 | I79: Waste | J79: 0.33 | K79: 17.85 | L79: 1
C80: Yes | D80: SEE942253705168 | E80: BNA1197 | F80: Technische Werke Ludwigshafen am Rhein | G80: FHKW DT 2 | H80: 1989-02-24 | I80: Waste | J80: 0.33 | K80: 10.2595 | L80: 1
C81: Yes | D81: SEE966264899036 | E81: BNA1197 | F81: Technische Werke Ludwigshafen am Rhein | G81: FHKW DT5 | H81: 2005-07-05 | I81: Waste | J81: 0.33 | K81: 7.772672 | L81: 1
C82: Yes | D82: SEE969698095906 | E82: BNA1197 | F82: Technische Werke Ludwigshafen am Rhein | G82: FHKW DT6 | H82: 2018-04-12 | I82: Waste | J82: 0.33 | K82: 4.6636015 | L82: 1
C83: Yes | D83: SEE932127408097 | E83: BNA1198 | F83: PreZero Energy Zorbau GmbH | G83: Generator Zorbau | H83: 2005-06-06 | I83: Waste | J83: 0.33 | K83: 23.12 | L83: 1
C84: Yes | D84: SEE986030306643 | E84: BNA1199 | F84: Entsorgungsgesellschaft Mainz mbH | G84: MHKW DTS | H84: 2009-06-01 | I84: Waste | J84: 0.33 | K84: 12.75 | L84: 1
C85: Yes | D85: SEE938782869693 | E85: BNA1222 | F85: Energieversorgung Offenbach AG | G85: Müllheizkraftwerk Offenbach Turbine 1 | H85: 2016-07-29 | I85: Waste | J85: 0.33 | K85: 12.325 | L85: 1
C86: Yes | D86: SEE965779402670 | E86: BNA1229 | F86: EEW Energy from Waste Saarbrücken GmbH | G86: MHKW Pirmasens Verbrennung | H86: 1999-01-01 | I86: Waste | J86: 0.33 | K86: 12.75 | L86: 1
C87: Yes | D87: SEE940711490885 | E87: BNA1232 | F87: EEW Energy from Waste Premnitz GmbH | G87: ZWSF Premnitz | H87: 2004-01-08 | I87: Waste | J87: 0.33 | K87: 2.125 | L87: 1
C88: Yes | D88: SEE997842921603 | E88: BNA1233 | F88: EEW Energy from Waste Premnitz GmbH | G88: EVE Premnitz | H88: 2009-06-09 | I88: Waste | J88: 0.33 | K88: 21.25 | L88: 1
C89: Yes | D89: SEE946934017984 | E89: BNA1243 | F89: Vattenfall Europe New Energy Ecopower GmbH | G89: EBS-HKW Rostock | H89: 2010-03-31 | I89: Waste | J89: 0.33 | K89: 15.725 | L89: 1
C90: Yes | D90: SEE918821866890 | E90: BNA1254 | F90: Zweckverband Müllverwertung Schwandorf | G90: Müllkraftwerk Schwandorf Turbinen | H90: 1982-08-31 | I90: Waste | J90: 0.33 | K90: 28.05 | L90: 1
C91: Yes | D91: SEE973464796218 | E91: BNA1255 | F91: LEIPA Georg Leinfelder GmbH | G91: Dampfturbine FSK Kuhheide 32a | H91: 2011-04-01 | I91: Waste | J91: 0.33 | K91: 24.5684 | L91: 1
C92: Yes | D92: SEE918623387630 | E92: BNA1261 | F92: EEW Energy from Waste Stapelfeld GmbH | G92: EEW Stapelfeld GmbH | H92: 1979-10-01 | I92: Waste | J92: 0.33 | K92: 13.94 | L92: 1
C93: Yes | D93: SEE950593842498 | E93: BNA1262 | F93: Remondis Thermische Abfallverwertung GmbH | G93: Remondis Thermische Abfallverwertung GmbH | H93: 2007-12-06 | I93: Waste | J93: 0.33 | K93: 20.4 | L93: 1
C94: Yes | D94: SEE951648072822 | E94: BNA1286 | F94: Zweckverband für Abfallwirtschaft Südwestthüringen (ZASt) | G94: ZASt | H94: 2007-10-15 | I94: Waste | J94: 0.33 | K94: 10.285 | L94: 1
C95: Yes | D95: SEE900664653232 | E95: BNA1289 | F95: AMK-Abfallentsorgungsgesellschaft des Märkischen Kreises mbH | G95: Turbine 1 | H95: 1996-08-01 | I95: Waste | J95: 0.33 | K95: 9.095 | L95: 1
C96: Yes | D96: SEE937978171572 | E96: BNA1289 | F96: AMK-Abfallentsorgungsgesellschaft des Märkischen Kreises mbH | G96: Turbine 2 | H96: 1981-04-01 | I96: Waste | J96: 0.33 | K96: 2.89 | L96: 1
C97: Yes | D97: SEE958335974377 | E97: BNA1291 | F97: IHKW Industrieheizkraftwerk Andernach GmbH | G97: Dampfturbine | H97: 2008-12-15 | I97: Waste | J97: 0.33 | K97: 10.625 | L97: 1
C98: Yes | D98: SEE943841929270 | E98: BNA1295 | F98: AVA Abfallverwertung Augsburg Kommunalunternehmen | G98: AHKW HD Turbine | H98: 1994-09-16 | I98: Waste | J98: 0.33 | K98: 6.7745 | L98: 1
C99: Yes | D99: SEE943548208159 | E99: BNA1295 | F99: AVA Abfallverwertung Augsburg Kommunalunternehmen | G99: AHKW ND Turbine | H99: 1994-09-16 | I99: Waste | J99: 0.33 | K99: 5.712 | L99: 1
C100: Yes | D100: SEE994551453975 | E100: BNA1316 | F100: EkoCity | G100: Generator A | H100: 1976-01-01 | I100: Waste | J100: 0.33 | K100: 17 | L100: 1
C101: Yes | D101: SEE945602121718 | E101: BNA1316 | F101: EkoCity | G101: Generator B | H101: 1976-01-01 | I101: Waste | J101: 0.33 | K101: 17 | L101: 1
C102: Yes | D102: SEE917110358740 | E102: BNA1330 | F102: Steinbeis Energie GmbH | G102: Steinbeis Energie EBS Kessel 6 | H102: 2010-09-27 | I102: Waste | J102: 0.33 | K102: 14.45 | L102: 1
C103: Yes | D103: SEE957509710094 | E103: BNA1448 | F103: EEW Energy from Waste Saarbrücken GmbH AHKW-Neunkirchen | G103: AHKW-Neunkirchen | H103: 1977-06-02 | I103: Waste | J103: 0.33 | K103: 9.86 | L103: 1
C104: Yes | D104: SEE990065849372 | E104: BNA1449a | F104: Zweckverband Abfallwirtschaft Raum Würzburg | G104: TS I | H104: 1984-06-04 | I104: Waste | J104: 0.33 | K104: 7.395 | L104: 1
C105: Yes | D105: SEE971796321603 | E105: BNA1449b | F105: Zweckverband Abfallwirtschaft Raum Würzburg | G105: TS II | H105: 1998-11-09 | I105: Waste | J105: 0.33 | K105: 10.2 | L105: 1
C106: Yes | D106: SEE988841475051 | E106: BNA1465a | F106: B+T Energie GmbH | G106: HKW Witzenhausen | H106: 2009-06-24 | I106: Waste | J106: 0.33 | K106: 23.8 | L106: 1
C107: Yes | D107: SEE942777699660 | E107: BNA1490 | F107: EBS Kraftwerk GmbH | G107: EBKW Knapsack | H107: 2009-01-01 | I107: Waste | J107: 0.33 | K107: 25.415 | L107: 1
C108: Yes | D108: SEE937544161082 | E108: BNA1510 | F108: Hamburger Rieger GmbH GB Kraftwerk | G108: EBS Heizkraftwerk Spremberg | H108: 2013-08-01 | I108: Waste | J108: 0.33 | K108: 14.875 | L108: 1
C109: Yes | D109: SEE942956157011 | E109: BNA1867 | F109: AVG Köln mbH | G109: Turbosatz 2 | H109: 2017-05-30 | I109: Waste | J109: 0.33 | K109: 15.3 | L109: 1
C110: Yes | D110: SEE977514334252 | F110: Energieversorgung Offenbach AG | G110: Müllheizkraftwerk Offenbach Turbine 2 | H110: 2006-06-30 | I110: Waste | J110: 0.33 | K110: 1.802 | L110: 1
C111: Yes | D111: SEE990760688887 | F111: Entsorgungsgesellschaft Mainz mbH | G111: MHKW EBT | H111: 2003-01-01 | I111: Waste | J111: 0.33 | K111: 4.25 | L111: 1
C112: Yes | D112: SEE929095613516 | F112: GSB Sonderabfall-Entsorgung Bayern GmbH | G112: Turbine VA2 | H112: 1995-10-06 | I112: Waste | J112: 0.33 | K112: 6.00185 | L112: 1
C113: Yes | D113: SEE906331863386 | F113: GSB Sonderabfall-Entsorgung Bayern GmbH | G113: Turbine VA3 | H113: 1995-12-20 | I113: Waste | J113: 0.33 | K113: 6.00185 | L113: 1
C114: Yes | D114: SEE958909269267 | F114: Infraserv GmbH & Co. Höchst KG | G114: IPH Ersatzbrennstoffverbrennung Turbine | H114: 2014-07-28 | I114: Waste | J114: 0.33 | K114: 60.35 | L114: 1
C115: Yes | D115: SEE953182244383 | F115: MVV Umwelt Asset GmbH | G115: MHKW Mannheim Generator X1 | H115: 2020-03-13 | I115: Waste | J115: 0.33 | K115: 3.468 | L115: 1
C116: Yes | D116: SEE998216550733 | F116: Klingele Papierwerke GmbH & Co. KG Papierfabrik Weener | G116: TWIN 1 | H116: 2008-03-01 | I116: Waste | J116: 0.33 | K116: 3.9865 | L116: 1
C117: Yes | D117: SEE939382623364 | F117: Klingele Papierwerke GmbH & Co. KG Papierfabrik Weener | G117: TWIN2 | H117: 2008-03-01 | I117: Waste | J117: 0.33 | K117: 3.9865 | L117: 1
C118: Yes | D118: SEE909031885047 | F118: Müllverwertung Borsigstraße GmbH | G118: MVB Borsigstraße Müll | H118: 2010-07-16 | I118: Waste | J118: 0.33 | K118: 8.5e-06 | L118: 1
C119: Yes | D119: SEE923791565131 | F119: Zweckverband Müllheizkraftwerk Stadt und Landkreis Bamberg | G119: Rheinstraße | H119: 2016-11-01 | I119: Waste | J119: 0.33 | K119: 9.6271 | L119: 1
C120: Yes | D120: SEE964170331206 | F120: Zweckverband für Abfallwirtschaft in Nordwest-Oberfranken | G120: MHKW Coburg | H120: 1988-01-01 | I120: Waste | J120: 0.33 | K120: 9.01 | L120: 1
C121: Yes | D121: SEE957686843929 | F121: Zweckverband Abfallverwertung Südhessen (ZAS) | G121: Turbine 1 | H121: 1991-10-09 | I121: Waste | J121: 0.33 | K121: 8.6887 | L121: 1
C122: Yes | D122: SEE937822704543 | F122: Zweckverband Abfallverwertung Südhessen (ZAS) | G122: Turbine 2 | H122: 2020-01-27 | I122: Waste | J122: 0.33 | K122: 1.0625 | L122: 1
C123: Yes | F123: Nicht-EEG-Anlagen < 10 MW | I123: Waste | J123: 0.33 | K123: 135.044855 | L123: 1
C124: Yes | D124: SEE927528071629 | E124: BNA0382 | F124: Kernkraftwerk Gundremmingen GmbH | G124: Gundremmingen C | H124: 1984-11-02 | I124: Nuclear | J124: 0.35 | K124: 1197.84 | L124: 16.91428571
C125: Yes | D125: SEE930752846949 | E125: BNA0251 | F125: PreussenElektra | G125: Grohnde | H125: 1984-09-05 | I125: Nuclear | J125: 0.346 | K125: 1264.8 | L125: 17.09595376
C126: Yes | D126: SEE944567587799 | E126: BNA0607 | F126: Kernkraftwerk Lippe-Ems GmbH | G126: Emsland A | H126: 1988-06-20 | I126: Nuclear | J126: 0.345 | K126: 1242.48 | L126: 17.14202899
C127: Yes | D127: SEE951462745445 | E127: BNA0157 | F127: PreussenElektra | G127: Brokdorf | H127: 1986-10-14 | I127: Nuclear | J127: 0.33 | K127: 1311.3 | L127: 17.86666667
C128: Yes | D128: SEE943690268513 | E128: BNA0263 | F128: PreussenElektra | G128: Isar 2 | H128: 1988-01-22 | I128: Nuclear | J128: 0.33 | K128: 1311.3 | L128: 17.86666667
C129: Yes | D129: SEE985577062814 | E129: BNA0686 | F129: EnBW Energie Baden-Württemberg AG | G129: GKN II | H129: 1989-04-15 | I129: Nuclear | J129: 0.33 | K129: 1218.3 | L129: 17.86666667
C130: Yes | D130: SEE968582186379 | E130: BNA1404 | F130: Lausitz Energie Kraftwerke AG | G130: Boxberg Block R | H130: 2012-11-06 | I130: Lignite | J130: 0.437 | K130: 548.1 | L130: 56.95025172
C131: Yes | D131: SEE985453029962 | E131: BNA1185 | F131: Pfeifer & Langen GmbH ＆ Co. KG | G131: Könnern Generator 1 | H131: 1973-01-01 | I131: Lignite | J131: 0.4336 | K131: 7.2645 | L131: 57.38348708
C132: Yes | D132: SEE952937205877 | E132: BNA1185 | F132: Pfeifer & Langen GmbH ＆ Co. KG | G132: Könnern Generator 2 | H132: 1993-09-28 | I132: Lignite | J132: 0.4336 | K132: 17.1129 | L132: 57.38348708
C133: Yes | D133: SEE983252937631 | E133: BNA0709 | F133: RWE Power AG | G133: Niederaußem K | H133: 2003-01-28 | I133: Lignite | J133: 0.43 | K133: 821.28 | L133: 57.84967442
C134: Yes | D134: SEE925599434282 | E134: BNA1401a | F134: RWE Power AG | G134: Neurath F | H134: 2012-08-03 | I134: Lignite | J134: 0.43 | K134: 922.2 | L134: 57.84967442
C135: Yes | D135: SEE993592183001 | E135: BNA1401b | F135: RWE Power AG | G135: Neurath G | H135: 2012-07-08 | I135: Lignite | J135: 0.43 | K135: 922.2 | L135: 57.84967442
C136: Yes | D136: SEE915426748132 | E136: BNA0543 | F136: RheinEnergie AG | G136: Block 6 Merkenich RheinEnergie | H136: 2010-12-16 | I136: Lignite | J136: 0.424 | K136: 65.511 | L136: 58.64424528
C137: Yes | D137: SEE991324265957 | E137: BNA1097 | F137: Smurfit Kappa Zülpich Papier GmbH | G137: DT06 | H137: 2010-10-22 | I137: Lignite | J137: 0.424 | K137: 12.51321 | L137: 58.64424528
C138: Yes | D138: SEE907389779292 | E138: BNA0124 | F138: Lausitz Energie Kraftwerke AG | G138: Boxberg Block Q | H138: 2000-10-01 | I138: Lignite | J138: 0.423 | K138: 730.8 | L138: 58.77886525
C139: Yes | D139: SEE957229968300 | E139: BNA0707 | F139: RWE Power AG | G139: Niederaußem H | H139: 1974-09-16 | I139: Lignite | J139: 0.4216 | K139: 563.76 | L139: 58.96840607
C140: Yes | D140: SEE998199911088 | E140: BNA0116 | F140: EnBW Energie Baden-Württemberg AG | G140: Kraftwerk Lippendorf Block S | H140: 1999-12-01 | I140: Lignite | J140: 0.42 | K140: 775.17 | L140: 59.18657143
C141: Yes | D141: SEE921905907730 | E141: BNA0708 | F141: RWE Power AG | G141: Niederaußem G | H141: 1974-10-23 | I141: Lignite | J141: 0.4192 | K141: 546.36 | L141: 59.29627863
C142: Yes | D142: SEE966331411864 | E142: BNA0115 | F142: Lausitz Energie Kraftwerke AG | G142: Kraftwerk Lippendorf Block R | H142: 2000-06-20 | I142: Lignite | J142: 0.41 | K142: 775.17 | L142: 60.58868293
C143: Yes | D143: SEE938337436349 | E143: BNA0914 | F143: Lausitz Energie Kraftwerke AG | G143: Kraftwerk Schwarze Pumpe Block A | H143: 1997-12-15 | I143: Lignite | J143: 0.41 | K143: 656.85 | L143: 60.58868293
C144: Yes | D144: SEE952672318108 | E144: BNA0915 | F144: Lausitz Energie Kraftwerke AG | G144: Kraftwerk Schwarze Pumpe Block B | H144: 1998-05-25 | I144: Lignite | J144: 0.41 | K144: 656.85 | L144: 60.58868293
C145: Yes | D145: SEE946537967655 | E145: BNA0183 | F145: Stadtwerke Cottbus GmbH | G145: Hochdruckdampfturbine | H145: 1999-02-20 | I145: Lignite | J145: 0.4 | K145: 13.92 | L145: 62.0609
C146: Yes | D146: SEE978888539755 | E146: BNA0183 | F146: Stadtwerke Cottbus GmbH | G146: Mittel-Niederdruckdampfturbine | H146: 1999-03-23 | I146: Lignite | J146: 0.4 | K146: 39.15 | L146: 62.0609
C147: Yes | D147: SEE941974735591 | E147: BNA0183 | F147: Stadtwerke Cottbus GmbH | G147: Rauchgasturbine | H147: 1998-08-29 | I147: Lignite | J147: 0.4 | K147: 11.31 | L147: 62.0609
C148: Yes | D148: SEE960652233358 | E148: BNA0878 | F148: Saale Energie GmbH | G148: Schkopau A | H148: 1995-01-01 | I148: Lignite | J148: 0.4 | K148: 391.5 | L148: 62.0609
C149: Yes | D149: SEE947677200282 | E149: BNA0879 | F149: Saale Energie GmbH | G149: Schkopau B | H149: 1996-01-01 | I149: Lignite | J149: 0.4 | K149: 391.5 | L149: 62.0609
C150: Yes | D150: SEE921449009914 | E150: BNA1461 | F150: CropEnergies Bioethanol GmbH | G150: Dampfturbine IV CropEnergies Zeitz | H150: 2005-01-01 | I150: Lignite | J150: 0.4 | K150: 15.46251 | L150: 62.0609
C151: Yes | D151: SEE986936308987 | E151: BNA1293a | F151: Martinswerk GmbH | G151: KWK-Anlage: Generator 1 | H151: 1961-01-01 | I151: Lignite | J151: 0.388 | K151: 8.613 | L151: 63.92773196
C152: Yes | D152: SEE975343602986 | E152: BNA1293b | F152: Martinswerk GmbH | G152: KWK-Anlage: Generator 2 | H152: 1961-01-01 | I152: Lignite | J152: 0.388 | K152: 8.613 | L152: 63.92773196
C153: Yes | D153: SEE998111672394 | E153: BNA1002 | F153: Mitteldeutsche Braunkohlengesellschaft mbH | G153: IKW Wählitz | H153: 1994-08-25 | I153: Lignite | J153: 0.385 | K153: 26.97 | L153: 64.41262338
C154: Yes | D154: SEE999145467468 | E154: BNA0490a | F154: RWE Power AG | G154: GoWerk F | H154: 1992-12-01 | I154: Lignite | J154: 0.3832 | K154: 34.8 | L154: 64.70720251
C155: Yes | D155: SEE970305352633 | E155: BNA1400a | F155: Südzucker AG | G155: Dampfturbine III Südzucker Zeitz | H155: 1993-08-01 | I155: Lignite | J155: 0.3832 | K155: 14.703 | L155: 64.70720251
C156: Yes | D156: SEE933960350956 | E156: BNA0179 | F156: eins energie in sachsen GmbH & Co. KG | G156: HKW Chemnitz Nord II, Block C | H156: 1990-06-07 | I156: Lignite | J156: 0.376 | K156: 80.32884 | L156: 65.9137234
C157: Yes | D157: SEE994335340088 | F157: Stadtwerke Frankfurt (Oder) GmbH | G157: HKW DT | H157: 1997-10-09 | I157: Lignite | J157: 0.376 | K157: 21.75 | L157: 65.9137234
C158: Yes | F158: Nicht-EEG-Anlagen < 10 MW | I158: Lignite | J158: 0.376 | K158: 31.22082 | L158: 65.9137234
C159: Yes | D159: SEE991817093418 | E159: BNA0785 | F159: Lausitz Energie Kraftwerke AG | G159: Kraftwerk Jänschwalde Block A | H159: 1981-10-01 | I159: Lignite | J159: 0.375 | K159: 435 | L159: 66.08496
C160: Yes | D160: SEE938669585906 | E160: BNA0786 | F160: Lausitz Energie Kraftwerke AG | G160: Kraftwerk Jänschwalde Block B | H160: 1982-11-29 | I160: Lignite | J160: 0.375 | K160: 435 | L160: 66.08496
C161: Yes | D161: SEE989591633753 | E161: BNA0787 | F161: Lausitz Energie Kraftwerke AG | G161: Kraftwerk Jänschwalde Block C | H161: 1984-02-01 | I161: Lignite | J161: 0.375 | K161: 435 | L161: 66.08496
C162: Yes | D162: SEE923943268279 | E162: BNA0788 | F162: Lausitz Energie Kraftwerke AG | G162: Kraftwerk Jänschwalde Block D | H162: 1985-10-06 | I162: Lignite | J162: 0.375 | K162: 435 | L162: 66.08496
C163: Yes | D163: SEE928076311489 | E163: BNA0523 | F163: Städtische Werke Energie + Wärme GmbH | G163: Fernwärmekraftwerk Kassel | H163: 1989-12-21 | I163: Lignite | J163: 0.3736 | K163: 29.145 | L163: 66.32623126
C164: Yes | D164: SEE923082939436 | E164: BNA0177 | F164: eins energie in sachsen GmbH & Co. KG | G164: HKW Chemnitz Nord II, Block B | H164: 1988-08-26 | I164: Lignite | J164: 0.3712 | K164: 50.60964 | L164: 66.74407328
C165: Yes | D165: SEE905721866655 | E165: BNA0292 | F165: RWE Power AG | G165: Fab Frechen | H165: 1962-12-23 | I165: Lignite | J165: 0.3712 | K165: 153.12 | L165: 66.74407328
C166: Yes | D166: SEE990438768378 | E166: BNA0270 | F166: Stadtwerke Flensburg | G166: Dampfturbine 8 | H166: 1985-05-24 | I166: Coal | J166: 0.504 | K166: 26.32 | L166: 67.49906746
C167: Yes | D167: SEE931736847297 | E167: BNA0699 | F167: RWE Power AG | G167: Neurath D | H167: 1975-06-24 | I167: Lignite | J167: 0.366 | K167: 528.09 | L167: 67.66819672
C168: Yes | D168: SEE976414005279 | E168: BNA0700 | F168: RWE Power AG | G168: Neurath E | H168: 1976-02-22 | I168: Lignite | J168: 0.366 | K168: 525.48 | L168: 67.66819672
C169: Yes | D169: SEE987007884447 | E169: BNA1027 | F169: RWE Power AG | G169: Weißweiler G | H169: 1974-02-14 | I169: Lignite | J169: 0.36 | K169: 576.81 | L169: 68.76766667
C170: Yes | D170: SEE955314088254 | E170: BNA1028 | F170: RWE Power AG | G170: Weißweiler H | H170: 1975-01-18 | I170: Lignite | J170: 0.36 | K170: 570.72 | L170: 68.76766667
C171: Yes | D171: SEE985842749525 | E171: BNA0122 | F171: Lausitz Energie Kraftwerke AG | G171: Boxberg Block N | H171: 1979-01-01 | I171: Lignite | J171: 0.35 | K171: 435 | L171: 70.68388571
C172: Yes | D172: SEE908125004449 | E172: BNA0123 | F172: Lausitz Energie Kraftwerke AG | G172: Boxberg Block P | H172: 1980-07-01 | I172: Lignite | J172: 0.35 | K172: 435 | L172: 70.68388571
C173: Yes | D173: SEE927622980674 | E173: BNA1141 | F173: Pfeifer & Langen GmbH ＆ Co. KG | G173: Euskirchen Generator 1 | H173: 1979-08-30 | I173: Lignite | J173: 0.3496 | K173: 6.03258 | L173: 70.76281465
C174: Yes | D174: SEE912440649056 | E174: BNA1141 | F174: Pfeifer & Langen GmbH ＆ Co. KG | G174: Euskirchen Generator 3 | H174: 1980-07-01 | I174: Lignite | J174: 0.3496 | K174: 1.00572 | L174: 70.76281465
C175: Yes | D175: SEE927630371594 | E175: BNA1486 | F175: ROMONTA GmbH | G175: Grubenheizkraftwerk Amsdorf | H175: 1979-07-01 | I175: Lignite | J175: 0.3496 | K175: 39.9243 | L175: 70.76281465
C176: Yes | D176: SEE957285549260 | E176: BNA0272 | F176: Stadtwerke Flensburg | G176: Dampfturbine 9 | H176: 1988-08-16 | I176: Coal | J176: 0.4725 | K176: 26.32 | L176: 71.91233862
C177: Yes | D177: SEE996990805407 | E177: BNA0138 | F177: Braunschweiger Versorgungs-AG & Co. KG | G177: HKW Mitte Kessel 1 | H177: 1985-01-18 | I177: Coal | J177: 0.468 | K177: 35.6 | L177: 72.59130342
C178: Yes | D178: SEE988477355802 | E178: BNA0646b | F178: Grosskraftwerk Mannheim | G178: GKM Block 9 | H178: 2015-05-02 | I178: Coal | J178: 0.464 | K178: 674.4 | L178: 73.20588362
C179: Yes | D179: SEE923577153439 | E179: BNA0662a | F179: Evonik Operations GmbH | G179: Kraftwerk I, T15 | H179: 1983-10-15 | I179: Coal | J179: 0.4635 | K179: 54.72 | L179: 73.283452
C180: Yes | D180: SEE970425279599 | E180: BNA1674 | F180: Onyx Kraftwerk Wilhelmshaven GmbH & Co. KG | G180: Kraftwerk Wilhelmshaven Onyx | H180: 2015-11-30 | I180: Coal | J180: 0.4625 | K180: 580.8 | L180: 73.43909189
C181: Yes | D181: SEE980331579218 | E181: BNA0518b | F181: EnBW Energie Baden-Württemberg AG | G181: Rheinhafen-Dampfkraftwerk RDK 8 | H181: 2014-07-01 | I181: Coal | J181: 0.46 | K181: 667.2 | L181: 73.83115217
C182: Yes | D182: SEE961029163353 | E182: BNA1508 | F182: Trianel Kohlekraftwerk Lünen GmbH & Co KG | G182: Trianel Kohlekraftwerk Lünen | H182: 2013-01-01 | I182: Coal | J182: 0.4595 | K182: 596.8 | L182: 73.91007617
C183: Yes | D183: SEE907150117643 | E183: BNA0696 | F183: RWE Power AG | G183: Neurath A | H183: 1972-10-14 | I183: Lignite | J183: 0.33 | K183: 255.78 | L183: 74.86472727
C184: Yes | D184: SEE979012663285 | E184: BNA0697 | F184: RWE Power AG | G184: Neurath B | H184: 1972-06-30 | I184: Lignite | J184: 0.33 | K184: 255.78 | L184: 74.86472727
C185: Yes | D185: SEE904421343152 | E185: BNA1025 | F185: RWE Power AG | G185: Weißweiler E | H185: 1965-12-02 | I185: Lignite | J185: 0.33 | K185: 279.27 | L185: 74.86472727
C186: Yes | D186: SEE933685962403 | E186: BNA1026 | F186: RWE Power AG | G186: Weißweiler F | H186: 1967-09-04 | I186: Lignite | J186: 0.33 | K186: 279.27 | L186: 74.86472727
C187: Yes | D187: SEE974018310478 | E187: BNA1864 | F187: KÄMMERER Energie GmbH | G187: Generator 4 | H187: 1962-12-22 | I187: Lignite | J187: 0.33 | K187: 8.004 | L187: 74.86472727
C188: Yes | D188: SEE920672219015 | E188: BNA1865 | F188: KÄMMERER Energie GmbH | G188: Generator 5 | H188: 1977-01-10 | I188: Lignite | J188: 0.33 | K188: 8.526 | L188: 74.86472727
C189: Yes | D189: SEE958847865460 | E189: BNA1093 | F189: Onyx Kraftwerk Zolling GmbH &Co. KGaA | G189: Kraftwerk Zolling | H189: 1985-01-01 | I189: Coal | J189: 0.4525 | K189: 377.6 | L189: 75.03332597
C190: Yes | D190: SEE918143230942 | E190: BNA0216b | F190: STEAG-EVN Walsum 10 Kraftwerksgesellschaft | G190: Walsum 10 | H190: 2013-12-20 | I190: Coal | J190: 0.45 | K190: 580 | L190: 75.44295556
C191: Yes | D191: SEE913516809497 | E191: BNA1949 | F191: Uniper Kraftwerke GmbH | G191: Datteln 4 | H191: 2020-05-30 | I191: Coal | J191: 0.45 | K191: 841.6 | L191: 75.44295556
C192: Yes | D192: SEE948609940009 | E192: BNA0434 | F192: EnBW Energie Baden-Württemberg AG | G192: Heizkraftwerk Heilbronn HLB 7 | H192: 1985-12-01 | I192: Coal | J192: 0.4475 | K192: 622.4 | L192: 75.85716201
C193: Yes | D193: SEE904968236689 | E193: BNA0147 | F193: Onyx Kraftwerk Farge GmbH & Co. KGaA | G193: Kraftwerk Farge | H193: 1969-01-01 | I193: Coal | J193: 0.4425 | K193: 280 | L193: 76.69961582
C194: Yes | D194: SEE965782597448 | E194: BNA0019 | F194: EnBW Energie Baden-Württemberg AG | G194: Heizkraftwerk Altbach/Deizisau HKW 2 DT (Solobetrieb) | H194: 1997-05-29 | I194: Coal | J194: 0.44 | K194: 258.4 | L194: 77.12802273
C195: Yes | D195: SEE980016033738 | E195: BNA0518a | F195: EnBW Energie Baden-Württemberg AG | G195: Rheinhafen-Dampfkraftwerk RDK 7 | H195: 1985-06-21 | I195: Coal | J195: 0.4375 | K195: 413.6 | L195: 77.56132571
C196: Yes | D196: SEE909002940690 | E196: BNA0644 | F196: Grosskraftwerk Mannheim | G196: GKM Block 6 | H196: 2005-12-26 | I196: Coal | J196: 0.4375 | K196: 204 | L196: 77.56132571
C197: Yes | D197: SEE967605837250 | E197: BNA0712 | F197: RWE Power AG | G197: Niederaußem C | H197: 1965-06-27 | I197: Lignite | J197: 0.316 | K197: 256.65 | L197: 78.10620253
C198: Yes | D198: SEE904194792843 | E198: BNA0464 | F198: Kraftwerk Mehrum GmbH | G198: KWM Block 3 | H198: 1979-08-24 | I198: Coal | J198: 0.4325 | K198: 552 | L198: 78.44295954
C199: Yes | D199: SEE943427876363 | E199: BNA0849 | F199: KNG Kraftwerks- und Netzgesellschaft mbH | G199: Kraftwerk Rostock Block A | H199: 1994-10-01 | I199: Coal | J199: 0.432 | K199: 411.2 | L199: 78.53224537
C200: Yes | D200: SEE900341307519 | E200: BNA1451 | F200: Venator Germany GmbH | G200: HKW Venator Germany | H200: 1960-05-20 | I200: Lignite | J200: 0.3136 | K200: 24.68799 | L200: 78.69094388
C201: Yes | D201: SEE998984420832 | E201: BNA1075a | F201: Volkswagen AG | G201: HKW Nord Generator A | H201: 1994-10-01 | I201: Coal | J201: 0.425 | K201: 48.8 | L201: 79.80430588
C202: Yes | D202: SEE920837459195 | E202: BNA1075b | F202: Volkswagen AG | G202: HKW Nord Generator B | H202: 1998-09-18 | I202: Coal | J202: 0.425 | K202: 48.8 | L202: 79.80430588
C203: Yes | D203: SEE979779484642 | E203: BNA0861b | F203: Energie SaarLorLux AG | G203: HKW-Römerbrücke Dampfturbinenanlage DT2 | H203: 1988-06-27 | I203: Coal | J203: 0.42 | K203: 42.4 | L203: 80.73888095
C204: Yes | D204: SEE938923083674 | E204: BNA0660 | F204: Evonik Operations GmbH | G204: Kraftwerk I, T14 | H204: 1971-06-01 | I204: Coal | J204: 0.4095 | K204: 44.448 | L204: 82.77577534
C205: Yes | D205: SEE987197130805 | E205: BNA0402 | F205: Wärme Hamburg GmbH | G205: HKW Tiefstack | H205: 1993-04-01 | I205: Coal | J205: 0.4075 | K205: 155.2 | L205: 83.17565644
C206: Yes | D206: SEE975507584615 | E206: BNA0646a | F206: Grosskraftwerk Mannheim | G206: GKM Block 8 | H206: 1993-04-05 | I206: Coal | J206: 0.4075 | K206: 348 | L206: 83.17565644
... 991 more rows

Sheet Hilfssheet Abbildung (hidden)
C2: Waste | D2: Nuclear | E2: Lignite | F2: Coal | G2: CCGT | H2: OCGT | I2: Oil
B3: Minimalwert | C3: =MIN(IF('Power Plant List'!$S$11:$S$1197='Hilfssheet Abbildung'!C2,'Power Plant List'!$Z$11:$Z$1197,"fail")) -> 1 | D3: =MIN(IF('Power Plant List'!$S$11:$S$1197='Hilfssheet Abbildung'!D2,'Power Plant List'!$Z$11:$Z$1197,"fail")) -> 16.91428571 | E3: =MIN(IF('Power Plant List'!$S$11:$S$1197='Hilfssheet Abbildung'!E2,'Power Plant List'!$Z$11:$Z$1197,"fail")) -> 56.95025172 | F3: =MIN(IF('Power Plant List'!$S$11:$S$1197='Hilfssheet Abbildung'!F2,'Power Plant List'!$Z$11:$Z$1197,"fail")) -> 67.49906746 | G3: =MIN(IF('Power Plant List'!$S$11:$S$1197='Hilfssheet Abbildung'!G2,'Power Plant List'!$Z$11:$Z$1197,"fail")) -> 104.7223651 | H3: =MIN(IF('Power Plant List'!$S$11:$S$1197='Hilfssheet Abbildung'!H2,'Power Plant List'!$Z$11:$Z$1197,"fail")) -> 123.4672128 | I3: =MIN(IF('Power Plant List'!$S$11:$S$1197='Hilfssheet Abbildung'!I2,'Power Plant List'!$Z$11:$Z$1197,"fail")) -> 92.13672727
B4: erstes Quartil | C4: =_xlfn.QUARTILE.INC(IF('Power Plant List'!$S$11:$S$1197='Hilfssheet Abbildung'!C2,'Power Plant List'!$Z$11:$Z$1197,"fail"),1) -> 1 | D4: =_xlfn.QUARTILE.INC(IF('Power Plant List'!$S$11:$S$1197='Hilfssheet Abbildung'!D2,'Power Plant List'!$Z$11:$Z$1197,"fail"),1) -> 17.10747256 | E4: =_xlfn.QUARTILE.INC(IF('Power Plant List'!$S$11:$S$1197='Hilfssheet Abbildung'!E2,'Power Plant List'!$Z$11:$Z$1197,"fail"),1) -> 60.58868293 | F4: =_xlfn.QUARTILE.INC(IF('Power Plant List'!$S$11:$S$1197='Hilfssheet Abbildung'!F2,'Power Plant List'!$Z$11:$Z$1197,"fail"),1) -> 82.87574561 | G4: =_xlfn.QUARTILE.INC(IF('Power Plant List'!$S$11:$S$1197='Hilfssheet Abbildung'!G2,'Power Plant List'!$Z$11:$Z$1197,"fail"),1) -> 146.0113111 | H4: =_xlfn.QUARTILE.INC(IF('Power Plant List'!$S$11:$S$1197='Hilfssheet Abbildung'!H2,'Power Plant List'!$Z$11:$Z$1197,"fail"),1) -> 163.575225 | I4: =_xlfn.QUARTILE.INC(IF('Power Plant List'!$S$11:$S$1197='Hilfssheet Abbildung'!I2,'Power Plant List'!$Z$11:$Z$1197,"fail"),1) -> 126.313
B5: Median | C5: =_xlfn.QUARTILE.INC(IF('Power Plant List'!$S$11:$S$1197='Hilfssheet Abbildung'!C2,'Power Plant List'!$Z$11:$Z$1197,"fail"),2) -> 1 | D5: =_xlfn.QUARTILE.INC(IF('Power Plant List'!$S$11:$S$1197='Hilfssheet Abbildung'!D2,'Power Plant List'!$Z$11:$Z$1197,"fail"),2) -> 17.50434783 | E5: =_xlfn.QUARTILE.INC(IF('Power Plant List'!$S$11:$S$1197='Hilfssheet Abbildung'!E2,'Power Plant List'!$Z$11:$Z$1197,"fail"),2) -> 65.9137234 | F5: =_xlfn.QUARTILE.INC(IF('Power Plant List'!$S$11:$S$1197='Hilfssheet Abbildung'!F2,'Power Plant List'!$Z$11:$Z$1197,"fail"),2) -> 87.40149677 | G5: =_xlfn.QUARTILE.INC(IF('Power Plant List'!$S$11:$S$1197='Hilfssheet Abbildung'!G2,'Power Plant List'!$Z$11:$Z$1197,"fail"),2) -> 164.075225 | H5: =_xlfn.QUARTILE.INC(IF('Power Plant List'!$S$11:$S$1197='Hilfssheet Abbildung'!H2,'Power Plant List'!$Z$11:$Z$1197,"fail"),2) -> 172.1318158 | I5: =_xlfn.QUARTILE.INC(IF('Power Plant List'!$S$11:$S$1197='Hilfssheet Abbildung'!I2,'Power Plant List'!$Z$11:$Z$1197,"fail"),2) -> 132.9084211
B6: Drittes Quartil | C6: =_xlfn.QUARTILE.INC(IF('Power Plant List'!$S$11:$S$1197='Hilfssheet Abbildung'!C2,'Power Plant List'!$Z$11:$Z$1197,"fail"),3) -> 1 | D6: =_xlfn.QUARTILE.INC(IF('Power Plant List'!$S$11:$S$1197='Hilfssheet Abbildung'!D2,'Power Plant List'!$Z$11:$Z$1197,"fail"),3) -> 17.86666667 | E6: =_xlfn.QUARTILE.INC(IF('Power Plant List'!$S$11:$S$1197='Hilfssheet Abbildung'!E2,'Power Plant List'!$Z$11:$Z$1197,"fail"),3) -> 70.70361795 | F6: =_xlfn.QUARTILE.INC(IF('Power Plant List'!$S$11:$S$1197='Hilfssheet Abbildung'!F2,'Power Plant List'!$Z$11:$Z$1197,"fail"),3) -> 101.8423412 | G6: =_xlfn.QUARTILE.INC(IF('Power Plant List'!$S$11:$S$1197='Hilfssheet Abbildung'!G2,'Power Plant List'!$Z$11:$Z$1197,"fail"),3) -> 171.9927353 | H6: =_xlfn.QUARTILE.INC(IF('Power Plant List'!$S$11:$S$1197='Hilfssheet Abbildung'!H2,'Power Plant List'!$Z$11:$Z$1197,"fail"),3) -> 196.7381551 | I6: =_xlfn.QUARTILE.INC(IF('Power Plant List'!$S$11:$S$1197='Hilfssheet Abbildung'!I2,'Power Plant List'!$Z$11:$Z$1197,"fail"),3) -> 136.5020913
B7: Maximalwert | C7: =MAX(IF('Power Plant List'!$S$11:$S$1197='Hilfssheet Abbildung'!C2,'Power Plant List'!$Z$11:$Z$1197,"fail")) -> 1 | D7: =MAX(IF('Power Plant List'!$S$11:$S$1197='Hilfssheet Abbildung'!D2,'Power Plant List'!$Z$11:$Z$1197,"fail")) -> 17.86666667 | E7: =MAX(IF('Power Plant List'!$S$11:$S$1197='Hilfssheet Abbildung'!E2,'Power Plant List'!$Z$11:$Z$1197,"fail")) -> 121.9408367 | F7: =MAX(IF('Power Plant List'!$S$11:$S$1197='Hilfssheet Abbildung'!F2,'Power Plant List'!$Z$11:$Z$1197,"fail")) -> 144.8024946 | G7: =MAX(IF('Power Plant List'!$S$11:$S$1197='Hilfssheet Abbildung'!G2,'Power Plant List'!$Z$11:$Z$1197,"fail")) -> 261.62036 | H7: =MAX(IF('Power Plant List'!$S$11:$S$1197='Hilfssheet Abbildung'!H2,'Power Plant List'!$Z$11:$Z$1197,"fail")) -> 214.4934012 | I7: =MAX(IF('Power Plant List'!$S$11:$S$1197='Hilfssheet Abbildung'!I2,'Power Plant List'!$Z$11:$Z$1197,"fail")) -> 218.9356522
C10: Waste | D10: Nuclear | E10: Lignite | F10: Coal | G10: CCGT | H10: OCGT | I10: Oil
B11: Q1-Minimum | E11: =E4-E3 -> 3.638431211 | F11: 15.37667815 | G11: 41.28894603 | H11: 40.10801219 | I11: =I4-I3 -> 34.17627273
B12: Q1 | C12: =C4 -> 1 | D12: =D4 -> 17.10747256 | E12: =E4 -> 60.58868293 | F12: 82.87574561 | G12: 146.0113111 | H12: 163.575225 | I12: =I4 -> 126.313
B13: Median-Q1 | C13: =C5-C4+0.1 -> 0.1 | D13: =D5-D4+0.1 -> 0.4968752618 | E13: =E5-E4 -> 5.325040477 | F13: 4.525751162 | G13: 18.06391389 | H13: 8.556590789 | I13: =I5-I4 -> 6.595421053
B14: Q3-Median | C14: =C6-C5+0.1 -> 0.1 | D14: =D6-D5+0.1 -> 0.4623188406 | E14: =E6-E5 -> 4.789894543 | F14: 14.44084447 | G14: 7.917510288 | H14: 24.60633927 | I14: =I6-I5 -> 3.593670266
B15: Maximum-Q3 | E15: =E7-E6 -> 51.23721871 | F15: 42.96015338 | G15: 89.62762471 | H15: 17.75524612 | I15: =I7-I6 -> 82.43356086
B18: Included in the Merit Order? | C18: Assumed Primary Source of Energy | D18: Power Plant Type Assignment
B19: Yes | C19: Waste | D19: Waste
B20: No | C20: Nuclear | D20: Nuclear
C21: Lignite | D21: Lignite
C22: Coal | D22: Coal
C23: Gas | D23: CCGT
C24: Oil | D24: OCGT
C25: Other | D25: Oil
D26: Other
